{"text_format":"1","workbook":"xlsx","n_sheets":19,"sheets":["LivestockForageBalance","TimeControlWorksheet","Summary","Instructions","Field Worksheet","Explanation sheet for L.O. ","Module1","Module2","Module3","Calculations","ForageGrowthCurves","Hay Loss Storage","PastureGrazingEfficiency","HayList","FSGTables","PrintableLivestockInventory","PrintableGrazingInventory","PrintableSummaryBalance","PrintableHayInventory"],"not_rendered":{"charts":3,"images":16,"macros":1,"external_links":0,"defined_names":617,"comments":2,"pivot_tables":0},"unopened":[{"sheet":"Module1","index":6,"reason":"part_missing"},{"sheet":"Module2","index":7,"reason":"part_missing"},{"sheet":"Module3","index":8,"reason":"part_missing"}],"bounds":{"document_bytes":16777216,"sheet_cells":100000,"rows_first":2000,"rows_last":500,"rows_between":2000,"halvings":0,"cell_chars":16384,"cell_head_chars":4096},"cells_cut":0,"cells_raw":0,"read":"whole","date_system":"1900"}

{"sheet":"LivestockForageBalance","index":0,"n_rows":314,"n_cols":25,"rows_kept":314,"cut":false,"hidden":false,"merged":[[232,9,232,12],[102,6,103,6],[130,6,131,6],[112,6,113,6],[207,6,207,14],[206,5,206,14],[193,5,193,24],[195,4,197,5],[195,13,196,24],[132,6,133,6],[134,6,135,6],[136,6,137,6],[138,6,139,6],[140,6,141,6],[142,6,143,6],[144,6,145,6],[146,6,147,6],[148,6,149,6],[0,5,0,25],[1,9,1,17],[226,6,226,24],[96,5,96,24],[99,13,100,24],[1,5,1,7],[99,4,101,5],[122,6,123,6],[114,6,115,6],[116,6,117,6],[118,6,119,6],[120,6,121,6],[74,7,74,12],[75,7,75,12],[51,7,51,12],[4,9,4,17],[26,7,26,9],[42,7,42,12],[43,7,43,12],[44,7,44,12],[48,7,48,12],[50,7,50,12],[49,7,49,12],[45,7,45,12],[2,5,2,24],[240,7,240,11],[230,8,230,11],[231,9,231,12],[236,8,236,11],[90,9,90,11],[91,9,91,11],[92,9,92,11],[90,7,90,8],[91,7,91,8],[92,7,92,8],[239,7,239,11],[237,9,237,12],[62,7,62,12],[68,7,68,12],[11,11,11,12],[46,7,46,12],[59,7,59,12],[55,7,55,12],[57,7,57,12],[56,7,56,12],[58,7,58,12],[54,7,54,12],[60,7,60,12],[5,19,9,24],[253,8,253,12],[255,8,255,12],[156,9,157,9],[224,4,224,7],[223,6,223,7],[209,4,211,5],[154,6,154,13],[155,6,155,13],[11,13,11,24],[25,7,25,9],[247,7,247,12],[189,5,189,24],[61,7,61,12],[41,8,41,9],[188,5,188,24],[104,6,105,6],[106,6,107,6],[108,6,109,6],[110,6,111,6],[124,6,125,6],[126,6,127,6],[128,6,129,6],[245,17,247,22],[263,10,263,12],[266,7,266,12],[243,7,243,14],[251,7,251,14],[257,8,257,12],[248,8,248,12],[249,7,249,12],[261,7,261,12],[254,9,254,12],[258,9,258,12],[259,10,259,12],[262,9,262,12],[264,10,264,14],[245,7,245,12],[243,17,243,22],[15,7,15,8],[17,7,17,8],[19,7,19,8],[27,7,27,8],[29,7,29,8],[31,7,31,8],[35,7,35,8],[33,7,33,8],[191,5,191,24],[190,5,190,24],[53,7,53,12],[72,7,72,12],[67,7,67,12],[70,7,70,12],[71,7,71,12],[76,7,76,12],[66,7,66,12],[228,7,228,11],[234,7,234,11],[229,7,229,11],[235,7,235,11],[97,5,97,24],[99,9,100,9]]}
[null,null,null,null,null,"LIVESTOCK-FORAGE BALANCE WORKSHEET"]
[null,null,null,null,null,null,null,null,null,"LIVESTOCK NEEDS AND DEMAND SCHEDULE"]
[null,null,null,null,null,"Start by using the \"Save As\" option to save a copy of the model to your computer.  Enter the general information for the producer you are working with into the yellow cells.  Then select the livestock class (or classes) to model by slecting the check box next to the livestock class name.  You can select as many livestock classes to model as needed.  If you selected a livestock class in error, clicking the check box again will remove that livestock class from the chosen options.   Depending on the livestock class chosen, there may be additional management information to enter by selecting the button for \"Mgt Info\" next to the livestock class name.    Enter the managment information within the button (if available) and then enter the required information in the yellow cells to capture the total forage demand.  For Cow/Calf, Dairy, Bulls, and Horses livestock classes the \"Mgt Info\" button will have options to manage the animals on the grazing system all year or an alternative pasture or a dry lot for a portion of the year.  The selected option will be reflected directly below the livestock class name. "]
[]
[null,null,null,null,null,null,null,"General Info",null,"Select Livestock Class (select as many as needed)",null,null,null,null,null,null,null,null,null,"Notes:  (Use this area to make any notes specific to the model)"]
[null,null,null,null,null,null,"Name:"]
[null,null,null,null,null,null,"System ID:",""]
[null,null,null,null,null,null,"Date:",""]
[null,null,null,null,null,null,"County:",""]
[null,null,null,null,null,null,"Completed by:"]
[null,null,null,null,null,null,"Plan Grazing Days:"]
[null,null,null,null,null,null,null,null,"Planned","Avg.","  Intake",null,null,"Forage Demand by Month (Lbs/month)"]
[null,null,null,null,null,null,null,"Livestock Class","Number","Weight","Rate (%)","Lbs/Day","Lbs/Year","Apr","May","June","July","Aug","Sept","Oct","Nov","Dec","Jan","Feb","Mar"]
[]
[null,null,null,null,null,null,null,"Cow/Calf Pairs Herd 1",null,null,null,{"$f":"I15*J15*K15/100","v":0},{"$f":"SUM(N15:Y15)","v":0},{"$f":"$L15*30*Calculations!$B$8","v":0},{"$f":"$L15*31*Calculations!$C$8","v":0},{"$f":"$L15*30*Calculations!$D$8","v":0},{"$f":"$L15*31*Calculations!$E$8","v":0},{"$f":"$L15*31*Calculations!$F$8","v":0},{"$f":"$L15*30*Calculations!$G$8","v":0},{"$f":"$L15*31*Calculations!$H$8","v":0},{"$f":"$L15*30*Calculations!$I$8","v":0},{"$f":"$L15*31*Calculations!$J$8","v":0},{"$f":"$L15*31*Calculations!$K$8","v":0},{"$f":"$L15*28*Calculations!$L$8","v":0},{"$f":"$L15*31*Calculations!$M$8","v":0}]
[null,null,null,null,null,null,null,{"$f":"IF(Calculations!B71=TRUE, \"Selected Management = Grazing System all Year\",IF(Calculations!B72=TRUE,\"Selected Management = Alternative Pasture from:\",IF(Calculations!B73=TRUE,\"Selected Management = Dry Lot from:\")))","v":"Selected Management = Grazing System all Year"},null,{"$f":"IF(OR(Calculations!B72=TRUE,Calculations!B73=TRUE),IF(Calculations!B87=1,\"Jan -\",IF(Calculations!B87=2,\"Feb -\",IF(Calculations!B87=3,\"Mar -\",IF(Calculations!B87=4,\"Apr -\",IF(Calculations!B87=5,\"May -\",IF(Calculations!B87=6,\"Jun -\",IF(Calculations!B87=7,\"Jul -\",IF(Calculations!B87=8,\"Aug -\",IF(Calculations!B87=9,\"Sep -\",IF(Calculations!B87=10,\"Oct -\",IF(Calculations!B87=11,\"Nov -\",IF(Calculations!B87=12,\"Dec -\")))))))))))),\"\")","v":""},{"$f":"IF(OR(Calculations!B72=TRUE,Calculations!B73=TRUE),IF(Calculations!B88=1,\"Jan\",IF(Calculations!B88=2,\"Feb\",IF(Calculations!B88=3,\"Mar\",IF(Calculations!B88=4,\"Apr\",IF(Calculations!B88=5,\"May\",IF(Calculations!B88=6,\"Jun\",IF(Calculations!B88=7,\"Jul\",IF(Calculations!B88=8,\"Aug\",IF(Calculations!B88=9,\"Sep\",IF(Calculations!B88=10,\"Oct\",IF(Calculations!B88=11,\"Nov\",IF(Calculations!B88=12,\"Dec\")))))))))))),\"\")","v":""}]
[null,null,null,null,null,null,null,"Cow/Calf Pairs Herd 2",null,null,null,{"$f":"I17*J17*K17/100","v":0},{"$f":"SUM(N17:Y17)","v":0},{"$f":"$L17*30*Calculations!$B$10","v":0},{"$f":"$L17*31*Calculations!$C$10","v":0},{"$f":"$L17*30*Calculations!$D$10","v":0},{"$f":"$L17*31*Calculations!$E$10","v":0},{"$f":"$L17*31*Calculations!$F$10","v":0},{"$f":"$L17*30*Calculations!$G$10","v":0},{"$f":"$L17*31*Calculations!$H$10","v":0},{"$f":"$L17*30*Calculations!$I$10","v":0},{"$f":"$L17*31*Calculations!$J$10","v":0},{"$f":"$L17*31*Calculations!$K$10","v":0},{"$f":"$L17*28*Calculations!$L$10","v":0},{"$f":"$L17*31*Calculations!$M$10","v":0}]
[null,null,null,null,null,null,null,{"$f":"IF(Calculations!B76=TRUE, \"Selected Management = Grazing System all Year\",IF(Calculations!B77=TRUE,\"Selected Management = Alternative Pasture from:\",IF(Calculations!B78=TRUE,\"Selected Management = Dry Lot from:\")))","v":"Selected Management = Grazing System all Year"},null,{"$f":"IF(OR(Calculations!B77=TRUE,Calculations!B78=TRUE),IF(Calculations!B91=1,\"Jan -\",IF(Calculations!B91=2,\"Feb -\",IF(Calculations!B91=3,\"Mar -\",IF(Calculations!B91=4,\"Apr -\",IF(Calculations!B91=5,\"May -\",IF(Calculations!B91=6,\"Jun -\",IF(Calculations!B91=7,\"Jul -\",IF(Calculations!B91=8,\"Aug -\",IF(Calculations!B91=9,\"Sep -\",IF(Calculations!B91=10,\"Oct -\",IF(Calculations!B91=11,\"Nov -\",IF(Calculations!B91=12,\"Dec -\")))))))))))),\"\")","v":""},{"$f":"IF(OR(Calculations!B77=TRUE,Calculations!B78=TRUE),IF(Calculations!B92=1,\"Jan\",IF(Calculations!B92=2,\"Feb\",IF(Calculations!B92=3,\"Mar\",IF(Calculations!B92=4,\"Apr\",IF(Calculations!B92=5,\"May\",IF(Calculations!B92=6,\"Jun\",IF(Calculations!B92=7,\"Jul\",IF(Calculations!B92=8,\"Aug\",IF(Calculations!B92=9,\"Sep\",IF(Calculations!B92=10,\"Oct\",IF(Calculations!B92=11,\"Nov\",IF(Calculations!B92=12,\"Dec\")))))))))))),\"\")","v":""}]
[null,null,null,null,null,null,null,"Cow/Calf Pairs Herd 3",null,null,null,{"$f":"I19*J19*K19/100","v":0},{"$f":"SUM(N19:Y19)","v":0},{"$f":"$L19*30*Calculations!$B$12","v":0},{"$f":"$L19*31*Calculations!$C$12","v":0},{"$f":"$L19*30*Calculations!$D$12","v":0},{"$f":"$L19*31*Calculations!$E$12","v":0},{"$f":"$L19*31*Calculations!$F$12","v":0},{"$f":"$L19*30*Calculations!$G$12","v":0},{"$f":"$L19*31*Calculations!$H$12","v":0},{"$f":"$L19*30*Calculations!$I$12","v":0},{"$f":"$L19*31*Calculations!$J$12","v":0},{"$f":"$L19*31*Calculations!$K$12","v":0},{"$f":"$L19*28*Calculations!$L$12","v":0},{"$f":"$L19*31*Calculations!$M$12","v":0}]
[null,null,null,null,null,null,null,{"$f":"IF(Calculations!B81=TRUE, \"Selected Management = Grazing System all Year\",IF(Calculations!B82=TRUE,\"Selected Management = Alternative Pasture from:\",IF(Calculations!B83=TRUE,\"Selected Management = Dry Lot from:\")))","v":"Selected Management = Grazing System all Year"},null,{"$f":"IF(OR(Calculations!B82=TRUE,Calculations!B83=TRUE),IF(Calculations!B95=1,\"Jan -\",IF(Calculations!B95=2,\"Feb -\",IF(Calculations!B95=3,\"Mar -\",IF(Calculations!B95=4,\"Apr -\",IF(Calculations!B95=5,\"May -\",IF(Calculations!B95=6,\"Jun -\",IF(Calculations!B95=7,\"Jul -\",IF(Calculations!B95=8,\"Aug -\",IF(Calculations!B95=9,\"Sep -\",IF(Calculations!B95=10,\"Oct -\",IF(Calculations!B95=11,\"Nov -\",IF(Calculations!B95=12,\"Dec -\")))))))))))),\"\")","v":""},{"$f":"IF(OR(Calculations!B82=TRUE,Calculations!B83=TRUE),IF(Calculations!B96=1,\"Jan\",IF(Calculations!B96=2,\"Feb\",IF(Calculations!B96=3,\"Mar\",IF(Calculations!B96=4,\"Apr\",IF(Calculations!B96=5,\"May\",IF(Calculations!B96=6,\"Jun\",IF(Calculations!B96=7,\"Jul\",IF(Calculations!B96=8,\"Aug\",IF(Calculations!B96=9,\"Sep\",IF(Calculations!B96=10,\"Oct\",IF(Calculations!B96=11,\"Nov\",IF(Calculations!B96=12,\"Dec\")))))))))))),\"\")","v":""}]
[null,null,null,null,null,null,null,"Stockers Herd 1",null,{"$f":"IF(I21>0,Calculations!$B$117)","v":false},null,{"$f":"M21/(MAX(Calculations!$A$26:$L$26))","v":0},{"$f":"SUM(N21:Y21)","v":0},{"$f":"(Calculations!A$25)*$K21*Calculations!A$23*$I21/100","v":0},{"$f":"(Calculations!B$25)*$K21*Calculations!B$23*$I21/100","v":0},{"$f":"(Calculations!C$25)*$K21*Calculations!C$23*$I21/100","v":0},{"$f":"(Calculations!D$25)*$K21*Calculations!D$23*$I21/100","v":0},{"$f":"(Calculations!E$25)*$K21*Calculations!E$23*$I21/100","v":0},{"$f":"(Calculations!F$25)*$K21*Calculations!F$23*$I21/100","v":0},{"$f":"(Calculations!G$25)*$K21*Calculations!G$23*$I21/100","v":0},{"$f":"(Calculations!H$25)*$K21*Calculations!H$23*$I21/100","v":0},{"$f":"(Calculations!I$25)*$K21*Calculations!I$23*$I21/100","v":0},{"$f":"(Calculations!J$25)*$K21*Calculations!J$23*$I21/100","v":0},{"$f":"(Calculations!K$25)*$K21*Calculations!K$23*$I21/100","v":0},{"$f":"(Calculations!L$25)*$K21*Calculations!L$23*$I21/100","v":0}]
[]
[null,null,null,null,null,null,null,"Stockers Herd 2",null,{"$f":"IF(I23>0,Calculations!$B$118)","v":false},null,{"$f":"M23/(MAX(Calculations!$A$29:$L$29))","v":0},{"$f":"SUM(N23:Y23)","v":0},{"$f":"(Calculations!A$28)*$K23*Calculations!A$23*$I23/100","v":0},{"$f":"(Calculations!B$28)*$K23*Calculations!B$23*$I23/100","v":0},{"$f":"(Calculations!C$28)*$K23*Calculations!C$23*$I23/100","v":0},{"$f":"(Calculations!D$28)*$K23*Calculations!D$23*$I23/100","v":0},{"$f":"(Calculations!E$28)*$K23*Calculations!E$23*$I23/100","v":0},{"$f":"(Calculations!F$28)*$K23*Calculations!F$23*$I23/100","v":0},{"$f":"(Calculations!G$28)*$K23*Calculations!G$23*$I23/100","v":0},{"$f":"(Calculations!H$28)*$K23*Calculations!H$23*$I23/100","v":0},{"$f":"(Calculations!I$28)*$K23*Calculations!I$23*$I23/100","v":0},{"$f":"(Calculations!J$28)*$K23*Calculations!J$23*$I23/100","v":0},{"$f":"(Calculations!K$28)*$K23*Calculations!K$23*$I23/100","v":0},{"$f":"(Calculations!L$28)*$K23*Calculations!L$23*$I23/100","v":0}]
[]
[null,null,null,null,null,null,null,"Dairy, Seasonal",null,null,null,null,{"$f":"SUM(N25:Y25)","v":0},{"$f":"IF(Calculations!$D$45<Calculations!$D$46,(IF(Calculations!$D$45<=4,(IF(Calculations!$D$46>=4,L26*30,L27*30)),L27*30)),IF(Calculations!$D$46>=4,L26*30,IF(Calculations!$D$45<=4,L26*30,L27*30)))","v":0},{"$f":"IF(Calculations!$D$45<Calculations!$D$46,(IF(Calculations!$D$45<=5,(IF(Calculations!$D$46>=5,L26*31,L27*31)),L27*31)),IF(Calculations!$D$46>=5,L26*31,IF(Calculations!$D$45<=5,L26*31,L27*31)))","v":0},{"$f":"IF(Calculations!$D$45<Calculations!$D$46,(IF(Calculations!$D$45<=6,(IF(Calculations!$D$46>=6,L26*30,L27*30)),L27*30)),IF(Calculations!$D$46>=6,L26*30,IF(Calculations!$D$45<=6,L26*30,L27*30)))","v":0},{"$f":"IF(Calculations!$D$45<Calculations!$D$46,(IF(Calculations!$D$45<=7,(IF(Calculations!$D$46>=7,L26*31,L27*31)),L27*31)),IF(Calculations!$D$46>=7,L26*31,IF(Calculations!$D$45<=7,L26*31,L27*31)))","v":0},{"$f":"IF(Calculations!$D$45<Calculations!$D$46,(IF(Calculations!$D$45<=8,(IF(Calculations!$D$46>=8,L26*31,L27*31)),L27*31)),IF(Calculations!$D$46>=8,L26*31,IF(Calculations!$D$45<=8,L26*31,L27*31)))","v":0},{"$f":"IF(Calculations!$D$45<Calculations!$D$46,(IF(Calculations!$D$45<=9,(IF(Calculations!$D$46>=9,L26*30,L27*30)),L27*30)),IF(Calculations!$D$46>=9,L26*30,IF(Calculations!$D$45<=9,L26*30,L27*30)))","v":0},{"$f":"IF(Calculations!$D$45<Calculations!$D$46,(IF(Calculations!$D$45<=10,(IF(Calculations!$D$46>=10,L26*31,L27*31)),L27*31)),IF(Calculations!$D$46>=10,L26*31,IF(Calculations!$D$45<=10,L26*31,L27*31)))","v":0},{"$f":"IF(Calculations!$D$45<Calculations!$D$46,(IF(Calculations!$D$45<=11,(IF(Calculations!$D$46>=11,L26*30,L27*30)),L27*30)),IF(Calculations!$D$46>=11,L26*30,IF(Calculations!$D$45<=11,L26*30,L27*30)))","v":0},{"$f":"IF(Calculations!$D$45<Calculations!$D$46,(IF(Calculations!$D$45<=12,(IF(Calculations!$D$46>=12,L26*31,L27*31)),L27*31)),IF(Calculations!$D$46>=12,L26*31,IF(Calculations!$D$45<=12,L26*31,L27*31)))","v":0},{"$f":"IF(Calculations!$D$45<Calculations!$D$46,(IF(Calculations!$D$45<=1,(IF(Calculations!$D$46>=1,L26*31,L27*31)),L27*31)),IF(Calculations!$D$46>=1,L26*31,IF(Calculations!$D$45<=1,L26*31,L27*31)))","v":0},{"$f":"IF(Calculations!$D$45<Calculations!$D$46,(IF(Calculations!$D$45<=2,(IF(Calculations!$D$46>=2,L26*28,L27*28)),L27*28)),IF(Calculations!$D$46>=2,L26*28,IF(Calculations!$D$45<=2,L26*28,L27*28)))","v":0},{"$f":"IF(Calculations!$D$45<Calculations!$D$46,(IF(Calculations!$D$45<=3,(IF(Calculations!$D$46>=3,L26*31,L27*31)),L27*31)),IF(Calculations!$D$46>=3,L26*31,IF(Calculations!$D$45<=3,L26*31,L27*31)))","v":0}]
[null,null,null,null,null,null,null,"Intake Rate Lactating Months",null,null,null,{"$f":"I25*J25*K26/100","v":0}]
[null,null,null,null,null,null,null,"Intake Rate Dry Months",null,null,null,{"$f":"I25*J25*K27/100","v":0}]
[null,null,null,null,null,null,null,{"$f":"IF(Calculations!G45=TRUE, \"Selected Management = Grazing System all Year\",IF(Calculations!H45=TRUE,\"Selected Management = Alternative Pasture from:\",IF(Calculations!I45=TRUE,\"Selected Management = Dry Lot from:\")))","v":"Selected Management = Grazing System all Year"},null,{"$f":"IF(OR(Calculations!H45=TRUE,Calculations!I45=TRUE),IF(Calculations!D46=1,\"Feb -\",IF(Calculations!D46=2,\"Mar -\",IF(Calculations!D46=3,\"Apr -\",IF(Calculations!D46=4,\"May -\",IF(Calculations!D46=5,\"Jun -\",IF(Calculations!D46=6,\"Jul -\",IF(Calculations!D46=7,\"Aug -\",IF(Calculations!D46=8,\"Sep -\",IF(Calculations!D46=9,\"Oct -\",IF(Calculations!D46=10,\"Nov -\",IF(Calculations!D46=11,\"Dec -\",IF(Calculations!D46=12,\"Jan -\")))))))))))),\"\")","v":""},{"$f":"IF(OR(Calculations!H45=TRUE,Calculations!I45=TRUE),IF(Calculations!D45=1,\"Dec\",IF(Calculations!D45=2,\"Jan\",IF(Calculations!D45=3,\"Feb\",IF(Calculations!D45=4,\"Mar\",IF(Calculations!D45=5,\"Apr\",IF(Calculations!D45=6,\"May\",IF(Calculations!D45=7,\"Jun\",IF(Calculations!D45=8,\"Jul\",IF(Calculations!D45=9,\"Aug\",IF(Calculations!D45=10,\"Sep\",IF(Calculations!D45=11,\"Oct\",IF(Calculations!D45=12,\"Nov\")))))))))))),\"\")","v":""}]
[null,null,null,null,null,null,null,"Lactating Dairy Herd",null,null,null,{"$f":"I29*J29*K29/100","v":0},{"$f":"SUM(N29:Y29)","v":0},{"$f":"$L29*30","v":0},{"$f":"$L29*31","v":0},{"$f":"$L29*30","v":0},{"$f":"$L29*31","v":0},0,{"$f":"$L29*30","v":0},{"$f":"$L29*31","v":0},{"$f":"$L29*30","v":0},{"$f":"$L29*31","v":0},0,{"$f":"$L29*28","v":0},{"$f":"$L29*31","v":0}]
[null,null,null,null,null,null,null,{"$f":"IF(Calculations!G54=TRUE, \"Selected Management = Grazing System all Year\",IF(Calculations!H54=TRUE,\"Selected Management = Alternative Pasture from:\",IF(Calculations!I54=TRUE,\"Selected Management = Dry Lot from:\")))","v":"Selected Management = Grazing System all Year"},null,{"$f":"IF(OR(Calculations!H54=TRUE,Calculations!I54=TRUE),IF(Calculations!D50=1,\"Jan -\",IF(Calculations!D50=2,\"Feb -\",IF(Calculations!D50=3,\"Mar -\",IF(Calculations!D50=4,\"Apr -\",IF(Calculations!D50=5,\"May -\",IF(Calculations!D50=6,\"Jun -\",IF(Calculations!D50=7,\"Jul -\",IF(Calculations!D50=8,\"Aug -\",IF(Calculations!D50=9,\"Sep -\",IF(Calculations!D50=10,\"Oct -\",IF(Calculations!D50=11,\"Nov -\",IF(Calculations!D50=12,\"Dec -\")))))))))))),\"\")","v":""},{"$f":"IF(OR(Calculations!H54=TRUE,Calculations!I54=TRUE),IF(Calculations!D51=1,\"Jan\",IF(Calculations!D51=2,\"Feb\",IF(Calculations!D51=3,\"Mar\",IF(Calculations!D51=4,\"Apr\",IF(Calculations!D51=5,\"May\",IF(Calculations!D51=6,\"Jun\",IF(Calculations!D51=7,\"Jul\",IF(Calculations!D51=8,\"Aug\",IF(Calculations!D51=9,\"Sep\",IF(Calculations!D51=10,\"Oct\",IF(Calculations!D51=11,\"Nov\",IF(Calculations!D51=12,\"Dec\")))))))))))),\"\")","v":""}]
[null,null,null,null,null,null,null,"Dry Dairy Herd ",null,null,null,{"$f":"I31*J31*K31/100","v":0},{"$f":"SUM(N31:Y31)","v":0},{"$f":"$L31*30","v":0},{"$f":"$L31*31","v":0},{"$f":"$L31*30","v":0},0,0,{"$f":"$L31*30","v":0},{"$f":"$L31*31","v":0},{"$f":"$L31*30","v":0},0,0,{"$f":"$L31*28","v":0},{"$f":"$L31*31","v":0}]
[null,null,null,null,null,null,null,{"$f":"IF(Calculations!G50=TRUE,\"Selected Management = Moved to Alternative Pasture\",IF(Calculations!H50=TRUE,\"Selected Management = Moved to Dry Lot\"))","v":false}]
[null,null,null,null,null,null,null,"Bulls",null,null,null,{"$f":"I33*J33*K33/100","v":0},{"$f":"SUM(N33:Y33)","v":0},{"$f":"$L33*30","v":0},{"$f":"$L33*31","v":0},{"$f":"$L33*30","v":0},0,0,{"$f":"$L33*30","v":0},{"$f":"$L33*31","v":0},{"$f":"$L33*30","v":0},0,0,{"$f":"$L33*28","v":0},{"$f":"$L33*31","v":0}]
[null,null,null,null,null,null,null,{"$f":"IF(Calculations!B55=TRUE, \"Selected Management = Grazing System all Year\",IF(OR(Calculations!B56=TRUE,Calculations!B58=TRUE),\"Selected Management = Alternative Pasture from:\",IF(OR(Calculations!B57=TRUE,Calculations!B59=TRUE),\"Selected Management = Dry Lot from:\")))","v":"Selected Management = Grazing System all Year"},null,{"$f":"IF(OR(Calculations!B56=TRUE,Calculations!B57=TRUE,Calculations!B58=TRUE,Calculations!B59=TRUE),IF(Calculations!B63=1,\"Feb -\",IF(Calculations!B63=2,\"Mar -\",IF(Calculations!B63=3,\"Apr -\",IF(Calculations!B63=4,\"May -\",IF(Calculations!B63=5,\"Jun -\",IF(Calculations!B63=6,\"Jul -\",IF(Calculations!B63=7,\"Aug -\",IF(Calculations!B63=8,\"Sep -\",IF(Calculations!B63=9,\"Oct -\",IF(Calculations!B63=10,\"Nov -\",IF(Calculations!B63=11,\"Dec -\",IF(Calculations!B63=12,\"Jan -\")))))))))))),\"\")","v":""},{"$f":"IF(OR(Calculations!B56=TRUE,Calculations!B57=TRUE),IF(Calculations!B62=1,\"Dec\",IF(Calculations!B62=2,\"Jan\",IF(Calculations!B62=3,\"Feb\",IF(Calculations!B62=4,\"Mar\",IF(Calculations!B62=5,\"Apr\",IF(Calculations!B62=6,\"May\",IF(Calculations!B62=7,\"Jun\",IF(Calculations!B62=8,\"Jul\",IF(Calculations!B62=9,\"Aug\",IF(Calculations!B62=10,\"Sep\",IF(Calculations!B62=11,\"Oct\",IF(Calculations!B62=12,\"Nov\")))))))))))),IF(OR(,Calculations!B58=TRUE,Calculations!B59=TRUE),IF(Calculations!B65=1,\"Dec\",IF(Calculations!B65=2,\"Jan\",IF(Calculations!B65=3,\"Feb\",IF(Calculations!B65=4,\"Mar\",IF(Calculations!B65=5,\"Apr\",IF(Calculations!B65=6,\"May\",IF(Calculations!B65=7,\"Jun\",IF(Calculations!B65=8,\"Jul\",IF(Calculations!B65=9,\"Aug\",IF(Calculations!B65=10,\"Sep\",IF(Calculations!B65=11,\"Oct\",IF(Calculations!B65=12,\"Nov\"))))))))))))))","v":false},{"$f":"IF(OR(Calculations!B58=TRUE,Calculations!B59=TRUE)=TRUE,\"and\",\"\")","v":""},{"$f":"IF(OR(Calculations!B58=TRUE,Calculations!B59=TRUE),IF(Calculations!B66=1,\"Feb -\",IF(Calculations!B66=2,\"Mar -\",IF(Calculations!B66=3,\"Apr -\",IF(Calculations!B66=4,\"May -\",IF(Calculations!B66=5,\"Jun -\",IF(Calculations!B66=6,\"Jul -\",IF(Calculations!B66=7,\"Aug -\",IF(Calculations!B66=8,\"Sep -\",IF(Calculations!B66=9,\"Oct -\",IF(Calculations!B66=10,\"Nov -\",IF(Calculations!B66=11,\"Dec -\",IF(Calculations!B66=12,\"Jan -\")))))))))))),\"\")","v":""},{"$f":"IF(OR(Calculations!B58=TRUE,Calculations!B59=TRUE),IF(Calculations!B62=1,\"Dec\",IF(Calculations!B62=2,\"Jan\",IF(Calculations!B62=3,\"Feb\",IF(Calculations!B62=4,\"Mar\",IF(Calculations!B62=5,\"Apr\",IF(Calculations!B62=6,\"May\",IF(Calculations!B62=7,\"Jun\",IF(Calculations!B62=8,\"Jul\",IF(Calculations!B62=9,\"Aug\",IF(Calculations!B62=10,\"Sep\",IF(Calculations!B62=11,\"Oct\",IF(Calculations!B62=12,\"Nov\")))))))))))),\"\")","v":""}]
[null,null,null,null,null,null,null,"Horses",null,null,null,{"$f":"I35*J35*K35/100","v":0},{"$f":"SUM(N35:Y35)","v":0},{"$f":"$L35*30","v":0},{"$f":"$L35*31","v":0},{"$f":"$L35*30","v":0},0,0,{"$f":"$L35*30","v":0},{"$f":"$L35*31","v":0},{"$f":"$L35*30","v":0},0,0,{"$f":"$L35*28","v":0},{"$f":"$L35*31","v":0}]
[null,null,null,null,null,null,null,{"$f":"IF(Calculations!B99=TRUE, \"Selected Management = Grazing System all Year\",IF(Calculations!B100=TRUE,\"Selected Management = Alternative Pasture from:\",IF(Calculations!B101=TRUE,\"Selected Management = Dry Lot from:\")))","v":"Selected Management = Grazing System all Year"},null,{"$f":"IF(OR(Calculations!B100=TRUE,Calculations!B101=TRUE),IF(Calculations!B102=1,\"Jan -\",IF(Calculations!B102=2,\"Feb -\",IF(Calculations!B102=3,\"Mar -\",IF(Calculations!B102=4,\"Apr -\",IF(Calculations!B102=5,\"May -\",IF(Calculations!B102=6,\"Jun -\",IF(Calculations!B102=7,\"Jul -\",IF(Calculations!B102=8,\"Aug -\",IF(Calculations!B102=9,\"Sep -\",IF(Calculations!B102=10,\"Oct -\",IF(Calculations!B102=11,\"Nov -\",IF(Calculations!B102=12,\"Dec -\")))))))))))),\"\")","v":""},{"$f":"IF(OR(Calculations!B100=TRUE,Calculations!B101=TRUE),IF(Calculations!B103=1,\"Jan\",IF(Calculations!B103=2,\"Feb\",IF(Calculations!B103=3,\"Mar\",IF(Calculations!B103=4,\"Apr\",IF(Calculations!B103=5,\"May\",IF(Calculations!B103=6,\"Jun\",IF(Calculations!B103=7,\"Jul\",IF(Calculations!B103=8,\"Aug\",IF(Calculations!B103=9,\"Sep\",IF(Calculations!B103=10,\"Oct\",IF(Calculations!B103=11,\"Nov\",IF(Calculations!B103=12,\"Dec\")))))))))))),\"\")","v":""}]
[null,null,null,null,null,null,null,"Sheep",null,null,null,{"$f":"I37*J37*K37/100","v":0},{"$f":"SUM(N37:Y37)","v":0},{"$f":"$L37*30","v":0},{"$f":"$L37*31","v":0},{"$f":"$L37*30","v":0},0,0,{"$f":"$L37*30","v":0},{"$f":"$L37*31","v":0},{"$f":"$L37*30","v":0},0,0,{"$f":"$L37*28","v":0},{"$f":"$L37*31","v":0}]
[]
[null,null,null,null,null,null,null,"Goats",null,null,null,{"$f":"I39*J39*K39/100","v":0},{"$f":"SUM(N39:Y39)","v":0},{"$f":"$L39*30","v":0},{"$f":"$L39*31","v":0},{"$f":"$L39*30","v":0},0,0,{"$f":"$L39*30","v":0},{"$f":"$L39*31","v":0},{"$f":"$L39*30","v":0},0,0,{"$f":"$L39*28","v":0},{"$f":"$L39*31","v":0}]
[]
[null,null,null,null,null,null,null,"Total Forage Demand",{"$f":"SUBTOTAL(109,I15:I39)","v":0},{"$f":"Calculations!B127","v":0},{"$f":"IF(Calculations!B125=0,0,L41/Calculations!B125*100)","v":0},{"$f":"IF(SeasonalDairyCheck=FALSE,SUBTOTAL(109,L15:L39),SUBTOTAL(109,L15:L23)+SUBTOTAL(109,L29:L39)+SUBTOTAL(101,L26:L27))","v":0},{"$f":"SUM(N41:Y41)","v":0},{"$f":"SUBTOTAL(109,N15:N39)","v":0},{"$f":"SUBTOTAL(109,O15:O39)","v":0},0,0,0,0,0,0,0,0,0,0]
[]
[null,null,null,null,null,null,null,"Dairy (<12 mo lactation)",null,null,null,null,null,{"$f":"IF(Calculations!G45=TRUE,\"P\",IF(Calculations!$D$45<Calculations!$D$46,(IF(Calculations!$D$45<=4,(IF(Calculations!$D$46>=4,\"P\",\"A\")),\"A\")),IF(Calculations!$D$46>=4,\"P\",IF(Calculations!$D$45<=4,\"P\",\"A\"))))","v":"P"},{"$f":"IF(Calculations!G45=TRUE,\"P\",IF(Calculations!$D$45<Calculations!$D$46,(IF(Calculations!$D$45<=5,(IF(Calculations!$D$46>=5,\"P\",\"A\")),\"A\")),IF(Calculations!$D$46>=5,\"P\",IF(Calculations!$D$45<=5,\"P\",\"A\"))))","v":"P"},{"$f":"IF(Calculations!G45=TRUE,\"P\",IF(Calculations!$D$45<Calculations!$D$46,(IF(Calculations!$D$45<=6,(IF(Calculations!$D$46>=6,\"P\",\"A\")),\"A\")),IF(Calculations!$D$46>=6,\"P\",IF(Calculations!$D$45<=6,\"P\",\"A\"))))","v":"P"},{"$f":"IF(Calculations!G45=TRUE,\"P\",IF(Calculations!$D$45<Calculations!$D$46,(IF(Calculations!$D$45<=7,(IF(Calculations!$D$46>=7,\"P\",\"A\")),\"A\")),IF(Calculations!$D$46>=7,\"P\",IF(Calculations!$D$45<=7,\"P\",\"A\"))))","v":"P"},{"$f":"IF(Calculations!G45=TRUE,\"P\",IF(Calculations!$D$45<Calculations!$D$46,(IF(Calculations!$D$45<=8,(IF(Calculations!$D$46>=8,\"P\",\"A\")),\"A\")),IF(Calculations!$D$46>=8,\"P\",IF(Calculations!$D$45<=8,\"P\",\"A\"))))","v":"P"},{"$f":"IF(Calculations!G45=TRUE,\"P\",IF(Calculations!$D$45<Calculations!$D$46,(IF(Calculations!$D$45<=9,(IF(Calculations!$D$46>=9,\"P\",\"A\")),\"A\")),IF(Calculations!$D$46>=9,\"P\",IF(Calculations!$D$45<=9,\"P\",\"A\"))))","v":"P"},{"$f":"IF(Calculations!G45=TRUE,\"P\",IF(Calculations!$D$45<Calculations!$D$46,(IF(Calculations!$D$45<=10,(IF(Calculations!$D$46>=10,\"P\",\"A\")),\"A\")),IF(Calculations!$D$46>=10,\"P\",IF(Calculations!$D$45<=10,\"P\",\"A\"))))","v":"P"},{"$f":"IF(Calculations!G45=TRUE,\"P\",IF(Calculations!$D$45<Calculations!$D$46,(IF(Calculations!$D$45<=11,(IF(Calculations!$D$46>=11,\"P\",\"A\")),\"A\")),IF(Calculations!$D$46>=11,\"P\",IF(Calculations!$D$45<=11,\"P\",\"A\"))))","v":"P"},{"$f":"IF(Calculations!G45=TRUE,\"P\",IF(Calculations!$D$45<Calculations!$D$46,(IF(Calculations!$D$45<=12,(IF(Calculations!$D$46>=12,\"P\",\"A\")),\"A\")),IF(Calculations!$D$46>=12,\"P\",IF(Calculations!$D$45<=12,\"P\",\"A\"))))","v":"P"},{"$f":"IF(Calculations!G45=TRUE,\"P\",IF(Calculations!$D$45<Calculations!$D$46,(IF(Calculations!$D$45<=1,(IF(Calculations!$D$46>=1,\"P\",\"A\")),\"A\")),IF(Calculations!$D$46>=1,\"P\",IF(Calculations!$D$45<=1,\"P\",\"A\"))))","v":"P"},{"$f":"IF(Calculations!G45=TRUE,\"P\",IF(Calculations!$D$45<Calculations!$D$46,(IF(Calculations!$D$45<=2,(IF(Calculations!$D$46>=2,\"P\",\"A\")),\"A\")),IF(Calculations!$D$46>=2,\"P\",IF(Calculations!$D$45<=2,\"P\",\"A\"))))","v":"P"},{"$f":"IF(Calculations!G45=TRUE,\"P\",IF(Calculations!$D$45<Calculations!$D$46,(IF(Calculations!$D$45<=3,(IF(Calculations!$D$46>=3,\"P\",\"A\")),\"A\")),IF(Calculations!$D$46>=3,\"P\",IF(Calculations!$D$45<=3,\"P\",\"A\"))))","v":"P"}]
[null,null,null,null,null,null,null,"Dairy (<12mo lactation) Pasture System",null,null,null,null,null,{"$f":"IF(Calculations!$L$44=TRUE,IF(N43=\"P\",N25,0),0)","v":0},{"$f":"IF(Calculations!$L$44=TRUE,IF(O43=\"P\",O25,0),0)","v":0},{"$f":"IF(Calculations!$L$44=TRUE,IF(P43=\"P\",P25,0),0)","v":0},{"$f":"IF(Calculations!$L$44=TRUE,IF(Q43=\"P\",Q25,0),0)","v":0},{"$f":"IF(Calculations!$L$44=TRUE,IF(R43=\"P\",R25,0),0)","v":0},{"$f":"IF(Calculations!$L$44=TRUE,IF(S43=\"P\",S25,0),0)","v":0},{"$f":"IF(Calculations!$L$44=TRUE,IF(T43=\"P\",T25,0),0)","v":0},{"$f":"IF(Calculations!$L$44=TRUE,IF(U43=\"P\",U25,0),0)","v":0},{"$f":"IF(Calculations!$L$44=TRUE,IF(V43=\"P\",V25,0),0)","v":0},{"$f":"IF(Calculations!$L$44=TRUE,IF(W43=\"P\",W25,0),0)","v":0},{"$f":"IF(Calculations!$L$44=TRUE,IF(X43=\"P\",X25,0),0)","v":0},{"$f":"IF(Calculations!$L$44=TRUE,IF(Y43=\"P\",Y25,0),0)","v":0}]
[null,null,null,null,null,null,null,"Dairy (<12 mo lactation) Alternative Pasture",null,null,null,null,null,{"$f":"IF(Calculations!$L$44=TRUE,IF(AND(N43=\"A\",Calculations!$H$45=TRUE),N25,0),0)","v":0},{"$f":"IF(Calculations!$L$44=TRUE,IF(AND(O43=\"A\",Calculations!$H$45=TRUE),O25,0),0)","v":0},{"$f":"IF(Calculations!$L$44=TRUE,IF(AND(P43=\"A\",Calculations!$H$45=TRUE),P25,0),0)","v":0},{"$f":"IF(Calculations!$L$44=TRUE,IF(AND(Q43=\"A\",Calculations!$H$45=TRUE),Q25,0),0)","v":0},{"$f":"IF(Calculations!$L$44=TRUE,IF(AND(R43=\"A\",Calculations!$H$45=TRUE),R25,0),0)","v":0},{"$f":"IF(Calculations!$L$44=TRUE,IF(AND(S43=\"A\",Calculations!$H$45=TRUE),S25,0),0)","v":0},{"$f":"IF(Calculations!$L$44=TRUE,IF(AND(T43=\"A\",Calculations!$H$45=TRUE),T25,0),0)","v":0},{"$f":"IF(Calculations!$L$44=TRUE,IF(AND(U43=\"A\",Calculations!$H$45=TRUE),U25,0),0)","v":0},{"$f":"IF(Calculations!$L$44=TRUE,IF(AND(V43=\"A\",Calculations!$H$45=TRUE),V25,0),0)","v":0},{"$f":"IF(Calculations!$L$44=TRUE,IF(AND(W43=\"A\",Calculations!$H$45=TRUE),W25,0),0)","v":0},{"$f":"IF(Calculations!$L$44=TRUE,IF(AND(X43=\"A\",Calculations!$H$45=TRUE),X25,0),0)","v":0},{"$f":"IF(Calculations!$L$44=TRUE,IF(AND(Y43=\"A\",Calculations!$H$45=TRUE),Y25,0),0)","v":0}]
[null,null,null,null,null,null,null,"Dairy (<12 mo lactation) Dry Lot",null,null,null,null,null,{"$f":"IF(Calculations!$L$44=TRUE,IF(AND(N43=\"A\",Calculations!$I$45=TRUE),N25,0),0)","v":0},{"$f":"IF(Calculations!$L$44=TRUE,IF(AND(O43=\"A\",Calculations!$I$45=TRUE),O25,0),0)","v":0},{"$f":"IF(Calculations!$L$44=TRUE,IF(AND(P43=\"A\",Calculations!$I$45=TRUE),P25,0),0)","v":0},{"$f":"IF(Calculations!$L$44=TRUE,IF(AND(Q43=\"A\",Calculations!$I$45=TRUE),Q25,0),0)","v":0},{"$f":"IF(Calculations!$L$44=TRUE,IF(AND(R43=\"A\",Calculations!$I$45=TRUE),R25,0),0)","v":0},{"$f":"IF(Calculations!$L$44=TRUE,IF(AND(S43=\"A\",Calculations!$I$45=TRUE),S25,0),0)","v":0},{"$f":"IF(Calculations!$L$44=TRUE,IF(AND(T43=\"A\",Calculations!$I$45=TRUE),T25,0),0)","v":0},{"$f":"IF(Calculations!$L$44=TRUE,IF(AND(U43=\"A\",Calculations!$I$45=TRUE),U25,0),0)","v":0},{"$f":"IF(Calculations!$L$44=TRUE,IF(AND(V43=\"A\",Calculations!$I$45=TRUE),V25,0),0)","v":0},{"$f":"IF(Calculations!$L$44=TRUE,IF(AND(W43=\"A\",Calculations!$I$45=TRUE),W25,0),0)","v":0},{"$f":"IF(Calculations!$L$44=TRUE,IF(AND(X43=\"A\",Calculations!$I$45=TRUE),X25,0),0)","v":0},{"$f":"IF(Calculations!$L$44=TRUE,IF(AND(Y43=\"A\",Calculations!$I$45=TRUE),Y25,0),0)","v":0}]
[]
[null,null,null,null,null,null,null,null,null,null,null,null,"Dairy - year round lactation"]
[null,null,null,null,null,null,null,"Lactating Dairy Herd",null,null,null,null,null,{"$f":"IF(Calculations!G54=TRUE,\"P\",IF(Calculations!$D$50<Calculations!$D$51,(IF(Calculations!$D$50<=4,(IF(Calculations!$D$51>=4,\"A\",\"P\")),\"P\")),IF(Calculations!$D$51>=4,\"A\",IF(Calculations!$D$50<=4,\"A\",\"P\"))))","v":"P"},{"$f":"IF(Calculations!G54=TRUE,\"P\",IF(Calculations!$D$50<Calculations!$D$51,(IF(Calculations!$D$50<=5,(IF(Calculations!$D$51>=5,\"A\",\"P\")),\"P\")),IF(Calculations!$D$51>=5,\"A\",IF(Calculations!$D$50<=5,\"A\",\"P\"))))","v":"P"},{"$f":"IF(Calculations!G54=TRUE,\"P\",IF(Calculations!$D$50<Calculations!$D$51,(IF(Calculations!$D$50<=6,(IF(Calculations!$D$51>=6,\"A\",\"P\")),\"P\")),IF(Calculations!$D$51>=6,\"A\",IF(Calculations!$D$50<=6,\"A\",\"P\"))))","v":"P"},{"$f":"IF(Calculations!G54=TRUE,\"P\",IF(Calculations!$D$50<Calculations!$D$51,(IF(Calculations!$D$50<=7,(IF(Calculations!$D$51>=7,\"A\",\"P\")),\"P\")),IF(Calculations!$D$51>=7,\"A\",IF(Calculations!$D$50<=7,\"A\",\"P\"))))","v":"P"},{"$f":"IF(Calculations!G54=TRUE,\"P\",IF(Calculations!$D$50<Calculations!$D$51,(IF(Calculations!$D$50<=8,(IF(Calculations!$D$51>=8,\"A\",\"P\")),\"P\")),IF(Calculations!$D$51>=8,\"A\",IF(Calculations!$D$50<=8,\"A\",\"P\"))))","v":"P"},{"$f":"IF(Calculations!G54=TRUE,\"P\",IF(Calculations!$D$50<Calculations!$D$51,(IF(Calculations!$D$50<=9,(IF(Calculations!$D$51>=9,\"A\",\"P\")),\"P\")),IF(Calculations!$D$51>=9,\"A\",IF(Calculations!$D$50<=9,\"A\",\"P\"))))","v":"P"},{"$f":"IF(Calculations!G54=TRUE,\"P\",IF(Calculations!$D$50<Calculations!$D$51,(IF(Calculations!$D$50<=10,(IF(Calculations!$D$51>=10,\"A\",\"P\")),\"P\")),IF(Calculations!$D$51>=10,\"A\",IF(Calculations!$D$50<=10,\"A\",\"P\"))))","v":"P"},{"$f":"IF(Calculations!G54=TRUE,\"P\",IF(Calculations!$D$50<Calculations!$D$51,(IF(Calculations!$D$50<=11,(IF(Calculations!$D$51>=11,\"A\",\"P\")),\"P\")),IF(Calculations!$D$51>=11,\"A\",IF(Calculations!$D$50<=11,\"A\",\"P\"))))","v":"P"},{"$f":"IF(Calculations!G54=TRUE,\"P\",IF(Calculations!$D$50<Calculations!$D$51,(IF(Calculations!$D$50<=12,(IF(Calculations!$D$51>=12,\"A\",\"P\")),\"P\")),IF(Calculations!$D$51>=12,\"A\",IF(Calculations!$D$50<=12,\"A\",\"P\"))))","v":"P"},{"$f":"IF(Calculations!G54=TRUE,\"P\",IF(Calculations!$D$50<Calculations!$D$51,(IF(Calculations!$D$50<=1,(IF(Calculations!$D$51>=1,\"A\",\"P\")),\"P\")),IF(Calculations!$D$51>=1,\"A\",IF(Calculations!$D$50<=1,\"A\",\"P\"))))","v":"P"},{"$f":"IF(Calculations!G54=TRUE,\"P\",IF(Calculations!$D$50<Calculations!$D$51,(IF(Calculations!$D$50<=2,(IF(Calculations!$D$51>=2,\"A\",\"P\")),\"P\")),IF(Calculations!$D$51>=2,\"A\",IF(Calculations!$D$50<=2,\"A\",\"P\"))))","v":"P"},{"$f":"IF(Calculations!G54=TRUE,\"P\",IF(Calculations!$D$50<Calculations!$D$51,(IF(Calculations!$D$50<=3,(IF(Calculations!$D$51>=3,\"A\",\"P\")),\"P\")),IF(Calculations!$D$51>=3,\"A\",IF(Calculations!$D$50<=3,\"A\",\"P\"))))","v":"P"}]
[null,null,null,null,null,null,null,"Lactating Herd Pasture System",null,null,null,null,null,{"$f":"IF(Calculations!$L$45=TRUE,IF(N49=\"P\",N29,0),0)","v":0},{"$f":"IF(Calculations!$L$45=TRUE,IF(O49=\"P\",O29,0),0)","v":0},{"$f":"IF(Calculations!$L$45=TRUE,IF(P49=\"P\",P29,0),0)","v":0},{"$f":"IF(Calculations!$L$45=TRUE,IF(Q49=\"P\",Q29,0),0)","v":0},{"$f":"IF(Calculations!$L$45=TRUE,IF(R49=\"P\",R29,0),0)","v":0},{"$f":"IF(Calculations!$L$45=TRUE,IF(S49=\"P\",S29,0),0)","v":0},{"$f":"IF(Calculations!$L$45=TRUE,IF(T49=\"P\",T29,0),0)","v":0},{"$f":"IF(Calculations!$L$45=TRUE,IF(U49=\"P\",U29,0),0)","v":0},{"$f":"IF(Calculations!$L$45=TRUE,IF(V49=\"P\",V29,0),0)","v":0},{"$f":"IF(Calculations!$L$45=TRUE,IF(W49=\"P\",W29,0),0)","v":0},{"$f":"IF(Calculations!$L$45=TRUE,IF(X49=\"P\",X29,0),0)","v":0},{"$f":"IF(Calculations!$L$45=TRUE,IF(Y49=\"P\",Y29,0),0)","v":0}]
[null,null,null,null,null,null,null,"Lactating Herd Alternative Pasture",null,null,null,null,null,{"$f":"IF(Calculations!$L$45=TRUE,IF(AND(N50=\"P\",Calculations!$H$54=TRUE),N29,0),0)","v":0},{"$f":"IF(Calculations!$L$45=TRUE,IF(AND(O50=\"P\",Calculations!$H$54=TRUE),O29,0),0)","v":0},{"$f":"IF(Calculations!$L$45=TRUE,IF(AND(P50=\"P\",Calculations!$H$54=TRUE),P29,0),0)","v":0},{"$f":"IF(Calculations!$L$45=TRUE,IF(AND(Q50=\"P\",Calculations!$H$54=TRUE),Q29,0),0)","v":0},{"$f":"IF(Calculations!$L$45=TRUE,IF(AND(R50=\"P\",Calculations!$H$54=TRUE),R29,0),0)","v":0},{"$f":"IF(Calculations!$L$45=TRUE,IF(AND(S50=\"P\",Calculations!$H$54=TRUE),S29,0),0)","v":0},{"$f":"IF(Calculations!$L$45=TRUE,IF(AND(T50=\"P\",Calculations!$H$54=TRUE),T29,0),0)","v":0},{"$f":"IF(Calculations!$L$45=TRUE,IF(AND(U50=\"P\",Calculations!$H$54=TRUE),U29,0),0)","v":0},{"$f":"IF(Calculations!$L$45=TRUE,IF(AND(V50=\"P\",Calculations!$H$54=TRUE),V29,0),0)","v":0},{"$f":"IF(Calculations!$L$45=TRUE,IF(AND(W50=\"P\",Calculations!$H$54=TRUE),W29,0),0)","v":0},{"$f":"IF(Calculations!$L$45=TRUE,IF(AND(X50=\"P\",Calculations!$H$54=TRUE),X29,0),0)","v":0},{"$f":"IF(Calculations!$L$45=TRUE,IF(AND(Y50=\"P\",Calculations!$H$54=TRUE),Y29,0),0)","v":0}]
[null,null,null,null,null,null,null,"Lactating Herd Dry Lot",null,null,null,null,null,{"$f":"IF(Calculations!$L$45=TRUE,IF(AND(N50=\"P\",Calculations!$I$54=TRUE),N29,0),0)","v":0},{"$f":"IF(Calculations!$L$45=TRUE,IF(AND(O50=\"P\",Calculations!$I$54=TRUE),O29,0),0)","v":0},{"$f":"IF(Calculations!$L$45=TRUE,IF(AND(P50=\"P\",Calculations!$I$54=TRUE),P29,0),0)","v":0},{"$f":"IF(Calculations!$L$45=TRUE,IF(AND(Q50=\"P\",Calculations!$I$54=TRUE),Q29,0),0)","v":0},{"$f":"IF(Calculations!$L$45=TRUE,IF(AND(R50=\"P\",Calculations!$I$54=TRUE),R29,0),0)","v":0},{"$f":"IF(Calculations!$L$45=TRUE,IF(AND(S50=\"P\",Calculations!$I$54=TRUE),S29,0),0)","v":0},{"$f":"IF(Calculations!$L$45=TRUE,IF(AND(T50=\"P\",Calculations!$I$54=TRUE),T29,0),0)","v":0},{"$f":"IF(Calculations!$L$45=TRUE,IF(AND(U50=\"P\",Calculations!$I$54=TRUE),U29,0),0)","v":0},{"$f":"IF(Calculations!$L$45=TRUE,IF(AND(V50=\"P\",Calculations!$I$54=TRUE),V29,0),0)","v":0},{"$f":"IF(Calculations!$L$45=TRUE,IF(AND(W50=\"P\",Calculations!$I$54=TRUE),W29,0),0)","v":0},{"$f":"IF(Calculations!$L$45=TRUE,IF(AND(X50=\"P\",Calculations!$I$54=TRUE),X29,0),0)","v":0},{"$f":"IF(Calculations!$L$45=TRUE,IF(AND(Y50=\"P\",Calculations!$I$54=TRUE),Y29,0),0)","v":0}]
[null,null,null,null,null,null,null,null,0]
[null,null,null,null,null,null,null,"Dry Dairy Herd Alternative Pasture",null,null,null,null,null,{"$f":"IF(Calculations!$L$45=TRUE,IF(Calculations!$G$50=TRUE,N31,0),0)","v":0},{"$f":"IF(Calculations!$L$45=TRUE,IF(Calculations!$G$50=TRUE,O31,0),0)","v":0},{"$f":"IF(Calculations!$L$45=TRUE,IF(Calculations!$G$50=TRUE,P31,0),0)","v":0},{"$f":"IF(Calculations!$L$45=TRUE,IF(Calculations!$G$50=TRUE,Q31,0),0)","v":0},{"$f":"IF(Calculations!$L$45=TRUE,IF(Calculations!$G$50=TRUE,R31,0),0)","v":0},{"$f":"IF(Calculations!$L$45=TRUE,IF(Calculations!$G$50=TRUE,S31,0),0)","v":0},{"$f":"IF(Calculations!$L$45=TRUE,IF(Calculations!$G$50=TRUE,T31,0),0)","v":0},{"$f":"IF(Calculations!$L$45=TRUE,IF(Calculations!$G$50=TRUE,U31,0),0)","v":0},{"$f":"IF(Calculations!$L$45=TRUE,IF(Calculations!$G$50=TRUE,V31,0),0)","v":0},{"$f":"IF(Calculations!$L$45=TRUE,IF(Calculations!$G$50=TRUE,W31,0),0)","v":0},{"$f":"IF(Calculations!$L$45=TRUE,IF(Calculations!$G$50=TRUE,X31,0),0)","v":0},{"$f":"IF(Calculations!$L$45=TRUE,IF(Calculations!$G$50=TRUE,Y31,0),0)","v":0}]
[null,null,null,null,null,null,null,"Dry Dairy Herd Dry Lot",null,null,null,null,null,{"$f":"IF(Calculations!$L$45=TRUE,IF(Calculations!$H$50=TRUE,N31,0),0)","v":0},{"$f":"IF(Calculations!$L$45=TRUE,IF(Calculations!$H$50=TRUE,O31,0),0)","v":0},{"$f":"IF(Calculations!$L$45=TRUE,IF(Calculations!$H$50=TRUE,P31,0),0)","v":0},{"$f":"IF(Calculations!$L$45=TRUE,IF(Calculations!$H$50=TRUE,Q31,0),0)","v":0},{"$f":"IF(Calculations!$L$45=TRUE,IF(Calculations!$H$50=TRUE,R31,0),0)","v":0},{"$f":"IF(Calculations!$L$45=TRUE,IF(Calculations!$H$50=TRUE,S31,0),0)","v":0},{"$f":"IF(Calculations!$L$45=TRUE,IF(Calculations!$H$50=TRUE,T31,0),0)","v":0},{"$f":"IF(Calculations!$L$45=TRUE,IF(Calculations!$H$50=TRUE,U31,0),0)","v":0},{"$f":"IF(Calculations!$L$45=TRUE,IF(Calculations!$H$50=TRUE,V31,0),0)","v":0},{"$f":"IF(Calculations!$L$45=TRUE,IF(Calculations!$H$50=TRUE,W31,0),0)","v":0},{"$f":"IF(Calculations!$L$45=TRUE,IF(Calculations!$H$50=TRUE,X31,0),0)","v":0},{"$f":"IF(Calculations!$L$45=TRUE,IF(Calculations!$H$50=TRUE,Y31,0),0)","v":0}]
[]
[null,null,null,null,null,null,null,"Bulls"]
[null,null,null,null,null,null,null,"First Breeding or year round pasture system",null,null,null,null,null,{"$f":"IF(Calculations!$B$55=TRUE,\"P\",IF(Calculations!$B$62<Calculations!$B$63,(IF(Calculations!$B$62<=4,(IF(Calculations!$B$63>=4,\"P\",\"A\")),\"A\")),IF(Calculations!$B$63>=4,\"P\",IF(Calculations!$B$62<=4,\"P\",\"A\"))))","v":"P"},{"$f":"IF(Calculations!$B$55=TRUE,\"P\",IF(Calculations!$B$62<Calculations!$B$63,(IF(Calculations!$B$62<=5,(IF(Calculations!$B$63>=5,\"P\",\"A\")),\"A\")),IF(Calculations!$B$63>=5,\"P\",IF(Calculations!$B$62<=5,\"P\",\"A\"))))","v":"P"},{"$f":"IF(Calculations!$B$55=TRUE,\"P\",IF(Calculations!$B$62<Calculations!$B$63,(IF(Calculations!$B$62<=6,(IF(Calculations!$B$63>=6,\"P\",\"A\")),\"A\")),IF(Calculations!$B$63>=6,\"P\",IF(Calculations!$B$62<=6,\"P\",\"A\"))))","v":"P"},{"$f":"IF(Calculations!$B$55=TRUE,\"P\",IF(Calculations!$B$62<Calculations!$B$63,(IF(Calculations!$B$62<=7,(IF(Calculations!$B$63>=7,\"P\",\"A\")),\"A\")),IF(Calculations!$B$63>=7,\"P\",IF(Calculations!$B$62<=7,\"P\",\"A\"))))","v":"P"},{"$f":"IF(Calculations!$B$55=TRUE,\"P\",IF(Calculations!$B$62<Calculations!$B$63,(IF(Calculations!$B$62<=8,(IF(Calculations!$B$63>=8,\"P\",\"A\")),\"A\")),IF(Calculations!$B$63>=8,\"P\",IF(Calculations!$B$62<=8,\"P\",\"A\"))))","v":"P"},{"$f":"IF(Calculations!$B$55=TRUE,\"P\",IF(Calculations!$B$62<Calculations!$B$63,(IF(Calculations!$B$62<=9,(IF(Calculations!$B$63>=9,\"P\",\"A\")),\"A\")),IF(Calculations!$B$63>=9,\"P\",IF(Calculations!$B$62<=9,\"P\",\"A\"))))","v":"P"},{"$f":"IF(Calculations!$B$55=TRUE,\"P\",IF(Calculations!$B$62<Calculations!$B$63,(IF(Calculations!$B$62<=10,(IF(Calculations!$B$63>=10,\"P\",\"A\")),\"A\")),IF(Calculations!$B$63>=10,\"P\",IF(Calculations!$B$62<=10,\"P\",\"A\"))))","v":"P"},{"$f":"IF(Calculations!$B$55=TRUE,\"P\",IF(Calculations!$B$62<Calculations!$B$63,(IF(Calculations!$B$62<=11,(IF(Calculations!$B$63>=11,\"P\",\"A\")),\"A\")),IF(Calculations!$B$63>=11,\"P\",IF(Calculations!$B$62<=11,\"P\",\"A\"))))","v":"P"},{"$f":"IF(Calculations!$B$55=TRUE,\"P\",IF(Calculations!$B$62<Calculations!$B$63,(IF(Calculations!$B$62<=12,(IF(Calculations!$B$63>=12,\"P\",\"A\")),\"A\")),IF(Calculations!$B$63>=12,\"P\",IF(Calculations!$B$62<=12,\"P\",\"A\"))))","v":"P"},{"$f":"IF(Calculations!$B$55=TRUE,\"P\",IF(Calculations!$B$62<Calculations!$B$63,(IF(Calculations!$B$62<=1,(IF(Calculations!$B$63>=1,\"P\",\"A\")),\"A\")),IF(Calculations!$B$63>=1,\"P\",IF(Calculations!$B$62<=1,\"P\",\"A\"))))","v":"P"},{"$f":"IF(Calculations!$B$55=TRUE,\"P\",IF(Calculations!$B$62<Calculations!$B$63,(IF(Calculations!$B$62<=2,(IF(Calculations!$B$63>=2,\"P\",\"A\")),\"A\")),IF(Calculations!$B$63>=2,\"P\",IF(Calculations!$B$62<=2,\"P\",\"A\"))))","v":"P"},{"$f":"IF(Calculations!$B$55=TRUE,\"P\",IF(Calculations!$B$62<Calculations!$B$63,(IF(Calculations!$B$62<=3,(IF(Calculations!$B$63>=3,\"P\",\"A\")),\"A\")),IF(Calculations!$B$63>=3,\"P\",IF(Calculations!$B$62<=3,\"P\",\"A\"))))","v":"P"}]
[null,null,null,null,null,null,null,"Second Breeding",null,null,null,null,null,{"$f":"IF(OR(Calculations!$B$58=TRUE,Calculations!$B$59=TRUE),IF(Calculations!$B$65<Calculations!$B$66,(IF(Calculations!$B$65<=4,(IF(Calculations!$B$66>=4,\"P\",\"A\")),\"A\")),IF(Calculations!$B$66>=4,\"P\",IF(Calculations!$B$65<=4,\"P\",\"A\"))),0)","v":0},{"$f":"IF(OR(Calculations!$B$58=TRUE,Calculations!$B$59=TRUE),IF(Calculations!$B$65<Calculations!$B$66,(IF(Calculations!$B$65<=5,(IF(Calculations!$B$66>=5,\"P\",\"A\")),\"A\")),IF(Calculations!$B$66>=5,\"P\",IF(Calculations!$B$65<=5,\"P\",\"A\"))),0)","v":0},{"$f":"IF(OR(Calculations!$B$58=TRUE,Calculations!$B$59=TRUE),IF(Calculations!$B$65<Calculations!$B$66,(IF(Calculations!$B$65<=6,(IF(Calculations!$B$66>=6,\"P\",\"A\")),\"A\")),IF(Calculations!$B$66>=6,\"P\",IF(Calculations!$B$65<=6,\"P\",\"A\"))),0)","v":0},{"$f":"IF(OR(Calculations!$B$58=TRUE,Calculations!$B$59=TRUE),IF(Calculations!$B$65<Calculations!$B$66,(IF(Calculations!$B$65<=7,(IF(Calculations!$B$66>=7,\"P\",\"A\")),\"A\")),IF(Calculations!$B$66>=7,\"P\",IF(Calculations!$B$65<=7,\"P\",\"A\"))),0)","v":0},{"$f":"IF(OR(Calculations!$B$58=TRUE,Calculations!$B$59=TRUE),IF(Calculations!$B$65<Calculations!$B$66,(IF(Calculations!$B$65<=8,(IF(Calculations!$B$66>=8,\"P\",\"A\")),\"A\")),IF(Calculations!$B$66>=8,\"P\",IF(Calculations!$B$65<=8,\"P\",\"A\"))),0)","v":0},{"$f":"IF(OR(Calculations!$B$58=TRUE,Calculations!$B$59=TRUE),IF(Calculations!$B$65<Calculations!$B$66,(IF(Calculations!$B$65<=9,(IF(Calculations!$B$66>=9,\"P\",\"A\")),\"A\")),IF(Calculations!$B$66>=9,\"P\",IF(Calculations!$B$65<=9,\"P\",\"A\"))),0)","v":0},{"$f":"IF(OR(Calculations!$B$58=TRUE,Calculations!$B$59=TRUE),IF(Calculations!$B$65<Calculations!$B$66,(IF(Calculations!$B$65<=10,(IF(Calculations!$B$66>=10,\"P\",\"A\")),\"A\")),IF(Calculations!$B$66>=10,\"P\",IF(Calculations!$B$65<=10,\"P\",\"A\"))),0)","v":0},{"$f":"IF(OR(Calculations!$B$58=TRUE,Calculations!$B$59=TRUE),IF(Calculations!$B$65<Calculations!$B$66,(IF(Calculations!$B$65<=11,(IF(Calculations!$B$66>=11,\"P\",\"A\")),\"A\")),IF(Calculations!$B$66>=11,\"P\",IF(Calculations!$B$65<=11,\"P\",\"A\"))),0)","v":0},{"$f":"IF(OR(Calculations!$B$58=TRUE,Calculations!$B$59=TRUE),IF(Calculations!$B$65<Calculations!$B$66,(IF(Calculations!$B$65<=12,(IF(Calculations!$B$66>=12,\"P\",\"A\")),\"A\")),IF(Calculations!$B$66>=12,\"P\",IF(Calculations!$B$65<=12,\"P\",\"A\"))),0)","v":0},{"$f":"IF(OR(Calculations!$B$58=TRUE,Calculations!$B$59=TRUE),IF(Calculations!$B$65<Calculations!$B$66,(IF(Calculations!$B$65<=1,(IF(Calculations!$B$66>=1,\"P\",\"A\")),\"A\")),IF(Calculations!$B$66>=1,\"P\",IF(Calculations!$B$65<=1,\"P\",\"A\"))),0)","v":0},{"$f":"IF(OR(Calculations!$B$58=TRUE,Calculations!$B$59=TRUE),IF(Calculations!$B$65<Calculations!$B$66,(IF(Calculations!$B$65<=2,(IF(Calculations!$B$66>=2,\"P\",\"A\")),\"A\")),IF(Calculations!$B$66>=2,\"P\",IF(Calculations!$B$65<=2,\"P\",\"A\"))),0)","v":0},{"$f":"IF(OR(Calculations!$B$58=TRUE,Calculations!$B$59=TRUE),IF(Calculations!$B$65<Calculations!$B$66,(IF(Calculations!$B$65<=3,(IF(Calculations!$B$66>=3,\"P\",\"A\")),\"A\")),IF(Calculations!$B$66>=3,\"P\",IF(Calculations!$B$65<=3,\"P\",\"A\"))),0)","v":0}]
[null,null,null,null,null,null,null,"Consolidated based on Form Inputs (one breeding period or two breeding periods",null,null,null,null,null,{"$f":"IF(N59=\"\",N58,IF(OR(N58=\"P\",N59=\"P\"),\"P\",\"A\"))","v":"P"},"P","P","P","P","P","P","P","P","P","P","P"]
[null,null,null,null,null,null,null,"Bulls Pasture System",null,null,null,null,null,{"$f":"IF(Calculations!$L$46=TRUE,IF(N60=\"P\",N33,0),0)","v":0},{"$f":"IF(Calculations!$L$46=TRUE,IF(O60=\"P\",O33,0),0)","v":0},{"$f":"IF(Calculations!$L$46=TRUE,IF(P60=\"P\",P33,0),0)","v":0},{"$f":"IF(Calculations!$L$46=TRUE,IF(Q60=\"P\",Q33,0),0)","v":0},{"$f":"IF(Calculations!$L$46=TRUE,IF(R60=\"P\",R33,0),0)","v":0},{"$f":"IF(Calculations!$L$46=TRUE,IF(S60=\"P\",S33,0),0)","v":0},{"$f":"IF(Calculations!$L$46=TRUE,IF(T60=\"P\",T33,0),0)","v":0},{"$f":"IF(Calculations!$L$46=TRUE,IF(U60=\"P\",U33,0),0)","v":0},{"$f":"IF(Calculations!$L$46=TRUE,IF(V60=\"P\",V33,0),0)","v":0},{"$f":"IF(Calculations!$L$46=TRUE,IF(W60=\"P\",W33,0),0)","v":0},{"$f":"IF(Calculations!$L$46=TRUE,IF(X60=\"P\",X33,0),0)","v":0},{"$f":"IF(Calculations!$L$46=TRUE,IF(Y60=\"P\",Y33,0),0)","v":0}]
[null,null,null,null,null,null,null,"Bulls Alternative Pasture",null,null,null,null,null,{"$f":"IF(Calculations!$L$46=TRUE,IF(AND(N60=\"A\",OR(Calculations!$B$56=TRUE,Calculations!$B$58=TRUE)),N33,0),0)","v":0},{"$f":"IF(Calculations!$L$46=TRUE,IF(AND(O60=\"A\",OR(Calculations!$B$56=TRUE,Calculations!$B$58=TRUE)),O33,0),0)","v":0},{"$f":"IF(Calculations!$L$46=TRUE,IF(AND(P60=\"A\",OR(Calculations!$B$56=TRUE,Calculations!$B$58=TRUE)),P33,0),0)","v":0},{"$f":"IF(Calculations!$L$46=TRUE,IF(AND(Q60=\"A\",OR(Calculations!$B$56=TRUE,Calculations!$B$58=TRUE)),Q33,0),0)","v":0},{"$f":"IF(Calculations!$L$46=TRUE,IF(AND(R60=\"A\",OR(Calculations!$B$56=TRUE,Calculations!$B$58=TRUE)),R33,0),0)","v":0},{"$f":"IF(Calculations!$L$46=TRUE,IF(AND(S60=\"A\",OR(Calculations!$B$56=TRUE,Calculations!$B$58=TRUE)),S33,0),0)","v":0},{"$f":"IF(Calculations!$L$46=TRUE,IF(AND(T60=\"A\",OR(Calculations!$B$56=TRUE,Calculations!$B$58=TRUE)),T33,0),0)","v":0},{"$f":"IF(Calculations!$L$46=TRUE,IF(AND(U60=\"A\",OR(Calculations!$B$56=TRUE,Calculations!$B$58=TRUE)),U33,0),0)","v":0},{"$f":"IF(Calculations!$L$46=TRUE,IF(AND(V60=\"A\",OR(Calculations!$B$56=TRUE,Calculations!$B$58=TRUE)),V33,0),0)","v":0},{"$f":"IF(Calculations!$L$46=TRUE,IF(AND(W60=\"A\",OR(Calculations!$B$56=TRUE,Calculations!$B$58=TRUE)),W33,0),0)","v":0},{"$f":"IF(Calculations!$L$46=TRUE,IF(AND(X60=\"A\",OR(Calculations!$B$56=TRUE,Calculations!$B$58=TRUE)),X33,0),0)","v":0},{"$f":"IF(Calculations!$L$46=TRUE,IF(AND(Y60=\"A\",OR(Calculations!$B$56=TRUE,Calculations!$B$58=TRUE)),Y33,0),0)","v":0}]
[null,null,null,null,null,null,null,"Bulls Dry Lot",null,null,null,null,null,{"$f":"IF(Calculations!$L$46=TRUE,IF(AND(N60=\"A\",OR(Calculations!$B$57=TRUE,Calculations!$B$59=TRUE)),N33,0),0)","v":0},{"$f":"IF(Calculations!$L$46=TRUE,IF(AND(O60=\"A\",OR(Calculations!$B$57=TRUE,Calculations!$B$59=TRUE)),O33,0),0)","v":0},{"$f":"IF(Calculations!$L$46=TRUE,IF(AND(P60=\"A\",OR(Calculations!$B$57=TRUE,Calculations!$B$59=TRUE)),P33,0),0)","v":0},{"$f":"IF(Calculations!$L$46=TRUE,IF(AND(Q60=\"A\",OR(Calculations!$B$57=TRUE,Calculations!$B$59=TRUE)),Q33,0),0)","v":0},{"$f":"IF(Calculations!$L$46=TRUE,IF(AND(R60=\"A\",OR(Calculations!$B$57=TRUE,Calculations!$B$59=TRUE)),R33,0),0)","v":0},{"$f":"IF(Calculations!$L$46=TRUE,IF(AND(S60=\"A\",OR(Calculations!$B$57=TRUE,Calculations!$B$59=TRUE)),S33,0),0)","v":0},{"$f":"IF(Calculations!$L$46=TRUE,IF(AND(T60=\"A\",OR(Calculations!$B$57=TRUE,Calculations!$B$59=TRUE)),T33,0),0)","v":0},{"$f":"IF(Calculations!$L$46=TRUE,IF(AND(U60=\"A\",OR(Calculations!$B$57=TRUE,Calculations!$B$59=TRUE)),U33,0),0)","v":0},{"$f":"IF(Calculations!$L$46=TRUE,IF(AND(V60=\"A\",OR(Calculations!$B$57=TRUE,Calculations!$B$59=TRUE)),V33,0),0)","v":0},{"$f":"IF(Calculations!$L$46=TRUE,IF(AND(W60=\"A\",OR(Calculations!$B$57=TRUE,Calculations!$B$59=TRUE)),W33,0),0)","v":0},{"$f":"IF(Calculations!$L$46=TRUE,IF(AND(X60=\"A\",OR(Calculations!$B$57=TRUE,Calculations!$B$59=TRUE)),X33,0),0)","v":0},{"$f":"IF(Calculations!$L$46=TRUE,IF(AND(Y60=\"A\",OR(Calculations!$B$57=TRUE,Calculations!$B$59=TRUE)),Y33,0),0)","v":0}]
[]
[null,null,null,null,null,null,null,null,null,null,null,null,"Cow Calf"]
[null,null,null,null,null,null,null,null,null,null,null,null,"Herd 1",{"$f":"IF(Calculations!B71=TRUE,\"P\",IF(Calculations!$B$87<Calculations!$B$88,(IF(Calculations!$B$87<=4,(IF(Calculations!$B$88>=4,\"A\",\"P\")),\"P\")),IF(Calculations!$B$88>=4,\"A\",IF(Calculations!$B$87<=4,\"A\",\"P\"))))","v":"P"},{"$f":"IF(Calculations!B71=TRUE,\"P\",IF(Calculations!$B$87<Calculations!$B$88,(IF(Calculations!$B$87<=5,(IF(Calculations!$B$88>=5,\"A\",\"P\")),\"P\")),IF(Calculations!$B$88>=5,\"A\",IF(Calculations!$B$87<=5,\"A\",\"P\"))))","v":"P"},{"$f":"IF(Calculations!B71=TRUE,\"P\",IF(Calculations!$B$87<Calculations!$B$88,(IF(Calculations!$B$87<=6,(IF(Calculations!$B$88>=6,\"A\",\"P\")),\"P\")),IF(Calculations!$B$88>=6,\"A\",IF(Calculations!$B$87<=6,\"A\",\"P\"))))","v":"P"},{"$f":"IF(Calculations!B71=TRUE,\"P\",IF(Calculations!$B$87<Calculations!$B$88,(IF(Calculations!$B$87<=7,(IF(Calculations!$B$88>=7,\"A\",\"P\")),\"P\")),IF(Calculations!$B$88>=7,\"A\",IF(Calculations!$B$87<=7,\"A\",\"P\"))))","v":"P"},{"$f":"IF(Calculations!B71=TRUE,\"P\",IF(Calculations!$B$87<Calculations!$B$88,(IF(Calculations!$B$87<=8,(IF(Calculations!$B$88>=8,\"A\",\"P\")),\"P\")),IF(Calculations!$B$88>=8,\"A\",IF(Calculations!$B$87<=8,\"A\",\"P\"))))","v":"P"},{"$f":"IF(Calculations!B71=TRUE,\"P\",IF(Calculations!$B$87<Calculations!$B$88,(IF(Calculations!$B$87<=9,(IF(Calculations!$B$88>=9,\"A\",\"P\")),\"P\")),IF(Calculations!$B$88>=9,\"A\",IF(Calculations!$B$87<=9,\"A\",\"P\"))))","v":"P"},{"$f":"IF(Calculations!B71=TRUE,\"P\",IF(Calculations!$B$87<Calculations!$B$88,(IF(Calculations!$B$87<=10,(IF(Calculations!$B$88>=10,\"A\",\"P\")),\"P\")),IF(Calculations!$B$88>=10,\"A\",IF(Calculations!$B$87<=10,\"A\",\"P\"))))","v":"P"},{"$f":"IF(Calculations!B71=TRUE,\"P\",IF(Calculations!$B$87<Calculations!$B$88,(IF(Calculations!$B$87<=11,(IF(Calculations!$B$88>=11,\"A\",\"P\")),\"P\")),IF(Calculations!$B$88>=11,\"A\",IF(Calculations!$B$87<=11,\"A\",\"P\"))))","v":"P"},{"$f":"IF(Calculations!B71=TRUE,\"P\",IF(Calculations!$B$87<Calculations!$B$88,(IF(Calculations!$B$87<=12,(IF(Calculations!$B$88>=12,\"A\",\"P\")),\"P\")),IF(Calculations!$B$88>=12,\"A\",IF(Calculations!$B$87<=12,\"A\",\"P\"))))","v":"P"},{"$f":"IF(Calculations!B71=TRUE,\"P\",IF(Calculations!$B$87<Calculations!$B$88,(IF(Calculations!$B$87<=1,(IF(Calculations!$B$88>=1,\"A\",\"P\")),\"P\")),IF(Calculations!$B$88>=1,\"A\",IF(Calculations!$B$87<=1,\"A\",\"P\"))))","v":"P"},{"$f":"IF(Calculations!B71=TRUE,\"P\",IF(Calculations!$B$87<Calculations!$B$88,(IF(Calculations!$B$87<=2,(IF(Calculations!$B$88>=2,\"A\",\"P\")),\"P\")),IF(Calculations!$B$88>=2,\"A\",IF(Calculations!$B$87<=2,\"A\",\"P\"))))","v":"P"},{"$f":"IF(Calculations!B71=TRUE,\"P\",IF(Calculations!$B$87<Calculations!$B$88,(IF(Calculations!$B$87<=3,(IF(Calculations!$B$88>=3,\"A\",\"P\")),\"P\")),IF(Calculations!$B$88>=3,\"A\",IF(Calculations!$B$87<=3,\"A\",\"P\"))))","v":"P"}]
[null,null,null,null,null,null,null,"Herd 1 Pasture System",null,null,null,null,null,{"$f":"IF(Calculations!$L$47=TRUE,IF(N66=\"P\",N15,0),0)","v":0},{"$f":"IF(Calculations!$L$47=TRUE,IF(O66=\"P\",O15,0),0)","v":0},{"$f":"IF(Calculations!$L$47=TRUE,IF(P66=\"P\",P15,0),0)","v":0},{"$f":"IF(Calculations!$L$47=TRUE,IF(Q66=\"P\",Q15,0),0)","v":0},{"$f":"IF(Calculations!$L$47=TRUE,IF(R66=\"P\",R15,0),0)","v":0},{"$f":"IF(Calculations!$L$47=TRUE,IF(S66=\"P\",S15,0),0)","v":0},{"$f":"IF(Calculations!$L$47=TRUE,IF(T66=\"P\",T15,0),0)","v":0},{"$f":"IF(Calculations!$L$47=TRUE,IF(U66=\"P\",U15,0),0)","v":0},{"$f":"IF(Calculations!$L$47=TRUE,IF(V66=\"P\",V15,0),0)","v":0},{"$f":"IF(Calculations!$L$47=TRUE,IF(W66=\"P\",W15,0),0)","v":0},{"$f":"IF(Calculations!$L$47=TRUE,IF(X66=\"P\",X15,0),0)","v":0},{"$f":"IF(Calculations!$L$47=TRUE,IF(Y66=\"P\",Y15,0),0)","v":0}]
[null,null,null,null,null,null,null,"Herd 1 Alternative Pasture",null,null,null,null,null,{"$f":"IF(Calculations!$L$47=TRUE,IF(AND(N66=\"A\",Calculations!$B$72=TRUE),N15,0),0)","v":0},{"$f":"IF(Calculations!$L$47=TRUE,IF(AND(O66=\"A\",Calculations!$B$72=TRUE),O15,0),0)","v":0},{"$f":"IF(Calculations!$L$47=TRUE,IF(AND(P66=\"A\",Calculations!$B$72=TRUE),P15,0),0)","v":0},{"$f":"IF(Calculations!$L$47=TRUE,IF(AND(Q66=\"A\",Calculations!$B$72=TRUE),Q15,0),0)","v":0},{"$f":"IF(Calculations!$L$47=TRUE,IF(AND(R66=\"A\",Calculations!$B$72=TRUE),R15,0),0)","v":0},{"$f":"IF(Calculations!$L$47=TRUE,IF(AND(S66=\"A\",Calculations!$B$72=TRUE),S15,0),0)","v":0},{"$f":"IF(Calculations!$L$47=TRUE,IF(AND(T66=\"A\",Calculations!$B$72=TRUE),T15,0),0)","v":0},{"$f":"IF(Calculations!$L$47=TRUE,IF(AND(U66=\"A\",Calculations!$B$72=TRUE),U15,0),0)","v":0},{"$f":"IF(Calculations!$L$47=TRUE,IF(AND(V66=\"A\",Calculations!$B$72=TRUE),V15,0),0)","v":0},{"$f":"IF(Calculations!$L$47=TRUE,IF(AND(W66=\"A\",Calculations!$B$72=TRUE),W15,0),0)","v":0},{"$f":"IF(Calculations!$L$47=TRUE,IF(AND(X66=\"A\",Calculations!$B$72=TRUE),X15,0),0)","v":0},{"$f":"IF(Calculations!$L$47=TRUE,IF(AND(Y66=\"A\",Calculations!$B$72=TRUE),Y15,0),0)","v":0}]
[null,null,null,null,null,null,null,"Herd 1 Dry Lot",null,null,null,null,null,{"$f":"IF(Calculations!$L$47=TRUE,IF(AND(N66=\"A\",Calculations!$B$73=TRUE),N15,0),0)","v":0},{"$f":"IF(Calculations!$L$47=TRUE,IF(AND(O66=\"A\",Calculations!$B$73=TRUE),O15,0),0)","v":0},{"$f":"IF(Calculations!$L$47=TRUE,IF(AND(P66=\"A\",Calculations!$B$73=TRUE),P15,0),0)","v":0},{"$f":"IF(Calculations!$L$47=TRUE,IF(AND(Q66=\"A\",Calculations!$B$73=TRUE),Q15,0),0)","v":0},{"$f":"IF(Calculations!$L$47=TRUE,IF(AND(R66=\"A\",Calculations!$B$73=TRUE),R15,0),0)","v":0},{"$f":"IF(Calculations!$L$47=TRUE,IF(AND(S66=\"A\",Calculations!$B$73=TRUE),S15,0),0)","v":0},{"$f":"IF(Calculations!$L$47=TRUE,IF(AND(T66=\"A\",Calculations!$B$73=TRUE),T15,0),0)","v":0},{"$f":"IF(Calculations!$L$47=TRUE,IF(AND(U66=\"A\",Calculations!$B$73=TRUE),U15,0),0)","v":0},{"$f":"IF(Calculations!$L$47=TRUE,IF(AND(V66=\"A\",Calculations!$B$73=TRUE),V15,0),0)","v":0},{"$f":"IF(Calculations!$L$47=TRUE,IF(AND(W66=\"A\",Calculations!$B$73=TRUE),W15,0),0)","v":0},{"$f":"IF(Calculations!$L$47=TRUE,IF(AND(X66=\"A\",Calculations!$B$73=TRUE),X15,0),0)","v":0},{"$f":"IF(Calculations!$L$47=TRUE,IF(AND(Y66=\"A\",Calculations!$B$73=TRUE),Y15,0),0)","v":0}]
[null,null,null,null,null,null,null,null,null,null,null,null,"Herd 2",{"$f":"IF(Calculations!$B$76=TRUE,\"P\",IF(Calculations!$B$91<Calculations!$B$92,(IF(Calculations!$B$91<=4,(IF(Calculations!$B$92>=4,\"A\",\"P\")),\"P\")),IF(Calculations!$B$92>=4,\"A\",IF(Calculations!$B$91<=4,\"A\",\"P\"))))","v":"P"},{"$f":"IF(Calculations!$B$76=TRUE,\"P\",IF(Calculations!$B$91<Calculations!$B$92,(IF(Calculations!$B$91<=5,(IF(Calculations!$B$92>=5,\"A\",\"P\")),\"P\")),IF(Calculations!$B$92>=5,\"A\",IF(Calculations!$B$91<=5,\"A\",\"P\"))))","v":"P"},{"$f":"IF(Calculations!$B$76=TRUE,\"P\",IF(Calculations!$B$91<Calculations!$B$92,(IF(Calculations!$B$91<=6,(IF(Calculations!$B$92>=6,\"A\",\"P\")),\"P\")),IF(Calculations!$B$92>=6,\"A\",IF(Calculations!$B$91<=6,\"A\",\"P\"))))","v":"P"},{"$f":"IF(Calculations!$B$76=TRUE,\"P\",IF(Calculations!$B$91<Calculations!$B$92,(IF(Calculations!$B$91<=7,(IF(Calculations!$B$92>=7,\"A\",\"P\")),\"P\")),IF(Calculations!$B$92>=7,\"A\",IF(Calculations!$B$91<=7,\"A\",\"P\"))))","v":"P"},{"$f":"IF(Calculations!$B$76=TRUE,\"P\",IF(Calculations!$B$91<Calculations!$B$92,(IF(Calculations!$B$91<=8,(IF(Calculations!$B$92>=8,\"A\",\"P\")),\"P\")),IF(Calculations!$B$92>=8,\"A\",IF(Calculations!$B$91<=8,\"A\",\"P\"))))","v":"P"},{"$f":"IF(Calculations!$B$76=TRUE,\"P\",IF(Calculations!$B$91<Calculations!$B$92,(IF(Calculations!$B$91<=9,(IF(Calculations!$B$92>=9,\"A\",\"P\")),\"P\")),IF(Calculations!$B$92>=9,\"A\",IF(Calculations!$B$91<=9,\"A\",\"P\"))))","v":"P"},{"$f":"IF(Calculations!$B$76=TRUE,\"P\",IF(Calculations!$B$91<Calculations!$B$92,(IF(Calculations!$B$91<=10,(IF(Calculations!$B$92>=10,\"A\",\"P\")),\"P\")),IF(Calculations!$B$92>=10,\"A\",IF(Calculations!$B$91<=10,\"A\",\"P\"))))","v":"P"},{"$f":"IF(Calculations!$B$76=TRUE,\"P\",IF(Calculations!$B$91<Calculations!$B$92,(IF(Calculations!$B$91<=11,(IF(Calculations!$B$92>=11,\"A\",\"P\")),\"P\")),IF(Calculations!$B$92>=11,\"A\",IF(Calculations!$B$91<=11,\"A\",\"P\"))))","v":"P"},{"$f":"IF(Calculations!$B$76=TRUE,\"P\",IF(Calculations!$B$91<Calculations!$B$92,(IF(Calculations!$B$91<=12,(IF(Calculations!$B$92>=12,\"A\",\"P\")),\"P\")),IF(Calculations!$B$92>=12,\"A\",IF(Calculations!$B$91<=12,\"A\",\"P\"))))","v":"P"},{"$f":"IF(Calculations!$B$76=TRUE,\"P\",IF(Calculations!$B$91<Calculations!$B$92,(IF(Calculations!$B$91<=1,(IF(Calculations!$B$92>=1,\"A\",\"P\")),\"P\")),IF(Calculations!$B$92>=1,\"A\",IF(Calculations!$B$91<=1,\"A\",\"P\"))))","v":"P"},{"$f":"IF(Calculations!$B$76=TRUE,\"P\",IF(Calculations!$B$91<Calculations!$B$92,(IF(Calculations!$B$91<=2,(IF(Calculations!$B$92>=2,\"A\",\"P\")),\"P\")),IF(Calculations!$B$92>=2,\"A\",IF(Calculations!$B$91<=2,\"A\",\"P\"))))","v":"P"},{"$f":"IF(Calculations!$B$76=TRUE,\"P\",IF(Calculations!$B$91<Calculations!$B$92,(IF(Calculations!$B$91<=3,(IF(Calculations!$B$92>=3,\"A\",\"P\")),\"P\")),IF(Calculations!$B$92>=3,\"A\",IF(Calculations!$B$91<=3,\"A\",\"P\"))))","v":"P"}]
[null,null,null,null,null,null,null,"Herd 2 Pasture System",null,null,null,null,null,{"$f":"IF(Calculations!$L$48=TRUE,IF(N70=\"P\",N17,0),0)","v":0},{"$f":"IF(Calculations!$L$48=TRUE,IF(O70=\"P\",O17,0),0)","v":0},{"$f":"IF(Calculations!$L$48=TRUE,IF(P70=\"P\",P17,0),0)","v":0},{"$f":"IF(Calculations!$L$48=TRUE,IF(Q70=\"P\",Q17,0),0)","v":0},{"$f":"IF(Calculations!$L$48=TRUE,IF(R70=\"P\",R17,0),0)","v":0},{"$f":"IF(Calculations!$L$48=TRUE,IF(S70=\"P\",S17,0),0)","v":0},{"$f":"IF(Calculations!$L$48=TRUE,IF(T70=\"P\",T17,0),0)","v":0},{"$f":"IF(Calculations!$L$48=TRUE,IF(U70=\"P\",U17,0),0)","v":0},{"$f":"IF(Calculations!$L$48=TRUE,IF(V70=\"P\",V17,0),0)","v":0},{"$f":"IF(Calculations!$L$48=TRUE,IF(W70=\"P\",W17,0),0)","v":0},{"$f":"IF(Calculations!$L$48=TRUE,IF(X70=\"P\",X17,0),0)","v":0},{"$f":"IF(Calculations!$L$48=TRUE,IF(Y70=\"P\",Y17,0),0)","v":0}]
[null,null,null,null,null,null,null,"Herd 2 Alternative Pasture",null,null,null,null,null,{"$f":"IF(Calculations!$L$48=TRUE,IF(AND(N70=\"A\",Calculations!$B$77=TRUE),N17,0),0)","v":0},{"$f":"IF(Calculations!$L$48=TRUE,IF(AND(O70=\"A\",Calculations!$B$77=TRUE),O17,0),0)","v":0},{"$f":"IF(Calculations!$L$48=TRUE,IF(AND(P70=\"A\",Calculations!$B$77=TRUE),P17,0),0)","v":0},{"$f":"IF(Calculations!$L$48=TRUE,IF(AND(Q70=\"A\",Calculations!$B$77=TRUE),Q17,0),0)","v":0},{"$f":"IF(Calculations!$L$48=TRUE,IF(AND(R70=\"A\",Calculations!$B$77=TRUE),R17,0),0)","v":0},{"$f":"IF(Calculations!$L$48=TRUE,IF(AND(S70=\"A\",Calculations!$B$77=TRUE),S17,0),0)","v":0},{"$f":"IF(Calculations!$L$48=TRUE,IF(AND(T70=\"A\",Calculations!$B$77=TRUE),T17,0),0)","v":0},{"$f":"IF(Calculations!$L$48=TRUE,IF(AND(U70=\"A\",Calculations!$B$77=TRUE),U17,0),0)","v":0},{"$f":"IF(Calculations!$L$48=TRUE,IF(AND(V70=\"A\",Calculations!$B$77=TRUE),V17,0),0)","v":0},{"$f":"IF(Calculations!$L$48=TRUE,IF(AND(W70=\"A\",Calculations!$B$77=TRUE),W17,0),0)","v":0},{"$f":"IF(Calculations!$L$48=TRUE,IF(AND(X70=\"A\",Calculations!$B$77=TRUE),X17,0),0)","v":0},{"$f":"IF(Calculations!$L$48=TRUE,IF(AND(Y70=\"A\",Calculations!$B$77=TRUE),Y17,0),0)","v":0}]
[null,null,null,null,null,null,null,"Herd 2 Dry Lot",null,null,null,null,null,{"$f":"IF(Calculations!$L$48=TRUE,IF(AND(N70=\"A\",Calculations!$B$78=TRUE),N17,0),0)","v":0},{"$f":"IF(Calculations!$L$48=TRUE,IF(AND(O70=\"A\",Calculations!$B$78=TRUE),O17,0),0)","v":0},{"$f":"IF(Calculations!$L$48=TRUE,IF(AND(P70=\"A\",Calculations!$B$78=TRUE),P17,0),0)","v":0},{"$f":"IF(Calculations!$L$48=TRUE,IF(AND(Q70=\"A\",Calculations!$B$78=TRUE),Q17,0),0)","v":0},{"$f":"IF(Calculations!$L$48=TRUE,IF(AND(R70=\"A\",Calculations!$B$78=TRUE),R17,0),0)","v":0},{"$f":"IF(Calculations!$L$48=TRUE,IF(AND(S70=\"A\",Calculations!$B$78=TRUE),S17,0),0)","v":0},{"$f":"IF(Calculations!$L$48=TRUE,IF(AND(T70=\"A\",Calculations!$B$78=TRUE),T17,0),0)","v":0},{"$f":"IF(Calculations!$L$48=TRUE,IF(AND(U70=\"A\",Calculations!$B$78=TRUE),U17,0),0)","v":0},{"$f":"IF(Calculations!$L$48=TRUE,IF(AND(V70=\"A\",Calculations!$B$78=TRUE),V17,0),0)","v":0},{"$f":"IF(Calculations!$L$48=TRUE,IF(AND(W70=\"A\",Calculations!$B$78=TRUE),W17,0),0)","v":0},{"$f":"IF(Calculations!$L$48=TRUE,IF(AND(X70=\"A\",Calculations!$B$78=TRUE),X17,0),0)","v":0},{"$f":"IF(Calculations!$L$48=TRUE,IF(AND(Y70=\"A\",Calculations!$B$78=TRUE),Y17,0),0)","v":0}]
[null,null,null,null,null,null,null,null,null,null,null,null,"Herd 3",{"$f":"IF(Calculations!$B$81=TRUE,\"P\",IF(Calculations!$B$95<Calculations!$B$96,(IF(Calculations!$B$95<=4,(IF(Calculations!$B$96>=4,\"A\",\"P\")),\"P\")),IF(Calculations!$B$96>=4,\"A\",IF(Calculations!$B$95<=4,\"A\",\"P\"))))","v":"P"},{"$f":"IF(Calculations!$B$81=TRUE,\"P\",IF(Calculations!$B$95<Calculations!$B$96,(IF(Calculations!$B$95<=5,(IF(Calculations!$B$96>=5,\"A\",\"P\")),\"P\")),IF(Calculations!$B$96>=5,\"A\",IF(Calculations!$B$95<=5,\"A\",\"P\"))))","v":"P"},{"$f":"IF(Calculations!$B$81=TRUE,\"P\",IF(Calculations!$B$95<Calculations!$B$96,(IF(Calculations!$B$95<=6,(IF(Calculations!$B$96>=6,\"A\",\"P\")),\"P\")),IF(Calculations!$B$96>=6,\"A\",IF(Calculations!$B$95<=6,\"A\",\"P\"))))","v":"P"},{"$f":"IF(Calculations!$B$81=TRUE,\"P\",IF(Calculations!$B$95<Calculations!$B$96,(IF(Calculations!$B$95<=7,(IF(Calculations!$B$96>=7,\"A\",\"P\")),\"P\")),IF(Calculations!$B$96>=7,\"A\",IF(Calculations!$B$95<=7,\"A\",\"P\"))))","v":"P"},{"$f":"IF(Calculations!$B$81=TRUE,\"P\",IF(Calculations!$B$95<Calculations!$B$96,(IF(Calculations!$B$95<=8,(IF(Calculations!$B$96>=8,\"A\",\"P\")),\"P\")),IF(Calculations!$B$96>=8,\"A\",IF(Calculations!$B$95<=8,\"A\",\"P\"))))","v":"P"},{"$f":"IF(Calculations!$B$81=TRUE,\"P\",IF(Calculations!$B$95<Calculations!$B$96,(IF(Calculations!$B$95<=9,(IF(Calculations!$B$96>=9,\"A\",\"P\")),\"P\")),IF(Calculations!$B$96>=9,\"A\",IF(Calculations!$B$95<=9,\"A\",\"P\"))))","v":"P"},{"$f":"IF(Calculations!$B$81=TRUE,\"P\",IF(Calculations!$B$95<Calculations!$B$96,(IF(Calculations!$B$95<=10,(IF(Calculations!$B$96>=10,\"A\",\"P\")),\"P\")),IF(Calculations!$B$96>=10,\"A\",IF(Calculations!$B$95<=10,\"A\",\"P\"))))","v":"P"},{"$f":"IF(Calculations!$B$81=TRUE,\"P\",IF(Calculations!$B$95<Calculations!$B$96,(IF(Calculations!$B$95<=11,(IF(Calculations!$B$96>=11,\"A\",\"P\")),\"P\")),IF(Calculations!$B$96>=11,\"A\",IF(Calculations!$B$95<=11,\"A\",\"P\"))))","v":"P"},{"$f":"IF(Calculations!$B$81=TRUE,\"P\",IF(Calculations!$B$95<Calculations!$B$96,(IF(Calculations!$B$95<=12,(IF(Calculations!$B$96>=12,\"A\",\"P\")),\"P\")),IF(Calculations!$B$96>=12,\"A\",IF(Calculations!$B$95<=12,\"A\",\"P\"))))","v":"P"},{"$f":"IF(Calculations!$B$81=TRUE,\"P\",IF(Calculations!$B$95<Calculations!$B$96,(IF(Calculations!$B$95<=1,(IF(Calculations!$B$96>=1,\"A\",\"P\")),\"P\")),IF(Calculations!$B$96>=1,\"A\",IF(Calculations!$B$95<=1,\"A\",\"P\"))))","v":"P"},{"$f":"IF(Calculations!$B$81=TRUE,\"P\",IF(Calculations!$B$95<Calculations!$B$96,(IF(Calculations!$B$95<=2,(IF(Calculations!$B$96>=2,\"A\",\"P\")),\"P\")),IF(Calculations!$B$96>=2,\"A\",IF(Calculations!$B$95<=2,\"A\",\"P\"))))","v":"P"},{"$f":"IF(Calculations!$B$81=TRUE,\"P\",IF(Calculations!$B$95<Calculations!$B$96,(IF(Calculations!$B$95<=3,(IF(Calculations!$B$96>=3,\"A\",\"P\")),\"P\")),IF(Calculations!$B$96>=3,\"A\",IF(Calculations!$B$95<=3,\"A\",\"P\"))))","v":"P"}]
[null,null,null,null,null,null,null,"Herd 3 Pasture System",null,null,null,null,null,{"$f":"IF(Calculations!$L$49=TRUE,IF(N74=\"P\",N19,0),0)","v":0},{"$f":"IF(Calculations!$L$49=TRUE,IF(O74=\"P\",O19,0),0)","v":0},{"$f":"IF(Calculations!$L$49=TRUE,IF(P74=\"P\",P19,0),0)","v":0},{"$f":"IF(Calculations!$L$49=TRUE,IF(Q74=\"P\",Q19,0),0)","v":0},{"$f":"IF(Calculations!$L$49=TRUE,IF(R74=\"P\",R19,0),0)","v":0},{"$f":"IF(Calculations!$L$49=TRUE,IF(S74=\"P\",S19,0),0)","v":0},{"$f":"IF(Calculations!$L$49=TRUE,IF(T74=\"P\",T19,0),0)","v":0},{"$f":"IF(Calculations!$L$49=TRUE,IF(U74=\"P\",U19,0),0)","v":0},{"$f":"IF(Calculations!$L$49=TRUE,IF(V74=\"P\",V19,0),0)","v":0},{"$f":"IF(Calculations!$L$49=TRUE,IF(W74=\"P\",W19,0),0)","v":0},{"$f":"IF(Calculations!$L$49=TRUE,IF(X74=\"P\",X19,0),0)","v":0},{"$f":"IF(Calculations!$L$49=TRUE,IF(Y74=\"P\",Y19,0),0)","v":0}]
[null,null,null,null,null,null,null,"Herd 3 Alternative Pasture",null,null,null,null,null,{"$f":"IF(Calculations!$L$49=TRUE,IF(AND(N74=\"A\",Calculations!$B$82=TRUE),N19,0),0)","v":0},{"$f":"IF(Calculations!$L$49=TRUE,IF(AND(O74=\"A\",Calculations!$B$82=TRUE),O19,0),0)","v":0},{"$f":"IF(Calculations!$L$49=TRUE,IF(AND(P74=\"A\",Calculations!$B$82=TRUE),P19,0),0)","v":0},{"$f":"IF(Calculations!$L$49=TRUE,IF(AND(Q74=\"A\",Calculations!$B$82=TRUE),Q19,0),0)","v":0},{"$f":"IF(Calculations!$L$49=TRUE,IF(AND(R74=\"A\",Calculations!$B$82=TRUE),R19,0),0)","v":0},{"$f":"IF(Calculations!$L$49=TRUE,IF(AND(S74=\"A\",Calculations!$B$82=TRUE),S19,0),0)","v":0},{"$f":"IF(Calculations!$L$49=TRUE,IF(AND(T74=\"A\",Calculations!$B$82=TRUE),T19,0),0)","v":0},{"$f":"IF(Calculations!$L$49=TRUE,IF(AND(U74=\"A\",Calculations!$B$82=TRUE),U19,0),0)","v":0},{"$f":"IF(Calculations!$L$49=TRUE,IF(AND(V74=\"A\",Calculations!$B$82=TRUE),V19,0),0)","v":0},{"$f":"IF(Calculations!$L$49=TRUE,IF(AND(W74=\"A\",Calculations!$B$82=TRUE),W19,0),0)","v":0},{"$f":"IF(Calculations!$L$49=TRUE,IF(AND(X74=\"A\",Calculations!$B$82=TRUE),X19,0),0)","v":0},{"$f":"IF(Calculations!$L$49=TRUE,IF(AND(Y74=\"A\",Calculations!$B$82=TRUE),Y19,0),0)","v":0}]
[null,null,null,null,null,null,null,"Herd 3 Dry Lot",null,null,null,null,null,{"$f":"IF(Calculations!$L$49=TRUE,IF(AND(N74=\"A\",Calculations!$B$83=TRUE),N19,0),0)","v":0},{"$f":"IF(Calculations!$L$49=TRUE,IF(AND(O74=\"A\",Calculations!$B$83=TRUE),O19,0),0)","v":0},{"$f":"IF(Calculations!$L$49=TRUE,IF(AND(P74=\"A\",Calculations!$B$83=TRUE),P19,0),0)","v":0},{"$f":"IF(Calculations!$L$49=TRUE,IF(AND(Q74=\"A\",Calculations!$B$83=TRUE),Q19,0),0)","v":0},{"$f":"IF(Calculations!$L$49=TRUE,IF(AND(R74=\"A\",Calculations!$B$83=TRUE),R19,0),0)","v":0},{"$f":"IF(Calculations!$L$49=TRUE,IF(AND(S74=\"A\",Calculations!$B$83=TRUE),S19,0),0)","v":0},{"$f":"IF(Calculations!$L$49=TRUE,IF(AND(T74=\"A\",Calculations!$B$83=TRUE),T19,0),0)","v":0},{"$f":"IF(Calculations!$L$49=TRUE,IF(AND(U74=\"A\",Calculations!$B$83=TRUE),U19,0),0)","v":0},{"$f":"IF(Calculations!$L$49=TRUE,IF(AND(V74=\"A\",Calculations!$B$83=TRUE),V19,0),0)","v":0},{"$f":"IF(Calculations!$L$49=TRUE,IF(AND(W74=\"A\",Calculations!$B$83=TRUE),W19,0),0)","v":0},{"$f":"IF(Calculations!$L$49=TRUE,IF(AND(X74=\"A\",Calculations!$B$83=TRUE),X19,0),0)","v":0},{"$f":"IF(Calculations!$L$49=TRUE,IF(AND(Y74=\"A\",Calculations!$B$83=TRUE),Y19,0),0)","v":0}]
[]
[null,null,null,null,null,null,null,null,null,null,null,null,"Stockers"]
[null,null,null,null,null,null,null,null,null,null,null,null,"Herd 1",{"$f":"IF(Calculations!$L$50=TRUE,N21,\"\")","v":""},{"$f":"IF(Calculations!$L$50=TRUE,O21,\"\")","v":""},{"$f":"IF(Calculations!$L$50=TRUE,P21,\"\")","v":""},{"$f":"IF(Calculations!$L$50=TRUE,Q21,\"\")","v":""},{"$f":"IF(Calculations!$L$50=TRUE,R21,\"\")","v":""},{"$f":"IF(Calculations!$L$50=TRUE,S21,\"\")","v":""},{"$f":"IF(Calculations!$L$50=TRUE,T21,\"\")","v":""},{"$f":"IF(Calculations!$L$50=TRUE,U21,\"\")","v":""},{"$f":"IF(Calculations!$L$50=TRUE,V21,\"\")","v":""},{"$f":"IF(Calculations!$L$50=TRUE,W21,\"\")","v":""},{"$f":"IF(Calculations!$L$50=TRUE,X21,\"\")","v":""},{"$f":"IF(Calculations!$L$50=TRUE,Y21,\"\")","v":""}]
[null,null,null,null,null,null,null,null,null,null,null,null,"Herd 2",{"$f":"IF(Calculations!$L$51=TRUE,N23,\"\")","v":""},{"$f":"IF(Calculations!$L$51=TRUE,O23,\"\")","v":""},{"$f":"IF(Calculations!$L$51=TRUE,P23,\"\")","v":""},{"$f":"IF(Calculations!$L$51=TRUE,Q23,\"\")","v":""},{"$f":"IF(Calculations!$L$51=TRUE,R23,\"\")","v":""},{"$f":"IF(Calculations!$L$51=TRUE,S23,\"\")","v":""},{"$f":"IF(Calculations!$L$51=TRUE,T23,\"\")","v":""},{"$f":"IF(Calculations!$L$51=TRUE,U23,\"\")","v":""},{"$f":"IF(Calculations!$L$51=TRUE,V23,\"\")","v":""},{"$f":"IF(Calculations!$L$51=TRUE,W23,\"\")","v":""},{"$f":"IF(Calculations!$L$51=TRUE,X23,\"\")","v":""},{"$f":"IF(Calculations!$L$51=TRUE,Y23,\"\")","v":""}]
[]
[null,null,null,null,null,null,null,null,null,null,null,null,"Horses",{"$f":"IF(Calculations!B99=TRUE,\"P\",IF(Calculations!$B$102<Calculations!$B$103,(IF(Calculations!$B$102<=4,(IF(Calculations!$B$103>=4,\"A\",\"P\")),\"P\")),IF(Calculations!$B$103>=4,\"A\",IF(Calculations!$B$102<=4,\"A\",\"P\"))))","v":"P"},{"$f":"IF(Calculations!B99=TRUE,\"P\",IF(Calculations!$B$102<Calculations!$B$103,(IF(Calculations!$B$102<=5,(IF(Calculations!$B$103>=5,\"A\",\"P\")),\"P\")),IF(Calculations!$B$103>=5,\"A\",IF(Calculations!$B$102<=5,\"A\",\"P\"))))","v":"P"},{"$f":"IF(Calculations!B99=TRUE,\"P\",IF(Calculations!$B$102<Calculations!$B$103,(IF(Calculations!$B$102<=6,(IF(Calculations!$B$103>=6,\"A\",\"P\")),\"P\")),IF(Calculations!$B$103>=6,\"A\",IF(Calculations!$B$102<=6,\"A\",\"P\"))))","v":"P"},{"$f":"IF(Calculations!B99=TRUE,\"P\",IF(Calculations!$B$102<Calculations!$B$103,(IF(Calculations!$B$102<=7,(IF(Calculations!$B$103>=7,\"A\",\"P\")),\"P\")),IF(Calculations!$B$103>=7,\"A\",IF(Calculations!$B$102<=7,\"A\",\"P\"))))","v":"P"},{"$f":"IF(Calculations!B99=TRUE,\"P\",IF(Calculations!$B$102<Calculations!$B$103,(IF(Calculations!$B$102<=8,(IF(Calculations!$B$103>=8,\"A\",\"P\")),\"P\")),IF(Calculations!$B$103>=8,\"A\",IF(Calculations!$B$102<=8,\"A\",\"P\"))))","v":"P"},{"$f":"IF(Calculations!B99=TRUE,\"P\",IF(Calculations!$B$102<Calculations!$B$103,(IF(Calculations!$B$102<=9,(IF(Calculations!$B$103>=9,\"A\",\"P\")),\"P\")),IF(Calculations!$B$103>=9,\"A\",IF(Calculations!$B$102<=9,\"A\",\"P\"))))","v":"P"},{"$f":"IF(Calculations!B99=TRUE,\"P\",IF(Calculations!$B$102<Calculations!$B$103,(IF(Calculations!$B$102<=10,(IF(Calculations!$B$103>=10,\"A\",\"P\")),\"P\")),IF(Calculations!$B$103>=10,\"A\",IF(Calculations!$B$102<=10,\"A\",\"P\"))))","v":"P"},{"$f":"IF(Calculations!B99=TRUE,\"P\",IF(Calculations!$B$102<Calculations!$B$103,(IF(Calculations!$B$102<=11,(IF(Calculations!$B$103>=11,\"A\",\"P\")),\"P\")),IF(Calculations!$B$103>=11,\"A\",IF(Calculations!$B$102<=11,\"A\",\"P\"))))","v":"P"},{"$f":"IF(Calculations!B99=TRUE,\"P\",IF(Calculations!$B$102<Calculations!$B$103,(IF(Calculations!$B$102<=12,(IF(Calculations!$B$103>=12,\"A\",\"P\")),\"P\")),IF(Calculations!$B$103>=12,\"A\",IF(Calculations!$B$102<=12,\"A\",\"P\"))))","v":"P"},{"$f":"IF(Calculations!B99=TRUE,\"P\",IF(Calculations!$B$102<Calculations!$B$103,(IF(Calculations!$B$102<=1,(IF(Calculations!$B$103>=1,\"A\",\"P\")),\"P\")),IF(Calculations!$B$103>=1,\"A\",IF(Calculations!$B$102<=1,\"A\",\"P\"))))","v":"P"},{"$f":"IF(Calculations!B99=TRUE,\"P\",IF(Calculations!$B$102<Calculations!$B$103,(IF(Calculations!$B$102<=2,(IF(Calculations!$B$103>=2,\"A\",\"P\")),\"P\")),IF(Calculations!$B$103>=2,\"A\",IF(Calculations!$B$102<=2,\"A\",\"P\"))))","v":"P"},{"$f":"IF(Calculations!B99=TRUE,\"P\",IF(Calculations!$B$102<Calculations!$B$103,(IF(Calculations!$B$102<=3,(IF(Calculations!$B$103>=3,\"A\",\"P\")),\"P\")),IF(Calculations!$B$103>=3,\"A\",IF(Calculations!$B$102<=3,\"A\",\"P\"))))","v":"P"}]
[null,null,null,null,null,null,null,null,null,null,null,null,"Pasture System",{"$f":"IF(Calculations!$L$52=TRUE,IF(N83=\"P\",N35,0),0)","v":0},{"$f":"IF(Calculations!$L$52=TRUE,IF(O83=\"P\",O35,0),0)","v":0},{"$f":"IF(Calculations!$L$52=TRUE,IF(P83=\"P\",P35,0),0)","v":0},{"$f":"IF(Calculations!$L$52=TRUE,IF(Q83=\"P\",Q35,0),0)","v":0},{"$f":"IF(Calculations!$L$52=TRUE,IF(R83=\"P\",R35,0),0)","v":0},{"$f":"IF(Calculations!$L$52=TRUE,IF(S83=\"P\",S35,0),0)","v":0},{"$f":"IF(Calculations!$L$52=TRUE,IF(T83=\"P\",T35,0),0)","v":0},{"$f":"IF(Calculations!$L$52=TRUE,IF(U83=\"P\",U35,0),0)","v":0},{"$f":"IF(Calculations!$L$52=TRUE,IF(V83=\"P\",V35,0),0)","v":0},{"$f":"IF(Calculations!$L$52=TRUE,IF(W83=\"P\",W35,0),0)","v":0},{"$f":"IF(Calculations!$L$52=TRUE,IF(X83=\"P\",X35,0),0)","v":0},{"$f":"IF(Calculations!$L$52=TRUE,IF(Y83=\"P\",Y35,0),0)","v":0}]
[null,null,null,null,null,null,null,null,null,null,null,null,"Alt Pasture",{"$f":"IF(Calculations!$L$52=TRUE,IF(AND(N83=\"A\",Calculations!$B$100=TRUE),N35,0),0)","v":0},{"$f":"IF(Calculations!$L$52=TRUE,IF(AND(O83=\"A\",Calculations!$B$100=TRUE),O35,0),0)","v":0},{"$f":"IF(Calculations!$L$52=TRUE,IF(AND(P83=\"A\",Calculations!$B$100=TRUE),P35,0),0)","v":0},{"$f":"IF(Calculations!$L$52=TRUE,IF(AND(Q83=\"A\",Calculations!$B$100=TRUE),Q35,0),0)","v":0},{"$f":"IF(Calculations!$L$52=TRUE,IF(AND(R83=\"A\",Calculations!$B$100=TRUE),R35,0),0)","v":0},{"$f":"IF(Calculations!$L$52=TRUE,IF(AND(S83=\"A\",Calculations!$B$100=TRUE),S35,0),0)","v":0},{"$f":"IF(Calculations!$L$52=TRUE,IF(AND(T83=\"A\",Calculations!$B$100=TRUE),T35,0),0)","v":0},{"$f":"IF(Calculations!$L$52=TRUE,IF(AND(U83=\"A\",Calculations!$B$100=TRUE),U35,0),0)","v":0},{"$f":"IF(Calculations!$L$52=TRUE,IF(AND(V83=\"A\",Calculations!$B$100=TRUE),V35,0),0)","v":0},{"$f":"IF(Calculations!$L$52=TRUE,IF(AND(W83=\"A\",Calculations!$B$100=TRUE),W35,0),0)","v":0},{"$f":"IF(Calculations!$L$52=TRUE,IF(AND(X83=\"A\",Calculations!$B$100=TRUE),X35,0),0)","v":0},{"$f":"IF(Calculations!$L$52=TRUE,IF(AND(Y83=\"A\",Calculations!$B$100=TRUE),Y35,0),0)","v":0}]
[null,null,null,null,null,null,null,null,null,null,null,null,"Dry Lot",{"$f":"IF(Calculations!$L$52=TRUE,IF(AND(N83=\"A\",Calculations!$B$101=TRUE),N35,0),0)","v":0},{"$f":"IF(Calculations!$L$52=TRUE,IF(AND(O83=\"A\",Calculations!$B$101=TRUE),O35,0),0)","v":0},{"$f":"IF(Calculations!$L$52=TRUE,IF(AND(P83=\"A\",Calculations!$B$101=TRUE),P35,0),0)","v":0},{"$f":"IF(Calculations!$L$52=TRUE,IF(AND(Q83=\"A\",Calculations!$B$101=TRUE),Q35,0),0)","v":0},{"$f":"IF(Calculations!$L$52=TRUE,IF(AND(R83=\"A\",Calculations!$B$101=TRUE),R35,0),0)","v":0},{"$f":"IF(Calculations!$L$52=TRUE,IF(AND(S83=\"A\",Calculations!$B$101=TRUE),S35,0),0)","v":0},{"$f":"IF(Calculations!$L$52=TRUE,IF(AND(T83=\"A\",Calculations!$B$101=TRUE),T35,0),0)","v":0},{"$f":"IF(Calculations!$L$52=TRUE,IF(AND(U83=\"A\",Calculations!$B$101=TRUE),U35,0),0)","v":0},{"$f":"IF(Calculations!$L$52=TRUE,IF(AND(V83=\"A\",Calculations!$B$101=TRUE),V35,0),0)","v":0},{"$f":"IF(Calculations!$L$52=TRUE,IF(AND(W83=\"A\",Calculations!$B$101=TRUE),W35,0),0)","v":0},{"$f":"IF(Calculations!$L$52=TRUE,IF(AND(X83=\"A\",Calculations!$B$101=TRUE),X35,0),0)","v":0},{"$f":"IF(Calculations!$L$52=TRUE,IF(AND(Y83=\"A\",Calculations!$B$101=TRUE),Y35,0),0)","v":0}]
[]
[null,null,null,null,null,null,null,null,null,null,null,null,"Goats",{"$f":"IF(Calculations!$L$53=TRUE,N39,\"\")","v":""},{"$f":"IF(Calculations!$L$53=TRUE,O39,\"\")","v":""},{"$f":"IF(Calculations!$L$53=TRUE,P39,\"\")","v":""},{"$f":"IF(Calculations!$L$53=TRUE,Q39,\"\")","v":""},{"$f":"IF(Calculations!$L$53=TRUE,R39,\"\")","v":""},{"$f":"IF(Calculations!$L$53=TRUE,S39,\"\")","v":""},{"$f":"IF(Calculations!$L$53=TRUE,T39,\"\")","v":""},{"$f":"IF(Calculations!$L$53=TRUE,U39,\"\")","v":""},{"$f":"IF(Calculations!$L$53=TRUE,V39,\"\")","v":""},{"$f":"IF(Calculations!$L$53=TRUE,W39,\"\")","v":""},{"$f":"IF(Calculations!$L$53=TRUE,X39,\"\")","v":""},{"$f":"IF(Calculations!$L$53=TRUE,Y39,\"\")","v":""}]
[null,null,null,null,null,null,null,null,null,null,null,null,"Sheep",{"$f":"IF(Calculations!$L$54=TRUE,N37,\"\")","v":""},{"$f":"IF(Calculations!$L$54=TRUE,O37,\"\")","v":""},{"$f":"IF(Calculations!$L$54=TRUE,P37,\"\")","v":""},{"$f":"IF(Calculations!$L$54=TRUE,Q37,\"\")","v":""},{"$f":"IF(Calculations!$L$54=TRUE,R37,\"\")","v":""},{"$f":"IF(Calculations!$L$54=TRUE,S37,\"\")","v":""},{"$f":"IF(Calculations!$L$54=TRUE,T37,\"\")","v":""},{"$f":"IF(Calculations!$L$54=TRUE,U37,\"\")","v":""},{"$f":"IF(Calculations!$L$54=TRUE,V37,\"\")","v":""},{"$f":"IF(Calculations!$L$54=TRUE,W37,\"\")","v":""},{"$f":"IF(Calculations!$L$54=TRUE,X37,\"\")","v":""},{"$f":"IF(Calculations!$L$54=TRUE,Y37,\"\")","v":""}]
[]
[null,null,null,null,null,null,null,"Total Forage Demand:  Grazing System",null,"Total (lbs/year) =",null,null,{"$f":"SUM(N91:Y91)","v":0},{"$f":"N44+N50+N61+N67+N71+N75+N80+N81+N84+N88+N89","v":0},0,0,0,0,0,0,0,0,0,0,0]
[null,null,null,null,null,null,null,"Total Forage Demand:  Alternative Pasture",null,"Total (lbs/year) =",null,null,{"$f":"SUM(N92:Y92)","v":0},{"$f":"N45+N51+N54+N62+N68+N72+N76+N85","v":0},0,0,0,0,0,0,0,0,0,0,0]
[null,null,null,null,null,null,null,"Total Forage Demand:  Dry Lot",null,"Total (lbs/year) =",null,null,{"$f":"SUM(N93:Y93)","v":0},{"$f":"N46+N52+N55+N63+N69+N73+N77+N86","v":0},0,0,0,0,0,0,0,0,0,0,0]
[null,null,null,null,null,null," "," "," "," "]
[null,null,null,null,null,null," "," "," "," "]
[]
[null,null,null,null,null,"GRAZING SYSTEM PASTURE FORAGE PRODUCTION "]
[null,null,null,null,null,"Use this input area to capture the pasture forage production of the grazing system.  Add additional paddocks by selecting the \"+\" icon.  You may enter up to 24 separate fields/paddocks.  The yellow cells are for user inputs.  If hay will be cut on a field/paddock (in addition to being used as part of the grazing system), select the \"Y\" icon and enter the month hay will be cut.  Entering haying information here will automatically add the field/paddock to the \"Fields Hayed in Conjunction with Grazing\" area below where you will be able to enter details about the hay production.  You can override the haying information at any time by selecting the \"N\" icon to revert the field back to a pasture only field.   The Pasture Grazing Efficiency information can be entered manually or you can allow the model to calculate.  Select the \"What is this?\" button below to learn more about this feature."]
[]
[null,null,null,null,"Add (+) or Remove (-) Rows",null,"Field/",null,null,"TFP*","Total","Pasture",null,"Grazing System Pasture Forage Available by Month (Lbs/month)"]
[null,null,null,null,null,null,"Paddock","Kind of Forage","Acres",null,"Production","Grazing ","Usable "]
[null,null,null,null,null,null,"Number"," (double click for drop down menu)","(Usable)","lbs/ac","Pounds","Eff. (%)","Pounds","Apr","May","June","July","Aug","Sept","Oct","Nov","Dec","Jan","Feb","Mar"]
[null,null,null,null,null,null,null,null,null,null,{"$f":"I103*J103","v":0},null,{"$f":"K103*L103/100","v":0},{"$f":"IF($H103=\"\",\"\",IF(HayMonth1=0,VLOOKUP($H103,FORAGE2,3)*($M103),IF(AND(HayMonth1>0,HayMonth1<4),VLOOKUP($H103,FORAGE2,3)*($M103),0)))","v":""},{"$f":"IF($H103=\"\",\"\",IF(HayMonth1=0,VLOOKUP($H103,FORAGE2,4)*($M103),IF(AND(HayMonth1>0,HayMonth1<5),VLOOKUP($H103,FORAGE2,4)*($M103),0)))","v":""},{"$f":"IF($H103=\"\",\"\",IF(HayMonth1=0,VLOOKUP($H103,FORAGE2,5)*($M103),IF(AND(HayMonth1>0,HayMonth1<6),VLOOKUP($H103,FORAGE2,5)*($M103),0)))","v":""},{"$f":"IF($H103=\"\",\"\",IF(HayMonth1=0,VLOOKUP($H103,FORAGE2,6)*($M103),IF(AND(HayMonth1>0,HayMonth1<7),VLOOKUP($H103,FORAGE2,6)*($M103),0)))","v":""},{"$f":"IF($H103=\"\",\"\",IF(HayMonth1=0,VLOOKUP($H103,FORAGE2,7)*($M103),IF(AND(HayMonth1>0,HayMonth1<8),VLOOKUP($H103,FORAGE2,7)*($M103),0)))","v":""},{"$f":"IF($H103=\"\",\"\",IF(HayMonth1=0,VLOOKUP($H103,FORAGE2,8)*($M103),IF(AND(HayMonth1>0,HayMonth1<9),VLOOKUP($H103,FORAGE2,8)*($M103),0)))","v":""},{"$f":"IF($H103=\"\",\"\",IF(HayMonth1=0,VLOOKUP($H103,FORAGE2,9)*($M103),IF(AND(HayMonth1>0,HayMonth1<10),VLOOKUP($H103,FORAGE2,9)*($M103),0)))","v":""},{"$f":"IF($H103=\"\",\"\",IF(HayMonth1=0,VLOOKUP($H103,FORAGE2,10)*($M103),IF(AND(HayMonth1>0,HayMonth1<11),VLOOKUP($H103,FORAGE2,10)*($M103),0)))","v":""},{"$f":"IF($H103=\"\",\"\",IF(HayMonth1=0,VLOOKUP($H103,FORAGE2,11)*($M103),IF(AND(HayMonth1>0,HayMonth1<12),VLOOKUP($H103,FORAGE2,11)*($M103),0)))","v":""},{"$f":"IF($H103=\"\",\"\",IF(HayMonth1=0,VLOOKUP($H103,FORAGE2,12)*($M103),IF(AND(HayMonth1>0,HayMonth1<1),VLOOKUP($H103,FORAGE2,12)*($M103),0)))","v":""},{"$f":"IF($H103=\"\",\"\",IF(HayMonth1=0,VLOOKUP($H103,FORAGE2,13)*($M103),IF(AND(HayMonth1>0,HayMonth1<2),VLOOKUP($H103,FORAGE2,13)*($M103),0)))","v":""},{"$f":"IF($H103=\"\",\"\",IF(HayMonth1=0,VLOOKUP($H103,FORAGE2,14)*($M103),IF(AND(HayMonth1>0,HayMonth1<3),VLOOKUP($H103,FORAGE2,14)*($M103),0)))","v":""}]
[null,null,null,null,null,null,null,"    Will hay be cut on this field?",{"$f":"IF(HayMonth1>0,\"Hay cut in:\",\"\")","v":""},{"$f":"IF(HayMonth1=0,\"\",IF(HayMonth1=1,\"Jan\",IF(HayMonth1=2,\"Feb\",IF(HayMonth1=3,\"Mar\",IF(HayMonth1=4,\"Apr\",IF(HayMonth1=5,\"May\",IF(HayMonth1=6,\"Jun\",IF(HayMonth1=7,\"Jul\",IF(HayMonth1=8,\"Aug\",IF(HayMonth1=9,\"Sep\",IF(HayMonth1=10,\"Oct\",IF(HayMonth1=11,\"Nov\",\"Dec\"))))))))))))","v":""}]
[null,null,null,null,null,null,null,null,null,null,{"$f":"I105*J105","v":0},null,{"$f":"K105*L105/100","v":0},{"$f":"IF($H105=\"\",\"\",IF(HayMonth2=0,VLOOKUP($H105,FORAGE2,3)*($M105),IF(AND(HayMonth2>0,HayMonth2<4),VLOOKUP($H105,FORAGE2,3)*($M105),0)))","v":""},{"$f":"IF($H105=\"\",\"\",IF(HayMonth2=0,VLOOKUP($H105,FORAGE2,4)*($M105),IF(AND(HayMonth2>0,HayMonth2<5),VLOOKUP($H105,FORAGE2,4)*($M105),0)))","v":""},{"$f":"IF($H105=\"\",\"\",IF(HayMonth2=0,VLOOKUP($H105,FORAGE2,5)*($M105),IF(AND(HayMonth2>0,HayMonth2<6),VLOOKUP($H105,FORAGE2,5)*($M105),0)))","v":""},{"$f":"IF($H105=\"\",\"\",IF(HayMonth2=0,VLOOKUP($H105,FORAGE2,6)*($M105),IF(AND(HayMonth2>0,HayMonth2<7),VLOOKUP($H105,FORAGE2,6)*($M105),0)))","v":""},{"$f":"IF($H105=\"\",\"\",IF(HayMonth2=0,VLOOKUP($H105,FORAGE2,7)*($M105),IF(AND(HayMonth2>0,HayMonth2<8),VLOOKUP($H105,FORAGE2,7)*($M105),0)))","v":""},{"$f":"IF($H105=\"\",\"\",IF(HayMonth2=0,VLOOKUP($H105,FORAGE2,8)*($M105),IF(AND(HayMonth2>0,HayMonth2<9),VLOOKUP($H105,FORAGE2,8)*($M105),0)))","v":""},{"$f":"IF($H105=\"\",\"\",IF(HayMonth2=0,VLOOKUP($H105,FORAGE2,9)*($M105),IF(AND(HayMonth2>0,HayMonth2<10),VLOOKUP($H105,FORAGE2,9)*($M105),0)))","v":""},{"$f":"IF($H105=\"\",\"\",IF(HayMonth2=0,VLOOKUP($H105,FORAGE2,10)*($M105),IF(AND(HayMonth2>0,HayMonth2<11),VLOOKUP($H105,FORAGE2,10)*($M105),0)))","v":""},{"$f":"IF($H105=\"\",\"\",IF(HayMonth2=0,VLOOKUP($H105,FORAGE2,11)*($M105),IF(AND(HayMonth2>0,HayMonth2<12),VLOOKUP($H105,FORAGE2,11)*($M105),0)))","v":""},{"$f":"IF($H105=\"\",\"\",IF(HayMonth2=0,VLOOKUP($H105,FORAGE2,12)*($M105),IF(AND(HayMonth2>0,HayMonth2<1),VLOOKUP($H105,FORAGE2,12)*($M105),0)))","v":""},{"$f":"IF($H105=\"\",\"\",IF(HayMonth2=0,VLOOKUP($H105,FORAGE2,13)*($M105),IF(AND(HayMonth2>0,HayMonth2<2),VLOOKUP($H105,FORAGE2,13)*($M105),0)))","v":""},{"$f":"IF($H105=\"\",\"\",IF(HayMonth2=0,VLOOKUP($H105,FORAGE2,14)*($M105),IF(AND(HayMonth2>0,HayMonth2<3),VLOOKUP($H105,FORAGE2,14)*($M105),0)))","v":""}]
[null,null,null,null,null,null,null,"    Will hay be cut on this field?",{"$f":"IF(HayMonth2>0,\"Hay cut in:\",\"\")","v":""},{"$f":"IF(HayMonth2=0,\"\",IF(HayMonth2=1,\"Jan\",IF(HayMonth2=2,\"Feb\",IF(HayMonth2=3,\"Mar\",IF(HayMonth2=4,\"Apr\",IF(HayMonth2=5,\"May\",IF(HayMonth2=6,\"Jun\",IF(HayMonth2=7,\"Jul\",IF(HayMonth2=8,\"Aug\",IF(HayMonth2=9,\"Sep\",IF(HayMonth2=10,\"Oct\",IF(HayMonth2=11,\"Nov\",\"Dec\"))))))))))))","v":""}]
[null,null,null,null,null,null,null,null,null,null,0,{"$f":"IF(ISBLANK(Field3)=\"\",(VLOOKUP(ROUND(TotalAcreGrazed/Acres3,0),[0]!PastureEffTable,2,)),\"\")","v":""},{"$f":"K107*L107/100","v":0},{"$f":"IF($H107=\"\",\"\",IF(HayMonth3=0,VLOOKUP($H107,FORAGE2,3)*($M107),IF(AND(HayMonth3>0,HayMonth3<4),VLOOKUP($H107,FORAGE2,3)*($M107),0)))","v":""},{"$f":"IF($H107=\"\",\"\",IF(HayMonth3=0,VLOOKUP($H107,FORAGE2,4)*($M107),IF(AND(HayMonth3>0,HayMonth3<5),VLOOKUP($H107,FORAGE2,4)*($M107),0)))","v":""},{"$f":"IF($H107=\"\",\"\",IF(HayMonth3=0,VLOOKUP($H107,FORAGE2,5)*($M107),IF(AND(HayMonth3>0,HayMonth3<6),VLOOKUP($H107,FORAGE2,5)*($M107),0)))","v":""},{"$f":"IF($H107=\"\",\"\",IF(HayMonth3=0,VLOOKUP($H107,FORAGE2,6)*($M107),IF(AND(HayMonth3>0,HayMonth3<7),VLOOKUP($H107,FORAGE2,6)*($M107),0)))","v":""},{"$f":"IF($H107=\"\",\"\",IF(HayMonth3=0,VLOOKUP($H107,FORAGE2,7)*($M107),IF(AND(HayMonth3>0,HayMonth3<8),VLOOKUP($H107,FORAGE2,7)*($M107),0)))","v":""},{"$f":"IF($H107=\"\",\"\",IF(HayMonth3=0,VLOOKUP($H107,FORAGE2,8)*($M107),IF(AND(HayMonth3>0,HayMonth3<9),VLOOKUP($H107,FORAGE2,8)*($M107),0)))","v":""},{"$f":"IF($H107=\"\",\"\",IF(HayMonth3=0,VLOOKUP($H107,FORAGE2,9)*($M107),IF(AND(HayMonth3>0,HayMonth3<10),VLOOKUP($H107,FORAGE2,9)*($M107),0)))","v":""},{"$f":"IF($H107=\"\",\"\",IF(HayMonth3=0,VLOOKUP($H107,FORAGE2,10)*($M107),IF(AND(HayMonth3>0,HayMonth3<11),VLOOKUP($H107,FORAGE2,10)*($M107),0)))","v":""},{"$f":"IF($H107=\"\",\"\",IF(HayMonth3=0,VLOOKUP($H107,FORAGE2,11)*($M107),IF(AND(HayMonth3>0,HayMonth3<12),VLOOKUP($H107,FORAGE2,11)*($M107),0)))","v":""},{"$f":"IF($H107=\"\",\"\",IF(HayMonth3=0,VLOOKUP($H107,FORAGE2,12)*($M107),IF(AND(HayMonth3>0,HayMonth3<1),VLOOKUP($H107,FORAGE2,12)*($M107),0)))","v":""},{"$f":"IF($H107=\"\",\"\",IF(HayMonth3=0,VLOOKUP($H107,FORAGE2,13)*($M107),IF(AND(HayMonth3>0,HayMonth3<2),VLOOKUP($H107,FORAGE2,13)*($M107),0)))","v":""},{"$f":"IF($H107=\"\",\"\",IF(HayMonth3=0,VLOOKUP($H107,FORAGE2,14)*($M107),IF(AND(HayMonth3>0,HayMonth3<3),VLOOKUP($H107,FORAGE2,14)*($M107),0)))","v":""}]
[null,null,null,null,null,null,null,"    Will hay be cut on this field?",{"$f":"IF(HayMonth3>0,\"Hay cut in:\",\"\")","v":""},{"$f":"IF(HayMonth3=0,\"\",IF(HayMonth3=1,\"Jan\",IF(HayMonth3=2,\"Feb\",IF(HayMonth3=3,\"Mar\",IF(HayMonth3=4,\"Apr\",IF(HayMonth3=5,\"May\",IF(HayMonth3=6,\"Jun\",IF(HayMonth3=7,\"Jul\",IF(HayMonth3=8,\"Aug\",IF(HayMonth3=9,\"Sep\",IF(HayMonth3=10,\"Oct\",IF(HayMonth3=11,\"Nov\",\"Dec\"))))))))))))","v":""}]
[null,null,null,null,null,null,null,null,null,null,0,{"$f":"IF(ISBLANK(Field4)=\"\",(VLOOKUP(ROUND(TotalAcreGrazed/Acres4,0),[0]!PastureEffTable,2,)),\"\")","v":""},{"$f":"K109*L109/100","v":0},{"$f":"IF($H109=\"\",\"\",IF(HayMonth4=0,VLOOKUP($H109,FORAGE2,3)*($M109),IF(AND(HayMonth4>0,HayMonth4<4),VLOOKUP($H109,FORAGE2,3)*($M109),0)))","v":""},{"$f":"IF($H109=\"\",\"\",IF(HayMonth4=0,VLOOKUP($H109,FORAGE2,4)*($M109),IF(AND(HayMonth4>0,HayMonth4<5),VLOOKUP($H109,FORAGE2,4)*($M109),0)))","v":""},{"$f":"IF($H109=\"\",\"\",IF(HayMonth4=0,VLOOKUP($H109,FORAGE2,5)*($M109),IF(AND(HayMonth4>0,HayMonth4<6),VLOOKUP($H109,FORAGE2,5)*($M109),0)))","v":""},{"$f":"IF($H109=\"\",\"\",IF(HayMonth4=0,VLOOKUP($H109,FORAGE2,6)*($M109),IF(AND(HayMonth4>0,HayMonth4<7),VLOOKUP($H109,FORAGE2,6)*($M109),0)))","v":""},{"$f":"IF($H109=\"\",\"\",IF(HayMonth4=0,VLOOKUP($H109,FORAGE2,7)*($M109),IF(AND(HayMonth4>0,HayMonth4<8),VLOOKUP($H109,FORAGE2,7)*($M109),0)))","v":""},{"$f":"IF($H109=\"\",\"\",IF(HayMonth4=0,VLOOKUP($H109,FORAGE2,8)*($M109),IF(AND(HayMonth4>0,HayMonth4<9),VLOOKUP($H109,FORAGE2,8)*($M109),0)))","v":""},{"$f":"IF($H109=\"\",\"\",IF(HayMonth4=0,VLOOKUP($H109,FORAGE2,9)*($M109),IF(AND(HayMonth4>0,HayMonth4<10),VLOOKUP($H109,FORAGE2,9)*($M109),0)))","v":""},{"$f":"IF($H109=\"\",\"\",IF(HayMonth4=0,VLOOKUP($H109,FORAGE2,10)*($M109),IF(AND(HayMonth4>0,HayMonth4<11),VLOOKUP($H109,FORAGE2,10)*($M109),0)))","v":""},{"$f":"IF($H109=\"\",\"\",IF(HayMonth4=0,VLOOKUP($H109,FORAGE2,11)*($M109),IF(AND(HayMonth4>0,HayMonth4<12),VLOOKUP($H109,FORAGE2,11)*($M109),0)))","v":""},{"$f":"IF($H109=\"\",\"\",IF(HayMonth4=0,VLOOKUP($H109,FORAGE2,12)*($M109),IF(AND(HayMonth4>0,HayMonth4<1),VLOOKUP($H109,FORAGE2,12)*($M109),0)))","v":""},{"$f":"IF($H109=\"\",\"\",IF(HayMonth4=0,VLOOKUP($H109,FORAGE2,13)*($M109),IF(AND(HayMonth4>0,HayMonth4<2),VLOOKUP($H109,FORAGE2,13)*($M109),0)))","v":""},{"$f":"IF($H109=\"\",\"\",IF(HayMonth4=0,VLOOKUP($H109,FORAGE2,14)*($M109),IF(AND(HayMonth4>0,HayMonth4<3),VLOOKUP($H109,FORAGE2,14)*($M109),0)))","v":""}]
[null,null,null,null,null,null,null,"    Will hay be cut on this field?",{"$f":"IF(HayMonth4>0,\"Hay cut in:\",\"\")","v":""},{"$f":"IF(HayMonth4=0,\"\",IF(HayMonth4=1,\"Jan\",IF(HayMonth4=2,\"Feb\",IF(HayMonth4=3,\"Mar\",IF(HayMonth4=4,\"Apr\",IF(HayMonth4=5,\"May\",IF(HayMonth4=6,\"Jun\",IF(HayMonth4=7,\"Jul\",IF(HayMonth4=8,\"Aug\",IF(HayMonth4=9,\"Sep\",IF(HayMonth4=10,\"Oct\",IF(HayMonth4=11,\"Nov\",\"Dec\"))))))))))))","v":""}]
[null,null,null,null,null,null,null,null,null,null,0,{"$f":"IF(ISBLANK(Field5)=\"\",(VLOOKUP(ROUND(TotalAcreGrazed/Acres5,0),[0]!PastureEffTable,2,)),\"\")","v":""},0,{"$f":"IF($H111=\"\",\"\",IF(HayMonth5=0,VLOOKUP($H111,FORAGE2,3)*($M111),IF(AND(HayMonth5>0,HayMonth5<4),VLOOKUP($H111,FORAGE2,3)*($M111),0)))","v":""},{"$f":"IF($H111=\"\",\"\",IF(HayMonth5=0,VLOOKUP($H111,FORAGE2,4)*($M111),IF(AND(HayMonth5>0,HayMonth5<5),VLOOKUP($H111,FORAGE2,4)*($M111),0)))","v":""},{"$f":"IF($H111=\"\",\"\",IF(HayMonth5=0,VLOOKUP($H111,FORAGE2,5)*($M111),IF(AND(HayMonth5>0,HayMonth5<6),VLOOKUP($H111,FORAGE2,5)*($M111),0)))","v":""},{"$f":"IF($H111=\"\",\"\",IF(HayMonth5=0,VLOOKUP($H111,FORAGE2,6)*($M111),IF(AND(HayMonth5>0,HayMonth5<7),VLOOKUP($H111,FORAGE2,6)*($M111),0)))","v":""},{"$f":"IF($H111=\"\",\"\",IF(HayMonth5=0,VLOOKUP($H111,FORAGE2,7)*($M111),IF(AND(HayMonth5>0,HayMonth5<8),VLOOKUP($H111,FORAGE2,7)*($M111),0)))","v":""},{"$f":"IF($H111=\"\",\"\",IF(HayMonth5=0,VLOOKUP($H111,FORAGE2,8)*($M111),IF(AND(HayMonth5>0,HayMonth5<9),VLOOKUP($H111,FORAGE2,8)*($M111),0)))","v":""},{"$f":"IF($H111=\"\",\"\",IF(HayMonth5=0,VLOOKUP($H111,FORAGE2,9)*($M111),IF(AND(HayMonth5>0,HayMonth5<10),VLOOKUP($H111,FORAGE2,9)*($M111),0)))","v":""},{"$f":"IF($H111=\"\",\"\",IF(HayMonth5=0,VLOOKUP($H111,FORAGE2,10)*($M111),IF(AND(HayMonth5>0,HayMonth5<11),VLOOKUP($H111,FORAGE2,10)*($M111),0)))","v":""},{"$f":"IF($H111=\"\",\"\",IF(HayMonth5=0,VLOOKUP($H111,FORAGE2,11)*($M111),IF(AND(HayMonth5>0,HayMonth5<12),VLOOKUP($H111,FORAGE2,11)*($M111),0)))","v":""},{"$f":"IF($H111=\"\",\"\",IF(HayMonth5=0,VLOOKUP($H111,FORAGE2,12)*($M111),IF(AND(HayMonth5>0,HayMonth5<1),VLOOKUP($H111,FORAGE2,12)*($M111),0)))","v":""},{"$f":"IF($H111=\"\",\"\",IF(HayMonth5=0,VLOOKUP($H111,FORAGE2,13)*($M111),IF(AND(HayMonth5>0,HayMonth5<2),VLOOKUP($H111,FORAGE2,13)*($M111),0)))","v":""},{"$f":"IF($H111=\"\",\"\",IF(HayMonth5=0,VLOOKUP($H111,FORAGE2,14)*($M111),IF(AND(HayMonth5>0,HayMonth5<3),VLOOKUP($H111,FORAGE2,14)*($M111),0)))","v":""}]
[null,null,null,null,null,null,null,"    Will hay be cut on this field?",{"$f":"IF(HayMonth5>0,\"Hay cut in:\",\"\")","v":""},{"$f":"IF(HayMonth5=0,\"\",IF(HayMonth5=1,\"Jan\",IF(HayMonth5=2,\"Feb\",IF(HayMonth5=3,\"Mar\",IF(HayMonth5=4,\"Apr\",IF(HayMonth5=5,\"May\",IF(HayMonth5=6,\"Jun\",IF(HayMonth5=7,\"Jul\",IF(HayMonth5=8,\"Aug\",IF(HayMonth5=9,\"Sep\",IF(HayMonth5=10,\"Oct\",IF(HayMonth5=11,\"Nov\",\"Dec\"))))))))))))","v":""}]
[null,null,null,null,null,null,null,null,null,null,0,{"$f":"IF(ISBLANK(Field6)=\"\",(VLOOKUP(ROUND(TotalAcreGrazed/Acres6,0),[0]!PastureEffTable,2,)),\"\")","v":""},0,{"$f":"IF($H113=\"\",\"\",IF(HayMonth6=0,VLOOKUP($H113,FORAGE2,3)*($M113),IF(AND(HayMonth6>0,HayMonth6<4),VLOOKUP($H113,FORAGE2,3)*($M113),0)))","v":""},{"$f":"IF($H113=\"\",\"\",IF(HayMonth6=0,VLOOKUP($H113,FORAGE2,4)*($M113),IF(AND(HayMonth6>0,HayMonth6<5),VLOOKUP($H113,FORAGE2,4)*($M113),0)))","v":""},{"$f":"IF($H113=\"\",\"\",IF(HayMonth6=0,VLOOKUP($H113,FORAGE2,5)*($M113),IF(AND(HayMonth6>0,HayMonth6<6),VLOOKUP($H113,FORAGE2,5)*($M113),0)))","v":""},{"$f":"IF($H113=\"\",\"\",IF(HayMonth6=0,VLOOKUP($H113,FORAGE2,6)*($M113),IF(AND(HayMonth6>0,HayMonth6<7),VLOOKUP($H113,FORAGE2,6)*($M113),0)))","v":""},{"$f":"IF($H113=\"\",\"\",IF(HayMonth6=0,VLOOKUP($H113,FORAGE2,7)*($M113),IF(AND(HayMonth6>0,HayMonth6<8),VLOOKUP($H113,FORAGE2,7)*($M113),0)))","v":""},{"$f":"IF($H113=\"\",\"\",IF(HayMonth6=0,VLOOKUP($H113,FORAGE2,8)*($M113),IF(AND(HayMonth6>0,HayMonth6<9),VLOOKUP($H113,FORAGE2,8)*($M113),0)))","v":""},{"$f":"IF($H113=\"\",\"\",IF(HayMonth6=0,VLOOKUP($H113,FORAGE2,9)*($M113),IF(AND(HayMonth6>0,HayMonth6<10),VLOOKUP($H113,FORAGE2,9)*($M113),0)))","v":""},{"$f":"IF($H113=\"\",\"\",IF(HayMonth6=0,VLOOKUP($H113,FORAGE2,10)*($M113),IF(AND(HayMonth6>0,HayMonth6<11),VLOOKUP($H113,FORAGE2,10)*($M113),0)))","v":""},{"$f":"IF($H113=\"\",\"\",IF(HayMonth6=0,VLOOKUP($H113,FORAGE2,11)*($M113),IF(AND(HayMonth6>0,HayMonth6<12),VLOOKUP($H113,FORAGE2,11)*($M113),0)))","v":""},{"$f":"IF($H113=\"\",\"\",IF(HayMonth6=0,VLOOKUP($H113,FORAGE2,12)*($M113),IF(AND(HayMonth6>0,HayMonth6<1),VLOOKUP($H113,FORAGE2,12)*($M113),0)))","v":""},{"$f":"IF($H113=\"\",\"\",IF(HayMonth6=0,VLOOKUP($H113,FORAGE2,13)*($M113),IF(AND(HayMonth6>0,HayMonth6<2),VLOOKUP($H113,FORAGE2,13)*($M113),0)))","v":""},{"$f":"IF($H113=\"\",\"\",IF(HayMonth6=0,VLOOKUP($H113,FORAGE2,14)*($M113),IF(AND(HayMonth6>0,HayMonth6<3),VLOOKUP($H113,FORAGE2,14)*($M113),0)))","v":""}]
[null,null,null,null,null,null,null,"    Will hay be cut on this field?",{"$f":"IF(HayMonth6>0,\"Hay cut in:\",\"\")","v":""},{"$f":"IF(HayMonth6=0,\"\",IF(HayMonth6=1,\"Jan\",IF(HayMonth6=2,\"Feb\",IF(HayMonth6=3,\"Mar\",IF(HayMonth6=4,\"Apr\",IF(HayMonth6=5,\"May\",IF(HayMonth6=6,\"Jun\",IF(HayMonth6=7,\"Jul\",IF(HayMonth6=8,\"Aug\",IF(HayMonth6=9,\"Sep\",IF(HayMonth6=10,\"Oct\",IF(HayMonth6=11,\"Nov\",\"Dec\"))))))))))))","v":""}]
[null,null,null,null,null,null,null,null,null,null,0,{"$f":"IF(ISBLANK(Field7)=\"\",(VLOOKUP(ROUND(TotalAcreGrazed/Acres7,0),[0]!PastureEffTable,2,)),\"\")","v":""},0,{"$f":"IF($H115=\"\",\"\",IF(HayMonth7=0,VLOOKUP($H115,FORAGE2,3)*($M115),IF(AND(HayMonth7>0,HayMonth7<4),VLOOKUP($H115,FORAGE2,3)*($M115),0)))","v":""},{"$f":"IF($H115=\"\",\"\",IF(HayMonth7=0,VLOOKUP($H115,FORAGE2,4)*($M115),IF(AND(HayMonth7>0,HayMonth7<5),VLOOKUP($H115,FORAGE2,4)*($M115),0)))","v":""},{"$f":"IF($H115=\"\",\"\",IF(HayMonth7=0,VLOOKUP($H115,FORAGE2,5)*($M115),IF(AND(HayMonth7>0,HayMonth7<6),VLOOKUP($H115,FORAGE2,5)*($M115),0)))","v":""},{"$f":"IF($H115=\"\",\"\",IF(HayMonth7=0,VLOOKUP($H115,FORAGE2,6)*($M115),IF(AND(HayMonth7>0,HayMonth7<7),VLOOKUP($H115,FORAGE2,6)*($M115),0)))","v":""},{"$f":"IF($H115=\"\",\"\",IF(HayMonth7=0,VLOOKUP($H115,FORAGE2,7)*($M115),IF(AND(HayMonth7>0,HayMonth7<8),VLOOKUP($H115,FORAGE2,7)*($M115),0)))","v":""},{"$f":"IF($H115=\"\",\"\",IF(HayMonth7=0,VLOOKUP($H115,FORAGE2,8)*($M115),IF(AND(HayMonth7>0,HayMonth7<9),VLOOKUP($H115,FORAGE2,8)*($M115),0)))","v":""},{"$f":"IF($H115=\"\",\"\",IF(HayMonth7=0,VLOOKUP($H115,FORAGE2,9)*($M115),IF(AND(HayMonth7>0,HayMonth7<10),VLOOKUP($H115,FORAGE2,9)*($M115),0)))","v":""},{"$f":"IF($H115=\"\",\"\",IF(HayMonth7=0,VLOOKUP($H115,FORAGE2,10)*($M115),IF(AND(HayMonth7>0,HayMonth7<11),VLOOKUP($H115,FORAGE2,10)*($M115),0)))","v":""},{"$f":"IF($H115=\"\",\"\",IF(HayMonth7=0,VLOOKUP($H115,FORAGE2,11)*($M115),IF(AND(HayMonth7>0,HayMonth7<12),VLOOKUP($H115,FORAGE2,11)*($M115),0)))","v":""},{"$f":"IF($H115=\"\",\"\",IF(HayMonth7=0,VLOOKUP($H115,FORAGE2,12)*($M115),IF(AND(HayMonth7>0,HayMonth7<1),VLOOKUP($H115,FORAGE2,12)*($M115),0)))","v":""},{"$f":"IF($H115=\"\",\"\",IF(HayMonth7=0,VLOOKUP($H115,FORAGE2,13)*($M115),IF(AND(HayMonth7>0,HayMonth7<2),VLOOKUP($H115,FORAGE2,13)*($M115),0)))","v":""},{"$f":"IF($H115=\"\",\"\",IF(HayMonth7=0,VLOOKUP($H115,FORAGE2,14)*($M115),IF(AND(HayMonth7>0,HayMonth7<3),VLOOKUP($H115,FORAGE2,14)*($M115),0)))","v":""}]
[null,null,null,null,null,null,null,"    Will hay be cut on this field?",{"$f":"IF(HayMonth7>0,\"Hay cut in:\",\"\")","v":""},{"$f":"IF(HayMonth7=0,\"\",IF(HayMonth7=1,\"Jan\",IF(HayMonth7=2,\"Feb\",IF(HayMonth7=3,\"Mar\",IF(HayMonth7=4,\"Apr\",IF(HayMonth7=5,\"May\",IF(HayMonth7=6,\"Jun\",IF(HayMonth7=7,\"Jul\",IF(HayMonth7=8,\"Aug\",IF(HayMonth7=9,\"Sep\",IF(HayMonth7=10,\"Oct\",IF(HayMonth7=11,\"Nov\",\"Dec\"))))))))))))","v":""}]
[null,null,null,null,null,null,null,null,null,null,0,{"$f":"IF(ISBLANK(Field8)=\"\",(VLOOKUP(ROUND(TotalAcreGrazed/Acres8,0),[0]!PastureEffTable,2,)),\"\")","v":""},0,{"$f":"IF($H117=\"\",\"\",IF(HayMonth8=0,VLOOKUP($H117,FORAGE2,3)*($M117),IF(AND(HayMonth8>0,HayMonth8<4),VLOOKUP($H117,FORAGE2,3)*($M117),0)))","v":""},{"$f":"IF($H117=\"\",\"\",IF(HayMonth8=0,VLOOKUP($H117,FORAGE2,4)*($M117),IF(AND(HayMonth8>0,HayMonth8<5),VLOOKUP($H117,FORAGE2,4)*($M117),0)))","v":""},{"$f":"IF($H117=\"\",\"\",IF(HayMonth8=0,VLOOKUP($H117,FORAGE2,5)*($M117),IF(AND(HayMonth8>0,HayMonth8<6),VLOOKUP($H117,FORAGE2,5)*($M117),0)))","v":""},{"$f":"IF($H117=\"\",\"\",IF(HayMonth8=0,VLOOKUP($H117,FORAGE2,6)*($M117),IF(AND(HayMonth8>0,HayMonth8<7),VLOOKUP($H117,FORAGE2,6)*($M117),0)))","v":""},{"$f":"IF($H117=\"\",\"\",IF(HayMonth8=0,VLOOKUP($H117,FORAGE2,7)*($M117),IF(AND(HayMonth8>0,HayMonth8<8),VLOOKUP($H117,FORAGE2,7)*($M117),0)))","v":""},{"$f":"IF($H117=\"\",\"\",IF(HayMonth8=0,VLOOKUP($H117,FORAGE2,8)*($M117),IF(AND(HayMonth8>0,HayMonth8<9),VLOOKUP($H117,FORAGE2,8)*($M117),0)))","v":""},{"$f":"IF($H117=\"\",\"\",IF(HayMonth8=0,VLOOKUP($H117,FORAGE2,9)*($M117),IF(AND(HayMonth8>0,HayMonth8<10),VLOOKUP($H117,FORAGE2,9)*($M117),0)))","v":""},{"$f":"IF($H117=\"\",\"\",IF(HayMonth8=0,VLOOKUP($H117,FORAGE2,10)*($M117),IF(AND(HayMonth8>0,HayMonth8<11),VLOOKUP($H117,FORAGE2,10)*($M117),0)))","v":""},{"$f":"IF($H117=\"\",\"\",IF(HayMonth8=0,VLOOKUP($H117,FORAGE2,11)*($M117),IF(AND(HayMonth8>0,HayMonth8<12),VLOOKUP($H117,FORAGE2,11)*($M117),0)))","v":""},{"$f":"IF($H117=\"\",\"\",IF(HayMonth8=0,VLOOKUP($H117,FORAGE2,12)*($M117),IF(AND(HayMonth8>0,HayMonth8<1),VLOOKUP($H117,FORAGE2,12)*($M117),0)))","v":""},{"$f":"IF($H117=\"\",\"\",IF(HayMonth8=0,VLOOKUP($H117,FORAGE2,13)*($M117),IF(AND(HayMonth8>0,HayMonth8<2),VLOOKUP($H117,FORAGE2,13)*($M117),0)))","v":""},{"$f":"IF($H117=\"\",\"\",IF(HayMonth8=0,VLOOKUP($H117,FORAGE2,14)*($M117),IF(AND(HayMonth8>0,HayMonth8<3),VLOOKUP($H117,FORAGE2,14)*($M117),0)))","v":""}]
[null,null,null,null,null,null,null,"    Will hay be cut on this field?",{"$f":"IF(HayMonth8>0,\"Hay cut in:\",\"\")","v":""},{"$f":"IF(HayMonth8=0,\"\",IF(HayMonth8=1,\"Jan\",IF(HayMonth8=2,\"Feb\",IF(HayMonth8=3,\"Mar\",IF(HayMonth8=4,\"Apr\",IF(HayMonth8=5,\"May\",IF(HayMonth8=6,\"Jun\",IF(HayMonth8=7,\"Jul\",IF(HayMonth8=8,\"Aug\",IF(HayMonth8=9,\"Sep\",IF(HayMonth8=10,\"Oct\",IF(HayMonth8=11,\"Nov\",\"Dec\"))))))))))))","v":""}]
[null,null,null,null,null,null,null,null,null,null,{"$f":"I119*J119","v":0},{"$f":"IF(ISBLANK(Field9)=\"\",(VLOOKUP(ROUND(TotalAcreGrazed/Acres9,0),[0]!PastureEffTable,2,)),\"\")","v":""},0,{"$f":"IF($H119=\"\",\"\",IF(HayMonth9=0,VLOOKUP($H119,FORAGE2,3)*($M119),IF(AND(HayMonth9>0,HayMonth9<4),VLOOKUP($H119,FORAGE2,3)*($M119),0)))","v":""},{"$f":"IF($H119=\"\",\"\",IF(HayMonth9=0,VLOOKUP($H119,FORAGE2,4)*($M119),IF(AND(HayMonth9>0,HayMonth9<5),VLOOKUP($H119,FORAGE2,4)*($M119),0)))","v":""},{"$f":"IF($H119=\"\",\"\",IF(HayMonth9=0,VLOOKUP($H119,FORAGE2,5)*($M119),IF(AND(HayMonth9>0,HayMonth9<6),VLOOKUP($H119,FORAGE2,5)*($M119),0)))","v":""},{"$f":"IF($H119=\"\",\"\",IF(HayMonth9=0,VLOOKUP($H119,FORAGE2,6)*($M119),IF(AND(HayMonth9>0,HayMonth9<7),VLOOKUP($H119,FORAGE2,6)*($M119),0)))","v":""},{"$f":"IF($H119=\"\",\"\",IF(HayMonth9=0,VLOOKUP($H119,FORAGE2,7)*($M119),IF(AND(HayMonth9>0,HayMonth9<8),VLOOKUP($H119,FORAGE2,7)*($M119),0)))","v":""},{"$f":"IF($H119=\"\",\"\",IF(HayMonth9=0,VLOOKUP($H119,FORAGE2,8)*($M119),IF(AND(HayMonth9>0,HayMonth9<9),VLOOKUP($H119,FORAGE2,8)*($M119),0)))","v":""},{"$f":"IF($H119=\"\",\"\",IF(HayMonth9=0,VLOOKUP($H119,FORAGE2,9)*($M119),IF(AND(HayMonth9>0,HayMonth9<10),VLOOKUP($H119,FORAGE2,9)*($M119),0)))","v":""},{"$f":"IF($H119=\"\",\"\",IF(HayMonth9=0,VLOOKUP($H119,FORAGE2,10)*($M119),IF(AND(HayMonth9>0,HayMonth9<11),VLOOKUP($H119,FORAGE2,10)*($M119),0)))","v":""},{"$f":"IF($H119=\"\",\"\",IF(HayMonth9=0,VLOOKUP($H119,FORAGE2,11)*($M119),IF(AND(HayMonth9>0,HayMonth9<12),VLOOKUP($H119,FORAGE2,11)*($M119),0)))","v":""},{"$f":"IF($H119=\"\",\"\",IF(HayMonth9=0,VLOOKUP($H119,FORAGE2,12)*($M119),IF(AND(HayMonth9>0,HayMonth9<1),VLOOKUP($H119,FORAGE2,12)*($M119),0)))","v":""},{"$f":"IF($H119=\"\",\"\",IF(HayMonth9=0,VLOOKUP($H119,FORAGE2,13)*($M119),IF(AND(HayMonth9>0,HayMonth9<2),VLOOKUP($H119,FORAGE2,13)*($M119),0)))","v":""},{"$f":"IF($H119=\"\",\"\",IF(HayMonth9=0,VLOOKUP($H119,FORAGE2,14)*($M119),IF(AND(HayMonth9>0,HayMonth9<3),VLOOKUP($H119,FORAGE2,14)*($M119),0)))","v":""}]
[null,null,null,null,null,null,null,"    Will hay be cut on this field?",{"$f":"IF(HayMonth9>0,\"Hay cut in:\",\"\")","v":""},{"$f":"IF(HayMonth9=0,\"\",IF(HayMonth9=1,\"Jan\",IF(HayMonth9=2,\"Feb\",IF(HayMonth9=3,\"Mar\",IF(HayMonth9=4,\"Apr\",IF(HayMonth9=5,\"May\",IF(HayMonth9=6,\"Jun\",IF(HayMonth9=7,\"Jul\",IF(HayMonth9=8,\"Aug\",IF(HayMonth9=9,\"Sep\",IF(HayMonth9=10,\"Oct\",IF(HayMonth9=11,\"Nov\",\"Dec\"))))))))))))","v":""}]
[null,null,null,null,null,null,null,null,null,null,{"$f":"I121*J121","v":0},{"$f":"IF(ISBLANK(Field10)=\"\",(VLOOKUP(ROUND(TotalAcreGrazed/Acres10,0),[0]!PastureEffTable,2,)),\"\")","v":""},0,{"$f":"IF($H121=\"\",\"\",IF(HayMonth10=0,VLOOKUP($H121,FORAGE2,3)*($M121),IF(AND(HayMonth10>0,HayMonth10<4),VLOOKUP($H121,FORAGE2,3)*($M121),0)))","v":""},{"$f":"IF($H121=\"\",\"\",IF(HayMonth10=0,VLOOKUP($H121,FORAGE2,4)*($M121),IF(AND(HayMonth10>0,HayMonth10<5),VLOOKUP($H121,FORAGE2,4)*($M121),0)))","v":""},{"$f":"IF($H121=\"\",\"\",IF(HayMonth10=0,VLOOKUP($H121,FORAGE2,5)*($M121),IF(AND(HayMonth10>0,HayMonth10<6),VLOOKUP($H121,FORAGE2,5)*($M121),0)))","v":""},{"$f":"IF($H121=\"\",\"\",IF(HayMonth10=0,VLOOKUP($H121,FORAGE2,6)*($M121),IF(AND(HayMonth10>0,HayMonth10<7),VLOOKUP($H121,FORAGE2,6)*($M121),0)))","v":""},{"$f":"IF($H121=\"\",\"\",IF(HayMonth10=0,VLOOKUP($H121,FORAGE2,7)*($M121),IF(AND(HayMonth10>0,HayMonth10<8),VLOOKUP($H121,FORAGE2,7)*($M121),0)))","v":""},{"$f":"IF($H121=\"\",\"\",IF(HayMonth10=0,VLOOKUP($H121,FORAGE2,8)*($M121),IF(AND(HayMonth10>0,HayMonth10<9),VLOOKUP($H121,FORAGE2,8)*($M121),0)))","v":""},{"$f":"IF($H121=\"\",\"\",IF(HayMonth10=0,VLOOKUP($H121,FORAGE2,9)*($M121),IF(AND(HayMonth10>0,HayMonth10<10),VLOOKUP($H121,FORAGE2,9)*($M121),0)))","v":""},{"$f":"IF($H121=\"\",\"\",IF(HayMonth10=0,VLOOKUP($H121,FORAGE2,10)*($M121),IF(AND(HayMonth10>0,HayMonth10<11),VLOOKUP($H121,FORAGE2,10)*($M121),0)))","v":""},{"$f":"IF($H121=\"\",\"\",IF(HayMonth10=0,VLOOKUP($H121,FORAGE2,11)*($M121),IF(AND(HayMonth10>0,HayMonth10<12),VLOOKUP($H121,FORAGE2,11)*($M121),0)))","v":""},{"$f":"IF($H121=\"\",\"\",IF(HayMonth10=0,VLOOKUP($H121,FORAGE2,12)*($M121),IF(AND(HayMonth10>0,HayMonth10<1),VLOOKUP($H121,FORAGE2,12)*($M121),0)))","v":""},{"$f":"IF($H121=\"\",\"\",IF(HayMonth10=0,VLOOKUP($H121,FORAGE2,13)*($M121),IF(AND(HayMonth10>0,HayMonth10<2),VLOOKUP($H121,FORAGE2,13)*($M121),0)))","v":""},{"$f":"IF($H121=\"\",\"\",IF(HayMonth10=0,VLOOKUP($H121,FORAGE2,14)*($M121),IF(AND(HayMonth10>0,HayMonth10<3),VLOOKUP($H121,FORAGE2,14)*($M121),0)))","v":""}]
[null,null,null,null,null,null,null,"    Will hay be cut on this field?",{"$f":"IF(HayMonth10>0,\"Hay cut in:\",\"\")","v":""},{"$f":"IF(HayMonth10=0,\"\",IF(HayMonth10=1,\"Jan\",IF(HayMonth10=2,\"Feb\",IF(HayMonth10=3,\"Mar\",IF(HayMonth10=4,\"Apr\",IF(HayMonth10=5,\"May\",IF(HayMonth10=6,\"Jun\",IF(HayMonth10=7,\"Jul\",IF(HayMonth10=8,\"Aug\",IF(HayMonth10=9,\"Sep\",IF(HayMonth10=10,\"Oct\",IF(HayMonth10=11,\"Nov\",\"Dec\"))))))))))))","v":""}]
[null,null,null,null,null,null,null,null,null,null,{"$f":"I123*J123","v":0},{"$f":"IF(ISBLANK(Field11)=\"\",(VLOOKUP(ROUND(TotalAcreGrazed/Acres11,0),[0]!PastureEffTable,2,)),\"\")","v":""},{"$f":"K123*L123/100","v":0},{"$f":"IF($H123=\"\",\"\",IF(HayMonth11=0,VLOOKUP($H123,FORAGE2,3)*($M123),IF(AND(HayMonth11>0,HayMonth11<4),VLOOKUP($H123,FORAGE2,3)*($M123),0)))","v":""},{"$f":"IF($H123=\"\",\"\",IF(HayMonth11=0,VLOOKUP($H123,FORAGE2,4)*($M123),IF(AND(HayMonth11>0,HayMonth11<5),VLOOKUP($H123,FORAGE2,4)*($M123),0)))","v":""},{"$f":"IF($H123=\"\",\"\",IF(HayMonth11=0,VLOOKUP($H123,FORAGE2,5)*($M123),IF(AND(HayMonth11>0,HayMonth11<6),VLOOKUP($H123,FORAGE2,5)*($M123),0)))","v":""},{"$f":"IF($H123=\"\",\"\",IF(HayMonth11=0,VLOOKUP($H123,FORAGE2,6)*($M123),IF(AND(HayMonth11>0,HayMonth11<7),VLOOKUP($H123,FORAGE2,6)*($M123),0)))","v":""},{"$f":"IF($H123=\"\",\"\",IF(HayMonth11=0,VLOOKUP($H123,FORAGE2,7)*($M123),IF(AND(HayMonth11>0,HayMonth11<8),VLOOKUP($H123,FORAGE2,7)*($M123),0)))","v":""},{"$f":"IF($H123=\"\",\"\",IF(HayMonth11=0,VLOOKUP($H123,FORAGE2,8)*($M123),IF(AND(HayMonth11>0,HayMonth11<9),VLOOKUP($H123,FORAGE2,8)*($M123),0)))","v":""},{"$f":"IF($H123=\"\",\"\",IF(HayMonth11=0,VLOOKUP($H123,FORAGE2,9)*($M123),IF(AND(HayMonth11>0,HayMonth11<10),VLOOKUP($H123,FORAGE2,9)*($M123),0)))","v":""},{"$f":"IF($H123=\"\",\"\",IF(HayMonth11=0,VLOOKUP($H123,FORAGE2,10)*($M123),IF(AND(HayMonth11>0,HayMonth11<11),VLOOKUP($H123,FORAGE2,10)*($M123),0)))","v":""},{"$f":"IF($H123=\"\",\"\",IF(HayMonth11=0,VLOOKUP($H123,FORAGE2,11)*($M123),IF(AND(HayMonth11>0,HayMonth11<12),VLOOKUP($H123,FORAGE2,11)*($M123),0)))","v":""},{"$f":"IF($H123=\"\",\"\",IF(HayMonth11=0,VLOOKUP($H123,FORAGE2,12)*($M123),IF(AND(HayMonth11>0,HayMonth11<1),VLOOKUP($H123,FORAGE2,12)*($M123),0)))","v":""},{"$f":"IF($H123=\"\",\"\",IF(HayMonth11=0,VLOOKUP($H123,FORAGE2,13)*($M123),IF(AND(HayMonth11>0,HayMonth11<2),VLOOKUP($H123,FORAGE2,13)*($M123),0)))","v":""},{"$f":"IF($H123=\"\",\"\",IF(HayMonth11=0,VLOOKUP($H123,FORAGE2,14)*($M123),IF(AND(HayMonth11>0,HayMonth11<3),VLOOKUP($H123,FORAGE2,14)*($M123),0)))","v":""}]
[null,null,null,null,null,null,null,"    Will hay be cut on this field?",{"$f":"IF(HayMonth11>0,\"Hay cut in:\",\"\")","v":""},{"$f":"IF(HayMonth11=0,\"\",IF(HayMonth11=1,\"Jan\",IF(HayMonth11=2,\"Feb\",IF(HayMonth11=3,\"Mar\",IF(HayMonth11=4,\"Apr\",IF(HayMonth11=5,\"May\",IF(HayMonth11=6,\"Jun\",IF(HayMonth11=7,\"Jul\",IF(HayMonth11=8,\"Aug\",IF(HayMonth11=9,\"Sep\",IF(HayMonth11=10,\"Oct\",IF(HayMonth11=11,\"Nov\",\"Dec\"))))))))))))","v":""}]
[null,null,null,null,null,null,null,null,null,null,{"$f":"I125*J125","v":0},{"$f":"IF(ISBLANK(Field12)=\"\",(VLOOKUP(ROUND(TotalAcreGrazed/Acres12,0),[0]!PastureEffTable,2,)),\"\")","v":""},{"$f":"K125*L125/100","v":0},{"$f":"IF($H125=\"\",\"\",IF(HayMonth12=0,VLOOKUP($H125,FORAGE2,3)*($M125),IF(AND(HayMonth12>0,HayMonth12<4),VLOOKUP($H125,FORAGE2,3)*($M125),0)))","v":""},{"$f":"IF($H125=\"\",\"\",IF(HayMonth12=0,VLOOKUP($H125,FORAGE2,4)*($M125),IF(AND(HayMonth12>0,HayMonth12<5),VLOOKUP($H125,FORAGE2,4)*($M125),0)))","v":""},{"$f":"IF($H125=\"\",\"\",IF(HayMonth12=0,VLOOKUP($H125,FORAGE2,5)*($M125),IF(AND(HayMonth12>0,HayMonth12<6),VLOOKUP($H125,FORAGE2,5)*($M125),0)))","v":""},{"$f":"IF($H125=\"\",\"\",IF(HayMonth12=0,VLOOKUP($H125,FORAGE2,6)*($M125),IF(AND(HayMonth12>0,HayMonth12<7),VLOOKUP($H125,FORAGE2,6)*($M125),0)))","v":""},{"$f":"IF($H125=\"\",\"\",IF(HayMonth12=0,VLOOKUP($H125,FORAGE2,7)*($M125),IF(AND(HayMonth12>0,HayMonth12<8),VLOOKUP($H125,FORAGE2,7)*($M125),0)))","v":""},{"$f":"IF($H125=\"\",\"\",IF(HayMonth12=0,VLOOKUP($H125,FORAGE2,8)*($M125),IF(AND(HayMonth12>0,HayMonth12<9),VLOOKUP($H125,FORAGE2,8)*($M125),0)))","v":""},{"$f":"IF($H125=\"\",\"\",IF(HayMonth12=0,VLOOKUP($H125,FORAGE2,9)*($M125),IF(AND(HayMonth12>0,HayMonth12<10),VLOOKUP($H125,FORAGE2,9)*($M125),0)))","v":""},{"$f":"IF($H125=\"\",\"\",IF(HayMonth12=0,VLOOKUP($H125,FORAGE2,10)*($M125),IF(AND(HayMonth12>0,HayMonth12<11),VLOOKUP($H125,FORAGE2,10)*($M125),0)))","v":""},{"$f":"IF($H125=\"\",\"\",IF(HayMonth12=0,VLOOKUP($H125,FORAGE2,11)*($M125),IF(AND(HayMonth12>0,HayMonth12<12),VLOOKUP($H125,FORAGE2,11)*($M125),0)))","v":""},{"$f":"IF($H125=\"\",\"\",IF(HayMonth12=0,VLOOKUP($H125,FORAGE2,12)*($M125),IF(AND(HayMonth12>0,HayMonth12<1),VLOOKUP($H125,FORAGE2,12)*($M125),0)))","v":""},{"$f":"IF($H125=\"\",\"\",IF(HayMonth12=0,VLOOKUP($H125,FORAGE2,13)*($M125),IF(AND(HayMonth12>0,HayMonth12<2),VLOOKUP($H125,FORAGE2,13)*($M125),0)))","v":""},{"$f":"IF($H125=\"\",\"\",IF(HayMonth12=0,VLOOKUP($H125,FORAGE2,14)*($M125),IF(AND(HayMonth12>0,HayMonth12<3),VLOOKUP($H125,FORAGE2,14)*($M125),0)))","v":""}]
[null,null,null,null,null,null,null,"    Will hay be cut on this field?",{"$f":"IF(HayMonth12>0,\"Hay cut in:\",\"\")","v":""},{"$f":"IF(HayMonth12=0,\"\",IF(HayMonth12=1,\"Jan\",IF(HayMonth12=2,\"Feb\",IF(HayMonth12=3,\"Mar\",IF(HayMonth12=4,\"Apr\",IF(HayMonth12=5,\"May\",IF(HayMonth12=6,\"Jun\",IF(HayMonth12=7,\"Jul\",IF(HayMonth12=8,\"Aug\",IF(HayMonth12=9,\"Sep\",IF(HayMonth12=10,\"Oct\",IF(HayMonth12=11,\"Nov\",\"Dec\"))))))))))))","v":""}]
[null,null,null,null,null,null,null,null,null,null,{"$f":"I127*J127","v":0},{"$f":"IF(ISBLANK(Field13)=\"\",(VLOOKUP(ROUND(TotalAcreGrazed/Acres13,0),[0]!PastureEffTable,2,)),\"\")","v":""},{"$f":"K127*L127/100","v":0},{"$f":"IF($H127=\"\",\"\",IF(HayMonth13=0,VLOOKUP($H127,FORAGE2,3)*($M127),IF(AND(HayMonth13>0,HayMonth13<4),VLOOKUP($H127,FORAGE2,3)*($M127),0)))","v":""},{"$f":"IF($H127=\"\",\"\",IF(HayMonth13=0,VLOOKUP($H127,FORAGE2,4)*($M127),IF(AND(HayMonth13>0,HayMonth13<5),VLOOKUP($H127,FORAGE2,4)*($M127),0)))","v":""},{"$f":"IF($H127=\"\",\"\",IF(HayMonth13=0,VLOOKUP($H127,FORAGE2,5)*($M127),IF(AND(HayMonth13>0,HayMonth13<6),VLOOKUP($H127,FORAGE2,5)*($M127),0)))","v":""},{"$f":"IF($H127=\"\",\"\",IF(HayMonth13=0,VLOOKUP($H127,FORAGE2,6)*($M127),IF(AND(HayMonth13>0,HayMonth13<7),VLOOKUP($H127,FORAGE2,6)*($M127),0)))","v":""},{"$f":"IF($H127=\"\",\"\",IF(HayMonth13=0,VLOOKUP($H127,FORAGE2,7)*($M127),IF(AND(HayMonth13>0,HayMonth13<8),VLOOKUP($H127,FORAGE2,7)*($M127),0)))","v":""},{"$f":"IF($H127=\"\",\"\",IF(HayMonth13=0,VLOOKUP($H127,FORAGE2,8)*($M127),IF(AND(HayMonth13>0,HayMonth13<9),VLOOKUP($H127,FORAGE2,8)*($M127),0)))","v":""},{"$f":"IF($H127=\"\",\"\",IF(HayMonth13=0,VLOOKUP($H127,FORAGE2,9)*($M127),IF(AND(HayMonth13>0,HayMonth13<10),VLOOKUP($H127,FORAGE2,9)*($M127),0)))","v":""},{"$f":"IF($H127=\"\",\"\",IF(HayMonth13=0,VLOOKUP($H127,FORAGE2,10)*($M127),IF(AND(HayMonth13>0,HayMonth13<11),VLOOKUP($H127,FORAGE2,10)*($M127),0)))","v":""},{"$f":"IF($H127=\"\",\"\",IF(HayMonth13=0,VLOOKUP($H127,FORAGE2,11)*($M127),IF(AND(HayMonth13>0,HayMonth13<12),VLOOKUP($H127,FORAGE2,11)*($M127),0)))","v":""},{"$f":"IF($H127=\"\",\"\",IF(HayMonth13=0,VLOOKUP($H127,FORAGE2,12)*($M127),IF(AND(HayMonth13>0,HayMonth13<1),VLOOKUP($H127,FORAGE2,12)*($M127),0)))","v":""},{"$f":"IF($H127=\"\",\"\",IF(HayMonth13=0,VLOOKUP($H127,FORAGE2,13)*($M127),IF(AND(HayMonth13>0,HayMonth13<2),VLOOKUP($H127,FORAGE2,13)*($M127),0)))","v":""},{"$f":"IF($H127=\"\",\"\",IF(HayMonth13=0,VLOOKUP($H127,FORAGE2,14)*($M127),IF(AND(HayMonth13>0,HayMonth13<3),VLOOKUP($H127,FORAGE2,14)*($M127),0)))","v":""}]
[null,null,null,null,null,null,null,"    Will hay be cut on this field?",{"$f":"IF(HayMonth13>0,\"Hay cut in:\",\"\")","v":""},{"$f":"IF(HayMonth13=0,\"\",IF(HayMonth13=1,\"Jan\",IF(HayMonth13=2,\"Feb\",IF(HayMonth13=3,\"Mar\",IF(HayMonth13=4,\"Apr\",IF(HayMonth13=5,\"May\",IF(HayMonth13=6,\"Jun\",IF(HayMonth13=7,\"Jul\",IF(HayMonth13=8,\"Aug\",IF(HayMonth13=9,\"Sep\",IF(HayMonth13=10,\"Oct\",IF(HayMonth13=11,\"Nov\",\"Dec\"))))))))))))","v":""}]
[null,null,null,null,null,null,null,null,null,null,{"$f":"I129*J129","v":0},{"$f":"IF(ISBLANK(Field14)=\"\",(VLOOKUP(ROUND(TotalAcreGrazed/Acres14,0),[0]!PastureEffTable,2,)),\"\")","v":""},{"$f":"K129*L129/100","v":0},{"$f":"IF($H129=\"\",\"\",IF(HayMonth14=0,VLOOKUP($H129,FORAGE2,3)*($M129),IF(AND(HayMonth14>0,HayMonth14<4),VLOOKUP($H129,FORAGE2,3)*($M129),0)))","v":""},{"$f":"IF($H129=\"\",\"\",IF(HayMonth14=0,VLOOKUP($H129,FORAGE2,4)*($M129),IF(AND(HayMonth14>0,HayMonth14<5),VLOOKUP($H129,FORAGE2,4)*($M129),0)))","v":""},{"$f":"IF($H129=\"\",\"\",IF(HayMonth14=0,VLOOKUP($H129,FORAGE2,5)*($M129),IF(AND(HayMonth14>0,HayMonth14<6),VLOOKUP($H129,FORAGE2,5)*($M129),0)))","v":""},{"$f":"IF($H129=\"\",\"\",IF(HayMonth14=0,VLOOKUP($H129,FORAGE2,6)*($M129),IF(AND(HayMonth14>0,HayMonth14<7),VLOOKUP($H129,FORAGE2,6)*($M129),0)))","v":""},{"$f":"IF($H129=\"\",\"\",IF(HayMonth14=0,VLOOKUP($H129,FORAGE2,7)*($M129),IF(AND(HayMonth14>0,HayMonth14<8),VLOOKUP($H129,FORAGE2,7)*($M129),0)))","v":""},{"$f":"IF($H129=\"\",\"\",IF(HayMonth14=0,VLOOKUP($H129,FORAGE2,8)*($M129),IF(AND(HayMonth14>0,HayMonth14<9),VLOOKUP($H129,FORAGE2,8)*($M129),0)))","v":""},{"$f":"IF($H129=\"\",\"\",IF(HayMonth14=0,VLOOKUP($H129,FORAGE2,9)*($M129),IF(AND(HayMonth14>0,HayMonth14<10),VLOOKUP($H129,FORAGE2,9)*($M129),0)))","v":""},{"$f":"IF($H129=\"\",\"\",IF(HayMonth14=0,VLOOKUP($H129,FORAGE2,10)*($M129),IF(AND(HayMonth14>0,HayMonth14<11),VLOOKUP($H129,FORAGE2,10)*($M129),0)))","v":""},{"$f":"IF($H129=\"\",\"\",IF(HayMonth14=0,VLOOKUP($H129,FORAGE2,11)*($M129),IF(AND(HayMonth14>0,HayMonth14<12),VLOOKUP($H129,FORAGE2,11)*($M129),0)))","v":""},{"$f":"IF($H129=\"\",\"\",IF(HayMonth14=0,VLOOKUP($H129,FORAGE2,12)*($M129),IF(AND(HayMonth14>0,HayMonth14<1),VLOOKUP($H129,FORAGE2,12)*($M129),0)))","v":""},{"$f":"IF($H129=\"\",\"\",IF(HayMonth14=0,VLOOKUP($H129,FORAGE2,13)*($M129),IF(AND(HayMonth14>0,HayMonth14<2),VLOOKUP($H129,FORAGE2,13)*($M129),0)))","v":""},{"$f":"IF($H129=\"\",\"\",IF(HayMonth14=0,VLOOKUP($H129,FORAGE2,14)*($M129),IF(AND(HayMonth14>0,HayMonth14<3),VLOOKUP($H129,FORAGE2,14)*($M129),0)))","v":""}]
[null,null,null,null,null,null,null,"    Will hay be cut on this field?",{"$f":"IF(HayMonth14>0,\"Hay cut in:\",\"\")","v":""},{"$f":"IF(HayMonth14=0,\"\",IF(HayMonth14=1,\"Jan\",IF(HayMonth14=2,\"Feb\",IF(HayMonth14=3,\"Mar\",IF(HayMonth14=4,\"Apr\",IF(HayMonth14=5,\"May\",IF(HayMonth14=6,\"Jun\",IF(HayMonth14=7,\"Jul\",IF(HayMonth14=8,\"Aug\",IF(HayMonth14=9,\"Sep\",IF(HayMonth14=10,\"Oct\",IF(HayMonth14=11,\"Nov\",\"Dec\"))))))))))))","v":""}]
[null,null,null,null,null,null,null,null,null,null,{"$f":"I131*J131","v":0},{"$f":"IF(ISBLANK(Field15)=\"\",(VLOOKUP(ROUND(TotalAcreGrazed/Acres15,0),[0]!PastureEffTable,2,)),\"\")","v":""},{"$f":"K131*L131/100","v":0},{"$f":"IF($H131=\"\",\"\",IF(HayMonth15=0,VLOOKUP($H131,FORAGE2,3)*($M131),IF(AND(HayMonth15>0,HayMonth15<4),VLOOKUP($H131,FORAGE2,3)*($M131),0)))","v":""},{"$f":"IF($H131=\"\",\"\",IF(HayMonth15=0,VLOOKUP($H131,FORAGE2,4)*($M131),IF(AND(HayMonth15>0,HayMonth15<5),VLOOKUP($H131,FORAGE2,4)*($M131),0)))","v":""},{"$f":"IF($H131=\"\",\"\",IF(HayMonth15=0,VLOOKUP($H131,FORAGE2,5)*($M131),IF(AND(HayMonth15>0,HayMonth15<6),VLOOKUP($H131,FORAGE2,5)*($M131),0)))","v":""},{"$f":"IF($H131=\"\",\"\",IF(HayMonth15=0,VLOOKUP($H131,FORAGE2,6)*($M131),IF(AND(HayMonth15>0,HayMonth15<7),VLOOKUP($H131,FORAGE2,6)*($M131),0)))","v":""},{"$f":"IF($H131=\"\",\"\",IF(HayMonth15=0,VLOOKUP($H131,FORAGE2,7)*($M131),IF(AND(HayMonth15>0,HayMonth15<8),VLOOKUP($H131,FORAGE2,7)*($M131),0)))","v":""},{"$f":"IF($H131=\"\",\"\",IF(HayMonth15=0,VLOOKUP($H131,FORAGE2,8)*($M131),IF(AND(HayMonth15>0,HayMonth15<9),VLOOKUP($H131,FORAGE2,8)*($M131),0)))","v":""},{"$f":"IF($H131=\"\",\"\",IF(HayMonth15=0,VLOOKUP($H131,FORAGE2,9)*($M131),IF(AND(HayMonth15>0,HayMonth15<10),VLOOKUP($H131,FORAGE2,9)*($M131),0)))","v":""},{"$f":"IF($H131=\"\",\"\",IF(HayMonth15=0,VLOOKUP($H131,FORAGE2,10)*($M131),IF(AND(HayMonth15>0,HayMonth15<11),VLOOKUP($H131,FORAGE2,10)*($M131),0)))","v":""},{"$f":"IF($H131=\"\",\"\",IF(HayMonth15=0,VLOOKUP($H131,FORAGE2,11)*($M131),IF(AND(HayMonth15>0,HayMonth15<12),VLOOKUP($H131,FORAGE2,11)*($M131),0)))","v":""},{"$f":"IF($H131=\"\",\"\",IF(HayMonth15=0,VLOOKUP($H131,FORAGE2,12)*($M131),IF(AND(HayMonth15>0,HayMonth15<1),VLOOKUP($H131,FORAGE2,12)*($M131),0)))","v":""},{"$f":"IF($H131=\"\",\"\",IF(HayMonth15=0,VLOOKUP($H131,FORAGE2,13)*($M131),IF(AND(HayMonth15>0,HayMonth15<2),VLOOKUP($H131,FORAGE2,13)*($M131),0)))","v":""},{"$f":"IF($H131=\"\",\"\",IF(HayMonth15=0,VLOOKUP($H131,FORAGE2,14)*($M131),IF(AND(HayMonth15>0,HayMonth15<3),VLOOKUP($H131,FORAGE2,14)*($M131),0)))","v":""}]
[null,null,null,null,null,null,null,"    Will hay be cut on this field?",{"$f":"IF(HayMonth15>0,\"Hay cut in:\",\"\")","v":""},{"$f":"IF(HayMonth15=0,\"\",IF(HayMonth15=1,\"Jan\",IF(HayMonth15=2,\"Feb\",IF(HayMonth15=3,\"Mar\",IF(HayMonth15=4,\"Apr\",IF(HayMonth15=5,\"May\",IF(HayMonth15=6,\"Jun\",IF(HayMonth15=7,\"Jul\",IF(HayMonth15=8,\"Aug\",IF(HayMonth15=9,\"Sep\",IF(HayMonth15=10,\"Oct\",IF(HayMonth15=11,\"Nov\",\"Dec\"))))))))))))","v":""}]
[null,null,null,null,null,null,null,null,null,null,{"$f":"I133*J133","v":0},{"$f":"IF(ISBLANK(Field16)=\"\",(VLOOKUP(ROUND(TotalAcreGrazed/Acres16,0),[0]!PastureEffTable,2,)),\"\")","v":""},{"$f":"K133*L133/100","v":0},{"$f":"IF($H133=\"\",\"\",IF(HayMonth16=0,VLOOKUP($H133,FORAGE2,3)*($M133),IF(AND(HayMonth16>0,HayMonth16<4),VLOOKUP($H133,FORAGE2,3)*($M133),0)))","v":""},{"$f":"IF($H133=\"\",\"\",IF(HayMonth16=0,VLOOKUP($H133,FORAGE2,4)*($M133),IF(AND(HayMonth16>0,HayMonth16<5),VLOOKUP($H133,FORAGE2,4)*($M133),0)))","v":""},{"$f":"IF($H133=\"\",\"\",IF(HayMonth16=0,VLOOKUP($H133,FORAGE2,5)*($M133),IF(AND(HayMonth16>0,HayMonth16<6),VLOOKUP($H133,FORAGE2,5)*($M133),0)))","v":""},{"$f":"IF($H133=\"\",\"\",IF(HayMonth16=0,VLOOKUP($H133,FORAGE2,6)*($M133),IF(AND(HayMonth16>0,HayMonth16<7),VLOOKUP($H133,FORAGE2,6)*($M133),0)))","v":""},{"$f":"IF($H133=\"\",\"\",IF(HayMonth16=0,VLOOKUP($H133,FORAGE2,7)*($M133),IF(AND(HayMonth16>0,HayMonth16<8),VLOOKUP($H133,FORAGE2,7)*($M133),0)))","v":""},{"$f":"IF($H133=\"\",\"\",IF(HayMonth16=0,VLOOKUP($H133,FORAGE2,8)*($M133),IF(AND(HayMonth16>0,HayMonth16<9),VLOOKUP($H133,FORAGE2,8)*($M133),0)))","v":""},{"$f":"IF($H133=\"\",\"\",IF(HayMonth16=0,VLOOKUP($H133,FORAGE2,9)*($M133),IF(AND(HayMonth16>0,HayMonth16<10),VLOOKUP($H133,FORAGE2,9)*($M133),0)))","v":""},{"$f":"IF($H133=\"\",\"\",IF(HayMonth16=0,VLOOKUP($H133,FORAGE2,10)*($M133),IF(AND(HayMonth16>0,HayMonth16<11),VLOOKUP($H133,FORAGE2,10)*($M133),0)))","v":""},{"$f":"IF($H133=\"\",\"\",IF(HayMonth16=0,VLOOKUP($H133,FORAGE2,11)*($M133),IF(AND(HayMonth16>0,HayMonth16<12),VLOOKUP($H133,FORAGE2,11)*($M133),0)))","v":""},{"$f":"IF($H133=\"\",\"\",IF(HayMonth16=0,VLOOKUP($H133,FORAGE2,12)*($M133),IF(AND(HayMonth16>0,HayMonth16<1),VLOOKUP($H133,FORAGE2,12)*($M133),0)))","v":""},{"$f":"IF($H133=\"\",\"\",IF(HayMonth16=0,VLOOKUP($H133,FORAGE2,13)*($M133),IF(AND(HayMonth16>0,HayMonth16<2),VLOOKUP($H133,FORAGE2,13)*($M133),0)))","v":""},{"$f":"IF($H133=\"\",\"\",IF(HayMonth16=0,VLOOKUP($H133,FORAGE2,14)*($M133),IF(AND(HayMonth16>0,HayMonth16<3),VLOOKUP($H133,FORAGE2,14)*($M133),0)))","v":""}]
[null,null,null,null,null,null,null,"    Will hay be cut on this field?",{"$f":"IF(HayMonth16>0,\"Hay cut in:\",\"\")","v":""},{"$f":"IF(HayMonth16=0,\"\",IF(HayMonth16=1,\"Jan\",IF(HayMonth16=2,\"Feb\",IF(HayMonth16=3,\"Mar\",IF(HayMonth16=4,\"Apr\",IF(HayMonth16=5,\"May\",IF(HayMonth16=6,\"Jun\",IF(HayMonth16=7,\"Jul\",IF(HayMonth16=8,\"Aug\",IF(HayMonth16=9,\"Sep\",IF(HayMonth16=10,\"Oct\",IF(HayMonth16=11,\"Nov\",\"Dec\"))))))))))))","v":""}]
[null,null,null,null,null,null,null,null,null,null,{"$f":"I135*J135","v":0},{"$f":"IF(ISBLANK(Field17)=\"\",(VLOOKUP(ROUND(TotalAcreGrazed/Acres17,0),[0]!PastureEffTable,2,)),\"\")","v":""},{"$f":"K135*L135/100","v":0},{"$f":"IF($H135=\"\",\"\",IF(HayMonth17=0,VLOOKUP($H135,FORAGE2,3)*($M135),IF(AND(HayMonth17>0,HayMonth17<4),VLOOKUP($H135,FORAGE2,3)*($M135),0)))","v":""},{"$f":"IF($H135=\"\",\"\",IF(HayMonth17=0,VLOOKUP($H135,FORAGE2,4)*($M135),IF(AND(HayMonth17>0,HayMonth17<5),VLOOKUP($H135,FORAGE2,4)*($M135),0)))","v":""},{"$f":"IF($H135=\"\",\"\",IF(HayMonth17=0,VLOOKUP($H135,FORAGE2,5)*($M135),IF(AND(HayMonth17>0,HayMonth17<6),VLOOKUP($H135,FORAGE2,5)*($M135),0)))","v":""},{"$f":"IF($H135=\"\",\"\",IF(HayMonth17=0,VLOOKUP($H135,FORAGE2,6)*($M135),IF(AND(HayMonth17>0,HayMonth17<7),VLOOKUP($H135,FORAGE2,6)*($M135),0)))","v":""},{"$f":"IF($H135=\"\",\"\",IF(HayMonth17=0,VLOOKUP($H135,FORAGE2,7)*($M135),IF(AND(HayMonth17>0,HayMonth17<8),VLOOKUP($H135,FORAGE2,7)*($M135),0)))","v":""},{"$f":"IF($H135=\"\",\"\",IF(HayMonth17=0,VLOOKUP($H135,FORAGE2,8)*($M135),IF(AND(HayMonth17>0,HayMonth17<9),VLOOKUP($H135,FORAGE2,8)*($M135),0)))","v":""},{"$f":"IF($H135=\"\",\"\",IF(HayMonth17=0,VLOOKUP($H135,FORAGE2,9)*($M135),IF(AND(HayMonth17>0,HayMonth17<10),VLOOKUP($H135,FORAGE2,9)*($M135),0)))","v":""},{"$f":"IF($H135=\"\",\"\",IF(HayMonth17=0,VLOOKUP($H135,FORAGE2,10)*($M135),IF(AND(HayMonth17>0,HayMonth17<11),VLOOKUP($H135,FORAGE2,10)*($M135),0)))","v":""},{"$f":"IF($H135=\"\",\"\",IF(HayMonth17=0,VLOOKUP($H135,FORAGE2,11)*($M135),IF(AND(HayMonth17>0,HayMonth17<12),VLOOKUP($H135,FORAGE2,11)*($M135),0)))","v":""},{"$f":"IF($H135=\"\",\"\",IF(HayMonth17=0,VLOOKUP($H135,FORAGE2,12)*($M135),IF(AND(HayMonth17>0,HayMonth17<1),VLOOKUP($H135,FORAGE2,12)*($M135),0)))","v":""},{"$f":"IF($H135=\"\",\"\",IF(HayMonth17=0,VLOOKUP($H135,FORAGE2,13)*($M135),IF(AND(HayMonth17>0,HayMonth17<2),VLOOKUP($H135,FORAGE2,13)*($M135),0)))","v":""},{"$f":"IF($H135=\"\",\"\",IF(HayMonth17=0,VLOOKUP($H135,FORAGE2,14)*($M135),IF(AND(HayMonth17>0,HayMonth17<3),VLOOKUP($H135,FORAGE2,14)*($M135),0)))","v":""}]
[null,null,null,null,null,null,null,"    Will hay be cut on this field?",{"$f":"IF(HayMonth17>0,\"Hay cut in:\",\"\")","v":""},{"$f":"IF(HayMonth17=0,\"\",IF(HayMonth17=1,\"Jan\",IF(HayMonth17=2,\"Feb\",IF(HayMonth17=3,\"Mar\",IF(HayMonth17=4,\"Apr\",IF(HayMonth17=5,\"May\",IF(HayMonth17=6,\"Jun\",IF(HayMonth17=7,\"Jul\",IF(HayMonth17=8,\"Aug\",IF(HayMonth17=9,\"Sep\",IF(HayMonth17=10,\"Oct\",IF(HayMonth17=11,\"Nov\",\"Dec\"))))))))))))","v":""}]
[null,null,null,null,null,null,null,null,null,null,{"$f":"I137*J137","v":0},{"$f":"IF(ISBLANK(Field18)=\"\",(VLOOKUP(ROUND(TotalAcreGrazed/Acres18,0),[0]!PastureEffTable,2,)),\"\")","v":""},{"$f":"K137*L137/100","v":0},{"$f":"IF($H137=\"\",\"\",IF(HayMonth18=0,VLOOKUP($H137,FORAGE2,3)*($M137),IF(AND(HayMonth18>0,HayMonth18<4),VLOOKUP($H137,FORAGE2,3)*($M137),0)))","v":""},{"$f":"IF($H137=\"\",\"\",IF(HayMonth18=0,VLOOKUP($H137,FORAGE2,4)*($M137),IF(AND(HayMonth18>0,HayMonth18<5),VLOOKUP($H137,FORAGE2,4)*($M137),0)))","v":""},{"$f":"IF($H137=\"\",\"\",IF(HayMonth18=0,VLOOKUP($H137,FORAGE2,5)*($M137),IF(AND(HayMonth18>0,HayMonth18<6),VLOOKUP($H137,FORAGE2,5)*($M137),0)))","v":""},{"$f":"IF($H137=\"\",\"\",IF(HayMonth18=0,VLOOKUP($H137,FORAGE2,6)*($M137),IF(AND(HayMonth18>0,HayMonth18<7),VLOOKUP($H137,FORAGE2,6)*($M137),0)))","v":""},{"$f":"IF($H137=\"\",\"\",IF(HayMonth18=0,VLOOKUP($H137,FORAGE2,7)*($M137),IF(AND(HayMonth18>0,HayMonth18<8),VLOOKUP($H137,FORAGE2,7)*($M137),0)))","v":""},{"$f":"IF($H137=\"\",\"\",IF(HayMonth18=0,VLOOKUP($H137,FORAGE2,8)*($M137),IF(AND(HayMonth18>0,HayMonth18<9),VLOOKUP($H137,FORAGE2,8)*($M137),0)))","v":""},{"$f":"IF($H137=\"\",\"\",IF(HayMonth18=0,VLOOKUP($H137,FORAGE2,9)*($M137),IF(AND(HayMonth18>0,HayMonth18<10),VLOOKUP($H137,FORAGE2,9)*($M137),0)))","v":""},{"$f":"IF($H137=\"\",\"\",IF(HayMonth18=0,VLOOKUP($H137,FORAGE2,10)*($M137),IF(AND(HayMonth18>0,HayMonth18<11),VLOOKUP($H137,FORAGE2,10)*($M137),0)))","v":""},{"$f":"IF($H137=\"\",\"\",IF(HayMonth18=0,VLOOKUP($H137,FORAGE2,11)*($M137),IF(AND(HayMonth18>0,HayMonth18<12),VLOOKUP($H137,FORAGE2,11)*($M137),0)))","v":""},{"$f":"IF($H137=\"\",\"\",IF(HayMonth18=0,VLOOKUP($H137,FORAGE2,12)*($M137),IF(AND(HayMonth18>0,HayMonth18<1),VLOOKUP($H137,FORAGE2,12)*($M137),0)))","v":""},{"$f":"IF($H137=\"\",\"\",IF(HayMonth18=0,VLOOKUP($H137,FORAGE2,13)*($M137),IF(AND(HayMonth18>0,HayMonth18<2),VLOOKUP($H137,FORAGE2,13)*($M137),0)))","v":""},{"$f":"IF($H137=\"\",\"\",IF(HayMonth18=0,VLOOKUP($H137,FORAGE2,14)*($M137),IF(AND(HayMonth18>0,HayMonth18<3),VLOOKUP($H137,FORAGE2,14)*($M137),0)))","v":""}]
[null,null,null,null,null,null,null,"    Will hay be cut on this field?",{"$f":"IF(HayMonth18>0,\"Hay cut in:\",\"\")","v":""},{"$f":"IF(HayMonth18=0,\"\",IF(HayMonth18=1,\"Jan\",IF(HayMonth18=2,\"Feb\",IF(HayMonth18=3,\"Mar\",IF(HayMonth18=4,\"Apr\",IF(HayMonth18=5,\"May\",IF(HayMonth18=6,\"Jun\",IF(HayMonth18=7,\"Jul\",IF(HayMonth18=8,\"Aug\",IF(HayMonth18=9,\"Sep\",IF(HayMonth18=10,\"Oct\",IF(HayMonth18=11,\"Nov\",\"Dec\"))))))))))))","v":""}]
[null,null,null,null,null,null,null,null,null,null,{"$f":"I139*J139","v":0},{"$f":"IF(ISBLANK(Field19)=\"\",(VLOOKUP(ROUND(TotalAcreGrazed/Acres19,0),[0]!PastureEffTable,2,)),\"\")","v":""},{"$f":"K139*L139/100","v":0},{"$f":"IF($H139=\"\",\"\",IF(HayMonth19=0,VLOOKUP($H139,FORAGE2,3)*($M139),IF(AND(HayMonth19>0,HayMonth19<4),VLOOKUP($H139,FORAGE2,3)*($M139),0)))","v":""},{"$f":"IF($H139=\"\",\"\",IF(HayMonth19=0,VLOOKUP($H139,FORAGE2,4)*($M139),IF(AND(HayMonth19>0,HayMonth19<5),VLOOKUP($H139,FORAGE2,4)*($M139),0)))","v":""},{"$f":"IF($H139=\"\",\"\",IF(HayMonth19=0,VLOOKUP($H139,FORAGE2,5)*($M139),IF(AND(HayMonth19>0,HayMonth19<6),VLOOKUP($H139,FORAGE2,5)*($M139),0)))","v":""},{"$f":"IF($H139=\"\",\"\",IF(HayMonth19=0,VLOOKUP($H139,FORAGE2,6)*($M139),IF(AND(HayMonth19>0,HayMonth19<7),VLOOKUP($H139,FORAGE2,6)*($M139),0)))","v":""},{"$f":"IF($H139=\"\",\"\",IF(HayMonth19=0,VLOOKUP($H139,FORAGE2,7)*($M139),IF(AND(HayMonth19>0,HayMonth19<8),VLOOKUP($H139,FORAGE2,7)*($M139),0)))","v":""},{"$f":"IF($H139=\"\",\"\",IF(HayMonth19=0,VLOOKUP($H139,FORAGE2,8)*($M139),IF(AND(HayMonth19>0,HayMonth19<9),VLOOKUP($H139,FORAGE2,8)*($M139),0)))","v":""},{"$f":"IF($H139=\"\",\"\",IF(HayMonth19=0,VLOOKUP($H139,FORAGE2,9)*($M139),IF(AND(HayMonth19>0,HayMonth19<10),VLOOKUP($H139,FORAGE2,9)*($M139),0)))","v":""},{"$f":"IF($H139=\"\",\"\",IF(HayMonth19=0,VLOOKUP($H139,FORAGE2,10)*($M139),IF(AND(HayMonth19>0,HayMonth19<11),VLOOKUP($H139,FORAGE2,10)*($M139),0)))","v":""},{"$f":"IF($H139=\"\",\"\",IF(HayMonth19=0,VLOOKUP($H139,FORAGE2,11)*($M139),IF(AND(HayMonth19>0,HayMonth19<12),VLOOKUP($H139,FORAGE2,11)*($M139),0)))","v":""},{"$f":"IF($H139=\"\",\"\",IF(HayMonth19=0,VLOOKUP($H139,FORAGE2,12)*($M139),IF(AND(HayMonth19>0,HayMonth19<1),VLOOKUP($H139,FORAGE2,12)*($M139),0)))","v":""},{"$f":"IF($H139=\"\",\"\",IF(HayMonth19=0,VLOOKUP($H139,FORAGE2,13)*($M139),IF(AND(HayMonth19>0,HayMonth19<2),VLOOKUP($H139,FORAGE2,13)*($M139),0)))","v":""},{"$f":"IF($H139=\"\",\"\",IF(HayMonth19=0,VLOOKUP($H139,FORAGE2,14)*($M139),IF(AND(HayMonth19>0,HayMonth19<3),VLOOKUP($H139,FORAGE2,14)*($M139),0)))","v":""}]
[null,null,null,null,null,null,null,"    Will hay be cut on this field?",{"$f":"IF(HayMonth19>0,\"Hay cut in:\",\"\")","v":""},{"$f":"IF(HayMonth19=0,\"\",IF(HayMonth19=1,\"Jan\",IF(HayMonth19=2,\"Feb\",IF(HayMonth19=3,\"Mar\",IF(HayMonth19=4,\"Apr\",IF(HayMonth19=5,\"May\",IF(HayMonth19=6,\"Jun\",IF(HayMonth19=7,\"Jul\",IF(HayMonth19=8,\"Aug\",IF(HayMonth19=9,\"Sep\",IF(HayMonth19=10,\"Oct\",IF(HayMonth19=11,\"Nov\",\"Dec\"))))))))))))","v":""}]
[null,null,null,null,null,null,null,null,null,null,{"$f":"I141*J141","v":0},{"$f":"IF(ISBLANK(Field20)=\"\",(VLOOKUP(ROUND(TotalAcreGrazed/Acres20,0),[0]!PastureEffTable,2,)),\"\")","v":""},{"$f":"K141*L141/100","v":0},{"$f":"IF($H141=\"\",\"\",IF(HayMonth20=0,VLOOKUP($H141,FORAGE2,3)*($M141),IF(AND(HayMonth20>0,HayMonth20<4),VLOOKUP($H141,FORAGE2,3)*($M141),0)))","v":""},{"$f":"IF($H141=\"\",\"\",IF(HayMonth20=0,VLOOKUP($H141,FORAGE2,4)*($M141),IF(AND(HayMonth20>0,HayMonth20<5),VLOOKUP($H141,FORAGE2,4)*($M141),0)))","v":""},{"$f":"IF($H141=\"\",\"\",IF(HayMonth20=0,VLOOKUP($H141,FORAGE2,5)*($M141),IF(AND(HayMonth20>0,HayMonth20<6),VLOOKUP($H141,FORAGE2,5)*($M141),0)))","v":""},{"$f":"IF($H141=\"\",\"\",IF(HayMonth20=0,VLOOKUP($H141,FORAGE2,6)*($M141),IF(AND(HayMonth20>0,HayMonth20<7),VLOOKUP($H141,FORAGE2,6)*($M141),0)))","v":""},{"$f":"IF($H141=\"\",\"\",IF(HayMonth20=0,VLOOKUP($H141,FORAGE2,7)*($M141),IF(AND(HayMonth20>0,HayMonth20<8),VLOOKUP($H141,FORAGE2,7)*($M141),0)))","v":""},{"$f":"IF($H141=\"\",\"\",IF(HayMonth20=0,VLOOKUP($H141,FORAGE2,8)*($M141),IF(AND(HayMonth20>0,HayMonth20<9),VLOOKUP($H141,FORAGE2,8)*($M141),0)))","v":""},{"$f":"IF($H141=\"\",\"\",IF(HayMonth20=0,VLOOKUP($H141,FORAGE2,9)*($M141),IF(AND(HayMonth20>0,HayMonth20<10),VLOOKUP($H141,FORAGE2,9)*($M141),0)))","v":""},{"$f":"IF($H141=\"\",\"\",IF(HayMonth20=0,VLOOKUP($H141,FORAGE2,10)*($M141),IF(AND(HayMonth20>0,HayMonth20<11),VLOOKUP($H141,FORAGE2,10)*($M141),0)))","v":""},{"$f":"IF($H141=\"\",\"\",IF(HayMonth20=0,VLOOKUP($H141,FORAGE2,11)*($M141),IF(AND(HayMonth20>0,HayMonth20<12),VLOOKUP($H141,FORAGE2,11)*($M141),0)))","v":""},{"$f":"IF($H141=\"\",\"\",IF(HayMonth20=0,VLOOKUP($H141,FORAGE2,12)*($M141),IF(AND(HayMonth20>0,HayMonth20<1),VLOOKUP($H141,FORAGE2,12)*($M141),0)))","v":""},{"$f":"IF($H141=\"\",\"\",IF(HayMonth20=0,VLOOKUP($H141,FORAGE2,13)*($M141),IF(AND(HayMonth20>0,HayMonth20<2),VLOOKUP($H141,FORAGE2,13)*($M141),0)))","v":""},{"$f":"IF($H141=\"\",\"\",IF(HayMonth20=0,VLOOKUP($H141,FORAGE2,14)*($M141),IF(AND(HayMonth20>0,HayMonth20<3),VLOOKUP($H141,FORAGE2,14)*($M141),0)))","v":""}]
[null,null,null,null,null,null,null,"    Will hay be cut on this field?",{"$f":"IF(HayMonth20>0,\"Hay cut in:\",\"\")","v":""},{"$f":"IF(HayMonth20=0,\"\",IF(HayMonth20=1,\"Jan\",IF(HayMonth20=2,\"Feb\",IF(HayMonth20=3,\"Mar\",IF(HayMonth20=4,\"Apr\",IF(HayMonth20=5,\"May\",IF(HayMonth20=6,\"Jun\",IF(HayMonth20=7,\"Jul\",IF(HayMonth20=8,\"Aug\",IF(HayMonth20=9,\"Sep\",IF(HayMonth20=10,\"Oct\",IF(HayMonth20=11,\"Nov\",\"Dec\"))))))))))))","v":""}]
[null,null,null,null,null,null,null,null,null,null,{"$f":"I143*J143","v":0},{"$f":"IF(ISBLANK(Field21)=\"\",(VLOOKUP(ROUND(TotalAcreGrazed/Acres21,0),[0]!PastureEffTable,2,)),\"\")","v":""},{"$f":"K143*L143/100","v":0},{"$f":"IF($H143=\"\",\"\",IF(HayMonth21=0,VLOOKUP($H143,FORAGE2,3)*($M143),IF(AND(HayMonth21>0,HayMonth21<4),VLOOKUP($H143,FORAGE2,3)*($M143),0)))","v":""},{"$f":"IF($H143=\"\",\"\",IF(HayMonth21=0,VLOOKUP($H143,FORAGE2,4)*($M143),IF(AND(HayMonth21>0,HayMonth21<5),VLOOKUP($H143,FORAGE2,4)*($M143),0)))","v":""},{"$f":"IF($H143=\"\",\"\",IF(HayMonth21=0,VLOOKUP($H143,FORAGE2,5)*($M143),IF(AND(HayMonth21>0,HayMonth21<6),VLOOKUP($H143,FORAGE2,5)*($M143),0)))","v":""},{"$f":"IF($H143=\"\",\"\",IF(HayMonth21=0,VLOOKUP($H143,FORAGE2,6)*($M143),IF(AND(HayMonth21>0,HayMonth21<7),VLOOKUP($H143,FORAGE2,6)*($M143),0)))","v":""},{"$f":"IF($H143=\"\",\"\",IF(HayMonth21=0,VLOOKUP($H143,FORAGE2,7)*($M143),IF(AND(HayMonth21>0,HayMonth21<8),VLOOKUP($H143,FORAGE2,7)*($M143),0)))","v":""},{"$f":"IF($H143=\"\",\"\",IF(HayMonth21=0,VLOOKUP($H143,FORAGE2,8)*($M143),IF(AND(HayMonth21>0,HayMonth21<9),VLOOKUP($H143,FORAGE2,8)*($M143),0)))","v":""},{"$f":"IF($H143=\"\",\"\",IF(HayMonth21=0,VLOOKUP($H143,FORAGE2,9)*($M143),IF(AND(HayMonth21>0,HayMonth21<10),VLOOKUP($H143,FORAGE2,9)*($M143),0)))","v":""},{"$f":"IF($H143=\"\",\"\",IF(HayMonth21=0,VLOOKUP($H143,FORAGE2,10)*($M143),IF(AND(HayMonth21>0,HayMonth21<11),VLOOKUP($H143,FORAGE2,10)*($M143),0)))","v":""},{"$f":"IF($H143=\"\",\"\",IF(HayMonth21=0,VLOOKUP($H143,FORAGE2,11)*($M143),IF(AND(HayMonth21>0,HayMonth21<12),VLOOKUP($H143,FORAGE2,11)*($M143),0)))","v":""},{"$f":"IF($H143=\"\",\"\",IF(HayMonth21=0,VLOOKUP($H143,FORAGE2,12)*($M143),IF(AND(HayMonth21>0,HayMonth21<1),VLOOKUP($H143,FORAGE2,12)*($M143),0)))","v":""},{"$f":"IF($H143=\"\",\"\",IF(HayMonth21=0,VLOOKUP($H143,FORAGE2,13)*($M143),IF(AND(HayMonth21>0,HayMonth21<2),VLOOKUP($H143,FORAGE2,13)*($M143),0)))","v":""},{"$f":"IF($H143=\"\",\"\",IF(HayMonth21=0,VLOOKUP($H143,FORAGE2,14)*($M143),IF(AND(HayMonth21>0,HayMonth21<3),VLOOKUP($H143,FORAGE2,14)*($M143),0)))","v":""}]
[null,null,null,null,null,null,null,"    Will hay be cut on this field?",{"$f":"IF(HayMonth21>0,\"Hay cut in:\",\"\")","v":""},{"$f":"IF(HayMonth21=0,\"\",IF(HayMonth21=1,\"Jan\",IF(HayMonth21=2,\"Feb\",IF(HayMonth21=3,\"Mar\",IF(HayMonth21=4,\"Apr\",IF(HayMonth21=5,\"May\",IF(HayMonth21=6,\"Jun\",IF(HayMonth21=7,\"Jul\",IF(HayMonth21=8,\"Aug\",IF(HayMonth21=9,\"Sep\",IF(HayMonth21=10,\"Oct\",IF(HayMonth21=11,\"Nov\",\"Dec\"))))))))))))","v":""}]
[null,null,null,null,null,null,null,null,null,null,{"$f":"I145*J145","v":0},{"$f":"IF(ISBLANK(Field22)=\"\",(VLOOKUP(ROUND(TotalAcreGrazed/Acres22,0),[0]!PastureEffTable,2,)),\"\")","v":""},{"$f":"K145*L145/100","v":0},{"$f":"IF($H145=\"\",\"\",IF(HayMonth22=0,VLOOKUP($H145,FORAGE2,3)*($M145),IF(AND(HayMonth22>0,HayMonth22<4),VLOOKUP($H145,FORAGE2,3)*($M145),0)))","v":""},{"$f":"IF($H145=\"\",\"\",IF(HayMonth22=0,VLOOKUP($H145,FORAGE2,4)*($M145),IF(AND(HayMonth22>0,HayMonth22<5),VLOOKUP($H145,FORAGE2,4)*($M145),0)))","v":""},{"$f":"IF($H145=\"\",\"\",IF(HayMonth22=0,VLOOKUP($H145,FORAGE2,5)*($M145),IF(AND(HayMonth22>0,HayMonth22<6),VLOOKUP($H145,FORAGE2,5)*($M145),0)))","v":""},{"$f":"IF($H145=\"\",\"\",IF(HayMonth22=0,VLOOKUP($H145,FORAGE2,6)*($M145),IF(AND(HayMonth22>0,HayMonth22<7),VLOOKUP($H145,FORAGE2,6)*($M145),0)))","v":""},{"$f":"IF($H145=\"\",\"\",IF(HayMonth22=0,VLOOKUP($H145,FORAGE2,7)*($M145),IF(AND(HayMonth22>0,HayMonth22<8),VLOOKUP($H145,FORAGE2,7)*($M145),0)))","v":""},{"$f":"IF($H145=\"\",\"\",IF(HayMonth22=0,VLOOKUP($H145,FORAGE2,8)*($M145),IF(AND(HayMonth22>0,HayMonth22<9),VLOOKUP($H145,FORAGE2,8)*($M145),0)))","v":""},{"$f":"IF($H145=\"\",\"\",IF(HayMonth22=0,VLOOKUP($H145,FORAGE2,9)*($M145),IF(AND(HayMonth22>0,HayMonth22<10),VLOOKUP($H145,FORAGE2,9)*($M145),0)))","v":""},{"$f":"IF($H145=\"\",\"\",IF(HayMonth22=0,VLOOKUP($H145,FORAGE2,10)*($M145),IF(AND(HayMonth22>0,HayMonth22<11),VLOOKUP($H145,FORAGE2,10)*($M145),0)))","v":""},{"$f":"IF($H145=\"\",\"\",IF(HayMonth22=0,VLOOKUP($H145,FORAGE2,11)*($M145),IF(AND(HayMonth22>0,HayMonth22<12),VLOOKUP($H145,FORAGE2,11)*($M145),0)))","v":""},{"$f":"IF($H145=\"\",\"\",IF(HayMonth22=0,VLOOKUP($H145,FORAGE2,12)*($M145),IF(AND(HayMonth22>0,HayMonth22<1),VLOOKUP($H145,FORAGE2,12)*($M145),0)))","v":""},{"$f":"IF($H145=\"\",\"\",IF(HayMonth22=0,VLOOKUP($H145,FORAGE2,13)*($M145),IF(AND(HayMonth22>0,HayMonth22<2),VLOOKUP($H145,FORAGE2,13)*($M145),0)))","v":""},{"$f":"IF($H145=\"\",\"\",IF(HayMonth22=0,VLOOKUP($H145,FORAGE2,14)*($M145),IF(AND(HayMonth22>0,HayMonth22<3),VLOOKUP($H145,FORAGE2,14)*($M145),0)))","v":""}]
[null,null,null,null,null,null,null,"    Will hay be cut on this field?",{"$f":"IF(HayMonth22>0,\"Hay cut in:\",\"\")","v":""},{"$f":"IF(HayMonth22=0,\"\",IF(HayMonth22=1,\"Jan\",IF(HayMonth22=2,\"Feb\",IF(HayMonth22=3,\"Mar\",IF(HayMonth22=4,\"Apr\",IF(HayMonth22=5,\"May\",IF(HayMonth22=6,\"Jun\",IF(HayMonth22=7,\"Jul\",IF(HayMonth22=8,\"Aug\",IF(HayMonth22=9,\"Sep\",IF(HayMonth22=10,\"Oct\",IF(HayMonth22=11,\"Nov\",\"Dec\"))))))))))))","v":""}]
[null,null,null,null,null,null,null,null,null,null,{"$f":"I147*J147","v":0},{"$f":"IF(ISBLANK(Field23)=\"\",(VLOOKUP(ROUND(TotalAcreGrazed/Acres23,0),[0]!PastureEffTable,2,)),\"\")","v":""},{"$f":"K147*L147/100","v":0},{"$f":"IF($H147=\"\",\"\",IF(HayMonth23=0,VLOOKUP($H147,FORAGE2,3)*($M147),IF(AND(HayMonth23>0,HayMonth23<4),VLOOKUP($H147,FORAGE2,3)*($M147),0)))","v":""},{"$f":"IF($H147=\"\",\"\",IF(HayMonth23=0,VLOOKUP($H147,FORAGE2,4)*($M147),IF(AND(HayMonth23>0,HayMonth23<5),VLOOKUP($H147,FORAGE2,4)*($M147),0)))","v":""},{"$f":"IF($H147=\"\",\"\",IF(HayMonth23=0,VLOOKUP($H147,FORAGE2,5)*($M147),IF(AND(HayMonth23>0,HayMonth23<6),VLOOKUP($H147,FORAGE2,5)*($M147),0)))","v":""},{"$f":"IF($H147=\"\",\"\",IF(HayMonth23=0,VLOOKUP($H147,FORAGE2,6)*($M147),IF(AND(HayMonth23>0,HayMonth23<7),VLOOKUP($H147,FORAGE2,6)*($M147),0)))","v":""},{"$f":"IF($H147=\"\",\"\",IF(HayMonth23=0,VLOOKUP($H147,FORAGE2,7)*($M147),IF(AND(HayMonth23>0,HayMonth23<8),VLOOKUP($H147,FORAGE2,7)*($M147),0)))","v":""},{"$f":"IF($H147=\"\",\"\",IF(HayMonth23=0,VLOOKUP($H147,FORAGE2,8)*($M147),IF(AND(HayMonth23>0,HayMonth23<9),VLOOKUP($H147,FORAGE2,8)*($M147),0)))","v":""},{"$f":"IF($H147=\"\",\"\",IF(HayMonth23=0,VLOOKUP($H147,FORAGE2,9)*($M147),IF(AND(HayMonth23>0,HayMonth23<10),VLOOKUP($H147,FORAGE2,9)*($M147),0)))","v":""},{"$f":"IF($H147=\"\",\"\",IF(HayMonth23=0,VLOOKUP($H147,FORAGE2,10)*($M147),IF(AND(HayMonth23>0,HayMonth23<11),VLOOKUP($H147,FORAGE2,10)*($M147),0)))","v":""},{"$f":"IF($H147=\"\",\"\",IF(HayMonth23=0,VLOOKUP($H147,FORAGE2,11)*($M147),IF(AND(HayMonth23>0,HayMonth23<12),VLOOKUP($H147,FORAGE2,11)*($M147),0)))","v":""},{"$f":"IF($H147=\"\",\"\",IF(HayMonth23=0,VLOOKUP($H147,FORAGE2,12)*($M147),IF(AND(HayMonth23>0,HayMonth23<1),VLOOKUP($H147,FORAGE2,12)*($M147),0)))","v":""},{"$f":"IF($H147=\"\",\"\",IF(HayMonth23=0,VLOOKUP($H147,FORAGE2,13)*($M147),IF(AND(HayMonth23>0,HayMonth23<2),VLOOKUP($H147,FORAGE2,13)*($M147),0)))","v":""},{"$f":"IF($H147=\"\",\"\",IF(HayMonth23=0,VLOOKUP($H147,FORAGE2,14)*($M147),IF(AND(HayMonth23>0,HayMonth23<3),VLOOKUP($H147,FORAGE2,14)*($M147),0)))","v":""}]
[null,null,null,null,null,null,null,"    Will hay be cut on this field?",{"$f":"IF(HayMonth23>0,\"Hay cut in:\",\"\")","v":""},{"$f":"IF(HayMonth23=0,\"\",IF(HayMonth23=1,\"Jan\",IF(HayMonth23=2,\"Feb\",IF(HayMonth23=3,\"Mar\",IF(HayMonth23=4,\"Apr\",IF(HayMonth23=5,\"May\",IF(HayMonth23=6,\"Jun\",IF(HayMonth23=7,\"Jul\",IF(HayMonth23=8,\"Aug\",IF(HayMonth23=9,\"Sep\",IF(HayMonth23=10,\"Oct\",IF(HayMonth23=11,\"Nov\",\"Dec\"))))))))))))","v":""}]
[null,null,null,null,null,null,null,null,null,null,{"$f":"I149*J149","v":0},{"$f":"IF(ISBLANK(Field24)=\"\",(VLOOKUP(ROUND(TotalAcreGrazed/Acres24,0),[0]!PastureEffTable,2,)),\"\")","v":""},{"$f":"K149*L149/100","v":0},{"$f":"IF($H149=\"\",\"\",IF(HayMonth24=0,VLOOKUP($H149,FORAGE2,3)*($M149),IF(AND(HayMonth24>0,HayMonth24<4),VLOOKUP($H149,FORAGE2,3)*($M149),0)))","v":""},{"$f":"IF($H149=\"\",\"\",IF(HayMonth24=0,VLOOKUP($H149,FORAGE2,4)*($M149),IF(AND(HayMonth24>0,HayMonth24<5),VLOOKUP($H149,FORAGE2,4)*($M149),0)))","v":""},{"$f":"IF($H149=\"\",\"\",IF(HayMonth24=0,VLOOKUP($H149,FORAGE2,5)*($M149),IF(AND(HayMonth24>0,HayMonth24<6),VLOOKUP($H149,FORAGE2,5)*($M149),0)))","v":""},{"$f":"IF($H149=\"\",\"\",IF(HayMonth24=0,VLOOKUP($H149,FORAGE2,6)*($M149),IF(AND(HayMonth24>0,HayMonth24<7),VLOOKUP($H149,FORAGE2,6)*($M149),0)))","v":""},{"$f":"IF($H149=\"\",\"\",IF(HayMonth24=0,VLOOKUP($H149,FORAGE2,7)*($M149),IF(AND(HayMonth24>0,HayMonth24<8),VLOOKUP($H149,FORAGE2,7)*($M149),0)))","v":""},{"$f":"IF($H149=\"\",\"\",IF(HayMonth24=0,VLOOKUP($H149,FORAGE2,8)*($M149),IF(AND(HayMonth24>0,HayMonth24<9),VLOOKUP($H149,FORAGE2,8)*($M149),0)))","v":""},{"$f":"IF($H149=\"\",\"\",IF(HayMonth24=0,VLOOKUP($H149,FORAGE2,9)*($M149),IF(AND(HayMonth24>0,HayMonth24<10),VLOOKUP($H149,FORAGE2,9)*($M149),0)))","v":""},{"$f":"IF($H149=\"\",\"\",IF(HayMonth24=0,VLOOKUP($H149,FORAGE2,10)*($M149),IF(AND(HayMonth24>0,HayMonth24<11),VLOOKUP($H149,FORAGE2,10)*($M149),0)))","v":""},{"$f":"IF($H149=\"\",\"\",IF(HayMonth24=0,VLOOKUP($H149,FORAGE2,11)*($M149),IF(AND(HayMonth24>0,HayMonth24<12),VLOOKUP($H149,FORAGE2,11)*($M149),0)))","v":""},{"$f":"IF($H149=\"\",\"\",IF(HayMonth24=0,VLOOKUP($H149,FORAGE2,12)*($M149),IF(AND(HayMonth24>0,HayMonth24<1),VLOOKUP($H149,FORAGE2,12)*($M149),0)))","v":""},{"$f":"IF($H149=\"\",\"\",IF(HayMonth24=0,VLOOKUP($H149,FORAGE2,13)*($M149),IF(AND(HayMonth24>0,HayMonth24<2),VLOOKUP($H149,FORAGE2,13)*($M149),0)))","v":""},{"$f":"IF($H149=\"\",\"\",IF(HayMonth24=0,VLOOKUP($H149,FORAGE2,14)*($M149),IF(AND(HayMonth24>0,HayMonth24<3),VLOOKUP($H149,FORAGE2,14)*($M149),0)))","v":""}]
[null,null,null,null,null,null,null,"    Will hay be cut on this field?",{"$f":"IF(HayMonth24>0,\"Hay cut in:\",\"\")","v":""},{"$f":"IF(HayMonth24=0,\"\",IF(HayMonth24=1,\"Jan\",IF(HayMonth24=2,\"Feb\",IF(HayMonth24=3,\"Mar\",IF(HayMonth24=4,\"Apr\",IF(HayMonth24=5,\"May\",IF(HayMonth24=6,\"Jun\",IF(HayMonth24=7,\"Jul\",IF(HayMonth24=8,\"Aug\",IF(HayMonth24=9,\"Sep\",IF(HayMonth24=10,\"Oct\",IF(HayMonth24=11,\"Nov\",\"Dec\"))))))))))))","v":""},null,0]
[]
[null,null,null,null,null,null,null,"Total Usable Acres Grazed",{"$f":"Acres1+Acres2+Acres3+Acres4+Acres5+Acres6+Acres7+Acres8+Acres9+Acres10+Acres11+Acres12+Acres13+Acres14+Acres15+Acres16+Acres17+Acres18+Acres19+Acres20+Acres21+Acres22+Acres23+Acres24","v":0}]
[]
[]
[null,null,null,null,null,null,"Fields Hayed In Conjunction With Grazing "]
[null,null,null,null,null,null,"Fields will populate automatically if haying is selected above for any fields. Only enter the Hay Harvest Efficiency (%), the other fields populate automatically based upon the information entered above.  The Total Production Pounds is calculated by multiplying the percent of growth that has occured at the time of haying based upon the Forage Growth Curves."]
[null,null,null,null,null,null,null,null,null,"TFP*","Total","Hay",null,"Minimum",null,"Total Forage Production"]
[null,null,null,null,null,null,"Field",null,"Acres",null,"Production","Harvest","Harvested","Cutting",null,"Select OPTIMUM yields when:"]
[null,null,null,null,null,null," Number","Kind of Forage","(Usable)","lbs/ac","Pounds","Eff. (%)","Pounds"," Ht. (in)",null,"1.  Paddocks are fertilized regularly, OR"]
[null,null,null,null,null,null,{"$f":"Field1","v":0},{"$f":"Kind1","v":0},{"$f":"Acres1","v":0},{"$f":"Yield1","v":0},{"$f":"IF(HayMonth2=3,I160*J160*(VLOOKUP(H160,FORAGE2,12)+VLOOKUP(H160,FORAGE2,13)+VLOOKUP(H160,FORAGE2,14)),IF(HayMonth2=4,I160*J160*(VLOOKUP(H160,FORAGE2,12)+VLOOKUP(H160,FORAGE2,13)+VLOOKUP(H160,FORAGE2,14)+VLOOKUP(H160,FORAGE2,3)),IF(HayMonth2=5,I160*J160*(VLOOKUP(H160,FORAGE2,12)+VLOOKUP(H160,FORAGE2,13)+VLOOKUP(H160,FORAGE2,14)+VLOOKUP(H160,FORAGE2,3)+VLOOKUP(H160,FORAGE2,4)),IF(HayMonth2=6,I160*J160*(VLOOKUP(H160,FORAGE2,12)+VLOOKUP(H160,FORAGE2,13)+VLOOKUP(H160,FORAGE2,14)+VLOOKUP(H160,FORAGE2,3)+VLOOKUP(H160,FORAGE2,4)+VLOOKUP(H160,FORAGE2,5)),IF(HayMonth2=7,I160*J160*(VLOOKUP(H160,FORAGE2,12)+VLOOKUP(H160,FORAGE2,13)+VLOOKUP(H160,FORAGE2,14)+VLOOKUP(H160,FORAGE2,3)+VLOOKUP(H160,FORAGE2,4)+VLOOKUP(H160,FORAGE2,5)+VLOOKUP(H160,FORAGE2,6)), IF(HayMonth2=8,I160*J160*(VLOOKUP(H160,FORAGE2,12)+VLOOKUP(H160,FORAGE2,13)+VLOOKUP(H160,FORAGE2,14)+VLOOKUP(H160,FORAGE2,3)+VLOOKUP(H160,FORAGE2,4)+VLOOKUP(H160,FORAGE2,5)+VLOOKUP(H160,FORAGE2,6)+VLOOKUP(H160,FORAGE2,7)),IF(HayMonth2=9,I160*J160*(VLOOKUP(H160,FORAGE2,12)+VLOOKUP(H160,FORAGE2,13)+VLOOKUP(H160,FORAGE2,14)+VLOOKUP(H160,FORAGE2,3)+VLOOKUP(H160,FORAGE2,4)+VLOOKUP(H160,FORAGE2,5)+VLOOKUP(H160,FORAGE2,6)+VLOOKUP(H160,FORAGE2,7)+VLOOKUP(H160,FORAGE2,8)), IF(HayMonth2=10,I160*J160*(VLOOKUP(H160,FORAGE2,12)+VLOOKUP(H160,FORAGE2,13)+VLOOKUP(H160,FORAGE2,14)+VLOOKUP(H160,FORAGE2,3)+VLOOKUP(H160,FORAGE2,4)+VLOOKUP(H160,FORAGE2,5)+VLOOKUP(H160,FORAGE2,6)+VLOOKUP(H160,FORAGE2,7)+VLOOKUP(H160,FORAGE2,8)+VLOOKUP(H160,FORAGE2,9)),I160*J160*(VLOOKUP(H160,FORAGE2,12)+VLOOKUP(H160,FORAGE2,13)+VLOOKUP(H160,FORAGE2,14)+VLOOKUP(H160,FORAGE2,3)+VLOOKUP(H160,FORAGE2,4)+VLOOKUP(H160,FORAGE2,5)+VLOOKUP(H160,FORAGE2,6)+VLOOKUP(H160,FORAGE2,7)+VLOOKUP(H160,FORAGE2,8)+VLOOKUP(H160,FORAGE2,9)+VLOOKUP(H160,FORAGE2,10)+VLOOKUP(H160,FORAGE2,11))))))))))","v":0},null,{"$f":"K160*L160","v":0},{"$f":"IF(H160=\"\",\"\",VLOOKUP(H160,ForageGrowthCurves!$A$6:$P$67,16,FALSE))","v":""}]
[null,null,null,null,null,null,{"$f":"Field2","v":0},{"$f":"Kind2","v":0},{"$f":"Acres2","v":0},{"$f":"Yield2","v":0},{"$f":"IF(HayMonth2=3,I161*J161*(VLOOKUP(H161,FORAGE2,12)+VLOOKUP(H161,FORAGE2,13)+VLOOKUP(H161,FORAGE2,14)),IF(HayMonth2=4,I161*J161*(VLOOKUP(H161,FORAGE2,12)+VLOOKUP(H161,FORAGE2,13)+VLOOKUP(H161,FORAGE2,14)+VLOOKUP(H161,FORAGE2,3)),IF(HayMonth2=5,I161*J161*(VLOOKUP(H161,FORAGE2,12)+VLOOKUP(H161,FORAGE2,13)+VLOOKUP(H161,FORAGE2,14)+VLOOKUP(H161,FORAGE2,3)+VLOOKUP(H161,FORAGE2,4)),IF(HayMonth2=6,I161*J161*(VLOOKUP(H161,FORAGE2,12)+VLOOKUP(H161,FORAGE2,13)+VLOOKUP(H161,FORAGE2,14)+VLOOKUP(H161,FORAGE2,3)+VLOOKUP(H161,FORAGE2,4)+VLOOKUP(H161,FORAGE2,5)),IF(HayMonth2=7,I161*J161*(VLOOKUP(H161,FORAGE2,12)+VLOOKUP(H161,FORAGE2,13)+VLOOKUP(H161,FORAGE2,14)+VLOOKUP(H161,FORAGE2,3)+VLOOKUP(H161,FORAGE2,4)+VLOOKUP(H161,FORAGE2,5)+VLOOKUP(H161,FORAGE2,6)), IF(HayMonth2=8,I161*J161*(VLOOKUP(H161,FORAGE2,12)+VLOOKUP(H161,FORAGE2,13)+VLOOKUP(H161,FORAGE2,14)+VLOOKUP(H161,FORAGE2,3)+VLOOKUP(H161,FORAGE2,4)+VLOOKUP(H161,FORAGE2,5)+VLOOKUP(H161,FORAGE2,6)+VLOOKUP(H161,FORAGE2,7)),IF(HayMonth2=9,I161*J161*(VLOOKUP(H161,FORAGE2,12)+VLOOKUP(H161,FORAGE2,13)+VLOOKUP(H161,FORAGE2,14)+VLOOKUP(H161,FORAGE2,3)+VLOOKUP(H161,FORAGE2,4)+VLOOKUP(H161,FORAGE2,5)+VLOOKUP(H161,FORAGE2,6)+VLOOKUP(H161,FORAGE2,7)+VLOOKUP(H161,FORAGE2,8)), IF(HayMonth2=10,I161*J161*(VLOOKUP(H161,FORAGE2,12)+VLOOKUP(H161,FORAGE2,13)+VLOOKUP(H161,FORAGE2,14)+VLOOKUP(H161,FORAGE2,3)+VLOOKUP(H161,FORAGE2,4)+VLOOKUP(H161,FORAGE2,5)+VLOOKUP(H161,FORAGE2,6)+VLOOKUP(H161,FORAGE2,7)+VLOOKUP(H161,FORAGE2,8)+VLOOKUP(H161,FORAGE2,9)),I161*J161*(VLOOKUP(H161,FORAGE2,12)+VLOOKUP(H161,FORAGE2,13)+VLOOKUP(H161,FORAGE2,14)+VLOOKUP(H161,FORAGE2,3)+VLOOKUP(H161,FORAGE2,4)+VLOOKUP(H161,FORAGE2,5)+VLOOKUP(H161,FORAGE2,6)+VLOOKUP(H161,FORAGE2,7)+VLOOKUP(H161,FORAGE2,8)+VLOOKUP(H161,FORAGE2,9)+VLOOKUP(H161,FORAGE2,10)+VLOOKUP(H161,FORAGE2,11))))))))))","v":0},null,{"$f":"K161*L161","v":0},{"$f":"IF(H161=\"\",\"\",VLOOKUP(H161,ForageGrowthCurves!$A$6:$P$67,16,FALSE))","v":""}]
[null,null,null,null,null,null,{"$f":"Field3","v":0},{"$f":"Kind3","v":0},{"$f":"Acres3","v":0},{"$f":"Yield3","v":0},{"$f":"IF(HayMonth3=3,I162*J162*(VLOOKUP(H162,FORAGE2,12)+VLOOKUP(H162,FORAGE2,13)+VLOOKUP(H162,FORAGE2,14)),IF(HayMonth3=4,I162*J162*(VLOOKUP(H162,FORAGE2,12)+VLOOKUP(H162,FORAGE2,13)+VLOOKUP(H162,FORAGE2,14)+VLOOKUP(H162,FORAGE2,3)),IF(HayMonth3=5,I162*J162*(VLOOKUP(H162,FORAGE2,12)+VLOOKUP(H162,FORAGE2,13)+VLOOKUP(H162,FORAGE2,14)+VLOOKUP(H162,FORAGE2,3)+VLOOKUP(H162,FORAGE2,4)),IF(HayMonth3=6,I162*J162*(VLOOKUP(H162,FORAGE2,12)+VLOOKUP(H162,FORAGE2,13)+VLOOKUP(H162,FORAGE2,14)+VLOOKUP(H162,FORAGE2,3)+VLOOKUP(H162,FORAGE2,4)+VLOOKUP(H162,FORAGE2,5)),IF(HayMonth3=7,I162*J162*(VLOOKUP(H162,FORAGE2,12)+VLOOKUP(H162,FORAGE2,13)+VLOOKUP(H162,FORAGE2,14)+VLOOKUP(H162,FORAGE2,3)+VLOOKUP(H162,FORAGE2,4)+VLOOKUP(H162,FORAGE2,5)+VLOOKUP(H162,FORAGE2,6)), IF(HayMonth3=8,I162*J162*(VLOOKUP(H162,FORAGE2,12)+VLOOKUP(H162,FORAGE2,13)+VLOOKUP(H162,FORAGE2,14)+VLOOKUP(H162,FORAGE2,3)+VLOOKUP(H162,FORAGE2,4)+VLOOKUP(H162,FORAGE2,5)+VLOOKUP(H162,FORAGE2,6)+VLOOKUP(H162,FORAGE2,7)),IF(HayMonth3=9,I162*J162*(VLOOKUP(H162,FORAGE2,12)+VLOOKUP(H162,FORAGE2,13)+VLOOKUP(H162,FORAGE2,14)+VLOOKUP(H162,FORAGE2,3)+VLOOKUP(H162,FORAGE2,4)+VLOOKUP(H162,FORAGE2,5)+VLOOKUP(H162,FORAGE2,6)+VLOOKUP(H162,FORAGE2,7)+VLOOKUP(H162,FORAGE2,8)), IF(HayMonth3=10,I162*J162*(VLOOKUP(H162,FORAGE2,12)+VLOOKUP(H162,FORAGE2,13)+VLOOKUP(H162,FORAGE2,14)+VLOOKUP(H162,FORAGE2,3)+VLOOKUP(H162,FORAGE2,4)+VLOOKUP(H162,FORAGE2,5)+VLOOKUP(H162,FORAGE2,6)+VLOOKUP(H162,FORAGE2,7)+VLOOKUP(H162,FORAGE2,8)+VLOOKUP(H162,FORAGE2,9)),I162*J162*(VLOOKUP(H162,FORAGE2,12)+VLOOKUP(H162,FORAGE2,13)+VLOOKUP(H162,FORAGE2,14)+VLOOKUP(H162,FORAGE2,3)+VLOOKUP(H162,FORAGE2,4)+VLOOKUP(H162,FORAGE2,5)+VLOOKUP(H162,FORAGE2,6)+VLOOKUP(H162,FORAGE2,7)+VLOOKUP(H162,FORAGE2,8)+VLOOKUP(H162,FORAGE2,9)+VLOOKUP(H162,FORAGE2,10)+VLOOKUP(H162,FORAGE2,11))))))))))","v":0},null,0,{"$f":"IF(H162=\"\",\"\",VLOOKUP(H162,ForageGrowthCurves!$A$6:$P$67,16,FALSE))","v":""}]
[null,null,null,null,null,null,{"$f":"Field4","v":0},{"$f":"Kind4","v":0},{"$f":"Acres4","v":0},{"$f":"Yield4","v":0},{"$f":"IF(HayMonth4=3,I163*J163*(VLOOKUP(H163,FORAGE2,12)+VLOOKUP(H163,FORAGE2,13)+VLOOKUP(H163,FORAGE2,14)),IF(HayMonth4=4,I163*J163*(VLOOKUP(H163,FORAGE2,12)+VLOOKUP(H163,FORAGE2,13)+VLOOKUP(H163,FORAGE2,14)+VLOOKUP(H163,FORAGE2,3)),IF(HayMonth4=5,I163*J163*(VLOOKUP(H163,FORAGE2,12)+VLOOKUP(H163,FORAGE2,13)+VLOOKUP(H163,FORAGE2,14)+VLOOKUP(H163,FORAGE2,3)+VLOOKUP(H163,FORAGE2,4)),IF(HayMonth4=6,I163*J163*(VLOOKUP(H163,FORAGE2,12)+VLOOKUP(H163,FORAGE2,13)+VLOOKUP(H163,FORAGE2,14)+VLOOKUP(H163,FORAGE2,3)+VLOOKUP(H163,FORAGE2,4)+VLOOKUP(H163,FORAGE2,5)),IF(HayMonth4=7,I163*J163*(VLOOKUP(H163,FORAGE2,12)+VLOOKUP(H163,FORAGE2,13)+VLOOKUP(H163,FORAGE2,14)+VLOOKUP(H163,FORAGE2,3)+VLOOKUP(H163,FORAGE2,4)+VLOOKUP(H163,FORAGE2,5)+VLOOKUP(H163,FORAGE2,6)), IF(HayMonth4=8,I163*J163*(VLOOKUP(H163,FORAGE2,12)+VLOOKUP(H163,FORAGE2,13)+VLOOKUP(H163,FORAGE2,14)+VLOOKUP(H163,FORAGE2,3)+VLOOKUP(H163,FORAGE2,4)+VLOOKUP(H163,FORAGE2,5)+VLOOKUP(H163,FORAGE2,6)+VLOOKUP(H163,FORAGE2,7)),IF(HayMonth4=9,I163*J163*(VLOOKUP(H163,FORAGE2,12)+VLOOKUP(H163,FORAGE2,13)+VLOOKUP(H163,FORAGE2,14)+VLOOKUP(H163,FORAGE2,3)+VLOOKUP(H163,FORAGE2,4)+VLOOKUP(H163,FORAGE2,5)+VLOOKUP(H163,FORAGE2,6)+VLOOKUP(H163,FORAGE2,7)+VLOOKUP(H163,FORAGE2,8)), IF(HayMonth4=10,I163*J163*(VLOOKUP(H163,FORAGE2,12)+VLOOKUP(H163,FORAGE2,13)+VLOOKUP(H163,FORAGE2,14)+VLOOKUP(H163,FORAGE2,3)+VLOOKUP(H163,FORAGE2,4)+VLOOKUP(H163,FORAGE2,5)+VLOOKUP(H163,FORAGE2,6)+VLOOKUP(H163,FORAGE2,7)+VLOOKUP(H163,FORAGE2,8)+VLOOKUP(H163,FORAGE2,9)),I163*J163*(VLOOKUP(H163,FORAGE2,12)+VLOOKUP(H163,FORAGE2,13)+VLOOKUP(H163,FORAGE2,14)+VLOOKUP(H163,FORAGE2,3)+VLOOKUP(H163,FORAGE2,4)+VLOOKUP(H163,FORAGE2,5)+VLOOKUP(H163,FORAGE2,6)+VLOOKUP(H163,FORAGE2,7)+VLOOKUP(H163,FORAGE2,8)+VLOOKUP(H163,FORAGE2,9)+VLOOKUP(H163,FORAGE2,10)+VLOOKUP(H163,FORAGE2,11))))))))))","v":0},null,0,{"$f":"IF(H163=\"\",\"\",VLOOKUP(H163,ForageGrowthCurves!$A$6:$P$67,16,FALSE))","v":""}]
[null,null,null,null,null,null,{"$f":"Field5","v":0},{"$f":"Kind5","v":0},{"$f":"Acres5","v":0},{"$f":"Yield5","v":0},{"$f":"IF(HayMonth5=3,I164*J164*(VLOOKUP(H164,FORAGE2,12)+VLOOKUP(H164,FORAGE2,13)+VLOOKUP(H164,FORAGE2,14)),IF(HayMonth5=4,I164*J164*(VLOOKUP(H164,FORAGE2,12)+VLOOKUP(H164,FORAGE2,13)+VLOOKUP(H164,FORAGE2,14)+VLOOKUP(H164,FORAGE2,3)),IF(HayMonth5=5,I164*J164*(VLOOKUP(H164,FORAGE2,12)+VLOOKUP(H164,FORAGE2,13)+VLOOKUP(H164,FORAGE2,14)+VLOOKUP(H164,FORAGE2,3)+VLOOKUP(H164,FORAGE2,4)),IF(HayMonth5=6,I164*J164*(VLOOKUP(H164,FORAGE2,12)+VLOOKUP(H164,FORAGE2,13)+VLOOKUP(H164,FORAGE2,14)+VLOOKUP(H164,FORAGE2,3)+VLOOKUP(H164,FORAGE2,4)+VLOOKUP(H164,FORAGE2,5)),IF(HayMonth5=7,I164*J164*(VLOOKUP(H164,FORAGE2,12)+VLOOKUP(H164,FORAGE2,13)+VLOOKUP(H164,FORAGE2,14)+VLOOKUP(H164,FORAGE2,3)+VLOOKUP(H164,FORAGE2,4)+VLOOKUP(H164,FORAGE2,5)+VLOOKUP(H164,FORAGE2,6)), IF(HayMonth5=8,I164*J164*(VLOOKUP(H164,FORAGE2,12)+VLOOKUP(H164,FORAGE2,13)+VLOOKUP(H164,FORAGE2,14)+VLOOKUP(H164,FORAGE2,3)+VLOOKUP(H164,FORAGE2,4)+VLOOKUP(H164,FORAGE2,5)+VLOOKUP(H164,FORAGE2,6)+VLOOKUP(H164,FORAGE2,7)),IF(HayMonth5=9,I164*J164*(VLOOKUP(H164,FORAGE2,12)+VLOOKUP(H164,FORAGE2,13)+VLOOKUP(H164,FORAGE2,14)+VLOOKUP(H164,FORAGE2,3)+VLOOKUP(H164,FORAGE2,4)+VLOOKUP(H164,FORAGE2,5)+VLOOKUP(H164,FORAGE2,6)+VLOOKUP(H164,FORAGE2,7)+VLOOKUP(H164,FORAGE2,8)), IF(HayMonth5=10,I164*J164*(VLOOKUP(H164,FORAGE2,12)+VLOOKUP(H164,FORAGE2,13)+VLOOKUP(H164,FORAGE2,14)+VLOOKUP(H164,FORAGE2,3)+VLOOKUP(H164,FORAGE2,4)+VLOOKUP(H164,FORAGE2,5)+VLOOKUP(H164,FORAGE2,6)+VLOOKUP(H164,FORAGE2,7)+VLOOKUP(H164,FORAGE2,8)+VLOOKUP(H164,FORAGE2,9)),I164*J164*(VLOOKUP(H164,FORAGE2,12)+VLOOKUP(H164,FORAGE2,13)+VLOOKUP(H164,FORAGE2,14)+VLOOKUP(H164,FORAGE2,3)+VLOOKUP(H164,FORAGE2,4)+VLOOKUP(H164,FORAGE2,5)+VLOOKUP(H164,FORAGE2,6)+VLOOKUP(H164,FORAGE2,7)+VLOOKUP(H164,FORAGE2,8)+VLOOKUP(H164,FORAGE2,9)+VLOOKUP(H164,FORAGE2,10)+VLOOKUP(H164,FORAGE2,11))))))))))","v":0},null,0,{"$f":"IF(H164=\"\",\"\",VLOOKUP(H164,ForageGrowthCurves!$A$6:$P$67,16,FALSE))","v":""}]
[null,null,null,null,null,null,{"$f":"Field6","v":0},{"$f":"Kind6","v":0},{"$f":"Acres6","v":0},{"$f":"Yield6","v":0},{"$f":"IF(HayMonth6=3,I165*J165*(VLOOKUP(H165,FORAGE2,12)+VLOOKUP(H165,FORAGE2,13)+VLOOKUP(H165,FORAGE2,14)),IF(HayMonth6=4,I165*J165*(VLOOKUP(H165,FORAGE2,12)+VLOOKUP(H165,FORAGE2,13)+VLOOKUP(H165,FORAGE2,14)+VLOOKUP(H165,FORAGE2,3)),IF(HayMonth6=5,I165*J165*(VLOOKUP(H165,FORAGE2,12)+VLOOKUP(H165,FORAGE2,13)+VLOOKUP(H165,FORAGE2,14)+VLOOKUP(H165,FORAGE2,3)+VLOOKUP(H165,FORAGE2,4)),IF(HayMonth6=6,I165*J165*(VLOOKUP(H165,FORAGE2,12)+VLOOKUP(H165,FORAGE2,13)+VLOOKUP(H165,FORAGE2,14)+VLOOKUP(H165,FORAGE2,3)+VLOOKUP(H165,FORAGE2,4)+VLOOKUP(H165,FORAGE2,5)),IF(HayMonth6=7,I165*J165*(VLOOKUP(H165,FORAGE2,12)+VLOOKUP(H165,FORAGE2,13)+VLOOKUP(H165,FORAGE2,14)+VLOOKUP(H165,FORAGE2,3)+VLOOKUP(H165,FORAGE2,4)+VLOOKUP(H165,FORAGE2,5)+VLOOKUP(H165,FORAGE2,6)), IF(HayMonth6=8,I165*J165*(VLOOKUP(H165,FORAGE2,12)+VLOOKUP(H165,FORAGE2,13)+VLOOKUP(H165,FORAGE2,14)+VLOOKUP(H165,FORAGE2,3)+VLOOKUP(H165,FORAGE2,4)+VLOOKUP(H165,FORAGE2,5)+VLOOKUP(H165,FORAGE2,6)+VLOOKUP(H165,FORAGE2,7)),IF(HayMonth6=9,I165*J165*(VLOOKUP(H165,FORAGE2,12)+VLOOKUP(H165,FORAGE2,13)+VLOOKUP(H165,FORAGE2,14)+VLOOKUP(H165,FORAGE2,3)+VLOOKUP(H165,FORAGE2,4)+VLOOKUP(H165,FORAGE2,5)+VLOOKUP(H165,FORAGE2,6)+VLOOKUP(H165,FORAGE2,7)+VLOOKUP(H165,FORAGE2,8)), IF(HayMonth6=10,I165*J165*(VLOOKUP(H165,FORAGE2,12)+VLOOKUP(H165,FORAGE2,13)+VLOOKUP(H165,FORAGE2,14)+VLOOKUP(H165,FORAGE2,3)+VLOOKUP(H165,FORAGE2,4)+VLOOKUP(H165,FORAGE2,5)+VLOOKUP(H165,FORAGE2,6)+VLOOKUP(H165,FORAGE2,7)+VLOOKUP(H165,FORAGE2,8)+VLOOKUP(H165,FORAGE2,9)),I165*J165*(VLOOKUP(H165,FORAGE2,12)+VLOOKUP(H165,FORAGE2,13)+VLOOKUP(H165,FORAGE2,14)+VLOOKUP(H165,FORAGE2,3)+VLOOKUP(H165,FORAGE2,4)+VLOOKUP(H165,FORAGE2,5)+VLOOKUP(H165,FORAGE2,6)+VLOOKUP(H165,FORAGE2,7)+VLOOKUP(H165,FORAGE2,8)+VLOOKUP(H165,FORAGE2,9)+VLOOKUP(H165,FORAGE2,10)+VLOOKUP(H165,FORAGE2,11))))))))))","v":0},null,0,{"$f":"IF(H165=\"\",\"\",VLOOKUP(H165,ForageGrowthCurves!$A$6:$P$67,16,FALSE))","v":""}]
[null,null,null,null,null,null,{"$f":"Field7","v":0},{"$f":"Kind7","v":0},{"$f":"Acres7","v":0},{"$f":"Yield7","v":0},{"$f":"IF(HayMonth7=3,I166*J166*(VLOOKUP(H166,FORAGE2,12)+VLOOKUP(H166,FORAGE2,13)+VLOOKUP(H166,FORAGE2,14)),IF(HayMonth7=4,I166*J166*(VLOOKUP(H166,FORAGE2,12)+VLOOKUP(H166,FORAGE2,13)+VLOOKUP(H166,FORAGE2,14)+VLOOKUP(H166,FORAGE2,3)),IF(HayMonth7=5,I166*J166*(VLOOKUP(H166,FORAGE2,12)+VLOOKUP(H166,FORAGE2,13)+VLOOKUP(H166,FORAGE2,14)+VLOOKUP(H166,FORAGE2,3)+VLOOKUP(H166,FORAGE2,4)),IF(HayMonth7=6,I166*J166*(VLOOKUP(H166,FORAGE2,12)+VLOOKUP(H166,FORAGE2,13)+VLOOKUP(H166,FORAGE2,14)+VLOOKUP(H166,FORAGE2,3)+VLOOKUP(H166,FORAGE2,4)+VLOOKUP(H166,FORAGE2,5)),IF(HayMonth7=7,I166*J166*(VLOOKUP(H166,FORAGE2,12)+VLOOKUP(H166,FORAGE2,13)+VLOOKUP(H166,FORAGE2,14)+VLOOKUP(H166,FORAGE2,3)+VLOOKUP(H166,FORAGE2,4)+VLOOKUP(H166,FORAGE2,5)+VLOOKUP(H166,FORAGE2,6)), IF(HayMonth7=8,I166*J166*(VLOOKUP(H166,FORAGE2,12)+VLOOKUP(H166,FORAGE2,13)+VLOOKUP(H166,FORAGE2,14)+VLOOKUP(H166,FORAGE2,3)+VLOOKUP(H166,FORAGE2,4)+VLOOKUP(H166,FORAGE2,5)+VLOOKUP(H166,FORAGE2,6)+VLOOKUP(H166,FORAGE2,7)),IF(HayMonth7=9,I166*J166*(VLOOKUP(H166,FORAGE2,12)+VLOOKUP(H166,FORAGE2,13)+VLOOKUP(H166,FORAGE2,14)+VLOOKUP(H166,FORAGE2,3)+VLOOKUP(H166,FORAGE2,4)+VLOOKUP(H166,FORAGE2,5)+VLOOKUP(H166,FORAGE2,6)+VLOOKUP(H166,FORAGE2,7)+VLOOKUP(H166,FORAGE2,8)), IF(HayMonth7=10,I166*J166*(VLOOKUP(H166,FORAGE2,12)+VLOOKUP(H166,FORAGE2,13)+VLOOKUP(H166,FORAGE2,14)+VLOOKUP(H166,FORAGE2,3)+VLOOKUP(H166,FORAGE2,4)+VLOOKUP(H166,FORAGE2,5)+VLOOKUP(H166,FORAGE2,6)+VLOOKUP(H166,FORAGE2,7)+VLOOKUP(H166,FORAGE2,8)+VLOOKUP(H166,FORAGE2,9)),I166*J166*(VLOOKUP(H166,FORAGE2,12)+VLOOKUP(H166,FORAGE2,13)+VLOOKUP(H166,FORAGE2,14)+VLOOKUP(H166,FORAGE2,3)+VLOOKUP(H166,FORAGE2,4)+VLOOKUP(H166,FORAGE2,5)+VLOOKUP(H166,FORAGE2,6)+VLOOKUP(H166,FORAGE2,7)+VLOOKUP(H166,FORAGE2,8)+VLOOKUP(H166,FORAGE2,9)+VLOOKUP(H166,FORAGE2,10)+VLOOKUP(H166,FORAGE2,11))))))))))","v":0},null,0,{"$f":"IF(H166=\"\",\"\",VLOOKUP(H166,ForageGrowthCurves!$A$6:$P$67,16,FALSE))","v":""}]
[null,null,null,null,null,null,{"$f":"Field8","v":0},{"$f":"Kind8","v":0},{"$f":"Acres8","v":0},{"$f":"Yield8","v":0},{"$f":"IF(HayMonth8=3,I167*J167*(VLOOKUP(H167,FORAGE2,12)+VLOOKUP(H167,FORAGE2,13)+VLOOKUP(H167,FORAGE2,14)),IF(HayMonth8=4,I167*J167*(VLOOKUP(H167,FORAGE2,12)+VLOOKUP(H167,FORAGE2,13)+VLOOKUP(H167,FORAGE2,14)+VLOOKUP(H167,FORAGE2,3)),IF(HayMonth8=5,I167*J167*(VLOOKUP(H167,FORAGE2,12)+VLOOKUP(H167,FORAGE2,13)+VLOOKUP(H167,FORAGE2,14)+VLOOKUP(H167,FORAGE2,3)+VLOOKUP(H167,FORAGE2,4)),IF(HayMonth8=6,I167*J167*(VLOOKUP(H167,FORAGE2,12)+VLOOKUP(H167,FORAGE2,13)+VLOOKUP(H167,FORAGE2,14)+VLOOKUP(H167,FORAGE2,3)+VLOOKUP(H167,FORAGE2,4)+VLOOKUP(H167,FORAGE2,5)),IF(HayMonth8=7,I167*J167*(VLOOKUP(H167,FORAGE2,12)+VLOOKUP(H167,FORAGE2,13)+VLOOKUP(H167,FORAGE2,14)+VLOOKUP(H167,FORAGE2,3)+VLOOKUP(H167,FORAGE2,4)+VLOOKUP(H167,FORAGE2,5)+VLOOKUP(H167,FORAGE2,6)), IF(HayMonth8=8,I167*J167*(VLOOKUP(H167,FORAGE2,12)+VLOOKUP(H167,FORAGE2,13)+VLOOKUP(H167,FORAGE2,14)+VLOOKUP(H167,FORAGE2,3)+VLOOKUP(H167,FORAGE2,4)+VLOOKUP(H167,FORAGE2,5)+VLOOKUP(H167,FORAGE2,6)+VLOOKUP(H167,FORAGE2,7)),IF(HayMonth8=9,I167*J167*(VLOOKUP(H167,FORAGE2,12)+VLOOKUP(H167,FORAGE2,13)+VLOOKUP(H167,FORAGE2,14)+VLOOKUP(H167,FORAGE2,3)+VLOOKUP(H167,FORAGE2,4)+VLOOKUP(H167,FORAGE2,5)+VLOOKUP(H167,FORAGE2,6)+VLOOKUP(H167,FORAGE2,7)+VLOOKUP(H167,FORAGE2,8)), IF(HayMonth8=10,I167*J167*(VLOOKUP(H167,FORAGE2,12)+VLOOKUP(H167,FORAGE2,13)+VLOOKUP(H167,FORAGE2,14)+VLOOKUP(H167,FORAGE2,3)+VLOOKUP(H167,FORAGE2,4)+VLOOKUP(H167,FORAGE2,5)+VLOOKUP(H167,FORAGE2,6)+VLOOKUP(H167,FORAGE2,7)+VLOOKUP(H167,FORAGE2,8)+VLOOKUP(H167,FORAGE2,9)),I167*J167*(VLOOKUP(H167,FORAGE2,12)+VLOOKUP(H167,FORAGE2,13)+VLOOKUP(H167,FORAGE2,14)+VLOOKUP(H167,FORAGE2,3)+VLOOKUP(H167,FORAGE2,4)+VLOOKUP(H167,FORAGE2,5)+VLOOKUP(H167,FORAGE2,6)+VLOOKUP(H167,FORAGE2,7)+VLOOKUP(H167,FORAGE2,8)+VLOOKUP(H167,FORAGE2,9)+VLOOKUP(H167,FORAGE2,10)+VLOOKUP(H167,FORAGE2,11))))))))))","v":0},null,0,{"$f":"IF(H167=\"\",\"\",VLOOKUP(H167,ForageGrowthCurves!$A$6:$P$67,16,FALSE))","v":""}]
[null,null,null,null,null,null,{"$f":"Field9","v":0},{"$f":"Kind9","v":0},{"$f":"Acres9","v":0},{"$f":"Yield9","v":0},{"$f":"IF(HayMonth9=3,I168*J168*(VLOOKUP(H168,FORAGE2,12)+VLOOKUP(H168,FORAGE2,13)+VLOOKUP(H168,FORAGE2,14)),IF(HayMonth9=4,I168*J168*(VLOOKUP(H168,FORAGE2,12)+VLOOKUP(H168,FORAGE2,13)+VLOOKUP(H168,FORAGE2,14)+VLOOKUP(H168,FORAGE2,3)),IF(HayMonth9=5,I168*J168*(VLOOKUP(H168,FORAGE2,12)+VLOOKUP(H168,FORAGE2,13)+VLOOKUP(H168,FORAGE2,14)+VLOOKUP(H168,FORAGE2,3)+VLOOKUP(H168,FORAGE2,4)),IF(HayMonth9=6,I168*J168*(VLOOKUP(H168,FORAGE2,12)+VLOOKUP(H168,FORAGE2,13)+VLOOKUP(H168,FORAGE2,14)+VLOOKUP(H168,FORAGE2,3)+VLOOKUP(H168,FORAGE2,4)+VLOOKUP(H168,FORAGE2,5)),IF(HayMonth9=7,I168*J168*(VLOOKUP(H168,FORAGE2,12)+VLOOKUP(H168,FORAGE2,13)+VLOOKUP(H168,FORAGE2,14)+VLOOKUP(H168,FORAGE2,3)+VLOOKUP(H168,FORAGE2,4)+VLOOKUP(H168,FORAGE2,5)+VLOOKUP(H168,FORAGE2,6)), IF(HayMonth9=8,I168*J168*(VLOOKUP(H168,FORAGE2,12)+VLOOKUP(H168,FORAGE2,13)+VLOOKUP(H168,FORAGE2,14)+VLOOKUP(H168,FORAGE2,3)+VLOOKUP(H168,FORAGE2,4)+VLOOKUP(H168,FORAGE2,5)+VLOOKUP(H168,FORAGE2,6)+VLOOKUP(H168,FORAGE2,7)),IF(HayMonth9=9,I168*J168*(VLOOKUP(H168,FORAGE2,12)+VLOOKUP(H168,FORAGE2,13)+VLOOKUP(H168,FORAGE2,14)+VLOOKUP(H168,FORAGE2,3)+VLOOKUP(H168,FORAGE2,4)+VLOOKUP(H168,FORAGE2,5)+VLOOKUP(H168,FORAGE2,6)+VLOOKUP(H168,FORAGE2,7)+VLOOKUP(H168,FORAGE2,8)), IF(HayMonth9=10,I168*J168*(VLOOKUP(H168,FORAGE2,12)+VLOOKUP(H168,FORAGE2,13)+VLOOKUP(H168,FORAGE2,14)+VLOOKUP(H168,FORAGE2,3)+VLOOKUP(H168,FORAGE2,4)+VLOOKUP(H168,FORAGE2,5)+VLOOKUP(H168,FORAGE2,6)+VLOOKUP(H168,FORAGE2,7)+VLOOKUP(H168,FORAGE2,8)+VLOOKUP(H168,FORAGE2,9)),I168*J168*(VLOOKUP(H168,FORAGE2,12)+VLOOKUP(H168,FORAGE2,13)+VLOOKUP(H168,FORAGE2,14)+VLOOKUP(H168,FORAGE2,3)+VLOOKUP(H168,FORAGE2,4)+VLOOKUP(H168,FORAGE2,5)+VLOOKUP(H168,FORAGE2,6)+VLOOKUP(H168,FORAGE2,7)+VLOOKUP(H168,FORAGE2,8)+VLOOKUP(H168,FORAGE2,9)+VLOOKUP(H168,FORAGE2,10)+VLOOKUP(H168,FORAGE2,11))))))))))","v":0},null,0,{"$f":"IF(H168=\"\",\"\",VLOOKUP(H168,ForageGrowthCurves!$A$6:$P$67,16,FALSE))","v":""}]
[null,null,null,null,null,null,{"$f":"Field10","v":0},{"$f":"Kind10","v":0},{"$f":"Acres10","v":0},{"$f":"Yield10","v":0},{"$f":"IF(HayMonth10=3,I169*J169*(VLOOKUP(H169,FORAGE2,12)+VLOOKUP(H169,FORAGE2,13)+VLOOKUP(H169,FORAGE2,14)),IF(HayMonth10=4,I169*J169*(VLOOKUP(H169,FORAGE2,12)+VLOOKUP(H169,FORAGE2,13)+VLOOKUP(H169,FORAGE2,14)+VLOOKUP(H169,FORAGE2,3)),IF(HayMonth10=5,I169*J169*(VLOOKUP(H169,FORAGE2,12)+VLOOKUP(H169,FORAGE2,13)+VLOOKUP(H169,FORAGE2,14)+VLOOKUP(H169,FORAGE2,3)+VLOOKUP(H169,FORAGE2,4)),IF(HayMonth10=6,I169*J169*(VLOOKUP(H169,FORAGE2,12)+VLOOKUP(H169,FORAGE2,13)+VLOOKUP(H169,FORAGE2,14)+VLOOKUP(H169,FORAGE2,3)+VLOOKUP(H169,FORAGE2,4)+VLOOKUP(H169,FORAGE2,5)),IF(HayMonth10=7,I169*J169*(VLOOKUP(H169,FORAGE2,12)+VLOOKUP(H169,FORAGE2,13)+VLOOKUP(H169,FORAGE2,14)+VLOOKUP(H169,FORAGE2,3)+VLOOKUP(H169,FORAGE2,4)+VLOOKUP(H169,FORAGE2,5)+VLOOKUP(H169,FORAGE2,6)), IF(HayMonth10=8,I169*J169*(VLOOKUP(H169,FORAGE2,12)+VLOOKUP(H169,FORAGE2,13)+VLOOKUP(H169,FORAGE2,14)+VLOOKUP(H169,FORAGE2,3)+VLOOKUP(H169,FORAGE2,4)+VLOOKUP(H169,FORAGE2,5)+VLOOKUP(H169,FORAGE2,6)+VLOOKUP(H169,FORAGE2,7)),IF(HayMonth10=9,I169*J169*(VLOOKUP(H169,FORAGE2,12)+VLOOKUP(H169,FORAGE2,13)+VLOOKUP(H169,FORAGE2,14)+VLOOKUP(H169,FORAGE2,3)+VLOOKUP(H169,FORAGE2,4)+VLOOKUP(H169,FORAGE2,5)+VLOOKUP(H169,FORAGE2,6)+VLOOKUP(H169,FORAGE2,7)+VLOOKUP(H169,FORAGE2,8)), IF(HayMonth10=10,I169*J169*(VLOOKUP(H169,FORAGE2,12)+VLOOKUP(H169,FORAGE2,13)+VLOOKUP(H169,FORAGE2,14)+VLOOKUP(H169,FORAGE2,3)+VLOOKUP(H169,FORAGE2,4)+VLOOKUP(H169,FORAGE2,5)+VLOOKUP(H169,FORAGE2,6)+VLOOKUP(H169,FORAGE2,7)+VLOOKUP(H169,FORAGE2,8)+VLOOKUP(H169,FORAGE2,9)),I169*J169*(VLOOKUP(H169,FORAGE2,12)+VLOOKUP(H169,FORAGE2,13)+VLOOKUP(H169,FORAGE2,14)+VLOOKUP(H169,FORAGE2,3)+VLOOKUP(H169,FORAGE2,4)+VLOOKUP(H169,FORAGE2,5)+VLOOKUP(H169,FORAGE2,6)+VLOOKUP(H169,FORAGE2,7)+VLOOKUP(H169,FORAGE2,8)+VLOOKUP(H169,FORAGE2,9)+VLOOKUP(H169,FORAGE2,10)+VLOOKUP(H169,FORAGE2,11))))))))))","v":0},null,0,{"$f":"IF(H169=\"\",\"\",VLOOKUP(H169,ForageGrowthCurves!$A$6:$P$67,16,FALSE))","v":""}]
[null,null,null,null,null,null,{"$f":"Field11","v":0},{"$f":"Kind11","v":0},{"$f":"Acres11","v":0},{"$f":"Yield11","v":0},{"$f":"IF(HayMonth11=3,I170*J170*(VLOOKUP(H170,FORAGE2,12)+VLOOKUP(H170,FORAGE2,13)+VLOOKUP(H170,FORAGE2,14)),IF(HayMonth11=4,I170*J170*(VLOOKUP(H170,FORAGE2,12)+VLOOKUP(H170,FORAGE2,13)+VLOOKUP(H170,FORAGE2,14)+VLOOKUP(H170,FORAGE2,3)),IF(HayMonth11=5,I170*J170*(VLOOKUP(H170,FORAGE2,12)+VLOOKUP(H170,FORAGE2,13)+VLOOKUP(H170,FORAGE2,14)+VLOOKUP(H170,FORAGE2,3)+VLOOKUP(H170,FORAGE2,4)),IF(HayMonth11=6,I170*J170*(VLOOKUP(H170,FORAGE2,12)+VLOOKUP(H170,FORAGE2,13)+VLOOKUP(H170,FORAGE2,14)+VLOOKUP(H170,FORAGE2,3)+VLOOKUP(H170,FORAGE2,4)+VLOOKUP(H170,FORAGE2,5)),IF(HayMonth11=7,I170*J170*(VLOOKUP(H170,FORAGE2,12)+VLOOKUP(H170,FORAGE2,13)+VLOOKUP(H170,FORAGE2,14)+VLOOKUP(H170,FORAGE2,3)+VLOOKUP(H170,FORAGE2,4)+VLOOKUP(H170,FORAGE2,5)+VLOOKUP(H170,FORAGE2,6)), IF(HayMonth11=8,I170*J170*(VLOOKUP(H170,FORAGE2,12)+VLOOKUP(H170,FORAGE2,13)+VLOOKUP(H170,FORAGE2,14)+VLOOKUP(H170,FORAGE2,3)+VLOOKUP(H170,FORAGE2,4)+VLOOKUP(H170,FORAGE2,5)+VLOOKUP(H170,FORAGE2,6)+VLOOKUP(H170,FORAGE2,7)),IF(HayMonth11=9,I170*J170*(VLOOKUP(H170,FORAGE2,12)+VLOOKUP(H170,FORAGE2,13)+VLOOKUP(H170,FORAGE2,14)+VLOOKUP(H170,FORAGE2,3)+VLOOKUP(H170,FORAGE2,4)+VLOOKUP(H170,FORAGE2,5)+VLOOKUP(H170,FORAGE2,6)+VLOOKUP(H170,FORAGE2,7)+VLOOKUP(H170,FORAGE2,8)), IF(HayMonth11=10,I170*J170*(VLOOKUP(H170,FORAGE2,12)+VLOOKUP(H170,FORAGE2,13)+VLOOKUP(H170,FORAGE2,14)+VLOOKUP(H170,FORAGE2,3)+VLOOKUP(H170,FORAGE2,4)+VLOOKUP(H170,FORAGE2,5)+VLOOKUP(H170,FORAGE2,6)+VLOOKUP(H170,FORAGE2,7)+VLOOKUP(H170,FORAGE2,8)+VLOOKUP(H170,FORAGE2,9)),I170*J170*(VLOOKUP(H170,FORAGE2,12)+VLOOKUP(H170,FORAGE2,13)+VLOOKUP(H170,FORAGE2,14)+VLOOKUP(H170,FORAGE2,3)+VLOOKUP(H170,FORAGE2,4)+VLOOKUP(H170,FORAGE2,5)+VLOOKUP(H170,FORAGE2,6)+VLOOKUP(H170,FORAGE2,7)+VLOOKUP(H170,FORAGE2,8)+VLOOKUP(H170,FORAGE2,9)+VLOOKUP(H170,FORAGE2,10)+VLOOKUP(H170,FORAGE2,11))))))))))","v":0},null,0,{"$f":"IF(H170=\"\",\"\",VLOOKUP(H170,ForageGrowthCurves!$A$6:$P$67,16,FALSE))","v":""}]
[null,null,null,null,null,null,{"$f":"Field12","v":0},{"$f":"Kind12","v":0},{"$f":"Acres12","v":0},{"$f":"Yield12","v":0},{"$f":"IF(HayMonth12=3,I171*J171*(VLOOKUP(H171,FORAGE2,12)+VLOOKUP(H171,FORAGE2,13)+VLOOKUP(H171,FORAGE2,14)),IF(HayMonth12=4,I171*J171*(VLOOKUP(H171,FORAGE2,12)+VLOOKUP(H171,FORAGE2,13)+VLOOKUP(H171,FORAGE2,14)+VLOOKUP(H171,FORAGE2,3)),IF(HayMonth12=5,I171*J171*(VLOOKUP(H171,FORAGE2,12)+VLOOKUP(H171,FORAGE2,13)+VLOOKUP(H171,FORAGE2,14)+VLOOKUP(H171,FORAGE2,3)+VLOOKUP(H171,FORAGE2,4)),IF(HayMonth12=6,I171*J171*(VLOOKUP(H171,FORAGE2,12)+VLOOKUP(H171,FORAGE2,13)+VLOOKUP(H171,FORAGE2,14)+VLOOKUP(H171,FORAGE2,3)+VLOOKUP(H171,FORAGE2,4)+VLOOKUP(H171,FORAGE2,5)),IF(HayMonth12=7,I171*J171*(VLOOKUP(H171,FORAGE2,12)+VLOOKUP(H171,FORAGE2,13)+VLOOKUP(H171,FORAGE2,14)+VLOOKUP(H171,FORAGE2,3)+VLOOKUP(H171,FORAGE2,4)+VLOOKUP(H171,FORAGE2,5)+VLOOKUP(H171,FORAGE2,6)), IF(HayMonth12=8,I171*J171*(VLOOKUP(H171,FORAGE2,12)+VLOOKUP(H171,FORAGE2,13)+VLOOKUP(H171,FORAGE2,14)+VLOOKUP(H171,FORAGE2,3)+VLOOKUP(H171,FORAGE2,4)+VLOOKUP(H171,FORAGE2,5)+VLOOKUP(H171,FORAGE2,6)+VLOOKUP(H171,FORAGE2,7)),IF(HayMonth12=9,I171*J171*(VLOOKUP(H171,FORAGE2,12)+VLOOKUP(H171,FORAGE2,13)+VLOOKUP(H171,FORAGE2,14)+VLOOKUP(H171,FORAGE2,3)+VLOOKUP(H171,FORAGE2,4)+VLOOKUP(H171,FORAGE2,5)+VLOOKUP(H171,FORAGE2,6)+VLOOKUP(H171,FORAGE2,7)+VLOOKUP(H171,FORAGE2,8)), IF(HayMonth12=10,I171*J171*(VLOOKUP(H171,FORAGE2,12)+VLOOKUP(H171,FORAGE2,13)+VLOOKUP(H171,FORAGE2,14)+VLOOKUP(H171,FORAGE2,3)+VLOOKUP(H171,FORAGE2,4)+VLOOKUP(H171,FORAGE2,5)+VLOOKUP(H171,FORAGE2,6)+VLOOKUP(H171,FORAGE2,7)+VLOOKUP(H171,FORAGE2,8)+VLOOKUP(H171,FORAGE2,9)),I171*J171*(VLOOKUP(H171,FORAGE2,12)+VLOOKUP(H171,FORAGE2,13)+VLOOKUP(H171,FORAGE2,14)+VLOOKUP(H171,FORAGE2,3)+VLOOKUP(H171,FORAGE2,4)+VLOOKUP(H171,FORAGE2,5)+VLOOKUP(H171,FORAGE2,6)+VLOOKUP(H171,FORAGE2,7)+VLOOKUP(H171,FORAGE2,8)+VLOOKUP(H171,FORAGE2,9)+VLOOKUP(H171,FORAGE2,10)+VLOOKUP(H171,FORAGE2,11))))))))))","v":0},null,0,{"$f":"IF(H171=\"\",\"\",VLOOKUP(H171,ForageGrowthCurves!$A$6:$P$67,16,FALSE))","v":""}]
[null,null,null,null,null,null,{"$f":"Field13","v":0},{"$f":"Kind13","v":0},{"$f":"Acres13","v":0},{"$f":"Yield13","v":0},{"$f":"IF(HayMonth13=3,I172*J172*(VLOOKUP(H172,FORAGE2,12)+VLOOKUP(H172,FORAGE2,13)+VLOOKUP(H172,FORAGE2,14)),IF(HayMonth13=4,I172*J172*(VLOOKUP(H172,FORAGE2,12)+VLOOKUP(H172,FORAGE2,13)+VLOOKUP(H172,FORAGE2,14)+VLOOKUP(H172,FORAGE2,3)),IF(HayMonth13=5,I172*J172*(VLOOKUP(H172,FORAGE2,12)+VLOOKUP(H172,FORAGE2,13)+VLOOKUP(H172,FORAGE2,14)+VLOOKUP(H172,FORAGE2,3)+VLOOKUP(H172,FORAGE2,4)),IF(HayMonth13=6,I172*J172*(VLOOKUP(H172,FORAGE2,12)+VLOOKUP(H172,FORAGE2,13)+VLOOKUP(H172,FORAGE2,14)+VLOOKUP(H172,FORAGE2,3)+VLOOKUP(H172,FORAGE2,4)+VLOOKUP(H172,FORAGE2,5)),IF(HayMonth13=7,I172*J172*(VLOOKUP(H172,FORAGE2,12)+VLOOKUP(H172,FORAGE2,13)+VLOOKUP(H172,FORAGE2,14)+VLOOKUP(H172,FORAGE2,3)+VLOOKUP(H172,FORAGE2,4)+VLOOKUP(H172,FORAGE2,5)+VLOOKUP(H172,FORAGE2,6)), IF(HayMonth13=8,I172*J172*(VLOOKUP(H172,FORAGE2,12)+VLOOKUP(H172,FORAGE2,13)+VLOOKUP(H172,FORAGE2,14)+VLOOKUP(H172,FORAGE2,3)+VLOOKUP(H172,FORAGE2,4)+VLOOKUP(H172,FORAGE2,5)+VLOOKUP(H172,FORAGE2,6)+VLOOKUP(H172,FORAGE2,7)),IF(HayMonth13=9,I172*J172*(VLOOKUP(H172,FORAGE2,12)+VLOOKUP(H172,FORAGE2,13)+VLOOKUP(H172,FORAGE2,14)+VLOOKUP(H172,FORAGE2,3)+VLOOKUP(H172,FORAGE2,4)+VLOOKUP(H172,FORAGE2,5)+VLOOKUP(H172,FORAGE2,6)+VLOOKUP(H172,FORAGE2,7)+VLOOKUP(H172,FORAGE2,8)), IF(HayMonth13=10,I172*J172*(VLOOKUP(H172,FORAGE2,12)+VLOOKUP(H172,FORAGE2,13)+VLOOKUP(H172,FORAGE2,14)+VLOOKUP(H172,FORAGE2,3)+VLOOKUP(H172,FORAGE2,4)+VLOOKUP(H172,FORAGE2,5)+VLOOKUP(H172,FORAGE2,6)+VLOOKUP(H172,FORAGE2,7)+VLOOKUP(H172,FORAGE2,8)+VLOOKUP(H172,FORAGE2,9)),I172*J172*(VLOOKUP(H172,FORAGE2,12)+VLOOKUP(H172,FORAGE2,13)+VLOOKUP(H172,FORAGE2,14)+VLOOKUP(H172,FORAGE2,3)+VLOOKUP(H172,FORAGE2,4)+VLOOKUP(H172,FORAGE2,5)+VLOOKUP(H172,FORAGE2,6)+VLOOKUP(H172,FORAGE2,7)+VLOOKUP(H172,FORAGE2,8)+VLOOKUP(H172,FORAGE2,9)+VLOOKUP(H172,FORAGE2,10)+VLOOKUP(H172,FORAGE2,11))))))))))","v":0},null,0,{"$f":"IF(H172=\"\",\"\",VLOOKUP(H172,ForageGrowthCurves!$A$6:$P$67,16,FALSE))","v":""}]
[null,null,null,null,null,null,{"$f":"Field14","v":0},{"$f":"Kind14","v":0},{"$f":"Acres14","v":0},{"$f":"Yield14","v":0},{"$f":"IF(HayMonth14=3,I173*J173*(VLOOKUP(H173,FORAGE2,12)+VLOOKUP(H173,FORAGE2,13)+VLOOKUP(H173,FORAGE2,14)),IF(HayMonth14=4,I173*J173*(VLOOKUP(H173,FORAGE2,12)+VLOOKUP(H173,FORAGE2,13)+VLOOKUP(H173,FORAGE2,14)+VLOOKUP(H173,FORAGE2,3)),IF(HayMonth14=5,I173*J173*(VLOOKUP(H173,FORAGE2,12)+VLOOKUP(H173,FORAGE2,13)+VLOOKUP(H173,FORAGE2,14)+VLOOKUP(H173,FORAGE2,3)+VLOOKUP(H173,FORAGE2,4)),IF(HayMonth14=6,I173*J173*(VLOOKUP(H173,FORAGE2,12)+VLOOKUP(H173,FORAGE2,13)+VLOOKUP(H173,FORAGE2,14)+VLOOKUP(H173,FORAGE2,3)+VLOOKUP(H173,FORAGE2,4)+VLOOKUP(H173,FORAGE2,5)),IF(HayMonth14=7,I173*J173*(VLOOKUP(H173,FORAGE2,12)+VLOOKUP(H173,FORAGE2,13)+VLOOKUP(H173,FORAGE2,14)+VLOOKUP(H173,FORAGE2,3)+VLOOKUP(H173,FORAGE2,4)+VLOOKUP(H173,FORAGE2,5)+VLOOKUP(H173,FORAGE2,6)), IF(HayMonth14=8,I173*J173*(VLOOKUP(H173,FORAGE2,12)+VLOOKUP(H173,FORAGE2,13)+VLOOKUP(H173,FORAGE2,14)+VLOOKUP(H173,FORAGE2,3)+VLOOKUP(H173,FORAGE2,4)+VLOOKUP(H173,FORAGE2,5)+VLOOKUP(H173,FORAGE2,6)+VLOOKUP(H173,FORAGE2,7)),IF(HayMonth14=9,I173*J173*(VLOOKUP(H173,FORAGE2,12)+VLOOKUP(H173,FORAGE2,13)+VLOOKUP(H173,FORAGE2,14)+VLOOKUP(H173,FORAGE2,3)+VLOOKUP(H173,FORAGE2,4)+VLOOKUP(H173,FORAGE2,5)+VLOOKUP(H173,FORAGE2,6)+VLOOKUP(H173,FORAGE2,7)+VLOOKUP(H173,FORAGE2,8)), IF(HayMonth14=10,I173*J173*(VLOOKUP(H173,FORAGE2,12)+VLOOKUP(H173,FORAGE2,13)+VLOOKUP(H173,FORAGE2,14)+VLOOKUP(H173,FORAGE2,3)+VLOOKUP(H173,FORAGE2,4)+VLOOKUP(H173,FORAGE2,5)+VLOOKUP(H173,FORAGE2,6)+VLOOKUP(H173,FORAGE2,7)+VLOOKUP(H173,FORAGE2,8)+VLOOKUP(H173,FORAGE2,9)),I173*J173*(VLOOKUP(H173,FORAGE2,12)+VLOOKUP(H173,FORAGE2,13)+VLOOKUP(H173,FORAGE2,14)+VLOOKUP(H173,FORAGE2,3)+VLOOKUP(H173,FORAGE2,4)+VLOOKUP(H173,FORAGE2,5)+VLOOKUP(H173,FORAGE2,6)+VLOOKUP(H173,FORAGE2,7)+VLOOKUP(H173,FORAGE2,8)+VLOOKUP(H173,FORAGE2,9)+VLOOKUP(H173,FORAGE2,10)+VLOOKUP(H173,FORAGE2,11))))))))))","v":0},null,0,{"$f":"IF(H173=\"\",\"\",VLOOKUP(H173,ForageGrowthCurves!$A$6:$P$67,16,FALSE))","v":""}]
[null,null,null,null,null,null,{"$f":"Field15","v":0},{"$f":"Kind15","v":0},{"$f":"Acres15","v":0},{"$f":"Yield15","v":0},{"$f":"IF(HayMonth15=3,I174*J174*(VLOOKUP(H174,FORAGE2,12)+VLOOKUP(H174,FORAGE2,13)+VLOOKUP(H174,FORAGE2,14)),IF(HayMonth15=4,I174*J174*(VLOOKUP(H174,FORAGE2,12)+VLOOKUP(H174,FORAGE2,13)+VLOOKUP(H174,FORAGE2,14)+VLOOKUP(H174,FORAGE2,3)),IF(HayMonth15=5,I174*J174*(VLOOKUP(H174,FORAGE2,12)+VLOOKUP(H174,FORAGE2,13)+VLOOKUP(H174,FORAGE2,14)+VLOOKUP(H174,FORAGE2,3)+VLOOKUP(H174,FORAGE2,4)),IF(HayMonth15=6,I174*J174*(VLOOKUP(H174,FORAGE2,12)+VLOOKUP(H174,FORAGE2,13)+VLOOKUP(H174,FORAGE2,14)+VLOOKUP(H174,FORAGE2,3)+VLOOKUP(H174,FORAGE2,4)+VLOOKUP(H174,FORAGE2,5)),IF(HayMonth15=7,I174*J174*(VLOOKUP(H174,FORAGE2,12)+VLOOKUP(H174,FORAGE2,13)+VLOOKUP(H174,FORAGE2,14)+VLOOKUP(H174,FORAGE2,3)+VLOOKUP(H174,FORAGE2,4)+VLOOKUP(H174,FORAGE2,5)+VLOOKUP(H174,FORAGE2,6)), IF(HayMonth15=8,I174*J174*(VLOOKUP(H174,FORAGE2,12)+VLOOKUP(H174,FORAGE2,13)+VLOOKUP(H174,FORAGE2,14)+VLOOKUP(H174,FORAGE2,3)+VLOOKUP(H174,FORAGE2,4)+VLOOKUP(H174,FORAGE2,5)+VLOOKUP(H174,FORAGE2,6)+VLOOKUP(H174,FORAGE2,7)),IF(HayMonth15=9,I174*J174*(VLOOKUP(H174,FORAGE2,12)+VLOOKUP(H174,FORAGE2,13)+VLOOKUP(H174,FORAGE2,14)+VLOOKUP(H174,FORAGE2,3)+VLOOKUP(H174,FORAGE2,4)+VLOOKUP(H174,FORAGE2,5)+VLOOKUP(H174,FORAGE2,6)+VLOOKUP(H174,FORAGE2,7)+VLOOKUP(H174,FORAGE2,8)), IF(HayMonth15=10,I174*J174*(VLOOKUP(H174,FORAGE2,12)+VLOOKUP(H174,FORAGE2,13)+VLOOKUP(H174,FORAGE2,14)+VLOOKUP(H174,FORAGE2,3)+VLOOKUP(H174,FORAGE2,4)+VLOOKUP(H174,FORAGE2,5)+VLOOKUP(H174,FORAGE2,6)+VLOOKUP(H174,FORAGE2,7)+VLOOKUP(H174,FORAGE2,8)+VLOOKUP(H174,FORAGE2,9)),I174*J174*(VLOOKUP(H174,FORAGE2,12)+VLOOKUP(H174,FORAGE2,13)+VLOOKUP(H174,FORAGE2,14)+VLOOKUP(H174,FORAGE2,3)+VLOOKUP(H174,FORAGE2,4)+VLOOKUP(H174,FORAGE2,5)+VLOOKUP(H174,FORAGE2,6)+VLOOKUP(H174,FORAGE2,7)+VLOOKUP(H174,FORAGE2,8)+VLOOKUP(H174,FORAGE2,9)+VLOOKUP(H174,FORAGE2,10)+VLOOKUP(H174,FORAGE2,11))))))))))","v":0},null,0,{"$f":"IF(H174=\"\",\"\",VLOOKUP(H174,ForageGrowthCurves!$A$6:$P$67,16,FALSE))","v":""}]
[null,null,null,null,null,null,{"$f":"Field16","v":0},{"$f":"Kind16","v":0},{"$f":"Acres16","v":0},{"$f":"Yield16","v":0},{"$f":"IF(HayMonth16=3,I175*J175*(VLOOKUP(H175,FORAGE2,12)+VLOOKUP(H175,FORAGE2,13)+VLOOKUP(H175,FORAGE2,14)),IF(HayMonth16=4,I175*J175*(VLOOKUP(H175,FORAGE2,12)+VLOOKUP(H175,FORAGE2,13)+VLOOKUP(H175,FORAGE2,14)+VLOOKUP(H175,FORAGE2,3)),IF(HayMonth16=5,I175*J175*(VLOOKUP(H175,FORAGE2,12)+VLOOKUP(H175,FORAGE2,13)+VLOOKUP(H175,FORAGE2,14)+VLOOKUP(H175,FORAGE2,3)+VLOOKUP(H175,FORAGE2,4)),IF(HayMonth16=6,I175*J175*(VLOOKUP(H175,FORAGE2,12)+VLOOKUP(H175,FORAGE2,13)+VLOOKUP(H175,FORAGE2,14)+VLOOKUP(H175,FORAGE2,3)+VLOOKUP(H175,FORAGE2,4)+VLOOKUP(H175,FORAGE2,5)),IF(HayMonth16=7,I175*J175*(VLOOKUP(H175,FORAGE2,12)+VLOOKUP(H175,FORAGE2,13)+VLOOKUP(H175,FORAGE2,14)+VLOOKUP(H175,FORAGE2,3)+VLOOKUP(H175,FORAGE2,4)+VLOOKUP(H175,FORAGE2,5)+VLOOKUP(H175,FORAGE2,6)), IF(HayMonth16=8,I175*J175*(VLOOKUP(H175,FORAGE2,12)+VLOOKUP(H175,FORAGE2,13)+VLOOKUP(H175,FORAGE2,14)+VLOOKUP(H175,FORAGE2,3)+VLOOKUP(H175,FORAGE2,4)+VLOOKUP(H175,FORAGE2,5)+VLOOKUP(H175,FORAGE2,6)+VLOOKUP(H175,FORAGE2,7)),IF(HayMonth16=9,I175*J175*(VLOOKUP(H175,FORAGE2,12)+VLOOKUP(H175,FORAGE2,13)+VLOOKUP(H175,FORAGE2,14)+VLOOKUP(H175,FORAGE2,3)+VLOOKUP(H175,FORAGE2,4)+VLOOKUP(H175,FORAGE2,5)+VLOOKUP(H175,FORAGE2,6)+VLOOKUP(H175,FORAGE2,7)+VLOOKUP(H175,FORAGE2,8)), IF(HayMonth16=10,I175*J175*(VLOOKUP(H175,FORAGE2,12)+VLOOKUP(H175,FORAGE2,13)+VLOOKUP(H175,FORAGE2,14)+VLOOKUP(H175,FORAGE2,3)+VLOOKUP(H175,FORAGE2,4)+VLOOKUP(H175,FORAGE2,5)+VLOOKUP(H175,FORAGE2,6)+VLOOKUP(H175,FORAGE2,7)+VLOOKUP(H175,FORAGE2,8)+VLOOKUP(H175,FORAGE2,9)),I175*J175*(VLOOKUP(H175,FORAGE2,12)+VLOOKUP(H175,FORAGE2,13)+VLOOKUP(H175,FORAGE2,14)+VLOOKUP(H175,FORAGE2,3)+VLOOKUP(H175,FORAGE2,4)+VLOOKUP(H175,FORAGE2,5)+VLOOKUP(H175,FORAGE2,6)+VLOOKUP(H175,FORAGE2,7)+VLOOKUP(H175,FORAGE2,8)+VLOOKUP(H175,FORAGE2,9)+VLOOKUP(H175,FORAGE2,10)+VLOOKUP(H175,FORAGE2,11))))))))))","v":0},null,0,{"$f":"IF(H175=\"\",\"\",VLOOKUP(H175,ForageGrowthCurves!$A$6:$P$67,16,FALSE))","v":""}]
[null,null,null,null,null,null,{"$f":"Field17","v":0},{"$f":"Kind17","v":0},{"$f":"Acres17","v":0},{"$f":"Yield17","v":0},{"$f":"IF(HayMonth17=3,I176*J176*(VLOOKUP(H176,FORAGE2,12)+VLOOKUP(H176,FORAGE2,13)+VLOOKUP(H176,FORAGE2,14)),IF(HayMonth17=4,I176*J176*(VLOOKUP(H176,FORAGE2,12)+VLOOKUP(H176,FORAGE2,13)+VLOOKUP(H176,FORAGE2,14)+VLOOKUP(H176,FORAGE2,3)),IF(HayMonth17=5,I176*J176*(VLOOKUP(H176,FORAGE2,12)+VLOOKUP(H176,FORAGE2,13)+VLOOKUP(H176,FORAGE2,14)+VLOOKUP(H176,FORAGE2,3)+VLOOKUP(H176,FORAGE2,4)),IF(HayMonth17=6,I176*J176*(VLOOKUP(H176,FORAGE2,12)+VLOOKUP(H176,FORAGE2,13)+VLOOKUP(H176,FORAGE2,14)+VLOOKUP(H176,FORAGE2,3)+VLOOKUP(H176,FORAGE2,4)+VLOOKUP(H176,FORAGE2,5)),IF(HayMonth17=7,I176*J176*(VLOOKUP(H176,FORAGE2,12)+VLOOKUP(H176,FORAGE2,13)+VLOOKUP(H176,FORAGE2,14)+VLOOKUP(H176,FORAGE2,3)+VLOOKUP(H176,FORAGE2,4)+VLOOKUP(H176,FORAGE2,5)+VLOOKUP(H176,FORAGE2,6)), IF(HayMonth17=8,I176*J176*(VLOOKUP(H176,FORAGE2,12)+VLOOKUP(H176,FORAGE2,13)+VLOOKUP(H176,FORAGE2,14)+VLOOKUP(H176,FORAGE2,3)+VLOOKUP(H176,FORAGE2,4)+VLOOKUP(H176,FORAGE2,5)+VLOOKUP(H176,FORAGE2,6)+VLOOKUP(H176,FORAGE2,7)),IF(HayMonth17=9,I176*J176*(VLOOKUP(H176,FORAGE2,12)+VLOOKUP(H176,FORAGE2,13)+VLOOKUP(H176,FORAGE2,14)+VLOOKUP(H176,FORAGE2,3)+VLOOKUP(H176,FORAGE2,4)+VLOOKUP(H176,FORAGE2,5)+VLOOKUP(H176,FORAGE2,6)+VLOOKUP(H176,FORAGE2,7)+VLOOKUP(H176,FORAGE2,8)), IF(HayMonth17=10,I176*J176*(VLOOKUP(H176,FORAGE2,12)+VLOOKUP(H176,FORAGE2,13)+VLOOKUP(H176,FORAGE2,14)+VLOOKUP(H176,FORAGE2,3)+VLOOKUP(H176,FORAGE2,4)+VLOOKUP(H176,FORAGE2,5)+VLOOKUP(H176,FORAGE2,6)+VLOOKUP(H176,FORAGE2,7)+VLOOKUP(H176,FORAGE2,8)+VLOOKUP(H176,FORAGE2,9)),I176*J176*(VLOOKUP(H176,FORAGE2,12)+VLOOKUP(H176,FORAGE2,13)+VLOOKUP(H176,FORAGE2,14)+VLOOKUP(H176,FORAGE2,3)+VLOOKUP(H176,FORAGE2,4)+VLOOKUP(H176,FORAGE2,5)+VLOOKUP(H176,FORAGE2,6)+VLOOKUP(H176,FORAGE2,7)+VLOOKUP(H176,FORAGE2,8)+VLOOKUP(H176,FORAGE2,9)+VLOOKUP(H176,FORAGE2,10)+VLOOKUP(H176,FORAGE2,11))))))))))","v":0},null,0,{"$f":"IF(H176=\"\",\"\",VLOOKUP(H176,ForageGrowthCurves!$A$6:$P$67,16,FALSE))","v":""}]
[null,null,null,null,null,null,{"$f":"Field18","v":0},{"$f":"Kind18","v":0},{"$f":"Acres18","v":0},{"$f":"Yield18","v":0},{"$f":"IF(HayMonth18=3,I177*J177*(VLOOKUP(H177,FORAGE2,12)+VLOOKUP(H177,FORAGE2,13)+VLOOKUP(H177,FORAGE2,14)),IF(HayMonth18=4,I177*J177*(VLOOKUP(H177,FORAGE2,12)+VLOOKUP(H177,FORAGE2,13)+VLOOKUP(H177,FORAGE2,14)+VLOOKUP(H177,FORAGE2,3)),IF(HayMonth18=5,I177*J177*(VLOOKUP(H177,FORAGE2,12)+VLOOKUP(H177,FORAGE2,13)+VLOOKUP(H177,FORAGE2,14)+VLOOKUP(H177,FORAGE2,3)+VLOOKUP(H177,FORAGE2,4)),IF(HayMonth18=6,I177*J177*(VLOOKUP(H177,FORAGE2,12)+VLOOKUP(H177,FORAGE2,13)+VLOOKUP(H177,FORAGE2,14)+VLOOKUP(H177,FORAGE2,3)+VLOOKUP(H177,FORAGE2,4)+VLOOKUP(H177,FORAGE2,5)),IF(HayMonth18=7,I177*J177*(VLOOKUP(H177,FORAGE2,12)+VLOOKUP(H177,FORAGE2,13)+VLOOKUP(H177,FORAGE2,14)+VLOOKUP(H177,FORAGE2,3)+VLOOKUP(H177,FORAGE2,4)+VLOOKUP(H177,FORAGE2,5)+VLOOKUP(H177,FORAGE2,6)), IF(HayMonth18=8,I177*J177*(VLOOKUP(H177,FORAGE2,12)+VLOOKUP(H177,FORAGE2,13)+VLOOKUP(H177,FORAGE2,14)+VLOOKUP(H177,FORAGE2,3)+VLOOKUP(H177,FORAGE2,4)+VLOOKUP(H177,FORAGE2,5)+VLOOKUP(H177,FORAGE2,6)+VLOOKUP(H177,FORAGE2,7)),IF(HayMonth18=9,I177*J177*(VLOOKUP(H177,FORAGE2,12)+VLOOKUP(H177,FORAGE2,13)+VLOOKUP(H177,FORAGE2,14)+VLOOKUP(H177,FORAGE2,3)+VLOOKUP(H177,FORAGE2,4)+VLOOKUP(H177,FORAGE2,5)+VLOOKUP(H177,FORAGE2,6)+VLOOKUP(H177,FORAGE2,7)+VLOOKUP(H177,FORAGE2,8)), IF(HayMonth18=10,I177*J177*(VLOOKUP(H177,FORAGE2,12)+VLOOKUP(H177,FORAGE2,13)+VLOOKUP(H177,FORAGE2,14)+VLOOKUP(H177,FORAGE2,3)+VLOOKUP(H177,FORAGE2,4)+VLOOKUP(H177,FORAGE2,5)+VLOOKUP(H177,FORAGE2,6)+VLOOKUP(H177,FORAGE2,7)+VLOOKUP(H177,FORAGE2,8)+VLOOKUP(H177,FORAGE2,9)),I177*J177*(VLOOKUP(H177,FORAGE2,12)+VLOOKUP(H177,FORAGE2,13)+VLOOKUP(H177,FORAGE2,14)+VLOOKUP(H177,FORAGE2,3)+VLOOKUP(H177,FORAGE2,4)+VLOOKUP(H177,FORAGE2,5)+VLOOKUP(H177,FORAGE2,6)+VLOOKUP(H177,FORAGE2,7)+VLOOKUP(H177,FORAGE2,8)+VLOOKUP(H177,FORAGE2,9)+VLOOKUP(H177,FORAGE2,10)+VLOOKUP(H177,FORAGE2,11))))))))))","v":0},null,0,{"$f":"IF(H177=\"\",\"\",VLOOKUP(H177,ForageGrowthCurves!$A$6:$P$67,16,FALSE))","v":""}]
[null,null,null,null,null,null,{"$f":"Field19","v":0},{"$f":"Kind19","v":0},{"$f":"Acres19","v":0},{"$f":"Yield19","v":0},{"$f":"IF(HayMonth19=3,I178*J178*(VLOOKUP(H178,FORAGE2,12)+VLOOKUP(H178,FORAGE2,13)+VLOOKUP(H178,FORAGE2,14)),IF(HayMonth19=4,I178*J178*(VLOOKUP(H178,FORAGE2,12)+VLOOKUP(H178,FORAGE2,13)+VLOOKUP(H178,FORAGE2,14)+VLOOKUP(H178,FORAGE2,3)),IF(HayMonth19=5,I178*J178*(VLOOKUP(H178,FORAGE2,12)+VLOOKUP(H178,FORAGE2,13)+VLOOKUP(H178,FORAGE2,14)+VLOOKUP(H178,FORAGE2,3)+VLOOKUP(H178,FORAGE2,4)),IF(HayMonth19=6,I178*J178*(VLOOKUP(H178,FORAGE2,12)+VLOOKUP(H178,FORAGE2,13)+VLOOKUP(H178,FORAGE2,14)+VLOOKUP(H178,FORAGE2,3)+VLOOKUP(H178,FORAGE2,4)+VLOOKUP(H178,FORAGE2,5)),IF(HayMonth19=7,I178*J178*(VLOOKUP(H178,FORAGE2,12)+VLOOKUP(H178,FORAGE2,13)+VLOOKUP(H178,FORAGE2,14)+VLOOKUP(H178,FORAGE2,3)+VLOOKUP(H178,FORAGE2,4)+VLOOKUP(H178,FORAGE2,5)+VLOOKUP(H178,FORAGE2,6)), IF(HayMonth19=8,I178*J178*(VLOOKUP(H178,FORAGE2,12)+VLOOKUP(H178,FORAGE2,13)+VLOOKUP(H178,FORAGE2,14)+VLOOKUP(H178,FORAGE2,3)+VLOOKUP(H178,FORAGE2,4)+VLOOKUP(H178,FORAGE2,5)+VLOOKUP(H178,FORAGE2,6)+VLOOKUP(H178,FORAGE2,7)),IF(HayMonth19=9,I178*J178*(VLOOKUP(H178,FORAGE2,12)+VLOOKUP(H178,FORAGE2,13)+VLOOKUP(H178,FORAGE2,14)+VLOOKUP(H178,FORAGE2,3)+VLOOKUP(H178,FORAGE2,4)+VLOOKUP(H178,FORAGE2,5)+VLOOKUP(H178,FORAGE2,6)+VLOOKUP(H178,FORAGE2,7)+VLOOKUP(H178,FORAGE2,8)), IF(HayMonth19=10,I178*J178*(VLOOKUP(H178,FORAGE2,12)+VLOOKUP(H178,FORAGE2,13)+VLOOKUP(H178,FORAGE2,14)+VLOOKUP(H178,FORAGE2,3)+VLOOKUP(H178,FORAGE2,4)+VLOOKUP(H178,FORAGE2,5)+VLOOKUP(H178,FORAGE2,6)+VLOOKUP(H178,FORAGE2,7)+VLOOKUP(H178,FORAGE2,8)+VLOOKUP(H178,FORAGE2,9)),I178*J178*(VLOOKUP(H178,FORAGE2,12)+VLOOKUP(H178,FORAGE2,13)+VLOOKUP(H178,FORAGE2,14)+VLOOKUP(H178,FORAGE2,3)+VLOOKUP(H178,FORAGE2,4)+VLOOKUP(H178,FORAGE2,5)+VLOOKUP(H178,FORAGE2,6)+VLOOKUP(H178,FORAGE2,7)+VLOOKUP(H178,FORAGE2,8)+VLOOKUP(H178,FORAGE2,9)+VLOOKUP(H178,FORAGE2,10)+VLOOKUP(H178,FORAGE2,11))))))))))","v":0},null,0,{"$f":"IF(H178=\"\",\"\",VLOOKUP(H178,ForageGrowthCurves!$A$6:$P$67,16,FALSE))","v":""}]
[null,null,null,null,null,null,{"$f":"Field20","v":0},{"$f":"Kind20","v":0},{"$f":"Acres20","v":0},{"$f":"Yield20","v":0},{"$f":"IF(HayMonth20=3,I179*J179*(VLOOKUP(H179,FORAGE2,12)+VLOOKUP(H179,FORAGE2,13)+VLOOKUP(H179,FORAGE2,14)),IF(HayMonth20=4,I179*J179*(VLOOKUP(H179,FORAGE2,12)+VLOOKUP(H179,FORAGE2,13)+VLOOKUP(H179,FORAGE2,14)+VLOOKUP(H179,FORAGE2,3)),IF(HayMonth20=5,I179*J179*(VLOOKUP(H179,FORAGE2,12)+VLOOKUP(H179,FORAGE2,13)+VLOOKUP(H179,FORAGE2,14)+VLOOKUP(H179,FORAGE2,3)+VLOOKUP(H179,FORAGE2,4)),IF(HayMonth20=6,I179*J179*(VLOOKUP(H179,FORAGE2,12)+VLOOKUP(H179,FORAGE2,13)+VLOOKUP(H179,FORAGE2,14)+VLOOKUP(H179,FORAGE2,3)+VLOOKUP(H179,FORAGE2,4)+VLOOKUP(H179,FORAGE2,5)),IF(HayMonth20=7,I179*J179*(VLOOKUP(H179,FORAGE2,12)+VLOOKUP(H179,FORAGE2,13)+VLOOKUP(H179,FORAGE2,14)+VLOOKUP(H179,FORAGE2,3)+VLOOKUP(H179,FORAGE2,4)+VLOOKUP(H179,FORAGE2,5)+VLOOKUP(H179,FORAGE2,6)), IF(HayMonth20=8,I179*J179*(VLOOKUP(H179,FORAGE2,12)+VLOOKUP(H179,FORAGE2,13)+VLOOKUP(H179,FORAGE2,14)+VLOOKUP(H179,FORAGE2,3)+VLOOKUP(H179,FORAGE2,4)+VLOOKUP(H179,FORAGE2,5)+VLOOKUP(H179,FORAGE2,6)+VLOOKUP(H179,FORAGE2,7)),IF(HayMonth20=9,I179*J179*(VLOOKUP(H179,FORAGE2,12)+VLOOKUP(H179,FORAGE2,13)+VLOOKUP(H179,FORAGE2,14)+VLOOKUP(H179,FORAGE2,3)+VLOOKUP(H179,FORAGE2,4)+VLOOKUP(H179,FORAGE2,5)+VLOOKUP(H179,FORAGE2,6)+VLOOKUP(H179,FORAGE2,7)+VLOOKUP(H179,FORAGE2,8)), IF(HayMonth20=10,I179*J179*(VLOOKUP(H179,FORAGE2,12)+VLOOKUP(H179,FORAGE2,13)+VLOOKUP(H179,FORAGE2,14)+VLOOKUP(H179,FORAGE2,3)+VLOOKUP(H179,FORAGE2,4)+VLOOKUP(H179,FORAGE2,5)+VLOOKUP(H179,FORAGE2,6)+VLOOKUP(H179,FORAGE2,7)+VLOOKUP(H179,FORAGE2,8)+VLOOKUP(H179,FORAGE2,9)),I179*J179*(VLOOKUP(H179,FORAGE2,12)+VLOOKUP(H179,FORAGE2,13)+VLOOKUP(H179,FORAGE2,14)+VLOOKUP(H179,FORAGE2,3)+VLOOKUP(H179,FORAGE2,4)+VLOOKUP(H179,FORAGE2,5)+VLOOKUP(H179,FORAGE2,6)+VLOOKUP(H179,FORAGE2,7)+VLOOKUP(H179,FORAGE2,8)+VLOOKUP(H179,FORAGE2,9)+VLOOKUP(H179,FORAGE2,10)+VLOOKUP(H179,FORAGE2,11))))))))))","v":0},null,0,{"$f":"IF(H179=\"\",\"\",VLOOKUP(H179,ForageGrowthCurves!$A$6:$P$67,16,FALSE))","v":""}]
[null,null,null,null,null,null,{"$f":"Field21","v":0},{"$f":"Kind21","v":0},{"$f":"Acres21","v":0},{"$f":"Yield21","v":0},{"$f":"IF(HayMonth21=3,I180*J180*(VLOOKUP(H180,FORAGE2,12)+VLOOKUP(H180,FORAGE2,13)+VLOOKUP(H180,FORAGE2,14)),IF(HayMonth21=4,I180*J180*(VLOOKUP(H180,FORAGE2,12)+VLOOKUP(H180,FORAGE2,13)+VLOOKUP(H180,FORAGE2,14)+VLOOKUP(H180,FORAGE2,3)),IF(HayMonth21=5,I180*J180*(VLOOKUP(H180,FORAGE2,12)+VLOOKUP(H180,FORAGE2,13)+VLOOKUP(H180,FORAGE2,14)+VLOOKUP(H180,FORAGE2,3)+VLOOKUP(H180,FORAGE2,4)),IF(HayMonth21=6,I180*J180*(VLOOKUP(H180,FORAGE2,12)+VLOOKUP(H180,FORAGE2,13)+VLOOKUP(H180,FORAGE2,14)+VLOOKUP(H180,FORAGE2,3)+VLOOKUP(H180,FORAGE2,4)+VLOOKUP(H180,FORAGE2,5)),IF(HayMonth21=7,I180*J180*(VLOOKUP(H180,FORAGE2,12)+VLOOKUP(H180,FORAGE2,13)+VLOOKUP(H180,FORAGE2,14)+VLOOKUP(H180,FORAGE2,3)+VLOOKUP(H180,FORAGE2,4)+VLOOKUP(H180,FORAGE2,5)+VLOOKUP(H180,FORAGE2,6)), IF(HayMonth21=8,I180*J180*(VLOOKUP(H180,FORAGE2,12)+VLOOKUP(H180,FORAGE2,13)+VLOOKUP(H180,FORAGE2,14)+VLOOKUP(H180,FORAGE2,3)+VLOOKUP(H180,FORAGE2,4)+VLOOKUP(H180,FORAGE2,5)+VLOOKUP(H180,FORAGE2,6)+VLOOKUP(H180,FORAGE2,7)),IF(HayMonth21=9,I180*J180*(VLOOKUP(H180,FORAGE2,12)+VLOOKUP(H180,FORAGE2,13)+VLOOKUP(H180,FORAGE2,14)+VLOOKUP(H180,FORAGE2,3)+VLOOKUP(H180,FORAGE2,4)+VLOOKUP(H180,FORAGE2,5)+VLOOKUP(H180,FORAGE2,6)+VLOOKUP(H180,FORAGE2,7)+VLOOKUP(H180,FORAGE2,8)), IF(HayMonth21=10,I180*J180*(VLOOKUP(H180,FORAGE2,12)+VLOOKUP(H180,FORAGE2,13)+VLOOKUP(H180,FORAGE2,14)+VLOOKUP(H180,FORAGE2,3)+VLOOKUP(H180,FORAGE2,4)+VLOOKUP(H180,FORAGE2,5)+VLOOKUP(H180,FORAGE2,6)+VLOOKUP(H180,FORAGE2,7)+VLOOKUP(H180,FORAGE2,8)+VLOOKUP(H180,FORAGE2,9)),I180*J180*(VLOOKUP(H180,FORAGE2,12)+VLOOKUP(H180,FORAGE2,13)+VLOOKUP(H180,FORAGE2,14)+VLOOKUP(H180,FORAGE2,3)+VLOOKUP(H180,FORAGE2,4)+VLOOKUP(H180,FORAGE2,5)+VLOOKUP(H180,FORAGE2,6)+VLOOKUP(H180,FORAGE2,7)+VLOOKUP(H180,FORAGE2,8)+VLOOKUP(H180,FORAGE2,9)+VLOOKUP(H180,FORAGE2,10)+VLOOKUP(H180,FORAGE2,11))))))))))","v":0},null,0,{"$f":"IF(H180=\"\",\"\",VLOOKUP(H180,ForageGrowthCurves!$A$6:$P$67,16,FALSE))","v":""}]
[null,null,null,null,null,null,{"$f":"Field22","v":0},{"$f":"Kind22","v":0},{"$f":"Acres22","v":0},{"$f":"Yield22","v":0},{"$f":"IF(HayMonth22=3,I181*J181*(VLOOKUP(H181,FORAGE2,12)+VLOOKUP(H181,FORAGE2,13)+VLOOKUP(H181,FORAGE2,14)),IF(HayMonth22=4,I181*J181*(VLOOKUP(H181,FORAGE2,12)+VLOOKUP(H181,FORAGE2,13)+VLOOKUP(H181,FORAGE2,14)+VLOOKUP(H181,FORAGE2,3)),IF(HayMonth22=5,I181*J181*(VLOOKUP(H181,FORAGE2,12)+VLOOKUP(H181,FORAGE2,13)+VLOOKUP(H181,FORAGE2,14)+VLOOKUP(H181,FORAGE2,3)+VLOOKUP(H181,FORAGE2,4)),IF(HayMonth22=6,I181*J181*(VLOOKUP(H181,FORAGE2,12)+VLOOKUP(H181,FORAGE2,13)+VLOOKUP(H181,FORAGE2,14)+VLOOKUP(H181,FORAGE2,3)+VLOOKUP(H181,FORAGE2,4)+VLOOKUP(H181,FORAGE2,5)),IF(HayMonth22=7,I181*J181*(VLOOKUP(H181,FORAGE2,12)+VLOOKUP(H181,FORAGE2,13)+VLOOKUP(H181,FORAGE2,14)+VLOOKUP(H181,FORAGE2,3)+VLOOKUP(H181,FORAGE2,4)+VLOOKUP(H181,FORAGE2,5)+VLOOKUP(H181,FORAGE2,6)), IF(HayMonth22=8,I181*J181*(VLOOKUP(H181,FORAGE2,12)+VLOOKUP(H181,FORAGE2,13)+VLOOKUP(H181,FORAGE2,14)+VLOOKUP(H181,FORAGE2,3)+VLOOKUP(H181,FORAGE2,4)+VLOOKUP(H181,FORAGE2,5)+VLOOKUP(H181,FORAGE2,6)+VLOOKUP(H181,FORAGE2,7)),IF(HayMonth22=9,I181*J181*(VLOOKUP(H181,FORAGE2,12)+VLOOKUP(H181,FORAGE2,13)+VLOOKUP(H181,FORAGE2,14)+VLOOKUP(H181,FORAGE2,3)+VLOOKUP(H181,FORAGE2,4)+VLOOKUP(H181,FORAGE2,5)+VLOOKUP(H181,FORAGE2,6)+VLOOKUP(H181,FORAGE2,7)+VLOOKUP(H181,FORAGE2,8)), IF(HayMonth22=10,I181*J181*(VLOOKUP(H181,FORAGE2,12)+VLOOKUP(H181,FORAGE2,13)+VLOOKUP(H181,FORAGE2,14)+VLOOKUP(H181,FORAGE2,3)+VLOOKUP(H181,FORAGE2,4)+VLOOKUP(H181,FORAGE2,5)+VLOOKUP(H181,FORAGE2,6)+VLOOKUP(H181,FORAGE2,7)+VLOOKUP(H181,FORAGE2,8)+VLOOKUP(H181,FORAGE2,9)),I181*J181*(VLOOKUP(H181,FORAGE2,12)+VLOOKUP(H181,FORAGE2,13)+VLOOKUP(H181,FORAGE2,14)+VLOOKUP(H181,FORAGE2,3)+VLOOKUP(H181,FORAGE2,4)+VLOOKUP(H181,FORAGE2,5)+VLOOKUP(H181,FORAGE2,6)+VLOOKUP(H181,FORAGE2,7)+VLOOKUP(H181,FORAGE2,8)+VLOOKUP(H181,FORAGE2,9)+VLOOKUP(H181,FORAGE2,10)+VLOOKUP(H181,FORAGE2,11))))))))))","v":0},null,0,{"$f":"IF(H181=\"\",\"\",VLOOKUP(H181,ForageGrowthCurves!$A$6:$P$67,16,FALSE))","v":""}]
[null,null,null,null,null,null,{"$f":"Field23","v":0},{"$f":"Kind23","v":0},{"$f":"Acres23","v":0},{"$f":"Yield23","v":0},{"$f":"IF(HayMonth23=3,I182*J182*(VLOOKUP(H182,FORAGE2,12)+VLOOKUP(H182,FORAGE2,13)+VLOOKUP(H182,FORAGE2,14)),IF(HayMonth23=4,I182*J182*(VLOOKUP(H182,FORAGE2,12)+VLOOKUP(H182,FORAGE2,13)+VLOOKUP(H182,FORAGE2,14)+VLOOKUP(H182,FORAGE2,3)),IF(HayMonth23=5,I182*J182*(VLOOKUP(H182,FORAGE2,12)+VLOOKUP(H182,FORAGE2,13)+VLOOKUP(H182,FORAGE2,14)+VLOOKUP(H182,FORAGE2,3)+VLOOKUP(H182,FORAGE2,4)),IF(HayMonth23=6,I182*J182*(VLOOKUP(H182,FORAGE2,12)+VLOOKUP(H182,FORAGE2,13)+VLOOKUP(H182,FORAGE2,14)+VLOOKUP(H182,FORAGE2,3)+VLOOKUP(H182,FORAGE2,4)+VLOOKUP(H182,FORAGE2,5)),IF(HayMonth23=7,I182*J182*(VLOOKUP(H182,FORAGE2,12)+VLOOKUP(H182,FORAGE2,13)+VLOOKUP(H182,FORAGE2,14)+VLOOKUP(H182,FORAGE2,3)+VLOOKUP(H182,FORAGE2,4)+VLOOKUP(H182,FORAGE2,5)+VLOOKUP(H182,FORAGE2,6)), IF(HayMonth23=8,I182*J182*(VLOOKUP(H182,FORAGE2,12)+VLOOKUP(H182,FORAGE2,13)+VLOOKUP(H182,FORAGE2,14)+VLOOKUP(H182,FORAGE2,3)+VLOOKUP(H182,FORAGE2,4)+VLOOKUP(H182,FORAGE2,5)+VLOOKUP(H182,FORAGE2,6)+VLOOKUP(H182,FORAGE2,7)),IF(HayMonth23=9,I182*J182*(VLOOKUP(H182,FORAGE2,12)+VLOOKUP(H182,FORAGE2,13)+VLOOKUP(H182,FORAGE2,14)+VLOOKUP(H182,FORAGE2,3)+VLOOKUP(H182,FORAGE2,4)+VLOOKUP(H182,FORAGE2,5)+VLOOKUP(H182,FORAGE2,6)+VLOOKUP(H182,FORAGE2,7)+VLOOKUP(H182,FORAGE2,8)), IF(HayMonth23=10,I182*J182*(VLOOKUP(H182,FORAGE2,12)+VLOOKUP(H182,FORAGE2,13)+VLOOKUP(H182,FORAGE2,14)+VLOOKUP(H182,FORAGE2,3)+VLOOKUP(H182,FORAGE2,4)+VLOOKUP(H182,FORAGE2,5)+VLOOKUP(H182,FORAGE2,6)+VLOOKUP(H182,FORAGE2,7)+VLOOKUP(H182,FORAGE2,8)+VLOOKUP(H182,FORAGE2,9)),I182*J182*(VLOOKUP(H182,FORAGE2,12)+VLOOKUP(H182,FORAGE2,13)+VLOOKUP(H182,FORAGE2,14)+VLOOKUP(H182,FORAGE2,3)+VLOOKUP(H182,FORAGE2,4)+VLOOKUP(H182,FORAGE2,5)+VLOOKUP(H182,FORAGE2,6)+VLOOKUP(H182,FORAGE2,7)+VLOOKUP(H182,FORAGE2,8)+VLOOKUP(H182,FORAGE2,9)+VLOOKUP(H182,FORAGE2,10)+VLOOKUP(H182,FORAGE2,11))))))))))","v":0},null,0,{"$f":"IF(H182=\"\",\"\",VLOOKUP(H182,ForageGrowthCurves!$A$6:$P$67,16,FALSE))","v":""}]
[null,null,null,null,null,null,{"$f":"Field24","v":0},{"$f":"Kind24","v":0},{"$f":"Acres24","v":0},{"$f":"Yield24","v":0},{"$f":"IF(HayMonth24=3,I183*J183*(VLOOKUP(H183,FORAGE2,12)+VLOOKUP(H183,FORAGE2,13)+VLOOKUP(H183,FORAGE2,14)),IF(HayMonth24=4,I183*J183*(VLOOKUP(H183,FORAGE2,12)+VLOOKUP(H183,FORAGE2,13)+VLOOKUP(H183,FORAGE2,14)+VLOOKUP(H183,FORAGE2,3)),IF(HayMonth24=5,I183*J183*(VLOOKUP(H183,FORAGE2,12)+VLOOKUP(H183,FORAGE2,13)+VLOOKUP(H183,FORAGE2,14)+VLOOKUP(H183,FORAGE2,3)+VLOOKUP(H183,FORAGE2,4)),IF(HayMonth24=6,I183*J183*(VLOOKUP(H183,FORAGE2,12)+VLOOKUP(H183,FORAGE2,13)+VLOOKUP(H183,FORAGE2,14)+VLOOKUP(H183,FORAGE2,3)+VLOOKUP(H183,FORAGE2,4)+VLOOKUP(H183,FORAGE2,5)),IF(HayMonth24=7,I183*J183*(VLOOKUP(H183,FORAGE2,12)+VLOOKUP(H183,FORAGE2,13)+VLOOKUP(H183,FORAGE2,14)+VLOOKUP(H183,FORAGE2,3)+VLOOKUP(H183,FORAGE2,4)+VLOOKUP(H183,FORAGE2,5)+VLOOKUP(H183,FORAGE2,6)), IF(HayMonth24=8,I183*J183*(VLOOKUP(H183,FORAGE2,12)+VLOOKUP(H183,FORAGE2,13)+VLOOKUP(H183,FORAGE2,14)+VLOOKUP(H183,FORAGE2,3)+VLOOKUP(H183,FORAGE2,4)+VLOOKUP(H183,FORAGE2,5)+VLOOKUP(H183,FORAGE2,6)+VLOOKUP(H183,FORAGE2,7)),IF(HayMonth24=9,I183*J183*(VLOOKUP(H183,FORAGE2,12)+VLOOKUP(H183,FORAGE2,13)+VLOOKUP(H183,FORAGE2,14)+VLOOKUP(H183,FORAGE2,3)+VLOOKUP(H183,FORAGE2,4)+VLOOKUP(H183,FORAGE2,5)+VLOOKUP(H183,FORAGE2,6)+VLOOKUP(H183,FORAGE2,7)+VLOOKUP(H183,FORAGE2,8)), IF(HayMonth24=10,I183*J183*(VLOOKUP(H183,FORAGE2,12)+VLOOKUP(H183,FORAGE2,13)+VLOOKUP(H183,FORAGE2,14)+VLOOKUP(H183,FORAGE2,3)+VLOOKUP(H183,FORAGE2,4)+VLOOKUP(H183,FORAGE2,5)+VLOOKUP(H183,FORAGE2,6)+VLOOKUP(H183,FORAGE2,7)+VLOOKUP(H183,FORAGE2,8)+VLOOKUP(H183,FORAGE2,9)),I183*J183*(VLOOKUP(H183,FORAGE2,12)+VLOOKUP(H183,FORAGE2,13)+VLOOKUP(H183,FORAGE2,14)+VLOOKUP(H183,FORAGE2,3)+VLOOKUP(H183,FORAGE2,4)+VLOOKUP(H183,FORAGE2,5)+VLOOKUP(H183,FORAGE2,6)+VLOOKUP(H183,FORAGE2,7)+VLOOKUP(H183,FORAGE2,8)+VLOOKUP(H183,FORAGE2,9)+VLOOKUP(H183,FORAGE2,10)+VLOOKUP(H183,FORAGE2,11))))))))))","v":0},null,0,{"$f":"IF(H183=\"\",\"\",VLOOKUP(H183,ForageGrowthCurves!$A$6:$P$67,16,FALSE))","v":""},null,"1.  Paddocks fertilized regularly, OR"]
[null,null,null,null,null,null,null,null,null,null,null,null,null,null,null,"2.  Paddocks have productive legumes in stand, OR"]
[null,null,null,null,null,null,null,"Totals",{"$f":"SUBTOTAL(109,I160:I183)","v":0},null,{"$f":"SUBTOTAL(109,K160:K183)","v":0},null,{"$f":"SUBTOTAL(109,M160:M183)","v":0},null,null,"3.  Grazing rotation is 7 days or less, OR"]
[null,null,null,null,null,null,null,null,null,null,null,null,null,null,null,"4.  Pasture Condition Scoresheet is 31 or Greater"]
[null,null,null,null,null,null,"* TFP - Total Forage Production",null,null,null,null,null,null,null,null,"if none of the above, select AVERAGE yields"]
[]
[null,null,null,null,null,"ALTERNATIVE PASTURE FORAGE PRODUCTION "]
[null,null,null,null,null,"(only utilize this section if you have selected to manage any of your livestock on an alternative pasture in the Livestock Needs and Demand Schedule above)"]
[null,null,null,null,null,{"$f":"IF(OR(AND(SeasonalDairyCheck=FALSE,AnnualDairyCheck=FALSE,BullsCheck=FALSE,CowCalf1Check=FALSE,CowCalf2Check=FALSE,CowCalf3Check=FALSE,HorsesCheck=FALSE),(AND(Calculations!B72=FALSE,Calculations!B77=FALSE,Calculations!B82=FALSE,Calculations!B100=FALSE,Calculations!H45=FALSE,Calculations!G50=FALSE,Calculations!H54=FALSE,Calculations!B56=FALSE,Calculations!B58=FALSE))),\"There are currently no livestock classes selected to utilize alternative pasture\",\"\")","v":"There are currently no livestock classes selected to utilize alternative pasture"}]
[null,null,null,null,null,{"$f":"IF(OR(AND(Calculations!B72=TRUE,CowCalf1Check=TRUE),AND(Calculations!B77=TRUE,CowCalf2Check=TRUE),AND(Calculations!B82=TRUE,CowCalf3Check=TRUE),AND(Calculations!B100=TRUE,HorsesCheck=TRUE),AND(Calculations!H45=TRUE,SeasonalDairyCheck=TRUE),AND(Calculations!G50=TRUE,AnnualDairyCheck=TRUE),AND(Calculations!H54=TRUE,AnnualDairyCheck=TRUE),AND(Calculations!B56=TRUE,BullsCheck=TRUE),AND(Calculations!B58=TRUE,BullsCheck=TRUE)),\"The livestock class(es) that have Alternative Pasture selected as part of the management is(are):\",\"\")","v":""}]
[null,null,null,null,null,null,null,null,null,null,null,{"$f":"IF(AND(Calculations!B72=TRUE,CowCalf1Check=TRUE),\"Cow Calf Herd 1\",\"\")","v":""},{"$f":"IF(AND(Calculations!B77=TRUE,CowCalf2Check=TRUE),\"Cow Calf Herd 2\",\"\")","v":""},{"$f":"IF(AND(Calculations!B82=TRUE,CowCalf3Check=TRUE),\"Cow Calf Herd 3\",\"\")","v":""},{"$f":"IF(AND(OR(Calculations!B56,Calculations!B58),BullsCheck=TRUE),\"Bulls\",\"\")","v":""},{"$f":"IF(AND(Calculations!H45=TRUE,SeasonalDairyCheck=TRUE),\"Dairy, Seasonal\",\"\")","v":""},{"$f":"IF(AND(OR(Calculations!G50=TRUE,Calculations!H54=TRUE),AnnualDairyCheck=TRUE),\"Dairy, Annual\", \"\")","v":""},{"$f":"IF(AND(Calculations!B100=TRUE,HorsesCheck),\"Horses\",\"\")","v":""}]
[null,null,null,null,null,"Use this input area to capture the forage production on alternative pastures(s) that may be used to meet some of the livestock forage needs separate from the main grazing system (as indicated by specific livestock class management in the Livestock Needs and Demands section above).  Add additional fields by selecting the \"+\" icon.  You may enter up to 6 separate fields.  The yellow cells are for user inputs.   An alternative pasture is typically some unmanaged acreage where animals are moved to graze when peak productivity is not required, such as when dairy cows are dry or heifers are not lactating, or when bulls are not with cows for breeding."]
[]
[null,null,null,null,"Add (+) or Remove (-) Rows",null,null,null,null,null,"Total","Pasture",null,"Alternative Pasture Forage Available by Month (Lbs/month)"]
[null,null,null,null,null,null,"Field","Kind of Forage","Acres","TFP","Production","Grazing ","Usable "]
[null,null,null,null,null,null,"Number"," (double click for drop down menu)","(Usable)","lbs/ac","Pounds","Eff. (%)","Pounds","Apr","May","June","July","Aug","Sept","Oct","Nov","Dec","Jan","Feb","Mar"]
[null,null,null,null,null,null,null,null,null,null,{"$f":"I199*J199","v":0},null,{"$f":"K199*L199/100","v":0},{"$f":"IF($H199=\"\",\"\",VLOOKUP($H199,FORAGE2,3)*($M199))","v":""},{"$f":"IF($H199=\"\",\"\",VLOOKUP($H199,FORAGE2,4)*($M199))","v":""},{"$f":"IF($H199=\"\",\"\",VLOOKUP($H199,FORAGE2,5)*($M199))","v":""},{"$f":"IF($H199=\"\",\"\",VLOOKUP($H199,FORAGE2,6)*($M199))","v":""},{"$f":"IF($H199=\"\",\"\",VLOOKUP($H199,FORAGE2,7)*($M199))","v":""},{"$f":"IF($H199=\"\",\"\",VLOOKUP($H199,FORAGE2,8)*($M199))","v":""},{"$f":"IF($H199=\"\",\"\",VLOOKUP($H199,FORAGE2,9)*($M199))","v":""},{"$f":"IF($H199=\"\",\"\",VLOOKUP($H199,FORAGE2,10)*($M199))","v":""},{"$f":"IF($H199=\"\",\"\",VLOOKUP($H199,FORAGE2,11)*($M199))","v":""},{"$f":"IF($H199=\"\",\"\",VLOOKUP($H199,FORAGE2,12)*($M199))","v":""},{"$f":"IF($H199=\"\",\"\",VLOOKUP($H199,FORAGE2,13)*($M199))","v":""},{"$f":"IF($H199=\"\",\"\",VLOOKUP($H199,FORAGE2,14)*($M199))","v":""}]
[null,null,null,null,null,null,null,null,null,null,0,null,{"$f":"K200*L200/100","v":0},"","","","","","","","","","","",""]
[null,null,null,null,null,null,null,null,null,null,0,null,0,"","","","","","","","","","","",""]
[null,null,null,null,null,null,null,null,null,null,0,null,0,"","","","","","","","","","","",""]
[null,null,null,null,null,null,null,null,null,null,0,null,0,"","","","","","","","","","","",""]
[null,null,null,null,null,null,null,null,null,null,0,null,0,"","","","","","","","","","","",""]
[]
[]
[null,null,null,null,null,"HAY PRODUCTION AND INVENTORY FOR FIELDS HAYED, SILAGE, HAYLAGE ONLY"]
[null,null,null,null,null,null,"Use this input are to capture any additional hay production on fields that are not part of the grazing system.   Add additional fields by selecting the \"+\" icon.  You may enter up to 10 separate fields.  The yellow cells are for user inputs.   The Total Production Pounds is calculated by multiplying the percent of growth that has occured at the time of haying (Haying Month) based upon the Forage Growth Curves.  Enter the Haying Month as a number (eg. Jan = 1, Feb = 2, Mar = 3, etc.)"]
[]
[null,null,null,null,"Add (+) or Remove (-) Rows",null,null,null,"Hay",null,"Haying ","Total","Hay",null,"Minimum"]
[null,null,null,null,null,null,"Field","Kind of Forage","Acres","TFP","Month","Production","Harvest","Harvested","Cutting"]
[null,null,null,null,null,null,"Number"," (double click for drop down menu)","(Usable)","lbs/ac","double click for drop down","Pounds","Eff. (%)","Pounds"," Ht. (in)"]
[null,null,null,null,null,null,null,null,null,null,null,{"$f":"IF(K213=3,I213*J213*(VLOOKUP(H213,FORAGE2,12)+VLOOKUP(H213,FORAGE2,13)+VLOOKUP(H213,FORAGE2,14)),IF(K213=4,I213*J213*(VLOOKUP(H213,FORAGE2,12)+VLOOKUP(H213,FORAGE2,13)+VLOOKUP(H213,FORAGE2,14)+VLOOKUP(H213,FORAGE2,3)),IF(K213=5,I213*J213*(VLOOKUP(H213,FORAGE2,12)+VLOOKUP(H213,FORAGE2,13)+VLOOKUP(H213,FORAGE2,14)+VLOOKUP(H213,FORAGE2,3)+VLOOKUP(H213,FORAGE2,4)),IF(K213=6,I213*J213*(VLOOKUP(H213,FORAGE2,12)+VLOOKUP(H213,FORAGE2,13)+VLOOKUP(H213,FORAGE2,14)+VLOOKUP(H213,FORAGE2,3)+VLOOKUP(H213,FORAGE2,4)+VLOOKUP(H213,FORAGE2,5)),IF(K213=7,I213*J213*(VLOOKUP(H213,FORAGE2,12)+VLOOKUP(H213,FORAGE2,13)+VLOOKUP(H213,FORAGE2,14)+VLOOKUP(H213,FORAGE2,3)+VLOOKUP(H213,FORAGE2,4)+VLOOKUP(H213,FORAGE2,5)+VLOOKUP(H213,FORAGE2,6)), IF(K213=8,I213*J213*(VLOOKUP(H213,FORAGE2,12)+VLOOKUP(H213,FORAGE2,13)+VLOOKUP(H213,FORAGE2,14)+VLOOKUP(H213,FORAGE2,3)+VLOOKUP(H213,FORAGE2,4)+VLOOKUP(H213,FORAGE2,5)+VLOOKUP(H213,FORAGE2,6)+VLOOKUP(H213,FORAGE2,7)),IF(K213=9,I213*J213*(VLOOKUP(H213,FORAGE2,12)+VLOOKUP(H213,FORAGE2,13)+VLOOKUP(H213,FORAGE2,14)+VLOOKUP(H213,FORAGE2,3)+VLOOKUP(H213,FORAGE2,4)+VLOOKUP(H213,FORAGE2,5)+VLOOKUP(H213,FORAGE2,6)+VLOOKUP(H213,FORAGE2,7)+VLOOKUP(H213,FORAGE2,8)), IF(K213=10,I213*J213*(VLOOKUP(H213,FORAGE2,12)+VLOOKUP(H213,FORAGE2,13)+VLOOKUP(H213,FORAGE2,14)+VLOOKUP(H213,FORAGE2,3)+VLOOKUP(H213,FORAGE2,4)+VLOOKUP(H213,FORAGE2,5)+VLOOKUP(H213,FORAGE2,6)+VLOOKUP(H213,FORAGE2,7)+VLOOKUP(H213,FORAGE2,8)+VLOOKUP(H213,FORAGE2,9)),I213*J213*(VLOOKUP(H213,FORAGE2,12)+VLOOKUP(H213,FORAGE2,13)+VLOOKUP(H213,FORAGE2,14)+VLOOKUP(H213,FORAGE2,3)+VLOOKUP(H213,FORAGE2,4)+VLOOKUP(H213,FORAGE2,5)+VLOOKUP(H213,FORAGE2,6)+VLOOKUP(H213,FORAGE2,7)+VLOOKUP(H213,FORAGE2,8)+VLOOKUP(H213,FORAGE2,9)+VLOOKUP(H213,FORAGE2,10)+VLOOKUP(H213,FORAGE2,11))))))))))","v":0},null,{"$f":"IF(H213=\"\",0,L213*M213)","v":0},{"$f":"IF($H213=\"\",\"\",VLOOKUP($H213,ForageGrowthCurves!$A$6:$P$67,16))","v":""}]
[null,null,null,null,null,null,null,null,null,null,null,0,null,{"$f":"IF(H214=\"\",0,L214*M214)","v":0},{"$f":"IF($H214=\"\",\"\",VLOOKUP($H214,ForageGrowthCurves!$A$6:$P$67,16))","v":""}]
[null,null,null,null,null,null,null,null,null,null,null,0,null,0,{"$f":"IF($H215=\"\",\"\",VLOOKUP($H215,ForageGrowthCurves!$A$6:$P$67,16))","v":""}]
[null,null,null,null,null,null,null,null,null,null,null,0,null,0,{"$f":"IF($H216=\"\",\"\",VLOOKUP($H216,ForageGrowthCurves!$A$6:$P$67,16))","v":""}]
[null,null,null,null,null,null,null,null,null,null,null,0,null,0,{"$f":"IF($H217=\"\",\"\",VLOOKUP($H217,ForageGrowthCurves!$A$6:$P$67,16))","v":""}]
[null,null,null,null,null,null,null,null,null,null,null,0,null,0,{"$f":"IF($H218=\"\",\"\",VLOOKUP($H218,ForageGrowthCurves!$A$6:$P$67,16))","v":""}]
[null,null,null,null,null,null,null,null,null,null,null,0,null,0,{"$f":"IF($H219=\"\",\"\",VLOOKUP($H219,ForageGrowthCurves!$A$6:$P$67,16))","v":""}]
[null,null,null,null,null,null,null,null,null,null,null,0,null,0,{"$f":"IF($H220=\"\",\"\",VLOOKUP($H220,ForageGrowthCurves!$A$6:$P$67,16))","v":""}]
[null,null,null,null,null,null,null,null,null,null,null,0,null,0,{"$f":"IF($H221=\"\",\"\",VLOOKUP($H221,ForageGrowthCurves!$A$6:$P$67,16))","v":""}]
[null,null,null,null,null,null,null,null,null,null,null,0,null,0,{"$f":"IF($H222=\"\",\"\",VLOOKUP($H222,ForageGrowthCurves!$A$6:$P$67,16))","v":""}]
[]
[null,null,null,null,null,null,"Totals",null,{"$f":"SUBTOTAL(109,I213:I222)","v":0},null,null,{"$f":"SUBTOTAL(109,L213:L222)","v":0},null,{"$f":"SUBTOTAL(109,N213:N222)","v":0}]
[]
[]
[null,null,null,null,null,null,"SUMMARY OF LIVESTOCK NEEDS AND PASTURE FORAGE PRODUCTION"]
[null,null,null,null,null,null,null,null,null," ",null," ",null,"Apr.","May","June","July","Aug.","Sept.","Oct.","Nov.","Dec.","Jan.","Feb.","Mar."]
[null,null,null,null,null,null,null,"Grazing System:  Total Forage Available (Lbs):",null,null,null,null,{"$f":"SUM(N229:Y229)","v":0},{"$f":"SUBTOTAL(109,N103:N149)","v":0},0,0,0,0,0,0,0,0,0,0,0]
[null,null,null,null,null,null,null,"Grazing System:  Total Forage Needs (Lbs):",null,null,null,null,{"$f":"SUM(N230:Y230)","v":0},{"$f":"N91","v":0},0,0,0,0,0,0,0,0,0,0,0]
[null,null,null,null,null,null,null,null,"Total Difference (Lbs):",null,null,null,{"$f":"M229-M230","v":0},{"$f":"N229-N230","v":0},{"$f":"O229-O230","v":0},0,0,0,0,0,0,0,0,0,0]
[null,null,null,null,null,null,null,null,null,"Accumulated Balance (Lbs) by month:",null,null,null,{"$f":"IF(Y231>0,N231+Y231,N231)","v":0},{"$f":"N232+O231","v":0},0,0,0,0,0,0,0,0,0,0]
[null,null,null,null,null,null,null,null,null,"Monthly Balance by %:",null,null,null,{"$f":"N229/N230","v":{"$error":"#DIV/0!"}},{"$error":"#DIV/0!"},{"$error":"#DIV/0!"},{"$error":"#DIV/0!"},{"$error":"#DIV/0!"},{"$error":"#DIV/0!"},{"$error":"#DIV/0!"},{"$error":"#DIV/0!"},{"$error":"#DIV/0!"},{"$error":"#DIV/0!"},{"$error":"#DIV/0!"},{"$error":"#DIV/0!"}]
[null,null,null,null,null,null,null,"Footnote: at least 4 months of the grazing season must provide at least 90% (or more) of forage needs from Mid April to Mid October for Southern and Central IL, 3 months of 90% or more for Northern IL."]
[null,null,null,null,null,null,null,"Alternative Pasture:  Total Forage Available (Lbs):",null,null,null,null,{"$f":"SUM(N235:Y235)","v":0},{"$f":"SUBTOTAL(109,N199:N204)","v":0},0,0,0,0,0,0,0,0,0,0,0]
[null,null,null,null,null,null,null,"Alternative Pasture:  Total Forage Needs (Lbs):",null,null,null,null,{"$f":"SUM(N236:Y236)","v":0},{"$f":"N92","v":0},0,0,0,0,0,0,0,0,0,0,0]
[null,null,null,null,null,null,null,null,"Total Difference (Lbs):",null,null,null,{"$f":"SUM(N237:Y237)","v":0},{"$f":"N235-N236","v":0},{"$f":"O235-O236","v":0},0,0,0,0,0,0,0,0,0,0]
[null,null,null,null,null,null,null,null,null,"Accumulated Balance (Lbs) by month:",null,null,null,{"$f":"IF(Y237>0,N237+Y237,N237)","v":0},{"$f":"N238+O237","v":0},{"$f":"O238+P237","v":0},{"$f":"P238+Q237","v":0},{"$f":"Q238+R237","v":0},{"$f":"R238+S237","v":0},{"$f":"S238+T237","v":0},{"$f":"T238+U237","v":0},{"$f":"U238+V237","v":0},{"$f":"V238+W237","v":0},{"$f":"W238+X237","v":0},{"$f":"X238+Y237","v":0}]
[null,null,null,null,null,null,null,null,null,null,"Grand Total Percentage/Feed Balance",null,null,{"$f":"(N229+N235)/(N230+N236)","v":{"$error":"#DIV/0!"}},{"$f":"(O229+O235)/(O230+O236)","v":{"$error":"#DIV/0!"}},{"$error":"#DIV/0!"},{"$error":"#DIV/0!"},{"$error":"#DIV/0!"},{"$error":"#DIV/0!"},{"$error":"#DIV/0!"},{"$error":"#DIV/0!"},{"$error":"#DIV/0!"},{"$error":"#DIV/0!"},{"$error":"#DIV/0!"},{"$error":"#DIV/0!"}]
[null,null,null,null,null,null,null,"Dry Lot:  Total Forage Available (Lbs):",null,null,null,null,"0","0","0","0","0","0","0","0","0","0","0","0","0"]
[null,null,null,null,null,null,null,"Dry Lot:  Total Forage Needs (Lbs):",null,null,null,null,{"$f":"SUM(N241:Y241)","v":0},{"$f":"N93","v":0},0,0,0,0,0,0,0,0,0,0,0]
[]
[]
[null,null,null,null,null,null,null,"SUMMARY:  FEED AND FORAGE BALANCE",null,null,null,null,null,null,null,null,null,"Print Options"]
[]
[null,null,null,null,null,null,null,"The estimated annual total livestock forage needs are:",null,null,null,null,null,{"$f":"M230+M236+M241","v":0},"Lbs",null,null,"Select the buttons for the items from this worksheet to print.  Each selection will open a print preview window where you can make adjustments to the print setup before printing."]
[]
[null,null,null,null,null,null,null,"The estimated total pounds of forage provided through grazing are:",null,null,null,null,null,{"$f":"M229+M235","v":0},"Lbs"]
[null,null,null,null,null,null,null,null,"(This includes the grazing system and any alternative pasture)"]
[null,null,null,null,null,null,null,"For a difference of:",null,null,null,null,null,{"$f":"N248-N246","v":0},"Lbs"]
[]
[null,null,null,null,null,null,null,"Hay Inventory"]
[]
[null,null,null,null,null,null,null,null,"The estimated harvested pounds of hay is:",null,null,null,null,{"$f":"N224+M185","v":0},"Lbs"]
[null,null,null,null,null,null,null,null,null,"The estimated storage/feeding loss is*:  ",null,null,null,null,"%"]
[null,null,null,null,null,null,null,null,"The available harvested hay is:",null,null,null,null,{"$f":"((100-N255)/100)*N254","v":0},"Lbs"]
[]
[null,null,null,null,null,null,null,null,"Estimated carry over hay that is stored on the property:",null,null,null,null,0,"Lbs"]
[null,null,null,null,null,null,null,null,null,"The estimated storage/feeding loss is*:  ",null,null,null,0,"%"]
[null,null,null,null,null,null,null,null,null,null,"The available carryover hay is:",null,null,{"$f":"((100-N259)/100)*N258","v":0},"Lbs"]
[]
[null,null,null,null,null,null,null,"Additional Hay or forage purchased or brought in from off-farm sources is:",null,null,null,null,null,null,"Lbs"]
[null,null,null,null,null,null,null,null,null,"The estimated storage/feeding loss is*:  ",null,null,null,null,"%"]
[null,null,null,null,null,null,null,null,null,null,"The available purchased hay is:",null,null,{"$f":"((100-N263)/100)*N262","v":0},"Lbs"]
[]
[]
[null,null,null,null,null,null,null,"        The balance between ALL sources of feed and the needs of the livestock is (+/-):  ",null,null,null,null,null,{"$f":"(N248+N256+N260+N264)-N246","v":0},"Lbs"]
[]
[]
[]
[]
[]
[]
[]
[]
[]
[]
[]
[]
[]
[]
[]
[]
[]
[]
[]
[]
[]
[]
[]
[]
[]
[]
[]
[]
[]
[]
[]
[]
[]
[]
[]
[]
[null,null,null,null,null,"Footnote: at least 4 months of the grazing season must provide at least 90% (or more) of forage needs from Mid April to Mid October for Southern and Central IL, 3 months of 90% or more for Northern IL."]
[]
[]
[null,null,null,null,null,"Total Forage Production"]
[null,null,null,null,null,"Select OPTIMUM yields when:"]
[]
[null,null,null,null,null,"1.  Paddocks fertilized regularly, OR"]
[null,null,null,null,null,"2.  Paddocks have productive legumes in stand, OR"]
[null,null,null,null,null,"3.  Grazing rotation is 7 days or less, OR"]
[null,null,null,null,null,"4.  Pasture Condition Scoresheet is 31 or Greater"]
[null,null,null,null,null,"if none of the above, select AVERAGE yields"]

{"sheet":"TimeControlWorksheet","index":1,"n_rows":57,"n_cols":11,"rows_kept":57,"cut":false,"hidden":false,"merged":[[56,1,56,10],[55,1,55,10],[3,2,4,9],[8,2,8,3],[9,2,9,3],[10,2,10,3]]}
[]
[null,null,null,null," TIME CONTROL GRAZING WORKSHEET"]
[]
[null,null,"Only enter the additional information needed as indicated by the yellow cells.  The remaining cells and infomration will populate automatically based on the information entered into the Livestock Forage Balance Worksheet."]
[]
[null,null,null,"Name:",{"$f":"LivestockForageBalance!$H$6","v":0},null,null,"County:",{"$f":"LivestockForageBalance!$H$9","v":""}]
[null,null,null,"System ID:",{"$f":"LivestockForageBalance!$H$7","v":""},null,null,"Date:",{"$f":"LivestockForageBalance!$H$8","v":""}]
[]
[null,null,"  Minimum Rest Period =",null,null,"days",null,"Avg Animal Weight =",{"$f":"LivestockForageBalance!$J$41","v":0},"pounds"]
[null,null,"  Maximum Rest Period =",null,null,"days",null,"Animal Numbers =",{"$f":"LivestockForageBalance!$I$41","v":0},"head"]
[null,null,"  Grazing Efficiency =",null,{"$f":"Calculations!$B$129","v":{"$error":"#DIV/0!"}},"percent",null,"Number of Herds ="]
[null,null,null,null,null,null,null,"Intake Rate =",{"$f":"LivestockForageBalance!$K$41","v":0},"percent"]
[]
[null,"Field Name","Kind of Forages","Field","Usable Forage","Usable Forage",null,"Minimum","Maximum","Animal Density","Minimum "]
[null,"or Number",null,"Acres","Production","Production","Paddock ","Grazing","Grazing","(Lbs of animal","Grazing"]
[null,null,null,null,"(Lbs/Acre)","(Lbs/Field ","Factor","Period","Period","per acre)","Height"]
[null,null,null,null,null," or Paddock)",null,"(no. of days)","(no. of days)",null,"(inches)"]
[null,{"$f":"Field1","v":0},{"$f":"Kind1","v":0},{"$f":"Acres1","v":0},{"$f":"IF(C18=\"\",\"\",(LivestockForageBalance!$J103*LivestockForageBalance!$L103/100))","v":0},{"$f":"IF(C18=\"\",\"\",D18*E18)","v":0},{"$f":"IF(C18=\"\",\"\",F18/$F$43)","v":{"$error":"#DIV/0!"}},{"$f":"IF(C18=\"\",\"\",G18*($E$9/($C$44-$I$11)))","v":{"$error":"#DIV/0!"}},{"$f":"IF(C18=\"\",\"\",G18*($E$10/($C$44-$I$11)))","v":{"$error":"#DIV/0!"}},{"$f":"IF(D18,($I$9*$I$10)/D18,0)","v":0},{"$f":"IF(C18=\"\",\"\",VLOOKUP(C18,ForageGrowthCurves!$A$6:'ForageGrowthCurves'!$O$62,15))","v":{"$error":"#N/A"}}]
[null,{"$f":"Field2","v":0},{"$f":"Kind2","v":0},{"$f":"Acres2","v":0},{"$f":"IF(C19=\"\",\"\",(LivestockForageBalance!$J105*LivestockForageBalance!$L105/100))","v":0},0,{"$f":"IF(C19=\"\",\"\",F19/$F$43)","v":{"$error":"#DIV/0!"}},{"$f":"IF(C19=\"\",\"\",G19*($E$9/($C$44-$I$11)))","v":{"$error":"#DIV/0!"}},{"$f":"IF(C19=\"\",\"\",G19*($E$10/($C$44-$I$11)))","v":{"$error":"#DIV/0!"}},{"$f":"IF(D19,($I$9*$I$10)/D19,0)","v":0},{"$f":"IF(C19=\"\",\"\",VLOOKUP(C19,ForageGrowthCurves!$A$6:'ForageGrowthCurves'!$O$62,15))","v":{"$error":"#N/A"}}]
[null,{"$f":"Field3","v":0},{"$f":"Kind3","v":0},{"$f":"Acres3","v":0},{"$f":"IF(C20=\"\",\"\",(LivestockForageBalance!$J107*LivestockForageBalance!$L107/100))","v":{"$error":"#VALUE!"}},{"$error":"#VALUE!"},{"$error":"#VALUE!"},{"$f":"IF(C20=\"\",\"\",G20*($E$9/($C$44-$I$11)))","v":{"$error":"#VALUE!"}},{"$error":"#VALUE!"},0,{"$f":"IF(C20=\"\",\"\",VLOOKUP(C20,ForageGrowthCurves!$A$6:'ForageGrowthCurves'!$O$62,15))","v":{"$error":"#N/A"}}]
[null,{"$f":"Field4","v":0},{"$f":"Kind4","v":0},{"$f":"Acres4","v":0},{"$f":"IF(C21=\"\",\"\",(LivestockForageBalance!$J109*LivestockForageBalance!$L109/100))","v":{"$error":"#VALUE!"}},{"$f":"IF(C21=\"\",\"\",D21*E21)","v":{"$error":"#VALUE!"}},{"$error":"#VALUE!"},{"$error":"#VALUE!"},{"$error":"#VALUE!"},0,{"$f":"IF(C21=\"\",\"\",VLOOKUP(C21,ForageGrowthCurves!$A$6:'ForageGrowthCurves'!$O$62,15))","v":{"$error":"#N/A"}}]
[null,{"$f":"Field5","v":0},{"$f":"Kind5","v":0},{"$f":"Acres5","v":0},{"$f":"IF(C22=\"\",\"\",(LivestockForageBalance!$J111*LivestockForageBalance!$L111/100))","v":{"$error":"#VALUE!"}},{"$error":"#VALUE!"},{"$error":"#VALUE!"},{"$error":"#VALUE!"},{"$error":"#VALUE!"},0,{"$f":"IF(C22=\"\",\"\",VLOOKUP(C22,ForageGrowthCurves!$A$6:'ForageGrowthCurves'!$O$62,15))","v":{"$error":"#N/A"}}]
[null,{"$f":"Field6","v":0},{"$f":"Kind6","v":0},{"$f":"Acres6","v":0},{"$f":"IF(C23=\"\",\"\",(LivestockForageBalance!$J113*LivestockForageBalance!$L113/100))","v":{"$error":"#VALUE!"}},{"$error":"#VALUE!"},{"$error":"#VALUE!"},{"$error":"#VALUE!"},{"$error":"#VALUE!"},0,{"$f":"IF(C23=\"\",\"\",VLOOKUP(C23,ForageGrowthCurves!$A$6:'ForageGrowthCurves'!$O$62,15))","v":{"$error":"#N/A"}}]
[null,{"$f":"Field7","v":0},{"$f":"Kind7","v":0},{"$f":"Acres7","v":0},{"$f":"IF(C24=\"\",\"\",(LivestockForageBalance!$J115*LivestockForageBalance!$L115/100))","v":{"$error":"#VALUE!"}},{"$error":"#VALUE!"},{"$error":"#VALUE!"},{"$error":"#VALUE!"},{"$error":"#VALUE!"},0,{"$f":"IF(C24=\"\",\"\",VLOOKUP(C24,ForageGrowthCurves!$A$6:'ForageGrowthCurves'!$O$62,15))","v":{"$error":"#N/A"}}]
[null,{"$f":"Field8","v":0},{"$f":"Kind8","v":0},{"$f":"Acres8","v":0},{"$f":"IF(C25=\"\",\"\",(LivestockForageBalance!$J117*LivestockForageBalance!$L117/100))","v":{"$error":"#VALUE!"}},{"$error":"#VALUE!"},{"$error":"#VALUE!"},{"$error":"#VALUE!"},{"$error":"#VALUE!"},0,{"$f":"IF(C25=\"\",\"\",VLOOKUP(C25,ForageGrowthCurves!$A$6:'ForageGrowthCurves'!$O$62,15))","v":{"$error":"#N/A"}}]
[null,{"$f":"Field9","v":0},{"$f":"Kind9","v":0},{"$f":"Acres9","v":0},{"$f":"IF(C26=\"\",\"\",(LivestockForageBalance!$J119*LivestockForageBalance!$L119/100))","v":{"$error":"#VALUE!"}},{"$error":"#VALUE!"},{"$error":"#VALUE!"},{"$error":"#VALUE!"},{"$error":"#VALUE!"},0,{"$f":"IF(C26=\"\",\"\",VLOOKUP(C26,ForageGrowthCurves!$A$6:'ForageGrowthCurves'!$O$62,15))","v":{"$error":"#N/A"}}]
[null,{"$f":"Field10","v":0},{"$f":"Kind10","v":0},{"$f":"Acres10","v":0},{"$f":"IF(C27=\"\",\"\",(LivestockForageBalance!$J121*LivestockForageBalance!$L121/100))","v":{"$error":"#VALUE!"}},{"$error":"#VALUE!"},{"$error":"#VALUE!"},{"$error":"#VALUE!"},{"$error":"#VALUE!"},0,{"$f":"IF(C27=\"\",\"\",VLOOKUP(C27,ForageGrowthCurves!$A$6:'ForageGrowthCurves'!$O$62,15))","v":{"$error":"#N/A"}}]
[null,{"$f":"Field11","v":0},{"$f":"Kind11","v":0},{"$f":"Acres11","v":0},{"$f":"IF(C28=\"\",\"\",(LivestockForageBalance!$J123*LivestockForageBalance!$L123/100))","v":{"$error":"#VALUE!"}},{"$error":"#VALUE!"},{"$error":"#VALUE!"},{"$error":"#VALUE!"},{"$error":"#VALUE!"},0,{"$f":"IF(C28=\"\",\"\",VLOOKUP(C28,ForageGrowthCurves!$A$6:'ForageGrowthCurves'!$O$62,15))","v":{"$error":"#N/A"}}]
[null,{"$f":"Field12","v":0},{"$f":"Kind12","v":0},{"$f":"Acres12","v":0},{"$f":"IF(C29=\"\",\"\",(LivestockForageBalance!$J125*LivestockForageBalance!$L125/100))","v":{"$error":"#VALUE!"}},{"$error":"#VALUE!"},{"$error":"#VALUE!"},{"$error":"#VALUE!"},{"$error":"#VALUE!"},0,{"$f":"IF(C29=\"\",\"\",VLOOKUP(C29,ForageGrowthCurves!$A$6:'ForageGrowthCurves'!$O$62,15))","v":{"$error":"#N/A"}}]
[null,{"$f":"Field13","v":0},{"$f":"Kind13","v":0},{"$f":"Acres13","v":0},{"$f":"IF(C30=\"\",\"\",(LivestockForageBalance!$J127*LivestockForageBalance!$L127/100))","v":{"$error":"#VALUE!"}},{"$error":"#VALUE!"},{"$error":"#VALUE!"},{"$error":"#VALUE!"},{"$error":"#VALUE!"},0,{"$f":"IF(C30=\"\",\"\",VLOOKUP(C30,ForageGrowthCurves!$A$6:'ForageGrowthCurves'!$O$62,15))","v":{"$error":"#N/A"}}]
[null,{"$f":"Field14","v":0},{"$f":"Kind14","v":0},{"$f":"Acres14","v":0},{"$f":"IF(C31=\"\",\"\",(LivestockForageBalance!$J129*LivestockForageBalance!$L129/100))","v":{"$error":"#VALUE!"}},{"$error":"#VALUE!"},{"$error":"#VALUE!"},{"$error":"#VALUE!"},{"$error":"#VALUE!"},0,{"$f":"IF(C31=\"\",\"\",VLOOKUP(C31,ForageGrowthCurves!$A$6:'ForageGrowthCurves'!$O$62,15))","v":{"$error":"#N/A"}}]
[null,{"$f":"Field15","v":0},{"$f":"Kind15","v":0},{"$f":"Acres15","v":0},{"$f":"IF(C32=\"\",\"\",(LivestockForageBalance!$J131*LivestockForageBalance!$L131/100))","v":{"$error":"#VALUE!"}},{"$error":"#VALUE!"},{"$error":"#VALUE!"},{"$error":"#VALUE!"},{"$error":"#VALUE!"},0,{"$f":"IF(C32=\"\",\"\",VLOOKUP(C32,ForageGrowthCurves!$A$6:'ForageGrowthCurves'!$O$62,15))","v":{"$error":"#N/A"}}]
[null,{"$f":"Field16","v":0},{"$f":"Kind16","v":0},{"$f":"Acres16","v":0},{"$f":"IF(C33=\"\",\"\",(LivestockForageBalance!$J133*LivestockForageBalance!$L133/100))","v":{"$error":"#VALUE!"}},{"$error":"#VALUE!"},{"$error":"#VALUE!"},{"$error":"#VALUE!"},{"$error":"#VALUE!"},0,{"$f":"IF(C33=\"\",\"\",VLOOKUP(C33,ForageGrowthCurves!$A$6:'ForageGrowthCurves'!$O$62,15))","v":{"$error":"#N/A"}}]
[null,{"$f":"Field17","v":0},{"$f":"Kind17","v":0},{"$f":"Acres17","v":0},{"$f":"IF(C34=\"\",\"\",(LivestockForageBalance!$J135*LivestockForageBalance!$L135/100))","v":{"$error":"#VALUE!"}},{"$error":"#VALUE!"},{"$error":"#VALUE!"},{"$error":"#VALUE!"},{"$error":"#VALUE!"},0,{"$f":"IF(C34=\"\",\"\",VLOOKUP(C34,ForageGrowthCurves!$A$6:'ForageGrowthCurves'!$O$62,15))","v":{"$error":"#N/A"}}]
[null,{"$f":"Field18","v":0},{"$f":"Kind18","v":0},{"$f":"Acres18","v":0},{"$f":"IF(C35=\"\",\"\",(LivestockForageBalance!$J137*LivestockForageBalance!$L137/100))","v":{"$error":"#VALUE!"}},{"$error":"#VALUE!"},{"$error":"#VALUE!"},{"$error":"#VALUE!"},{"$error":"#VALUE!"},0,{"$f":"IF(C35=\"\",\"\",VLOOKUP(C35,ForageGrowthCurves!$A$6:'ForageGrowthCurves'!$O$62,15))","v":{"$error":"#N/A"}}]
[null,{"$f":"Field19","v":0},{"$f":"Kind19","v":0},{"$f":"Acres19","v":0},{"$f":"IF(C36=\"\",\"\",(LivestockForageBalance!$J139*LivestockForageBalance!$L139/100))","v":{"$error":"#VALUE!"}},{"$error":"#VALUE!"},{"$error":"#VALUE!"},{"$error":"#VALUE!"},{"$error":"#VALUE!"},0,{"$f":"IF(C36=\"\",\"\",VLOOKUP(C36,ForageGrowthCurves!$A$6:'ForageGrowthCurves'!$O$62,15))","v":{"$error":"#N/A"}}]
[null,{"$f":"Field20","v":0},{"$f":"Kind20","v":0},{"$f":"Acres20","v":0},{"$f":"IF(C37=\"\",\"\",(LivestockForageBalance!$J141*LivestockForageBalance!$L141/100))","v":{"$error":"#VALUE!"}},{"$error":"#VALUE!"},{"$error":"#VALUE!"},{"$error":"#VALUE!"},{"$error":"#VALUE!"},0,{"$f":"IF(C37=\"\",\"\",VLOOKUP(C37,ForageGrowthCurves!$A$6:'ForageGrowthCurves'!$O$62,15))","v":{"$error":"#N/A"}}]
[null,{"$f":"Field21","v":0},{"$f":"Kind21","v":0},{"$f":"Acres21","v":0},{"$f":"IF(C38=\"\",\"\",(LivestockForageBalance!$J143*LivestockForageBalance!$L143/100))","v":{"$error":"#VALUE!"}},{"$error":"#VALUE!"},{"$error":"#VALUE!"},{"$error":"#VALUE!"},{"$error":"#VALUE!"},0,{"$f":"IF(C38=\"\",\"\",VLOOKUP(C38,ForageGrowthCurves!$A$6:'ForageGrowthCurves'!$O$62,15))","v":{"$error":"#N/A"}}]
[null,{"$f":"Field22","v":0},{"$f":"Kind22","v":0},{"$f":"Acres22","v":0},{"$f":"IF(C39=\"\",\"\",(LivestockForageBalance!$J145*LivestockForageBalance!$L145/100))","v":{"$error":"#VALUE!"}},{"$error":"#VALUE!"},{"$error":"#VALUE!"},{"$error":"#VALUE!"},{"$error":"#VALUE!"},0,{"$f":"IF(C39=\"\",\"\",VLOOKUP(C39,ForageGrowthCurves!$A$6:'ForageGrowthCurves'!$O$62,15))","v":{"$error":"#N/A"}}]
[null,{"$f":"Field23","v":0},{"$f":"Kind23","v":0},{"$f":"Acres23","v":0},{"$f":"IF(C40=\"\",\"\",(LivestockForageBalance!$J147*LivestockForageBalance!$L147/100))","v":{"$error":"#VALUE!"}},{"$error":"#VALUE!"},{"$error":"#VALUE!"},{"$error":"#VALUE!"},{"$error":"#VALUE!"},0,{"$f":"IF(C40=\"\",\"\",VLOOKUP(C40,ForageGrowthCurves!$A$6:'ForageGrowthCurves'!$O$62,15))","v":{"$error":"#N/A"}}]
[null,{"$f":"Field24","v":0},{"$f":"Kind24","v":0},{"$f":"Acres24","v":0},{"$f":"IF(C41=\"\",\"\",(LivestockForageBalance!$J149*LivestockForageBalance!$L149/100))","v":{"$error":"#VALUE!"}},{"$error":"#VALUE!"},{"$error":"#VALUE!"},{"$error":"#VALUE!"},{"$error":"#VALUE!"},0,{"$f":"IF(C41=\"\",\"\",VLOOKUP(C41,ForageGrowthCurves!$A$6:'ForageGrowthCurves'!$O$62,15))","v":{"$error":"#N/A"}}]
[]
[null,"AVERAGES:",null,{"$f":"D44/C44","v":{"$error":"#DIV/0!"}},{"$f":"E44/C44","v":{"$error":"#DIV/0!"}},{"$f":"F44/C44","v":{"$error":"#DIV/0!"}},{"$f":"SUBTOTAL(109,G18:G41)/C44","v":{"$error":"#DIV/0!"}},{"$f":"SUBTOTAL(109,H18:H41)/C44","v":{"$error":"#DIV/0!"}},{"$f":"SUBTOTAL(109,I18:I41)/C44","v":{"$error":"#DIV/0!"}},{"$f":"(D44/I10)","v":{"$error":"#DIV/0!"}}]
[null,"TOTALS:",{"$f":"COUNTIF(F18:F41,\">0\")","v":0},{"$f":"SUBTOTAL(109,D18:D41)","v":0},{"$f":"SUBTOTAL(109,E18:E41)","v":0},{"$f":"SUBTOTAL(109,F18:F41)","v":0},null,null,null,"Avg. Acres/Animal"]
[null,null,"(fields)"]
[null,"TOTAL AVAILABLE PASTURE FORAGE  (Lbs.):",null,{"$f":"F44","v":0}]
[]
[null,"DEFINITIONS"]
[]
[null,"Paddock Factor= A factor related to the relative size and production of each field"]
[null,"Animal Density= The pounds of animals per acre concentrated on a field at one time"]
[null,"Minimum Grazing Period= The approxiamate grazing time in each field during fast forage growth.  Based on minimum rest periods"]
[null,"Maximum Grazing Periods= The approxiamate grazing time in each field during slow forage growth.  Based on maximum rest periods"]
[null,"Minimum and Maximum Rest Periods= The number of days forage should be given rest be grazing again"]
[null,"Minimum Grazing Height= Forage should not be grazed below these heights"]
[null,"Intake rate= The daily consumption as a percentage of the animals body weight; Guide- 2.0% for maintenance, 3.0% for average production, 4.0% for high production, for beef cows (year round) use 2.6%."]
[null,"Grazing Efficiency= The percent of total forage utilized by the animal; Guide- 1-4 fields-< 25%-30%; 5 fields- 35%; 6 fields- 40%; 7 fields- 45%; 8 fields- 50%; 11 fields- 55%; 16 fields-60%; 31 fields -65%; 63 fields-70%; strip grazing- 70% -75% (harvest efficiency)."]

{"sheet":"Summary","index":2,"n_rows":74,"n_cols":6,"rows_kept":74,"cut":false,"hidden":false,"merged":[[9,1,9,3],[60,1,61,5],[70,1,70,5],[71,1,71,5],[1,1,1,5]]}
[]
[null,"DETAILED SUMMARY"]
[]
[null,"Name:",{"$f":"LivestockForageBalance!$H$6","v":0}]
[null,"System ID:",{"$f":"LivestockForageBalance!$H$7","v":""}]
[null,"County:",{"$f":"LivestockForageBalance!$H$9","v":""}]
[null,"Date:",{"$f":"LivestockForageBalance!$H$8","v":""}]
[null,"By:",{"$f":"LivestockForageBalance!$H$10","v":0}]
[null,"LIVESTOCK"]
[null,"The class(es) of livestock used to make these calculations is:"]
[null,null,"Cow Calf Herd 1"]
[null,null,"Cow Calf Herd 2"]
[null,null,"Cow Calf Herd 3"]
[null,null,"Stockers Herd 1"]
[null,null,"Stockers Herd 2"]
[null,null,"Seasonal Dairy"]
[null,null,"Annual Dairy"]
[null,null,"Bulls"]
[null,null,"Horses"]
[null,null,"Goats "]
[null,null,"Sheep"]
[]
[null,"The total number of livestock used for these calculations is:",null,null,{"$f":"LivestockForageBalance!I41","v":0},"Head"]
[null,"The average weight of all livestock used for these calculations is: ",null,null,{"$f":"TimeControlWorksheet!$I$9","v":0},"Pounds"]
[null,"The estimated average daily intake rate used is:",null,null,{"$f":"LivestockForageBalance!K41","v":0},"% of animal weight"]
[null,"The estimated annual total livestock forage needs are:",null,null,{"$f":"LivestockForageBalance!M41","v":0},"Lbs/Year"]
[null,"FORAGE"]
[null,"The total usable grazing and haying acres are:",null,null,{"$f":"TotalAcreGrazed+LivestockForageBalance!I224","v":0},"Acres"]
[null,"The estimated harvested pounds of hay available (from this farm) are*:",null,null,{"$f":"LivestockForageBalance!N256","v":0},"Lbs"]
[null,"The additional available hay or forage purchased or brought in from other sources is*:",null,null,{"$f":"LivestockForageBalance!N264","v":0},"Lbs"]
[null,"The additional available hay or forage stored on farm as carry over*:",null,null,{"$f":"LivestockForageBalance!N260","v":0},"Lbs"]
[null,"The estimated total pounds of forage from hay (carry over) or harvested forage (on and off farm) are:",null,null,{"$f":"E29+E30+E31","v":0},"Lbs"]
[null,"The estimated total pounds of forage available through grazing are:",null,null,{"$f":"LivestockForageBalance!N248","v":0},"Lbs"]
[null,"The estimated average grazing efficiency used is:",null,null,{"$f":"TimeControlWorksheet!$E$11","v":{"$error":"#DIV/0!"}},"percent"]
[null,"The estimated total pounds of forage (haying and grazing) are:",null,null,{"$f":"SUM(E32:E33)","v":0},"Lbs/Year"]
[null,"(* Incorporates storage/feedling loss)"]
[]
[null,"DIFFERENCES"]
[null,"The estimated difference between the total forage and animal needs is:   ",null,null,{"$f":"$E$35-$E$26","v":0},"Lbs dry matter"]
[null,"(A minus sign equals estimated additional amount needs per year for the number of animals shown above.",null,null,"OR","intake/Year"]
[null,"The figures consider all hay sources and may be excessive. No minus sign means a surplus is estimated)",null,null,{"$f":"$E$39/2000","v":0},"Tons/Year"]
[null,"CARRYING CAPACITY ESTIMATES"]
[null,"Pasture only"]
[null,"        For this operation, using the type and size of your livestock, it is estimated that the "]
[null,"        forage produced from the pasture (grazing only during growing season) during a period of ………",null,null,{"$f":"LivestockForageBalance!H11","v":0},"days*"]
[null,"        is enough to supply the forage needs of (does not include the typical hay feeding months)…….",null,null,{"$f":"$E$33/(E24*(E25/100)*E45)","v":{"$error":"#DIV/0!"}},"head** "]
[null,"        *Normally 250-270 days; **For stocker operations with less than a 240 day duration on the system, the above calculations may be incorrect."]
[]
[null,"               For the next 3 calculations, forages from the grazed pasture only was considered.  Hay is not included."]
[null,"If the grazing efficiency on grazed acres was 40%, enough pasture forage is estimated to feed:",null,null,{"$f":"IF($E$34<40,(((TimeControlWorksheet!$F$44/($E$34/100))*0.4*1.05))/(LivestockForageBalance!$J$41*(TimeControlWorksheet!$I$12/100)*$E$45),\"already at 40% efficiency\")","v":{"$error":"#DIV/0!"}},{"$f":"IF($E$34<40,\"head*\",\"\")","v":{"$error":"#DIV/0!"}}]
[null,"If the grazing efficiency on grazed acres was 50%, enough pasture forage is estimated to feed:",null,null,{"$f":"IF($E$34<50,(((TimeControlWorksheet!$F$44/($E$34/100))*0.5)*1.1)/(LivestockForageBalance!$J$41*(TimeControlWorksheet!$I$12/100)*$E$45),\"already at 50% efficiency\")","v":{"$error":"#DIV/0!"}},{"$f":"IF($E$34<50,\"head*\",\"\")","v":{"$error":"#DIV/0!"}}]
[null,"If the grazing efficiency on grazed acres was 60%, enough pasture forage is estimated to feed:",null,null,{"$f":"IF($E$34<60,(((TimeControlWorksheet!$F$44/($E$34/100))*0.6)*1.15)/(LivestockForageBalance!$J$41*(TimeControlWorksheet!$I$12/100)*$E$45),\"already at 60% efficiency\")","v":{"$error":"#DIV/0!"}},{"$f":"IF($E$34<60,\"head*\",\"\")","v":{"$error":"#DIV/0!"}}]
[null,"   When grazing efficiency is increased, total production will likely increase as well. Some increases in the production was assumed "]
[null,"   (5%,10%,15%) to come up with the carrying capacity estimates if the grazing efficiency for this operation was increased."]
[]
[null,"Total Balance for Operation considering Pasture and Hay (on and off farm sources)"]
[null,"For your operation, using the type and average size of your livestock, according to these calculations, the estimated carrying capacity on this farm,"]
[null,"considering the pasture and hay (on&off farm sources) for a full 365 day period is:………. ",null,null,{"$f":"IF($E$32=0,\"no hay inventoried\",IF($E$46<(E35/(E24*(E25/100)*365)),E33/(E24*(E25/100)*E45),E35/(E24*(E25/100)*365)))","v":"no hay inventoried"},{"$f":"IF($E$32>0,\"head\",\"\")","v":""}]
[null,"The above calculation was based on the following amount of hay available……..…………………..………….",null,null,{"$f":"IF(E32>0, E32, \"no hay inventoried\")","v":"no hay inventoried"},{"$f":"IF($E$32>0,\"Lbs/Year\",\"\")","v":""}]
[null,"However, excess hay beyond the needs of animals (during hay feeding periods) shown under \"carrying capacity for pasture\"  was not considered.  "]
[null,"     DEFINITIONS"]
[]
[]
[null,"Total Forage Production= The total above ground biomass in pounds of dry matter per acre (this is not the harvested yield).  "]
[null,"Paddock Factor= A factor related to the relative size and production of each field"]
[null,"Animal Density= The pounds of animals per acre concentrated on a field at one time"]
[null,"Minimum Grazing Period= The approxiamate grazing time in each field during fast forage growth.  Based on minimum rest periods"]
[null,"Maximum Grazing Periods= The approxiamate grazing time in each field during slow forage growth.  Based on maximum rest periods"]
[null,"Minimum and Maximum Rest Periods= The number of days forage should be given rest be grazing again"]
[null,"Minimum Grazing Height= Forage should not be grazed below these heights"]
[null,"Intake rate= The daily consumption as a percentage of the animals body weight; Guide- 2.0% for maintenance, 3.0% for average production, 4.0% for high production, for beef cows (year round) use 2.6%."]
[null,"Grazing Efficiency= The percent of total forage utilized by the animal; Guide- 1-4 fields-< 25%-30%; 5 fields- 35%; 6 fields- 40%; 7 fields- 45%; 8 fields- 50%; 11 fields- 55%; 16 fields-60%; 31 fields -65%; 63 fields-70%; strip grazing- 70% -75% (harvest efficiency).."]
[null,"WS or CS= warm season forage or cool season forage"]
[null,"Carrying Capacity= The number of animals, based on weight of animals, a given farm may be able to provide forage for a given period."]

{"sheet":"Instructions","index":3,"n_rows":173,"n_cols":5,"rows_kept":173,"cut":false,"hidden":false,"merged":[[169,2,169,3],[172,2,172,3],[18,2,18,3],[19,2,19,3],[20,2,20,3],[21,2,21,3],[29,2,29,3],[30,2,30,3],[31,2,31,3],[159,2,159,3],[161,2,161,3],[164,2,164,3],[166,2,166,3],[82,2,82,3],[89,2,89,3],[157,2,157,3],[49,2,49,3],[77,2,77,3],[79,2,79,3],[35,2,35,3],[42,2,42,3],[37,2,37,3],[39,2,39,3],[40,2,40,3],[41,2,41,3],[60,2,60,3],[63,2,63,3],[50,2,50,3],[52,2,52,3],[53,2,53,3],[56,2,56,3],[58,2,58,3]]}
[]
[null,null,null,"GRAZE4.XLSM"]
[null,null,null,"version 3.3"]
[null,null,null,"You must have Macros Enabled in order to utilize the full functionality of the model."]
[]
[null,null,null,"August, 1999; revised April 2000, revised December 2003; revised December 2010; revised April 2013, September 2017."]
[null,null,null,"Oroginally developed in NRCS, Missouri, Area 4 by Pat Adams, Area Resource Conservationist (Springfield, MO) for use in inventory, documentation, and planning for Prescribed Grazing systems."]
[]
[null,null,null,"For Assistance Contact: Roger Staff at 618.703.3007 or"]
[null,null,null,"Matt Bunger at 309.585.6377"]
[]
[null,null,null,"For Technical Concerns with the Functionality of the Model Contact:  "]
[null,null,null,"Bryon Kirwan, State Economist, 217.353.6638"]
[null,null,null,"____________________________________________________________________________"]
[]
[null,null,"Table of Contents:  Select to jump to topic"]
[null,null,"Introduction"]
[null,null,"Advantages and Disadvantages"]
[null,null,"Entering Data"]
[null,null,"Printing Worksheets"]
[null,null,"Saving Data"]
[null,null,"Livestock Forage Balance Worksheet"]
[null,null,null,"Livestock Needs and Demand Schedule"]
[null,null,null,"Grazing System Pasture Forage Production"]
[null,null,null,"Alternative Pasture Forage Production"]
[null,null,null,"Hay Production and Inventory for Fields Hayed, Silage, Haylage Only"]
[null,null,null,"Summary of Livestock Needs and Pasture Forage Production"]
[null,null,null,"Summary: Feed and Forage Balance"]
[null,null,null,"Graph on Availability Versus Needs, by Month"]
[null,null,"Time Control Grazing Worksheet "]
[null,null,"Field Worksheet"]
[null,null,"Explanation Sheet for Landowner Worksheet"]
[null,null,null,"___________________________________________________________________________________"]
[]
[null,null,"Introduction",null,"Back to top"]
[null,null,"The GRAZE4 program was originally developed for use to plan, implement and document grazing systems in southwest Missouri.  It utilized the electronic J.S.Agron.1 (Livestock Forage Balance worksheet) developed by staff in Area 5 (Cape Girardeau) plus incorporated the Time Control Grazing Worksheet (known to most in this area as GRAZWS1.wk1 and sent to the field offices 9/14/95 by IRM transmittal). GRAZE4 made improvements to both tools plus added an easy to use graph that plots the amount of forage needed per month against the amount available.  This simple graph does not require any manipulation by the user except simply printing it out.  The Livestock-Forage Balance worksheet can be used independent of the other worksheets.  The Time Control Grazing worksheet requires the Livestock Forage Balance worksheet to be completed first.  Version 3.0 incorporated a means to separate hay fields and fields that are both hayed and grazed from the fields that are solely used for pasture.  It also added features to make it easier to maneuver, \"start over\", and to print.  It also added a summary for the system.  "]
[]
[null,null,"Version (3.1) incorporated the following updates:  1)  The font (text) has been enlarged in the drop-down menus for the \"Kind fo Forage\" column on the Balance Worksheet and the \"Fields hayed…only\" column on the Hay Inventory.  Double-click in the cell to access the drop-down menu.  2)  Several species of forage have been added.  They are timothy, birdsfoot trefoil, white/ladino clover, redtop, alsike clover, Kentucky bluegrass, perennial ryegrass, turnips, and oats.  3)  Any new forage growth occurring in March that is not eaten is \"rolled over\" - added to the accumulated balance for April.  For specific questions about these changes please contact Lauren Cartwright, Agricultural Economist 573-876-9415."]
[]
[null,null,"The current version (3.2) incorporates several upgrades and an updated user interface. :"]
[null,null,"1)  The previous three worksheets; \"step 1 Balance Worksheet\", \"step 3 Avail. vs. Needs Graph\", and step 4 Hay Inventory\" have been consolidated into one worksheet \"LivestockForageBalance\"."]
[null,null,"2)  The \"Detailed Summary\" worksheet is available by selecting a button called \"View Detailed Summary\" at the end of the \"LivestockForageBalance\" worksheet.  By opening the summary using the button it enables the model to automatically insert information into the Summary sheet based on the inputs provided.   "]
[null,null,"3) LivestockForageBalance Worksheet:  "]
[null,null,null,"a)  Check boxes are available to select the livestock class or classes to be modeled, so only those being modeled are visible."]
[null,null,null,"b)  Once the livestock class or classes are selected and the associated rows are visible,most livestock classes will require the user to enter additional information by selecting the \"…Mgt Info\"  button next to the livestock class name.  Clicking this button will open up another window with instructions."]
[null,null,null,"c)  The livestock classes for Cow Calf, Dairy, Bulls and Horses have the option to select to manage these herds on the grazing system year round, or you can now also select to move them to either an alternative pasture or dry lot for appropriate periods of time. These selections can be made within the \"...Mgt Info\"buttons next to the livestock class name.  If an alternative pasture or dry lot is selected, the model will the track the forage demand of the grazing system separate from the forage demand of the alternative pasture or forage demand of the dry lot. Where an alternative pasture will be utilized for a portion of the year, an additional input area is available to enter the forage production infomation of the alternative pasture."]
[null,null,null,"d)  When entering the fields/paddocks for the Grazing System Pasture Forage Production, the user has the option to model a hay cutting on the pasture prior to grazing by selecting the \"Yes\" button associated with that particular field/paddock.  If the field/paddock will be hayed (by selecting the \"Yes\"option), then that field will be automatically entered into the Hay Production and Inventory area where the user can enter the associated hay yield information."]
[null,null,null,"e) The user can automatically calculate the Pasture Grazing Efficiency by selecting the button at the bottom of the Grazing System Pasture Forage Production sectionof the worksheet called \"Calculate Pasture Grazing Efficiency\".  The user can also override the calculated Pasture Grazing Efficiency at any time by simply typing the value into the cell."]
[null,null,null,"f)  The Total Production Pounds for hay calculation (for both the fields hayed and pastured, and hayed only) is calculated based on the forage growth curves utilizing themonth of haying input."]
[null,null,"4)  The Time Control Worksheet has been updated to automatically show the appropriate number of rows based on the number of fields/paddocks entered in the Livestock Forage Balance worksheet."]
[null,null,"5)  The Field Worksheet has been updated to include additional information that is included in the model"]
[]
[null,null,"It is highly recommended that planners with minimal grassland planning experience ask for assistance on interpretation of these spreadsheets before using GRAZE4 on a wide-scale basis.  This program is a quick and easy tool to use but it is extremely important that the user understand the numbers being generated."]
[null,null,"This version of the GRAZE4 program was developed using EXCEL 2010.  Please report any compatibility problems to Bryon Kirwan."]
[]
[null,null,"Advantages and Disadvantages",null,"Back to top"]
[null,null,"GRAZE4 is very simple to use.  Data like fields, forage mixtures, acres, and total forage production only need to be entered once to complete all worksheets.  Entering data, printing and reading the reports and graphs are fairly easy and straight-forward.    This program will work well for the majority of the grazing systems most offices deal with.  One-herd systems where the majority of the nutrition is from grazing are ideal situations for this program."]
[]
[null,null,"GRAZE4 also has difficulty with grazing systems where a leader-follower system or “put and take” operation is practiced.    Multiple herds of different herds where one herd grazes, as an example, 365 days and the other herd 180 days will also be a problem with this program.  The more complicated systems should probably utilize GSAT for planning.  "]
[]
[null,null,"The GRAZE4 program does not replace the next version of GLA (GSAT) or other existing tools.  It is simply another option or alternative to use as a tool for planning grazing systems."]
[]
[null,null,"Entering Data",null,"Back to top"]
[null,null,"Once you have the program on the screen, take a minute to wander around the program.  You will see tabs on the bottom of the page that takes you to different worksheets.  You may want to play with the \"zoom\" to make the page and font size fit your eyes and the screen size you are using."]
[]
[null,null,null,"There are basically 5 tabs on the bottom.  The \"LivestockForageBalance\" tab is the main worksheet to run the model.  The \"Time ControlWorksheet\" requires information from the \"LovestockForageBalance\".  The remaining tabs; \"Instructions\", \"Field Worksheet\", and \"Explanation Sheet for LO\" are all independent support information."]
[]
[null,null,null,"Most of the program has been protected so changes cannot be made in the formulas or data entered in the cells.  A “cell” is the area in the EXCEL spreadsheet defined by the columns shown on the top (A,B,C...) and the rows shown on the left side (1,2,3...).   In a different color (may be yellow on most computers), you will see the unprotected cells where an entry is needed or allowed.  Cells that are not shaded are protected from edits.   To delete an entry in an unprotected yellow cell, highlight that cell and hit delete. The mouse can be used to “block “ several cells and then hit delete.  "]
[]
[null,null,null,"If for some reason, you need to make changes in cells that are protected, here are the steps to unprotect the spreadsheet."]
[null,null,null,"Select Tools"]
[null,null,null,"   Protection"]
[null,null,null,"     Unprotect Sheet"]
[null,null,null,"Make changes as needed and re-protect the worksheet."]
[null,null,null,"To re-protect the sheet, follow the same steps (there is no password)."]
[]
[null,null,"Printing Worksheets",null,"Back to top"]
[null,null,"Printing Information on the Livestock Forage Balance worksheet:  WIthin the summary area of the Livestock Forage Balance worksheet a box is available with multiple buttons to print the information entered into the worksheet in a print-friendly format.  Select the button for the area of the Livestock Forage Balance worksheet you want to print, and a Print Preview screen will open with the selected infomation. You can review the print setup and make any adjustments before printing.  "]
[]
[null,null,"Additionally, print buttons are available to print the Time Control Worksheet, Instructions, Detailed Summary, Field Worksheet, and Explanation Sheet for the Landowner.  The print buttons for these areas of the tool are available within these specific worksheets."]
[]
[null,null,"Saving Data",null,"Back to top"]
[null,null,"If you want to save the data for an individual, save the file as a different file name.  The GRAZE4_ver3.2.xlsm file should be the file you bring up when you start working on a new system.  By following these guidelines, the original file should remain clean and clear of any potential bugs that may take place as you use the program.  Use the below steps if you want to save files for individual producers:"]
[null,null,null,"Click the button called \"Save As…\""]
[null,null,null,"         in the block under File Name, type in the unique name you want to save that file as."]
[null,null,null,"You need to navigate to the folder where you want to save the file.  You may consider storing the file in the toolkit customers folder.  This may be the most convenient and feasible location.  This way everyone will have access to it.  However, each time you save this file to a different name you are saving over 200 KB of information which over time can add up.  Just be aware that these files may need to be deleted in the future if drive space becomes limited.  "]
[null,null,null,"            Click OK"]
[]
[null,null,"Livestock Forage Balance Worksheet",null,"Back to top"]
[null,null,"This worksheet calculates the monthly needs of the livestock along with the pasture forage availability by month and any hay either produced on farm or puchased off farm.  "]
[null,null,null,null,"Back to top"]
[null,null,null,"Livestock Needs and Demand Schedule"]
[null,null,null,"This section calculates the monthly forage demand of the livestock being modeled.  Depending on the class of livestock, the user will enter required information for the model to use to calculate the demand.  The first step is to select the class (or classes) of livestock to model by clicking the checkbox next to the name.  You can remove an erroneous selection at any time by unchecking the checkbox.  You can select as many livestock classes as needed.  There are no limits or restrictions.  Each livestock class will require the user to input additional information.  "]
[]
[null,null,null,"Cow Calf Pairs:  Up to three separate herds are available to model.  Once the checkbox(es) is(are) selected a button will be available next to the livestock class name called \"Herd X Mgt Info\".  Selecting this box will open a form for the user to enter the calving month and select a management option.  The herd may be managed on the grazing system year round, moved to an alternative pasture for part of the year, or moved to a dry lot for part of the year.  If either the alternative pasture or dry lot option is selected, the user will be prompted to enter the months associated with the alternative management. Note:  Whe using the radio buttons to select the management option, be sure that the radio button shows as selected (filled).  If not, then re-select the option.  The selected management option will be reflected on the worksheet in the row just below the livestock class name.   In addition to entering the Management information, also enter the information in yellow cells of the spreadsheet.  "]
[]
[null,null,null,"Stockers:  One or two separate herds are available to model.  Management info for Stockers includes the starting weight, ADG and the months on the grazing system.  "]
[]
[null,null,null,"Dairy:  There are two Dairy options, a seasonal dairy or an annual dairy.  The seasonal dairy is for herds that will be managed where all cows are not lactating during a period of the year.  The management info needed is lactation period and how the cows will be managed during the non-lactation period (remain on grazing system, move to alternative pasture, or move to a dry lot).  The annual dairy is for herds where some portion of the cows are lactating and being milked year round.  In this option, you always have a portion of the herd that is dry and a portion that is lactating.  Enter the management information for each segment of the dairy herd.  For example; a 100 cow dairy where 20% of the herd is dry at any time.  Enter 80 lactating cows and 20 dry cows into the planned number and the associated intake rates.  Under the management buttons enter how the lactating cows are managed and how the dry cows are managed.  "]
[]
[null,null,null,"Bulls:  The bull livestock class provides several management options.  You can keep the bull on the grazing system year round or you can only move the bull(s) to the grazing system only during a breeding period and otherwise keep them on an alternative pasture or dry lot.  There are also options for one or two breeding seasons where the bull(s) may be moved to the grazing system twice in one year."]
[]
[null,null,null,"Horses:  The horses livestock class also offer the option to manage the horse herd on the grazing system year round, or move the herd to an alternative pasture or dry lot for part of the year."]
[]
[null,null,null,"Goats and Sheep:   In this version, goats and sheep livestock classes do not have any alternative management options, the user will simply enter the basic info in the yellow cells.  The model assumes all grazing is done on the grazing system."]
[]
[null,null,null,"Summary:   After all livestock demand information has been entered, the model provides a summary of the total forage demand by month for the Grazing System, Alternative Pasture and/or Dry Lot."]
[null,null,null,null,"Back to top"]
[null,null,null,"Grazing System Pasture Forage Production"]
[null,null,null,"This section calculates the grazing system pasture forage supply provided by the producer's land.  The grazing system forage production calculation is intended to capture the forage produced on the main grazing system that is managed specifically for grazing and will typically be the managed rotational grazing system.  The model allows up to 24 fields/paddocks to be entered by selecting the \"+\" icon.."]
[]
[null,null,null,"For each field/paddock, enter the field number (identifier), kind of forage (double-click in the cell to access a drop down menu to select the forage type), acres, yield (total forage production), and the grazing efficiency.  The model takes into account the forage you have selected and the associated growth curve for that forage being pastured.  This worksheet simply multiples the pounds per acre of total above ground production X acres X grazing efficiency X the % growth for that month. "]
[]
[null,null,null,"If any fields are managed by haying and then used as pasture, this option can be captured in the model by selecting the \"Yes\" button provided as an option with each field/paddock entered.  Selecting the \"yes\" button will prompt the user to input the month that the haying will occur.  The model will reserve the forage production up to the haying month towards hay production only, and only the growth after the hay is cut will be available and calculated as part of the pasture forage availablilty.  The field will also be automatically added into the hay production and inventory section below where the actual hay production amount will be captured.  At any time, the user can select the \"No\" button to remove the haying option from any field/paddock reverting that field to grazing production only."]
[]
[null,null,null,"Where a field will be hayed and then grazed, you will need to enter the Hay Harvest Efficiency (%).   The Hay Total Production Pounds is calculated by multiplying the percent of growth that has occured at the time of haying based upon the Forage Growth Curves."]
[]
[null,null,null,"At this time there is not an option to graze and then hay a field.  "]
[]
[null,null,null,"Some farms have several fields that have the same forage species in all fields.  To efficiently enter the forage species for several fields, first enter the specie for the first field and then do a copy and paste function for the rest of the fields that have the same mixture. "]
[]
[null,null,null,"After all fields are entered, the user can automatically calclate the Pasture Grazing Efficiency % by selecting the \"Calculate Pasture Grazing Efficiency\" button.  Selecting the \"Calculate Pasture Grazing Efficiency\" button will calculate the pasture grazing efficiency for each field/paddock by dividing the Total Usable Acres Grazed by the Acres of each field/paddock to generate a Paddock Equivalency Value.  The Paddock Equivalency Value is used to return the associated Pasture Grazing Efficiency value based on a table provided in the model.  The user can override this calculation at any time by simply typing an efficiency value into the associated cell.  To return to the calculated efficiency values, simply select the \"Calculate\" button again."]
[]
[null,null,null,"Total Forage Production"]
[null,null,null,"Estimating total forage production (TFP) is tough.  First off, you have to remember that total forage production is not the same as \"yield\".  Yield usually considers what is actually removed and harvested whether by the animal or machine.  Total forage production is the yield plus the growth that is left below what the animal eats or machine cuts.   "]
[]
[null,null,null,"It is up to the planner to make the best estimate they can.  As a rule of thumb, if you know hay yields, for example 2 tons, then take the yield (4000 lbs) divided by 0.7 to give an estimated TFP.  In this case 5700 lbs TFP.  The TFP will depend on several factors that you need to consider.  The soil, the fertility, the forage chracteristics (density, vigor, species...), and the management should all be considered.  There are several resources that can be used as guides to help determine TFP.  An experienced grassland planner should always be considered a resource.  The farmer himself should be considered, especially if he/she have records of production.  A soil survey can be used and will have information on production.  The FOTG, section II will have information on TFP.  This guide splits production by the Pasture Suitability Group (PSG) and may encompase several soils within the PSG.  Old GLA records and tables have this information (although not many planners will have this). "]
[null,null,null,"Another resource that can be found in the FOTG section II is called \"Productivity of Missouri Soils\". This resource gives the index for soils and links the index to production levels for hay and pasture.  Since this guide has not been revised since 1995, there may be some new soils that are not included.  However, a soil scientist, can help estimate the index based on the characteristics of the soil.  Illinois has different references within the eFOTG.  Illinois users look at IL info."]
[]
[null,null,null,"NOTE: Regardless of which of the above resources you use, you need to make sure of the units being used in the guide (yield versus TFP) plus the type of management (ex. high versus medium level of management, low versus medium soil fertility...) being assumed to come up with estimates."]
[null,null,null,null,"Back to top"]
[null,null,null,"Alternative Pasture Forage Production"]
[null,null,null,"This section captures forage produced for livestock that are managed for some period of time on an alternative pasture.  An alternative pasture is typically some unmanaged acreage where animals are moved to graze when peak productivity is not required, such as when dairy cows are dry or heifers are not lactating, or when bulls are not with cows for breeding."]
[]
[null,null,null,"Only utilize this section if you have selected to manage any of your livestock on an alternative pasture in the Livestock Needs and Demand Schedule.   This additional input allows a comparison of the livestock demand and forage available during the period of time the alternative pasture is utilized.  "]
[null,null,null,null,"Back to top"]
[null,null,null,"Hay Production and Inventory for Fields Hayed, Silage, Haylage Only"]
[null,null,null,"This section allows you to inventory hay fields in the system.  You enter the field numbers, species, acres, total forage production, and the harvest efficiency.  As a rule of thumb for haying operations, the harvest efficiency is usually 70%.  The Hay Total Production Pounds is calculated by multiplying the percent of growth that has occured at the time of haying based upon the Forage Growth Curves."]
[]
[null,null,null,"The Summary Feed and Forage Balance has options where you can also enter the amount of hay or forage purchased or brought into the system from off-farm sources.  This can be important in situations where no hay is cut (or a percentage of the hay) on this farm (the forage produced on the farm does not support the entire herd for the period that are retained on this system).  Most likely if this hay is not accounted for the carrying capacity will not reflect the ability to carrying more animals during hay feeding times.  In otherwords the summary page will show a lower carrying capacity because hay is not shown as being brought in.  However, planners should be aware and recognize signs of potential overgrazing during the growing season and not use the \"additional off-farm\" feed simply to balance the system for the desired herd size when in actuality the system cannot carry the herd except during periods of fast growth.  "]
[null,null,null,null,"Back to top"]
[null,null,null,"Summary of Livestock Needs and Pasture Forage Production"]
[null,null,null,"This section is an expansion of the summary provided in previous versions.  Since the management options allow management on alternative pasture and/or dry lot for a portion of the year for some livestock classes, the summary has been expanded to include these alternative options,so the user can balance all forage needs of the entire operation for all livestock. "]
[]
[null,null,null,"The alternative pasture summary captures any livestock forage demand on alternative pasture and compares that with the alternative pasture forage production.  If an alternative pasture is not utilized as part of the livestock management system (indicated by not selecting this management option for any livestock classes in the Livestock Needs and Demand Schedule area and not entering data into the Alternative Pasture Forage Production section) then this summary area will remain blank.  "]
[]
[null,null,null,"The dry lot summary captures any livestock forage demand during the period of time they are confined to a dry lot.  Any forage demand on a dry lot must be met with hay.  If a dry lot is not utilized as part of the livestock management system (indicated by not selecting this management option for any livestock classes in the Livestock Needs and Demand Schedule area) then this summary area will remain blank."]
[null,null,null,null,"Back to top"]
[null,null,null,"Summary: Feed and Forage Balance"]
[null,null,null,"This summary provides an overview of the total forage demands and total forage supplied (from both the grazing system and alternative pasture if that is being utilized).  "]
[]
[null,null,null,"The summary then calculates the hay inventory that is available to make up and deficiencies in the pasture forage supply and livestock demands.  Additionally, this section can be used to estimate if there will be extra hay produced on farm that could be sold, or capture hay that must be purchased to make up any deficiencies.  A hay carry over inventory input has been added to capture any hay that may already be stored on site.  This input can also be utilized for multi year planning, where you run the model for year one and have some extra hay, then run another iteration of the model to represent a second year of management and that extra hay produced in year 1 can be entered as carry over for year 2."]
[null,null,null,null,"Back to top"]
[null,null,null,"Graph on Availability Versus Needs, by Month"]
[null,null,null,"This graph gives a visual representation of what is occurring on this farm over the year.  It does a good job of showing deficits such as during the summer, when warm season perennials or annuals may fill the gap, or during the winter months when forages have ceased production.  Also, it will typically show the surplus of forage in the spring/early summer months, when hay is typically harvested.  This graph is only looking at forages produced on pasture fields and does not reflect the forages harvested for hay.  A third line in the graph also shows the accumulated balance of forage over the year.  The accumulated balance captures forage that was not eaten during high growth periods and thus available for the animals in future months.  When the accumulated balance is below zero, supplemental forage is required."]
[]
[null,null,"Time Control Grazing Worksheet ",null,"Back to top"]
[null,null,"The Time Control Grazing Worksheet no longer calculates the carrying capacity (shown on summary).  It shows the minimum and maximum grazing days based on the size of the pastures and production, and calculates the animal density per acre.  The Min/Max grazing days are a guide for the producer.  Minimum grazing days for when forages are growing fast, maximum for when forages are growing slower.  The 528a standard and specification will give you guidelines on what is acceptable.  This worksheet also has the capacity of 24 fields to be entered which are carried over from step 1.  "]
[]
[null,null,"To use this worksheet, the user has to complete the Livestock Forage Balance Worksheet FIRST.  "]
[]
[null,null,"Once the Livestock Forage Balance worksheet is completed, the Time Control Grazing worksheet only requires three entries.  The cells that require manual entry by the user are: Minimum and Maximum Rest Periods (from the 528a standard and specifications), and Number of Herds.  Entries like name, system ID, county, date, fields, acres, and total forage production is carried directly over from the Livestock Forage Balance worksheet.  Data like grazing efficiency, animal weights, animal numbers, and intake rate are also derived from the other worksheet and weighted averages are calculated and automatically entered.  Minimum grazing heights are populated automatically as well."]
[]
[null,null,"Detailed Summary Worksheet",null,"Back to top"]
[null,null,"You access the Detailed Summary by selecting the \"View Detailed Summary\" button from the Livestock Forage Balance worksheet.  The button is located next to the Summary Feed and Forage Balance.  By opening the summary using the button it enables the model to automatically insert information into the Summary sheet based on the inputs provided.   "]
[]
[null,null,"As the name implies, this sheet summarizes the information from other steps in a concise meaningful format for the landowner.  It estimates the carrying capacity for the operation and also estimates the carrying capacity at different levels of grazing efficiencies.  There is one user entry required to estimate the carrying capacity on the pasture only.  The definitions for terms used on all worksheets are also located on the bottom of this page."]
[]
[null,null,"Field Worksheet",null,"Back to top"]
[null,null,"This sheet is intended for the planner to print out a blank sheet, take it to the field and complete while talking to the producer and working with the producer.  It allows the entries required to complete the other Graze4 worksheets."]
[]
[null,null,"Explanation Sheet for Landowner Worksheet",null,"Back to top"]
[null,null,"This sheet is a means to explain the worksheets that you are providing to them.  Print it out and check the sheets that you are including in the plan."]

{"sheet":"Field Worksheet","index":4,"n_rows":129,"n_cols":11,"rows_kept":129,"cut":false,"hidden":true,"merged":[[124,3,124,9],[57,1,58,9],[129,1,135,9],[61,4,63,4],[2,1,2,10],[125,3,125,9],[18,1,18,10],[28,1,28,8],[36,1,36,10],[43,1,43,9],[60,1,60,9],[70,1,70,4],[109,1,109,5],[121,1,121,9],[14,1,14,10],[122,3,122,9],[123,3,123,9],[44,4,46,4],[44,3,46,3],[44,2,46,2],[44,1,46,1],[51,4,53,4],[51,3,53,3],[51,2,53,2],[51,1,53,1],[80,1,80,9],[71,1,73,1],[71,2,73,2],[71,3,73,3],[71,4,73,4],[61,2,63,2],[61,1,63,1],[19,4,21,4],[19,3,21,3],[19,2,21,2],[19,1,21,1],[37,2,38,2],[37,1,38,1],[37,3,38,3],[37,4,38,4],[61,5,61,9],[62,5,63,5],[62,6,62,7],[62,8,62,9],[61,3,63,3],[45,6,45,7],[45,5,46,5],[52,5,52,6],[52,7,52,8],[51,5,51,8],[45,8,45,9],[44,5,44,9],[19,6,19,10],[20,7,20,8],[20,9,20,10],[20,6,21,6],[37,8,37,10],[37,7,38,7],[37,6,38,6],[19,5,21,5],[37,5,38,5]]}
[]
[]
[null,"To utilize the field worksheet for collecting data, first use the checkboxes to select the livestock class(es) on the farm you will be visiting.  Select as many as needed.  Then Select the \"Print Field Worksheet\" button, this will open to a print preview screen where you can review and make any adjustments to the page setup prior to printing."]
[]
[null,null,null,"Cow Calf Operation (includes Bulls)"]
[null,null,null,"Stockers Operation"]
[null,null,null,"Seasonal Dairy Operation"]
[null,null,null,"Annual Dairy Operation"]
[null,null,null,"Horse Operation"]
[null,null,null,"Sheep and/or Goats Operation"]
[]
[]
[]
[]
[null,"Field Worksheet"]
[null,"Producer Name: _____________________________________",null,null,null,"System ID: ____________________ Date: __________"]
[null,"County: __________________  Completed By: _________________________________"]
[]
[null,"Cow Calf Operation (Includes Bulls)"]
[null,"Livestock Class/Herd ID","Numbers","Average Weights","Intake Rate (%)","Calving month","Management Details"]
[null,null,null,null,null,null,"Grazing System    All Year","Alternative Pasture",null,"Dry Lot "]
[null,null,null,null,null,null,null,"Month In","Month Out","Month In","Month Out"]
[]
[]
[]
[]
[]
[]
[null,"Stockers Operation"]
[null,"Herd ID","Numbers","Average Weights","Intake Rate (%)","Start Weight","Month in","Month out","Avg Daily Gain"]
[]
[]
[]
[]
[]
[]
[null,"Seasonal Dairy Operation"]
[null,"Herd ID","Numbers","Average Weights","Lactating Intake Rate (%)","Dry Intake Rate (%)","Lactating month start","Lactating month end","Management Details"]
[null,null,null,null,null,null,null,null,"Grazing System All Year","Alternative Pasture when Dry","Dry Lot when Dry"]
[]
[]
[]
[]
[null,"Annual Dairy Operation *"]
[null,"Lactating Herd","Numbers","Average Weights","Intake Rate (%)","Management Details"]
[null,null,null,null,null,"Grazing System   All Year","Alternative Pasture",null,"Dry Lot "]
[null,null,null,null,null,null,"Month In","Month Out","Month In","Month Out"]
[]
[]
[]
[]
[null,"Dry Herd","Numbers","Average Weights","Intake Rate (%)","Management Details"]
[null,null,null,null,null,"Alternative Pasture",null,"Dry Lot "]
[null,null,null,null,null,"Month In","Month Out","Month In","Month Out"]
[]
[]
[]
[null,"* For the model a singe herd will be modeled as a portion of the herd as lactating and a portion dry at any point in time.  For example; a 100 cow dairy where on average 20% of the herd are dry at any point in time.  Enter the data as 80 cows for the lactating herd and 20 cows for the dry herd.  "]
[]
[]
[null,"Horse Operation"]
[null,"Herd ID","Numbers","Average Weights","Intake Rate (%)","Management Details"]
[null,null,null,null,null,"Grazing System All Year","Alternative Pasture",null,"Dry Lot "]
[null,null,null,null,null,null,"Month In","Month Out","Month In","Month Out"]
[]
[]
[]
[]
[]
[]
[null,"Sheep/Goats Operation"]
[null,"Herd ID","Numbers","Average Weights","Intake Rate (%)"]
[]
[]
[]
[]
[]
[]
[]
[]
[null,"Pasture, Pasture/Hay, and/or Alternative Pasture Forage Production"]
[null,"Forages","Field #","Acres*","Pasture TFP or yield**","Grazing efficiency","Hay TFP or yield****","Both hay & pasture?","Month Hayed","Alternative Pasture"]
[]
[]
[]
[]
[]
[]
[]
[]
[]
[]
[]
[]
[]
[]
[]
[]
[]
[]
[]
[]
[]
[]
[]
[]
[null,"* might choose to ignore acres during field visit and address back at office."]
[null,"** whether TFP or yield, note which one and make appropriate interpretation and conversion."]
[]
[null,"Additional Hay Production"]
[null,"Forages","Field #","Acres*","TFP or yield**","Month Hayed"]
[]
[]
[]
[]
[]
[]
[]
[null,"*might choose to ignore acres during field visit and address back at office."]
[null,"** whether TFP or yield, note which one and make appropriate interpretation and conversion."]
[]
[null,"Additional Hay Information (buy hay or bring in hay, how much…)"]
[null,"Hay Category","Lbs","Comments"]
[null,"Purchased Hay:"]
[null,"Carry Over Hay:"]
[]
[]
[]
[null,"Comments/notes: "]

{"sheet":"Explanation sheet for L.O. ","index":5,"n_rows":30,"n_cols":4,"rows_kept":30,"cut":false,"hidden":false,"merged":[[21,3,21,5],[24,3,24,5],[27,3,27,5],[29,1,29,5],[6,3,6,5],[9,3,9,5],[12,3,12,5],[1,1,1,5],[2,1,2,5],[3,1,3,5],[15,3,15,5],[18,3,18,5]]}
[]
[null,"Explanation Sheet for Attached Documents for"]
[null,{"$f":"Name","v":0}]
[null,{"$f":"Date","v":""}]
[null,"included","not included","Document Name and Explanation"]
[null,null,null,"Livestock Inventory and Demand Summary"]
[null,null,null,"This sheet contains information about the livestock you plan to have (and possibly the livestock you currently have) on a particular piece of ground.  Information like numbers, weights, their daily intake rates are included.  The sheet makes estimates of their forage demand.  This sheet also captures any management decisions for some livestock classes to capture if you livestock will stay on the grazing system year round, spend some of the year on an alternative pasture or spend some time of the year on a dry lot.  An alternative pasture is typically some unmanaged acreage where animals are moved to graze when peak productivity is not required, such as when dairy cows are dry or heifers are not lactating, or when bulls are not with cows for breeding.  The total forage demand by management option is summarized."]
[]
[null,null,null,"Pasture Forage Production Summary"]
[null,null,null,"This sheet captures the forage production on the grazing system per month based on seasonal growth curves per species.  Additionally, if an alternative pasture is being utilized the summary shows the forage production for the alternative pasture(s) modeled.   "]
[]
[null,null,null,"Hay Production Summary"]
[null,null,null,"This sheet shows a summary of the hay produced on the farm.  This includes hay produced on fields that are hayed and grazed, and fields that are used for haying only."]
[]
[null,null,null,"Feed and Forage Balance Summary"]
[null,null,null,"This sheet ties the infomration from the previous sheets together and shows a comparison by month of the forage demand and produced.  The sedon part of the sheet is a feed and forage balance which provides an overall estimate of total forage available (including hay) and forage demand. "]
[]
[null,null,null,"Grazing System Forage Availability versus Livestock Needs Graph"]
[null,null,null,"This graph looks at information from the Livestock-Forage Balance sheet and gives a visual display of the estimated needs of the animal from the grazing system versus the grazing system production by each month.  This graph only considers the grazing system (does not include hay).  This graph may help visualize the needs and surpluses of your system over the course of a year.  Additionally, the graph shows the accumulated balance.  Accumulated balance factors in forage that is not utilized the previous month that is still available to the animals to graze.  A negative accumulated balance indicates the need for supplemental forage, such as hay, to meet the livestock needs."]
[]
[null,null,null,"Alternative Pasture Forage Availability versus Livestock Needs Graph"]
[null,null,null,"Same as the Grazing System Forage Availability versus Livestock Needs Graph, but for the Alternative pasture(s) if that is part of the system being modeled."]
[]
[null,null,null,"Time Control Grazing Worksheet"]
[null,null,null,"This sheet utilized the information from the Livestock Forage Balance worksheet, and adds a grazing time component.  A few major items to look at are the minimum and maximum grazing days, the animal density, and the minimum grazing heights.  The grazing days are the range of days livestock should reside (graze) in that particular field.  The \"minimum days\" for when forage is growing fast, \"maximum days\" for when forage is growing slow.  By using these guides, a proper rest period should be achieved.  The animal density can be a measure of how well the forage will be utilized.  The lower the density, the more opportunities for wasted forage, more \"picky\" eating, and less utilization.  The minimum grazing heights are extremely important and should be adhered to for proper management.  They are based on the kind of forage in that field.  Definitions for some of the terms used are available on the Time Control Grazing Worksheet.  Note, The MIN and MAX grazing days should not exceed the days identified in CPS 528, Table 2 for the forage and paddocks planned"]
[]
[null,null,null,"Detailed Summary Sheet"]
[null,null,null,"This sheet summarizes all the information from the previous sheets and provides an analysis of the system.  It identifies the needs and what is available and shows deficits and surpluses.  It also allows an estimate of the carrying capacity of the farm(s) at the current level or planned level.  It may also make some predictions in the carrying capacity if you were to increase the grazing efficiency on the farm- by improving the level of management.  "]
[]
[null,"Take time to review these sheets and understand them.  If they are confusing, let us know so we can go over them with you.  All these worksheets were completed using the best information available to the person(s) doing the planning.  They are based on estimates of needs and production.  Wet years, dry years are not considered and will obviously make a difference in the numbers being generated.  Averages were used.  "]

{"sheet":"Calculations","index":9,"n_rows":129,"n_cols":21,"rows_kept":129,"cut":false,"hidden":true,"merged":[]}
["Step 1 Balance Worksheet Calculations"]
[null,null,null,null,null,null,null,null,null,null,null,null,null,null,null,null,null,null,null,null,"Adams"]
["Cow Calf",null,null,null,null,null,null,null,null,null,null,null,null,null,null,null,null,null,null,null,"Alexander"]
[null,1,2,3,4,5,6,7,8,9,10,11,12,"month rel. to calving",null,null,null,null,null,null,"Bond"]
[{"$f":"SUM(B5:M5)/12","v":1},1.1679999999999999,1.1830000000000001,1.163,1.141,1.079,1.0069999999999999,0.94699999999999995,0.79100000000000004,0.80600000000000005,0.82099999999999995,0.89300000000000002,1.0009999999999999,"relative forage requirement",null,null,null,null,null,null,"Boone"]
[null,null,null,null,null,null,null,null,null,null,null,null,null,null,null,null,null,null,null,null,"Brown"]
[null,"April","May","June","July","August","September","October","November","December","January","February","March",null,null,null,null,null,null,null,"Bureau"]
["CowCalf1",{"$f":"HLOOKUP(IF(17-Calculations!$B$16>12,17-Calculations!$B$16-12,17-Calculations!$B$16),$B$4:$M$5,2,FALSE)*((365/12)/30)","v":1.1842222222222221},{"$f":"HLOOKUP(IF(18-Calculations!$B$16>12,18-Calculations!$B$16-12,18-Calculations!$B$16),$B$4:$M$5,2,FALSE)*((365/12)/31)","v":1.1607392473118281},{"$f":"HLOOKUP(IF(19-Calculations!$B$16>12,19-Calculations!$B$16-12,19-Calculations!$B$16),$B$4:$M$5,2,FALSE)*((365/12)/30)","v":1.1791527777777777},{"$f":"HLOOKUP(IF(20-Calculations!$B$16>12,20-Calculations!$B$16-12,20-Calculations!$B$16),$B$4:$M$5,2,FALSE)*((365/12)/31)","v":1.1195295698924732},{"$f":"HLOOKUP(IF(21-Calculations!$B$16>12,21-Calculations!$B$16-12,21-Calculations!$B$16),$B$4:$M$5,2,FALSE)*((365/12)/31)","v":1.0586962365591397},{"$f":"HLOOKUP(IF(22-Calculations!$B$16>12,22-Calculations!$B$16-12,22-Calculations!$B$16),$B$4:$M$5,2,FALSE)*((365/12)/30)","v":1.0209861111111109},{"$f":"HLOOKUP(IF(23-Calculations!$B$16>12,23-Calculations!$B$16-12,23-Calculations!$B$16),$B$4:$M$5,2,FALSE)*((365/12)/31)","v":0.92918010752688174},{"$f":"HLOOKUP(IF(24-Calculations!$B$16>12,24-Calculations!$B$16-12,24-Calculations!$B$16),$B$4:$M$5,2,FALSE)*((365/12)/30)","v":0.80198611111111107},{"$f":"HLOOKUP(IF(25-Calculations!$B$16>12,25-Calculations!$B$16-12,25-Calculations!$B$16),$B$4:$M$5,2,FALSE)*((365/12)/31)","v":0.79083333333333339},{"$f":"HLOOKUP(IF(14-Calculations!$B$16>12,14-Calculations!$B$16-12,14-Calculations!$B$16),$B$4:$M$5,2,FALSE)*((365/12)/31)","v":0.8055510752688172},{"$f":"HLOOKUP(IF(15-Calculations!$B$16>12,15-Calculations!$B$16-12,15-Calculations!$B$16),$B$4:$M$5,2,FALSE)*((365/12)/28)","v":0.97007440476190487},{"$f":"HLOOKUP(IF(16-Calculations!$B$16>12,16-Calculations!$B$16-12,16-Calculations!$B$16),$B$4:$M$5,2,FALSE)*((365/12)/31)","v":0.98216397849462356},null,null,null,null,"Haying Month Drop Fown",null,null,"Calhoun"]
[{"$f":"SUM(B9:M9)/365","v":1},{"$f":"B8*30","v":35.526666666666664},{"$f":"C8*31","v":35.982916666666668},{"$f":"D8*30","v":35.374583333333334},{"$f":"E8*31","v":34.705416666666672},{"$f":"F8*31","v":32.819583333333327},{"$f":"G8*30","v":30.629583333333329},{"$f":"H8*31","v":28.804583333333333},{"$f":"I8*30","v":24.059583333333332},{"$f":"J8*31","v":24.515833333333337},{"$f":"K8*31","v":24.972083333333334},{"$f":"L8*28","v":27.162083333333335},{"$f":"M8*31","v":30.447083333333332},null,null,null,null,1,null,null,"Carroll"]
["CowCalf2",{"$f":"HLOOKUP(IF(17-Calculations!$B$17>12,17-Calculations!$B$17-12,17-Calculations!$B$17),$B$4:$M$5,2,FALSE)*((365/12)/30)","v":0.96015277777777763},{"$f":"HLOOKUP(IF(18-Calculations!$B$17>12,18-Calculations!$B$17-12,18-Calculations!$B$17),$B$4:$M$5,2,FALSE)*((365/12)/31)","v":0.77611559139784947},{"$f":"HLOOKUP(IF(19-Calculations!$B$17>12,19-Calculations!$B$17-12,19-Calculations!$B$17),$B$4:$M$5,2,FALSE)*((365/12)/30)","v":0.81719444444444445},{"$f":"HLOOKUP(IF(20-Calculations!$B$17>12,20-Calculations!$B$17-12,20-Calculations!$B$17),$B$4:$M$5,2,FALSE)*((365/12)/31)","v":0.8055510752688172},{"$f":"HLOOKUP(IF(21-Calculations!$B$17>12,21-Calculations!$B$17-12,21-Calculations!$B$17),$B$4:$M$5,2,FALSE)*((365/12)/31)","v":0.87619623655913981},{"$f":"HLOOKUP(IF(22-Calculations!$B$17>12,22-Calculations!$B$17-12,22-Calculations!$B$17),$B$4:$M$5,2,FALSE)*((365/12)/30)","v":1.0149027777777777},{"$f":"HLOOKUP(IF(23-Calculations!$B$17>12,23-Calculations!$B$17-12,23-Calculations!$B$17),$B$4:$M$5,2,FALSE)*((365/12)/31)","v":1.1460215053763441},{"$f":"HLOOKUP(IF(24-Calculations!$B$17>12,24-Calculations!$B$17-12,24-Calculations!$B$17),$B$4:$M$5,2,FALSE)*((365/12)/30)","v":1.1994305555555556},{"$f":"HLOOKUP(IF(25-Calculations!$B$17>12,25-Calculations!$B$17-12,25-Calculations!$B$17),$B$4:$M$5,2,FALSE)*((365/12)/31)","v":1.1411155913978495},{"$f":"HLOOKUP(IF(14-Calculations!$B$17>12,14-Calculations!$B$17-12,14-Calculations!$B$17),$B$4:$M$5,2,FALSE)*((365/12)/31)","v":1.1195295698924732},{"$f":"HLOOKUP(IF(15-Calculations!$B$17>12,15-Calculations!$B$17-12,15-Calculations!$B$17),$B$4:$M$5,2,FALSE)*((365/12)/28)","v":1.1721279761904764},{"$f":"HLOOKUP(IF(16-Calculations!$B$17>12,16-Calculations!$B$17-12,16-Calculations!$B$17),$B$4:$M$5,2,FALSE)*((365/12)/31)","v":0.98805107526881708},null,null,null,null,2,null,null,"Cass"]
[{"$f":"SUM(B11:M11)/365","v":1},{"$f":"B10*30","v":28.80458333333333},{"$f":"C10*31","v":24.059583333333332},{"$f":"D10*30","v":24.515833333333333},{"$f":"E10*31","v":24.972083333333334},{"$f":"F10*31","v":27.162083333333335},{"$f":"G10*30","v":30.447083333333332},{"$f":"H10*31","v":35.526666666666664},{"$f":"I10*30","v":35.982916666666668},{"$f":"J10*31","v":35.374583333333334},{"$f":"K10*31","v":34.705416666666672},{"$f":"L10*28","v":32.819583333333341},{"$f":"M10*31","v":30.629583333333329},null,null,null,null,3,null,null,"Champaign"]
["CowCalf3",{"$f":"HLOOKUP(IF(17-Calculations!$B$18>12,17-Calculations!$B$18-12,17-Calculations!$B$18),$B$4:$M$5,2,FALSE)*((365/12)/30)","v":1.1842222222222221},{"$f":"HLOOKUP(IF(18-Calculations!$B$18>12,18-Calculations!$B$18-12,18-Calculations!$B$18),$B$4:$M$5,2,FALSE)*((365/12)/31)","v":1.1607392473118281},{"$f":"HLOOKUP(IF(19-Calculations!$B$18>12,19-Calculations!$B$18-12,19-Calculations!$B$18),$B$4:$M$5,2,FALSE)*((365/12)/30)","v":1.1791527777777777},{"$f":"HLOOKUP(IF(20-Calculations!$B$18>12,20-Calculations!$B$18-12,20-Calculations!$B$18),$B$4:$M$5,2,FALSE)*((365/12)/31)","v":1.1195295698924732},{"$f":"HLOOKUP(IF(21-Calculations!$B$18>12,21-Calculations!$B$18-12,21-Calculations!$B$18),$B$4:$M$5,2,FALSE)*((365/12)/31)","v":1.0586962365591397},{"$f":"HLOOKUP(IF(22-Calculations!$B$18>12,22-Calculations!$B$18-12,22-Calculations!$B$18),$B$4:$M$5,2,FALSE)*((365/12)/30)","v":1.0209861111111109},{"$f":"HLOOKUP(IF(23-Calculations!$B$18>12,23-Calculations!$B$18-12,23-Calculations!$B$18),$B$4:$M$5,2,FALSE)*((365/12)/31)","v":0.92918010752688174},{"$f":"HLOOKUP(IF(24-Calculations!$B$18>12,24-Calculations!$B$18-12,24-Calculations!$B$18),$B$4:$M$5,2,FALSE)*((365/12)/30)","v":0.80198611111111107},{"$f":"HLOOKUP(IF(25-Calculations!$B$18>12,25-Calculations!$B$18-12,25-Calculations!$B$18),$B$4:$M$5,2,FALSE)*((365/12)/31)","v":0.79083333333333339},{"$f":"HLOOKUP(IF(14-Calculations!$B$18>12,14-Calculations!$B$18-12,14-Calculations!$B$18),$B$4:$M$5,2,FALSE)*((365/12)/31)","v":0.8055510752688172},{"$f":"HLOOKUP(IF(15-Calculations!$B$18>12,15-Calculations!$B$18-12,15-Calculations!$B$18),$B$4:$M$5,2,FALSE)*((365/12)/28)","v":0.97007440476190487},{"$f":"HLOOKUP(IF(16-Calculations!$B$18>12,16-Calculations!$B$18-12,16-Calculations!$B$18),$B$4:$M$5,2,FALSE)*((365/12)/31)","v":0.98216397849462356},null,null,null,null,4,null,null,"Christian"]
[{"$f":"SUM(B13:M13)/365","v":1},{"$f":"B12*30","v":35.526666666666664},{"$f":"C12*31","v":35.982916666666668},{"$f":"D12*30","v":35.374583333333334},{"$f":"E12*31","v":34.705416666666672},{"$f":"F12*31","v":32.819583333333327},{"$f":"G12*30","v":30.629583333333329},{"$f":"H12*31","v":28.804583333333333},{"$f":"I12*30","v":24.059583333333332},{"$f":"J12*31","v":24.515833333333337},{"$f":"K12*31","v":24.972083333333334},{"$f":"L12*28","v":27.162083333333335},{"$f":"M12*31","v":30.447083333333332},null,null,null,null,5,null,null,"Clark"]
[null,null,null,null,null,null,null,null,null,null,null,null,null,null,null,null,null,6,null,null,"Clay"]
["Additional Input from user for calculations (input from user form)",null,null,null,null,null,null,null,null,null,null,null,null,null,null,null,null,7,null,null,"Clinton"]
["CowCalf1",4,"from CowCalf1 UserForm",null,null,null,null,null,null,null,null,null,null,null,null,null,null,8,null,null,"Coles"]
["CowCalf2",10,"from CowCalf2 UserForm",null,null,null,null,null,null,null,null,null,null,null,null,null,null,9,null,null,"Cook"]
["CowCalf3",4,"from CowCalf3 UserForm",null,null,null,null,null,null,null,null,null,null,null,null,null,null,10,null,null,"Crawford"]
[null,null,null,null,null,null,null,null,null,null,null,null,null,null,null,null,null,11,null,null,"Cumberland"]
["Stockers",null,null,null,null,null,null,null,null,null,null,null,null,null,null,null,null,12,null,null,"DeKalb"]
[null,null,null,null,null,null,null,null,null,null,null,null,null,null,null,null,null,null,null,null,"De Witt"]
["April","May","June","July","August","September","October","November","December","January","February","March",null,null,null,null,null,null,null,null,"Douglas"]
[30,31,30,31,31,30,31,30,31,31,28,31,"days on month",null,null,null,null,null,null,null,"DuPage"]
[{"$f":"IF(Calculations!$D34=4,0,IF(Calculations!$D34<Calculations!$D35, IF(Calculations!$D34<4,IF(Calculations!$D35>=4,L23+L24,0),0),IF(Calculations!$D34>Calculations!$D35,IF(Calculations!$D35>=4,L23+L24,IF(Calculations!$D34<=4,L23+L24,0)),0)))","v":0},{"$f":"IF(Calculations!$D34=5,0,IF(Calculations!$D34<Calculations!$D35, IF(Calculations!$D34<5,IF(Calculations!$D35>=5,A23+A24,0),0),IF(Calculations!$D34>Calculations!$D35,IF(Calculations!$D35>=5,A23+A24,IF(Calculations!$D34<=5,A23+A24,0)),0)))","v":30},{"$f":"IF(Calculations!$D34=6,0,IF(Calculations!$D34<Calculations!$D35, IF(Calculations!$D34<6,IF(Calculations!$D35>=6,B23+B24,0),0),IF(Calculations!$D34>Calculations!$D35,IF(Calculations!$D35>=6,B23+B24,IF(Calculations!$D34<=6,B23+B24,0)),0)))","v":61},{"$f":"IF(Calculations!$D34=7,0,IF(Calculations!$D34<Calculations!$D35, IF(Calculations!$D34<7,IF(Calculations!$D35>=7,C23+C24,0),0),IF(Calculations!$D34>Calculations!$D35,IF(Calculations!$D35>=7,C23+C24,IF(Calculations!$D34<=7,C23+C24,0)),0)))","v":91},{"$f":"IF(Calculations!$D34=8,0,IF(Calculations!$D34<Calculations!$D35, IF(Calculations!$D34<8,IF(Calculations!$D35>=8,D23+D24,0),0),IF(Calculations!$D34>Calculations!$D35,IF(Calculations!$D35>=8,D23+D24,IF(Calculations!$D34<=8,D23+D24,0)),0)))","v":0},{"$f":"IF(Calculations!$D34=9,0,IF(Calculations!$D34<Calculations!$D35, IF(Calculations!$D34<9,IF(Calculations!$D35>=9,E23+E24,0),0),IF(Calculations!$D34>Calculations!$D35,IF(Calculations!$D35>=9,E23+E24,IF(Calculations!$D34<=9,E23+E24,0)),0)))","v":0},{"$f":"IF(Calculations!$D34=10,0,IF(Calculations!$D34<Calculations!$D35, IF(Calculations!$D34<10,IF(Calculations!$D35>=10,F23+F24,0),0),IF(Calculations!$D34>Calculations!$D35,IF(Calculations!$D35>=10,F23+F24,IF(Calculations!$D34<=10,F23+F24,0)),0)))","v":0},{"$f":"IF(Calculations!$D34=11,0,IF(Calculations!$D34<Calculations!$D35, IF(Calculations!$D34<11,IF(Calculations!$D35>=11,G23+G24,0),0),IF(Calculations!$D34>Calculations!$D35,IF(Calculations!$D35>=11,G23+G24,IF(Calculations!$D34<=11,G23+G24,0)),0)))","v":0},{"$f":"IF(Calculations!$D34=12,0,IF(Calculations!$D34<Calculations!$D35, IF(Calculations!$D34<12,IF(Calculations!$D35>=12,H23+H24,0),0),IF(Calculations!$D34>Calculations!$D35,IF(Calculations!$D35>=12,H23+H24,IF(Calculations!$D34<=12,H23+H24,0)),0)))","v":0},{"$f":"IF(Calculations!$D34=1,0,IF(Calculations!$D34<Calculations!$D35, IF(Calculations!$D34<1,IF(Calculations!$D35>=1,I23+I24,0),0),IF(Calculations!$D34>Calculations!$D35,IF(Calculations!$D35>=1,I23+I24,IF(Calculations!$D34<=1,I23+I24,0)),0)))","v":0},{"$f":"IF(Calculations!$D34=2,0,IF(Calculations!$D34<Calculations!$D35, IF(Calculations!$D34<2,IF(Calculations!$D35>=2,J23+J24,0),0),IF(Calculations!$D34>Calculations!$D35,IF(Calculations!$D35>=2,J23+J24,IF(Calculations!$D34<=2,J23+J24,0)),0)))","v":0},{"$f":"IF(Calculations!$D34=3,0,IF(Calculations!$D34<Calculations!$D35, IF(Calculations!$D34<3,IF(Calculations!$D35>=3,K23+K24,0),0),IF(Calculations!$D34>Calculations!$D35,IF(Calculations!$D35>=3,K23+K24,IF(Calculations!$D34<=3,K23+K24,0)),0)))","v":0},"Stockers1","accum days prior",null,null,null,null,null,null,"Edgar"]
[{"$f":"IF(Calculations!$D34<Calculations!$D35,IF(Calculations!$D34<=4,IF(Calculations!$D35>=4,((2*(Calculations!$D32+(A24*Calculations!$D33))+Calculations!$D33*A23)/2),0),0),IF(Calculations!$D34>Calculations!$D35,IF(Calculations!$D34<=4,((2*(Calculations!$D32+(A24*Calculations!$D33))+Calculations!$D33*A23)/2),IF(Calculations!$D35>=4,((2*(Calculations!$D32+(A24*Calculations!$D33))+Calculations!$D33*A23)/2),0))))","v":415},{"$f":"IF(Calculations!$D34<Calculations!$D35,IF(Calculations!$D34<=5,IF(Calculations!$D35>=5,((2*(Calculations!$D32+(B24*Calculations!$D33))+Calculations!$D33*B23)/2),0),0),IF(Calculations!$D34>Calculations!$D35,IF(Calculations!$D34<=5,((2*(Calculations!$D32+(B24*Calculations!$D33))+Calculations!$D33*B23)/2),IF(Calculations!$D35>=5,((2*(Calculations!$D32+(B24*Calculations!$D33))+Calculations!$D33*B23)/2),0))))","v":445.5},{"$f":"IF(Calculations!$D34<Calculations!$D35,IF(Calculations!$D34<=6,IF(Calculations!$D35>=6,((2*(Calculations!$D32+(C24*Calculations!$D33))+Calculations!$D33*C23)/2),0),0),IF(Calculations!$D34>Calculations!$D35,IF(Calculations!$D34<=6,((2*(Calculations!$D32+(C24*Calculations!$D33))+Calculations!$D33*C23)/2),IF(Calculations!$D35>=6,((2*(Calculations!$D32+(C24*Calculations!$D33))+Calculations!$D33*C23)/2),0))))","v":476},{"$f":"IF(Calculations!$D34<Calculations!$D35,IF(Calculations!$D34<=7,IF(Calculations!$D35>=7,((2*(Calculations!$D32+(D24*Calculations!$D33))+Calculations!$D33*D23)/2),0),0),IF(Calculations!$D34>Calculations!$D35,IF(Calculations!$D34<=7,((2*(Calculations!$D32+(D24*Calculations!$D33))+Calculations!$D33*D23)/2),IF(Calculations!$D35>=7,((2*(Calculations!$D32+(D24*Calculations!$D33))+Calculations!$D33*D23)/2),0))))","v":506.5},{"$f":"IF(Calculations!$D34<Calculations!$D35,IF(Calculations!$D34<=8,IF(Calculations!$D35>=8,((2*(Calculations!$D32+(E24*Calculations!$D33))+Calculations!$D33*E23)/2),0),0),IF(Calculations!$D34>Calculations!$D35,IF(Calculations!$D34<=8,((2*(Calculations!$D32+(E24*Calculations!$D33))+Calculations!$D33*E23)/2),IF(Calculations!$D35>=8,((2*(Calculations!$D32+(E24*Calculations!$D33))+Calculations!$D33*E23)/2),0))))","v":0},{"$f":"IF(Calculations!$D34<Calculations!$D35,IF(Calculations!$D34<=9,IF(Calculations!$D35>=9,((2*(Calculations!$D32+(F24*Calculations!$D33))+Calculations!$D33*F23)/2),0),0),IF(Calculations!$D34>Calculations!$D35,IF(Calculations!$D34<=9,((2*(Calculations!$D32+(F24*Calculations!$D33))+Calculations!$D33*F23)/2),IF(Calculations!$D35>=9,((2*(Calculations!$D32+(F24*Calculations!$D33))+Calculations!$D33*F23)/2),0))))","v":0},{"$f":"IF(Calculations!$D34<Calculations!$D35,IF(Calculations!$D34<=10,IF(Calculations!$D35>=10,((2*(Calculations!$D32+(G24*Calculations!$D33))+Calculations!$D33*G23)/2),0),0),IF(Calculations!$D34>Calculations!$D35,IF(Calculations!$D34<=10,((2*(Calculations!$D32+(G24*Calculations!$D33))+Calculations!$D33*G23)/2),IF(Calculations!$D35>=10,((2*(Calculations!$D32+(G24*Calculations!$D33))+Calculations!$D33*G23)/2),0))))","v":0},{"$f":"IF(Calculations!$D34<Calculations!$D35,IF(Calculations!$D34<=11,IF(Calculations!$D35>=11,((2*(Calculations!$D32+(H24*Calculations!$D33))+Calculations!$D33*H23)/2),0),0),IF(Calculations!$D34>Calculations!$D35,IF(Calculations!$D34<=11,((2*(Calculations!$D32+(H24*Calculations!$D33))+Calculations!$D33*H23)/2),IF(Calculations!$D35>=11,((2*(Calculations!$D32+(H24*Calculations!$D33))+Calculations!$D33*H23)/2),0))))","v":0},{"$f":"IF(Calculations!$D34<Calculations!$D35,IF(Calculations!$D34<=12,IF(Calculations!$D35>=12,((2*(Calculations!$D32+(I24*Calculations!$D33))+Calculations!$D33*I23)/2),0),0),IF(Calculations!$D34>Calculations!$D35,IF(Calculations!$D34<=12,((2*(Calculations!$D32+(I24*Calculations!$D33))+Calculations!$D33*I23)/2),IF(Calculations!$D35>=12,((2*(Calculations!$D32+(I24*Calculations!$D33))+Calculations!$D33*I23)/2),0))))","v":0},{"$f":"IF(Calculations!$D34<Calculations!$D35,IF(Calculations!$D34<=1,IF(Calculations!$D35>=1,((2*(Calculations!$D32+(J24*Calculations!$D33))+Calculations!$D33*J23)/2),0),0),IF(Calculations!$D34>Calculations!$D35,IF(Calculations!$D34<=1,((2*(Calculations!$D32+(J24*Calculations!$D33))+Calculations!$D33*J23)/2),IF(Calculations!$D35>=1,((2*(Calculations!$D32+(J24*Calculations!$D33))+Calculations!$D33*J23)/2),0))))","v":0},{"$f":"IF(Calculations!$D34<Calculations!$D35,IF(Calculations!$D34<=2,IF(Calculations!$D35>=2,((2*(Calculations!$D32+(K24*Calculations!$D33))+Calculations!$D33*K23)/2),0),0),IF(Calculations!$D34>Calculations!$D35,IF(Calculations!$D34<=2,((2*(Calculations!$D32+(K24*Calculations!$D33))+Calculations!$D33*K23)/2),IF(Calculations!$D35>=2,((2*(Calculations!$D32+(K24*Calculations!$D33))+Calculations!$D33*K23)/2),0))))","v":0},{"$f":"IF(Calculations!$D34<Calculations!$D35,IF(Calculations!$D34<=3,IF(Calculations!$D35>=3,((2*(Calculations!$D32+(L24*Calculations!$D33))+Calculations!$D33*L23)/2),0),0),IF(Calculations!$D34>Calculations!$D35,IF(Calculations!$D34<=3,((2*(Calculations!$D32+(L24*Calculations!$D33))+Calculations!$D33*L23)/2),IF(Calculations!$D35>=3,((2*(Calculations!$D32+(L24*Calculations!$D33))+Calculations!$D33*L23)/2),0))))","v":0},"Stockers1","avg wt for month",null,null,null,null,null,null,"Edwards"]
[{"$f":"IF(A25>0,A24+A23,0)","v":30},61,91,122,0,0,0,0,0,0,0,0,"Stockers1","accum days total",null,null,null,null,null,null,"Effingham"]
[{"$f":"IF(Calculations!$D39=4,0,IF(Calculations!$D39<Calculations!$D40, IF(Calculations!$D39<4,IF(Calculations!$D40>=4,L23+L27,0),0),IF(Calculations!$D39>Calculations!$D40,IF(Calculations!$D40>=4,L23+L27,IF(Calculations!$D39<=4,L23+L27,0)),0)))","v":0},{"$f":"IF(Calculations!$D39=5,0,IF(Calculations!$D39<Calculations!$D40, IF(Calculations!$D39<5,IF(Calculations!$D40>=5,A23+A27,0),0),IF(Calculations!$D39>Calculations!$D40,IF(Calculations!$D40>=5,A23+A27,IF(Calculations!$D39<=5,A23+A27,0)),0)))","v":0},{"$f":"IF(Calculations!$D39=6,0,IF(Calculations!$D39<Calculations!$D40, IF(Calculations!$D39<6,IF(Calculations!$D40>=6,B23+B27,0),0),IF(Calculations!$D39>Calculations!$D40,IF(Calculations!$D40>=6,B23+B27,IF(Calculations!$D39<=6,B23+B27,0)),0)))","v":0},{"$f":"IF(Calculations!$D39=7,0,IF(Calculations!$D39<Calculations!$D40, IF(Calculations!$D39<7,IF(Calculations!$D40>=7,C23+C27,0),0),IF(Calculations!$D39>Calculations!$D40,IF(Calculations!$D40>=7,C23+C27,IF(Calculations!$D39<=7,C23+C27,0)),0)))","v":0},{"$f":"IF(Calculations!$D39=8,0,IF(Calculations!$D39<Calculations!$D40, IF(Calculations!$D39<8,IF(Calculations!$D40>=8,D23+D27,0),0),IF(Calculations!$D39>Calculations!$D40,IF(Calculations!$D40>=8,D23+D27,IF(Calculations!$D39<=8,D23+D27,0)),0)))","v":0},{"$f":"IF(Calculations!$D39=9,0,IF(Calculations!$D39<Calculations!$D40, IF(Calculations!$D39<9,IF(Calculations!$D40>=9,E23+E27,0),0),IF(Calculations!$D39>Calculations!$D40,IF(Calculations!$D40>=9,E23+E27,IF(Calculations!$D39<=9,E23+E27,0)),0)))","v":0},{"$f":"IF(Calculations!$D39=10,0,IF(Calculations!$D39<Calculations!$D40, IF(Calculations!$D39<10,IF(Calculations!$D40>=10,F23+F27,0),0),IF(Calculations!$D39>Calculations!$D40,IF(Calculations!$D40>=10,F23+F27,IF(Calculations!$D39<=10,F23+F27,0)),0)))","v":30},{"$f":"IF(Calculations!$D39=11,0,IF(Calculations!$D39<Calculations!$D40, IF(Calculations!$D39<11,IF(Calculations!$D40>=11,G23+G27,0),0),IF(Calculations!$D39>Calculations!$D40,IF(Calculations!$D40>=11,G23+G27,IF(Calculations!$D39<=11,G23+G27,0)),0)))","v":61},{"$f":"IF(Calculations!$D39=12,0,IF(Calculations!$D39<Calculations!$D40, IF(Calculations!$D39<12,IF(Calculations!$D40>=12,H23+H27,0),0),IF(Calculations!$D39>Calculations!$D40,IF(Calculations!$D40>=12,H23+H27,IF(Calculations!$D39<=12,H23+H27,0)),0)))","v":0},{"$f":"IF(Calculations!$D39=1,0,IF(Calculations!$D39<Calculations!$D40, IF(Calculations!$D39<1,IF(Calculations!$D40>=1,I23+I27,0),0),IF(Calculations!$D39>Calculations!$D40,IF(Calculations!$D40>=1,I23+I27,IF(Calculations!$D39<=1,I23+I27,0)),0)))","v":0},{"$f":"IF(Calculations!$D39=2,0,IF(Calculations!$D39<Calculations!$D40, IF(Calculations!$D39<2,IF(Calculations!$D40>=2,J23+J27,0),0),IF(Calculations!$D39>Calculations!$D40,IF(Calculations!$D40>=2,J23+J27,IF(Calculations!$D39<=2,J23+J27,0)),0)))","v":0},{"$f":"IF(Calculations!$D39=3,0,IF(Calculations!$D39<Calculations!$D40, IF(Calculations!$D39<3,IF(Calculations!$D40>=3,K23+K27,0),0),IF(Calculations!$D39>Calculations!$D40,IF(Calculations!$D40>=3,K23+K27,IF(Calculations!$D39<=3,K23+K27,0)),0)))","v":0},"Stockers 2","accum days prior",null,null,null,null,null,null,"Fayette"]
[{"$f":"IF(Calculations!$D39<Calculations!$D40,IF(Calculations!$D39<=4,IF(Calculations!$D40>=4,((2*(Calculations!$D37+(A27*Calculations!$D38))+Calculations!$D38*A23)/2),0),0),IF(Calculations!$D39>Calculations!$D40,IF(Calculations!$D39<=4,((2*(Calculations!$D37+(A27*Calculations!$D38))+Calculations!$D38*A23)/2),IF(Calculations!$D40>=4,((2*(Calculations!$D37+(A27*Calculations!$D38))+Calculations!$D38*A23)/2),0))))","v":0},{"$f":"IF(Calculations!$D39<Calculations!$D40,IF(Calculations!$D39<=5,IF(Calculations!$D40>=5,((2*(Calculations!$D37+(B27*Calculations!$D38))+Calculations!$D38*B23)/2),0),0),IF(Calculations!$D39>Calculations!$D40,IF(Calculations!$D39<=5,((2*(Calculations!$D37+(B27*Calculations!$D38))+Calculations!$D38*B23)/2),IF(Calculations!$D40>=5,((2*(Calculations!$D37+(B27*Calculations!$D38))+Calculations!$D38*B23)/2),0))))","v":0},{"$f":"IF(Calculations!$D39<Calculations!$D40,IF(Calculations!$D39<=6,IF(Calculations!$D40>=6,((2*(Calculations!$D37+(C27*Calculations!$D38))+Calculations!$D38*C23)/2),0),0),IF(Calculations!$D39>Calculations!$D40,IF(Calculations!$D39<=6,((2*(Calculations!$D37+(C27*Calculations!$D38))+Calculations!$D38*C23)/2),IF(Calculations!$D40>=6,((2*(Calculations!$D37+(C27*Calculations!$D38))+Calculations!$D38*C23)/2),0))))","v":0},{"$f":"IF(Calculations!$D39<Calculations!$D40,IF(Calculations!$D39<=7,IF(Calculations!$D40>=7,((2*(Calculations!$D37+(D27*Calculations!$D38))+Calculations!$D38*D23)/2),0),0),IF(Calculations!$D39>Calculations!$D40,IF(Calculations!$D39<=7,((2*(Calculations!$D37+(D27*Calculations!$D38))+Calculations!$D38*D23)/2),IF(Calculations!$D40>=7,((2*(Calculations!$D37+(D27*Calculations!$D38))+Calculations!$D38*D23)/2),0))))","v":0},{"$f":"IF(Calculations!$D39<Calculations!$D40,IF(Calculations!$D39<=8,IF(Calculations!$D40>=8,((2*(Calculations!$D37+(E27*Calculations!$D38))+Calculations!$D38*E23)/2),0),0),IF(Calculations!$D39>Calculations!$D40,IF(Calculations!$D39<=8,((2*(Calculations!$D37+(E27*Calculations!$D38))+Calculations!$D38*E23)/2),IF(Calculations!$D40>=8,((2*(Calculations!$D37+(E27*Calculations!$D38))+Calculations!$D38*E23)/2),0))))","v":0},{"$f":"IF(Calculations!$D39<Calculations!$D40,IF(Calculations!$D39<=9,IF(Calculations!$D40>=9,((2*(Calculations!$D37+(F27*Calculations!$D38))+Calculations!$D38*F23)/2),0),0),IF(Calculations!$D39>Calculations!$D40,IF(Calculations!$D39<=9,((2*(Calculations!$D37+(F27*Calculations!$D38))+Calculations!$D38*F23)/2),IF(Calculations!$D40>=9,((2*(Calculations!$D37+(F27*Calculations!$D38))+Calculations!$D38*F23)/2),0))))","v":430},{"$f":"IF(Calculations!$D39<Calculations!$D40,IF(Calculations!$D39<=10,IF(Calculations!$D40>=10,((2*(Calculations!$D37+(G27*Calculations!$D38))+Calculations!$D38*G23)/2),0),0),IF(Calculations!$D39>Calculations!$D40,IF(Calculations!$D39<=10,((2*(Calculations!$D37+(G27*Calculations!$D38))+Calculations!$D38*G23)/2),IF(Calculations!$D40>=10,((2*(Calculations!$D37+(G27*Calculations!$D38))+Calculations!$D38*G23)/2),0))))","v":491},{"$f":"IF(Calculations!$D39<Calculations!$D40,IF(Calculations!$D39<=11,IF(Calculations!$D40>=11,((2*(Calculations!$D37+(H27*Calculations!$D38))+Calculations!$D38*H23)/2),0),0),IF(Calculations!$D39>Calculations!$D40,IF(Calculations!$D39<=11,((2*(Calculations!$D37+(H27*Calculations!$D38))+Calculations!$D38*H23)/2),IF(Calculations!$D40>=11,((2*(Calculations!$D37+(H27*Calculations!$D38))+Calculations!$D38*H23)/2),0))))","v":552},{"$f":"IF(Calculations!$D39<Calculations!$D40,IF(Calculations!$D39<=12,IF(Calculations!$D40>=12,((2*(Calculations!$D37+(I27*Calculations!$D38))+Calculations!$D38*I23)/2),0),0),IF(Calculations!$D39>Calculations!$D40,IF(Calculations!$D39<=12,((2*(Calculations!$D37+(I27*Calculations!$D38))+Calculations!$D38*I23)/2),IF(Calculations!$D40>=12,((2*(Calculations!$D37+(I27*Calculations!$D38))+Calculations!$D38*I23)/2),0))))","v":0},{"$f":"IF(Calculations!$D39<Calculations!$D40,IF(Calculations!$D39<=1,IF(Calculations!$D40>=1,((2*(Calculations!$D37+(J27*Calculations!$D38))+Calculations!$D38*J23)/2),0),0),IF(Calculations!$D39>Calculations!$D40,IF(Calculations!$D39<=1,((2*(Calculations!$D37+(J27*Calculations!$D38))+Calculations!$D38*J23)/2),IF(Calculations!$D40>=1,((2*(Calculations!$D37+(J27*Calculations!$D38))+Calculations!$D38*J23)/2),0))))","v":0},{"$f":"IF(Calculations!$D39<Calculations!$D40,IF(Calculations!$D39<=2,IF(Calculations!$D40>=2,((2*(Calculations!$D37+(K27*Calculations!$D38))+Calculations!$D38*K23)/2),0),0),IF(Calculations!$D39>Calculations!$D40,IF(Calculations!$D39<=2,((2*(Calculations!$D37+(K27*Calculations!$D38))+Calculations!$D38*K23)/2),IF(Calculations!$D40>=2,((2*(Calculations!$D37+(K27*Calculations!$D38))+Calculations!$D38*K23)/2),0))))","v":0},{"$f":"IF(Calculations!$D39<Calculations!$D40,IF(Calculations!$D39<=3,IF(Calculations!$D40>=3,((2*(Calculations!$D37+(L27*Calculations!$D38))+Calculations!$D38*L23)/2),0),0),IF(Calculations!$D39>Calculations!$D40,IF(Calculations!$D39<=3,((2*(Calculations!$D37+(L27*Calculations!$D38))+Calculations!$D38*L23)/2),IF(Calculations!$D40>=3,((2*(Calculations!$D37+(L27*Calculations!$D38))+Calculations!$D38*L23)/2),0))))","v":0},"Stockers 2","avg wt for month",null,null,null,null,null,null,"Ford"]
[{"$f":"IF(A28>0,A27+A23,0)","v":0},0,0,0,0,30,61,91,0,0,0,0,"Stockers 2","accum days total",null,null,null,null,null,null,"Franklin"]
[null,null,null,null,null,null,null,null,null,null,null,null,null,null,null,null,null,null,null,null,"Fulton"]
["Additional Input from user for calculations (input from user form)",null,null,null,null,null,null,null,null,null,null,null,null,null,null,null,null,null,null,null,"Gallatin"]
["Stockers1","Starting Weight",null,400,null,null,null,null,null,null,null,null,null,null,null,null,null,null,null,null,"Greene"]
[null,"Enter ADG",null,1,null,null,null,null,null,null,null,null,null,null,null,null,null,null,null,null,"Grundy"]
[null,"Month IN",null,4,null,null,null,null,null,null,null,null,null,null,null,null,null,null,null,null,"Hamilton"]
[null,"Month OUT",null,7,null,null,null,null,null,null,null,null,null,null,null,null,null,null,null,null,"Hancock"]
[null,null,null,null,null,null,null,null,null,null,null,null,null,null,null,null,null,null,null,null,"Hardin"]
["Stockers2","Starting Weight",null,400,null,null,null,null,null,null,null,null,null,null,null,null,null,null,null,null,"Henderson"]
[null,"Enter ADG",null,2,null,null,null,null,null,null,null,null,null,null,null,null,null,null,null,null,"Henry"]
[null,"Month IN",null,9,null,null,null,null,null,null,null,null,null,null,null,null,null,null,null,null,"Iroquois"]
[null,"Month OUT",null,11,null,null,null,null,null,null,null,null,null,null,null,null,null,null,null,null,"Jackson"]
[null,null,null,null,null,null,null,null,null,null,null,null,null,null,null,null,null,null,null,null,"Jasper"]
["Dairy",null,null,null,null,null,"Dairy <12 mo",null,null,null,"Livestock Class",null,null,null,null,null,null,null,null,null,"Jefferson"]
[null,null,null,null,null,null,"UserFrom Options Control Source",null,null,null,"Check Box Control Source",null,null,null,null,null,null,null,null,null,"Jersey"]
["Input box for lactating month start and lactating month finish",null,null,null,null,null,"Past","Alt Past","Dry Lot",null,"Dairy <12Mo Lactation",false,null,null,null,null,null,null,null,null,"Jo Daviess"]
["Dairy (<12 mo lactation)","lactating mo start",null,3,null,null,true,false,false,null,"Dairy Year Round Lactation",false,null,null,null,null,null,null,null,null,"Johnson"]
[null,"lactating mo finish",null,11,null,null,null,null,null,null,"Bulls",false,null,null,null,null,null,null,null,null,"Kane"]
[null,null,null,null,null,null,null,null,null,null,"Cow Calf 1",false,null,null,null,null,null,null,null,null,"Kankakee"]
["Year Round Lactation",null,null,null,null,null,"Dry Cow Userfor Options Control Source",null,null,null,"Cow Calf 2",false,null,null,null,null,null,null,null,null,"Kendall"]
["Dry Cows",null,null,null,null,null,"Alt Past","Dry Lot",null,null,"Cow Calf 3",false,null,null,null,null,null,null,null,null,"Knox"]
["Lactating Cows","Alt Grazing month start",null,11,null,null,false,false,null,null,"Stockers1",false,null,null,null,null,null,null,null,null,"La Salle"]
[null,"Alt Grazing Month finish",null,3,null,null,null,null,null,null,"Stockers2",false,null,null,null,null,null,null,null,null,"Lake"]
[null,null,null,null,null,null,"Lactating Cow Userfor Options Control Source",null,null,null,"Horses",false,null,null,null,null,null,null,null,null,"Lawrence"]
["Bulls",null,null,null,null,null,"Past","Alt Past","Dry Lot",null,"Goats ",false,null,null,null,null,null,null,null,null,"Lee"]
["UserForm Option Control Source",null,null,null,null,null,true,false,false,null,"Sheep",false,null,null,null,null,null,null,null,null,"Livingston"]
["Past",true,null,null,null,null,null,null,null,null,null,null,null,null,null,null,null,null,null,null,"Logan"]
["Alt Past Once",false,null,null,null,null,null,null,null,null,null,null,null,null,null,null,null,null,null,null,"McDonough"]
["Dry Lot Once",false,null,null,null,null,null,null,null,null,null,null,null,null,null,null,null,null,null,null,"McHenry"]
["Alt Past Twice",false,null,null,null,null,null,null,null,null,null,null,null,null,null,null,null,null,null,null,"McLean"]
["Dry Lot Twice",false,null,null,null,null,null,null,null,null,"HayMonth cell links",null,null,null,null,null,null,null,null,null,"Macon"]
[null,null,null,null,null,null,null,null,null,1,0,null,null,null,null,null,null,null,null,null,"Macoupin"]
["Input Boxes for Month on and off pasture ",null,null,null,null,null,null,null,null,2,0,null,null,null,null,null,null,null,null,null,"Madison"]
["First month on",10,null,null,null,null,null,null,null,3,0,null,null,null,null,null,null,null,null,null,"Marion"]
["Last month on",12,null,null,null,null,null,null,null,4,0,null,null,null,null,null,null,null,null,null,"Marshall"]
["Input Boxes for Month on and off pasture (second time period)",null,null,null,null,null,null,null,null,5,0,null,null,null,null,null,null,null,null,null,"Mason"]
["First month on",4,null,null,null,null,null,null,null,6,0,null,null,null,null,null,null,null,null,null,"Massac"]
["Last month on",6,null,null,null,null,null,null,null,7,0,null,null,null,null,null,null,null,null,null,"Menard"]
[null,null,null,null,null,null,null,null,null,8,0,null,null,null,null,null,null,null,null,null,"Mercer"]
["Cow Calf Alternative pasture options",null,null,null,null,null,null,null,null,9,0,null,null,null,null,null,null,null,null,null,"Monroe"]
["User Form Option Control Source",null,null,null,null,null,null,null,null,10,0,null,null,null,null,null,null,null,null,null,"Montgomery"]
["Cow Calf 1",null,null,null,null,null,null,null,null,11,0,null,null,null,null,null,null,null,null,null,"Morgan"]
["Past Year Round",true,null,null,null,null,null,null,null,12,0,null,null,null,null,null,null,null,null,null,"Moultrie"]
["Alternative Pasture",false,null,null,null,null,null,null,null,13,0,null,null,null,null,null,null,null,null,null,"Ogle"]
["Dry Lot",false,null,null,null,null,null,null,null,14,0,null,null,null,null,null,null,null,null,null,"Peoria"]
[null,null,null,null,null,null,null,null,null,15,0,null,null,null,null,null,null,null,null,null,"Perry"]
["Cow Calf 2",null,null,null,null,null,null,null,null,16,0,null,null,null,null,null,null,null,null,null,"Piatt"]
["Past Year Round",true,null,null,null,null,null,null,null,17,0,null,null,null,null,null,null,null,null,null,"Pike"]
["Alternative Pasture",false,null,null,null,null,null,null,null,18,0,null,null,null,null,null,null,null,null,null,"Pope"]
["Dry Lot",false,null,null,null,null,null,null,null,19,0,null,null,null,null,null,null,null,null,null,"Pulaski"]
[null,null,null,null,null,null,null,null,null,20,0,null,null,null,null,null,null,null,null,null,"Putnam"]
["Cow Calf 3",null,null,null,null,null,null,null,null,21,0,null,null,null,null,null,null,null,null,null,"Randolph"]
["Past Year Round",true,null,null,null,null,null,null,null,22,0,null,null,null,null,null,null,null,null,null,"Richland"]
["Alternative Pasture",false,null,null,null,null,null,null,null,23,0,null,null,null,null,null,null,null,null,null,"Rock Island"]
["Dry Lot",false,null,null,null,null,null,null,null,24,0,null,null,null,null,null,null,null,null,null,"Saline"]
[null,null,null,null,null,null,null,null,null,null,null,null,null,null,null,null,null,null,null,null,"Sangamon"]
["Input Boxes for Month on and off alternative pasture/dry lot",null,null,null,null,null,null,null,null,null,null,null,null,null,null,null,null,null,null,null,"Schuyler"]
["CowCalf 1",null,null,null,null,null,null,null,null,null,null,null,null,null,null,null,null,null,null,null,"Scott"]
["First Month on",11,null,null,null,null,null,null,null,null,null,null,null,null,null,null,null,null,null,null,"Shelby"]
["Last Month on",3,null,null,null,null,null,null,null,null,null,null,null,null,null,null,null,null,null,null,"St. Clair"]
[null,null,null,null,null,null,null,null,null,null,null,null,null,null,null,null,null,null,null,null,"Stark"]
["CowCalf 2",null,null,null,null,null,null,null,null,null,null,null,null,null,null,null,null,null,null,null,"Stephenson"]
["First Month on",1,null,null,null,null,null,null,null,null,null,null,null,null,null,null,null,null,null,null,"Tazewell"]
["Last Month on",3,null,null,null,null,null,null,null,null,null,null,null,null,null,null,null,null,null,null,"Union"]
[null,null,null,null,null,null,null,null,null,null,null,null,null,null,null,null,null,null,null,null,"Vermilion"]
["Cow Calf 3",null,null,null,null,null,null,null,null,null,null,null,null,null,null,null,null,null,null,null,"Wabash"]
["First Month on",6,null,null,null,null,null,null,null,null,null,null,null,null,null,null,null,null,null,null,"Warren"]
["Last Month on",12,null,null,null,null,null,null,null,null,null,null,null,null,null,null,null,null,null,null,"Washington"]
[null,null,null,null,null,null,null,null,null,null,null,null,null,null,null,null,null,null,null,null,"Wayne"]
["Horses Alt Pasture Options",null,null,null,null,null,null,null,null,null,null,null,null,null,null,null,null,null,null,null,"White"]
["Past Year Round",true,null,null,null,null,null,null,null,null,null,null,null,null,null,null,null,null,null,null,"Whiteside"]
["Alternative Pasture",false,null,null,null,null,null,null,null,null,null,null,null,null,null,null,null,null,null,null,"Will"]
["Dry Lot",false,null,null,null,null,null,null,null,null,null,null,null,null,null,null,null,null,null,null,"Williamson"]
["First Month On",11,null,null,null,null,null,null,null,null,null,null,null,null,null,null,null,null,null,null,"Winnebago"]
["Last Month On",3,null,null,null,null,null,null,null,null,null,null,null,null,null,null,null,null,null,null,"Woodford"]
[]
[]
[]
[]
[]
[]
[]
[]
["Calculations for weighted averages for G.E., intake, # head"]
[null,"head X wt"]
["Cow/Calf Pairs1",{"$f":"SUBTOTAL(106,LivestockForageBalance!I15,LivestockForageBalance!J15)","v":0}]
["Cow/Calf Pairs2",{"$f":"SUBTOTAL(106,LivestockForageBalance!I17,LivestockForageBalance!J17)","v":0}]
["Cow/Calf Pairs3",{"$f":"SUBTOTAL(106,LivestockForageBalance!I19,LivestockForageBalance!J19)","v":0}]
["Stockers1",{"$f":"AVERAGE(IF(Calculations!A25:L25<>0,Calculations!A25:L25,\"\"))","v":460.75},{"$f":"SUBTOTAL(106,LivestockForageBalance!J21,LivestockForageBalance!I21)","v":0}]
["Stockers2",{"$f":"AVERAGE(IF(Calculations!A28:L28<>0,Calculations!A28:L28,\"\"))","v":491},{"$f":"SUBTOTAL(106,LivestockForageBalance!J23,LivestockForageBalance!I23)","v":0}]
["Dairy1",{"$f":"SUBTOTAL(106,LivestockForageBalance!I25,LivestockForageBalance!J25)","v":0}]
["Dairy2",{"$f":"SUBTOTAL(106,LivestockForageBalance!I31,LivestockForageBalance!J31)+SUBTOTAL(106,LivestockForageBalance!I29,LivestockForageBalance!J29)","v":0}]
["Bulls",{"$f":"SUBTOTAL(106,LivestockForageBalance!I33,LivestockForageBalance!J33)","v":0}]
["Horses",{"$f":"SUBTOTAL(106,LivestockForageBalance!I35,LivestockForageBalance!J35)","v":0}]
["Sheep",{"$f":"SUBTOTAL(106,LivestockForageBalance!I37,LivestockForageBalance!J37)","v":0}]
["Goats",{"$f":"SUBTOTAL(106,LivestockForageBalance!I39,LivestockForageBalance!J39)","v":0}]
["TOTAL",{"$f":"B114+B115+B116+B121+B122+B123+B124+C117+C118+B119+B120","v":0}]
[]
["Weighted lbs/head ",{"$f":"IF(LivestockForageBalance!I41=0,0,B125/LivestockForageBalance!I41)","v":0}]
[]
["G.E. avg.=",{"$f":"SUM(LivestockForageBalance!M103:M149)/SUM(LivestockForageBalance!K103:K149)*100","v":{"$error":"#DIV/0!"}}]

{"sheet":"ForageGrowthCurves","index":10,"n_rows":54,"n_cols":19,"rows_kept":54,"cut":false,"hidden":false,"merged":[[1,0,1,15],[2,0,2,15]]}
[]
["FORAGE GROWTH CURVES "]
["                                            These curves are used to calculate the monthly pasture forage available for the grazing system, and the production pounds of hay for fields that are hayed and then pastured"]
["Pasture Mixes (Table 3-1 Northern IL optimum)",null,"Apr","May","Jun","Jul","Aug","Sep","Oct","Nov","Dec","Jan.","Feb.","Mar","Min Grazing Ht. (in)","Min Haying Ht (in)","OPT. Production",null,"AVE. Production"]
["-","-","-","-","-","-","-","-","-","-","-","-","-","-","-",null,"Tons/Acre",null,"Tons/Acre"]
["Alfalfa",null,0.05,0.23,0.24,0.18,0.15,0.1,0.05,null,null,null,null,null,3,null,6,null,3.9000000000000004]
["Alfalfa/Orchardgrass",null,0.06,0.23,0.24,0.18,0.13,0.11,0.05,null,null,null,null,null,3,null,5.5,null,3.6]
["Alfalfa/Smooth Bromegrass",null,0.06,0.23,0.24,0.18,0.13,0.11,0.05,null,null,null,null,null,4,null,5.2,null,3.4]
["Big Bluestem",null,null,0.03,0.14000000000000001,0.37,0.32,0.14000000000000001,null,null,null,null,null,null,8,null,3.4,null,2.5]
["Big Bluestem/Indiangrass",null,null,0.03,0.12,0.37,0.35,0.12,null,null,null,null,null,null,8,null,3.4,null,2.5]
["Birdsfoot Trefoil/cool season grass",null,0.05,0.14000000000000001,0.32,0.23,0.12,0.08,0.06,null,null,null,null,null,4,null,3.4,null,2.2000000000000002]
["Bluegrass, Kentucky/Dutch Wh. Clover",null,0.08,0.28000000000000003,0.28999999999999998,0.09,7.0000000000000007E-2,0.12,7.0000000000000007E-2,null,null,null,null,null,2,null,3.6,null,2.2999999999999998]
["Bluegrass, KY/Tall Fescue/Ladino Cl.",null,0.09,0.2,0.2,0.17,0.1,0.11,0.11,0.02,null,null,null,null,3,null,4.2,null,2.7]
["Bluegrass, KY/Orchardgrass/Ladino Cl.",null,7.0000000000000007E-2,0.23,0.24,0.16,0.1,0.14000000000000001,0.06,null,null,null,null,null,3,null,4.2,null,2.7]
["Bluegrass, KY/Orchardgrass/Red Cl.",null,0.06,0.19,0.24,0.2,0.12,0.14000000000000001,0.05,null,null,null,null,null,3,null,4.5,null,3]
["Bluegrass, KY/Tall Fescue/Red Cl.",null,0.05,0.2,0.2,0.19,0.11,0.13,0.1,0.02,null,null,null,null,3,null,4.5,null,3]
["Bromegrass, Smooth",null,0.05,0.31,0.27,0.11,0.06,0.11,0.06,null,null,null,null,null,4,null,4.5,null,3]
["Bromegrass, Smooth/Ladino Clover",null,0.08,0.25,0.25,0.15,0.1,0.1,7.0000000000000007E-2,null,null,null,null,null,4,null,4.8,null,3.1]
["Bromegrass, Smooth/Red Clover",null,0.08,0.22,0.25,0.15,0.15,0.1,0.05,null,null,null,null,null,4,null,5.0999999999999996,null,3.4]
["Brush, (for Goat pasture)",null,0.04,0.25,0.28000000000000003,0.28000000000000003,0.1,0.05,".",null,null,null,null,null,"N/A",null,1.6,null,2.6]
["Brush, Grass, and Forbes for Goats",null,0.05,0.23,0.23,0.22,0.15,0.09,0.03,null,null,null,null,null,"N/A",null,3.2,null,3.1]
["Chicory",null,0.05,0.11,0.32,0.24,0.13,0.1,0.05,null,null,null,null,null,2,null,3,null,2]
["Corn (Green Grazed)",null,null,0.1,0.4,0.4,0.1,null,null,null,null,null,null,null,"N/A",null,5.8,null,3.9000000000000004]
["Corn Stalk Residue",null,null,null,null,null,null,null,0.5,0.5,null,null,null,null,"N/A",null,2,null,2]
["Eastern Gama Grass",null,null,0.08,0.3,0.35,0.22,0.05,null,null,null,null,null,null,10,null,5.5,null,3.6]
["Fescue, Tall (not stockpiled)",null,0.09,0.26,0.25,0.13,7.0000000000000007E-2,0.12,0.06,0.02,null,null,null,null,3,null,4.8,null,3.1]
["Fescue, Tall (stockpiled)",null,0.09,0.2,0.2,0.13,0.08,0.15,0.13,0.02,null,null,null,null,3,null,5.5,null,3.5]
["Fescue, Tall/Ladino Clover ",null,0.09,0.2,0.23,0.15,0.1,0.11,0.1,0.02,null,null,null,null,3,null,4.9000000000000004,null,3]
["Fescue, Tall/Red Clover ",null,0.05,0.2,0.2,0.19,0.11,0.13,0.1,0.02,null,null,null,null,3,null,5.3,null,3.5]
["Fescue, Tall/Red Clover (stock piled)",null,0.05,0.2,0.2,0.1,0.1,0.15,0.15,0.05,null,null,null,null,3,null,5.7,null,3.8]
["Indiangrass",null,null,0.02,0.12,0.34,0.38,0.14000000000000001,null,null,null,null,null,null,8,null,3.4,null,2.5]
["Millet, Pearl",null,null,0.01,0.15,0.31,0.31,0.19,0.03,null,null,null,null,null,3,null,4.5,null,3]
["Oats (August seeding)",null,null,null,null,null,null,0.12,0.4,0.4,0.08,null,null,null,3,null,1.6,null,1.1000000000000001]
["Oats (March-April seeding)",null,0.2,0.35,0.35,0.1,null,null,null,null,null,null,null,null,3,null,2.9,null,1.8]
["Orchardgrass",null,7.0000000000000007E-2,0.27,0.2,0.14000000000000001,0.12,0.13,7.0000000000000007E-2,null,null,null,null,null,3,null,4.5,null,3.4]
["Orchardgrass/Ladino Clover",null,0.09,0.23,0.23,0.14000000000000001,0.11,0.15,0.05,null,null,null,null,null,3,null,4.7,null,3.5]
["Orchardgrass/Red Clover",null,0.05,0.2,0.23,0.19,0.13,0.15,0.05,null,null,null,null,null,3,null,4.8,null,3]
["Orchardgrass/Red Clover (stockpiled)",null,0.05,0.2,0.2,0.1,0.1,0.15,0.15,0.05,null,null,null,null,3,null,5.5,null,3]
["Orchardgrass/Tall Fescue/Ladino Clover",null,0.09,0.22,0.22,0.14000000000000001,7.0000000000000007E-2,0.11,0.13,0.02,null,null,null,null,3,null,5.2,null,3.1]
["Orchardgrass/Tall Fescue/Red Clover",null,0.05,0.2,0.21,0.18,0.12,0.13,0.08,0.03,null,null,null,null,3,null,5.5,null,3.5]
["Red Clover",null,0.06,0.25,0.33,0.17,0.09,0.06,0.03,0.01,null,null,null,null,3,null,3.5,null,2.2999999999999998]
["Reed Canarygrass",null,0.05,0.19,0.27,0.2,0.12,0.11,0.05,0.01,null,null,null,null,4,null,4.4000000000000004,null,2.9]
["Rye, Cereal (Aug. seeded)",null,0.22,0.28000000000000003,0.1,null,null,0.05,0.15,0.1,7.0000000000000007E-2,null,null,0.03,3,null,2.1,null,1.3]
["Ryegrass, Italian/Annual (Aug. seeded)",null,0.15,0.3,0.2,0.05,null,0.02,0.1,0.13,0.05,null,null,null,3,null,2,null,3]
["Ryegrass, Perennial/Ladino Clover",null,0.08,0.3,0.25,0.12,0.05,0.1,7.0000000000000007E-2,0.03,null,null,null,null,3,null,4.5,null,3.1]
["Ryegrass, Perennial/Red Clover",null,0.05,0.22,0.25,0.18,0.08,0.1,0.1,0.02,null,null,null,null,3,null,4.8,null,1.3]
["Sorghum-sudangrass",null,null,0.01,0.13,0.32,0.34,0.2,null,null,null,null,null,null,6,null,4.7,null,3]
["Switchgrass",null,null,0.11,0.24,0.32,0.23,0.1,null,null,null,null,null,null,8,null,3.9000000000000004,null,2.6]
["Timothy",null,0.08,0.23,0.34,0.1,0.06,0.14000000000000001,0.05,null,null,null,null,null,4,null,3.5,null,2.2000000000000002]
["Triticale, Fall seeded",null,0.23,0.3,null,null,null,0.05,0.15,0.1,0.05,null,null,0.02,3,null,3.1,null,2.1]
["Turnips (Fall seeded)",null,null,null,null,null,null,0.12,0.38,0.35,0.15,null,null,null,3,null,3.2,null,2.1]
["Turnips/C. Rye (Fall seeded)",null,0.25,0.15,null,null,null,0.1,0.15,0.15,0.1,null,null,0.1,3,null,5.8,null,3.9000000000000004]
["Turnips/C. Rye/Oats (Fall seeded)",null,0.25,0.15,null,null,null,0.1,0.15,0.15,0.1,null,null,0.1,3,null,3.8,null,2.5]
["Turnips/Oats (Fall seeded)",null,null,null,null,null,null,0.12,0.38,0.35,0.15,null,null,null,3,null,3.9000000000000004,null,2.6]

{"sheet":"Hay Loss Storage","index":11,"n_rows":78,"n_cols":40,"rows_kept":78,"cut":false,"hidden":false,"merged":[[2,2,2,6],[4,2,4,3],[73,2,76,3],[77,2,78,3]]}
[null,null,"Hay Storage Cost Comparison"]
[null,null,"Ag Decision Maker -- Iowa State University Extension"]
[null,null,"For information on hay costs, see Information File A1-15, Iowa Pasture Cost Improvement Budgets."]
[]
[null,null,"Place the cursor over cells with red triangles to read comments."]
[null,null,"Enter your input values in shaded cells."]
[]
[null,null,"General Information","Unit"]
[null,null,"Acres of hay produced annually","acres",null,null,null,"  "]
[null,null,"Average yield, total for all cuttings","tons/acre"]
[null,null,"Width of bale","feet"]
[null,null,"Length or diameter of bale","feet"]
[null,null,"Average weight of bale","pounds"]
[null,null,"Tons of hay needed to meet annual needs","tons/year"]
[]
[null,null,"Value of hay at harvest, on farm","$/ton"]
[null,null,"Estimated cost of production for hay","$/ton"]
[null,null,"Long term interest rate for building investment","%"]
[null,null,"Value of labor used for storing hay","$/hour"]
[null,null,null,null,null,true,true,true,true,true,true,true]
[null,null,"Storage Loss",null,"Bare ground, no cover","Outside, on gravel, no cover","Outside, on gravel, under tarp","Outside, bare ground, under tarp","Outside, on bare ground, plastic wraps","Under roof, no sides","Inside, new building","Inside, existing building",null,null,null,null,null,null,null,null,null,null,null,null,null,null,null,null,null,null,null,"Price of hay",{"$f":"E43","v":"Bare ground, no cover"},"Outside, on gravel, no cover","Outside, on gravel, under tarp","Outside, bare ground, under tarp","Outside, on bare ground, plastic wraps","Under roof, no sides","Inside, new building","Inside, existing building"]
[null,null,"Expected spoilage & dry matter loss\n(click here for research data)","%",0.28000000000000003,0.24,0.09,0.13,0.13,0.08,0.05,0.05,null,null,null,null,null,null,null,null,null,null,null,null,null,null,null,null,null,null,null,{"$f":"0.7*AF25","v":0},{"$f":"E$44*E$22*$AF22+E$55","v":0},0,0,0,0,0,0,0]
[null,null,null,null,null,null,null,null,null,null,null,null,null,null,null,null,null,null,null,null,null,null,null,null,null,null,null,null,null,null,null,{"$f":"0.8*AF25","v":0},0,0,0,0,0,0,0,0]
[null,null,"Outside Storage",null,null,null,null,null,null,null,null,null,null,null,null,null,null,null,null,null,null,null,null,null,null,null,null,null,null,null,null,{"$f":"0.9*AF25","v":0},0,0,0,0,0,0,0,0]
[null,null,"Initial cost of gravel base or pallets, per square foot","$/sq. foot",null,0.45,0.45,0.45,null,null,null,null,null,null,null,null,null,null,null,null,null,null,null,null,null,null,null,null,null,null,null,{"$f":"E16","v":0},0,0,0,0,0,0,0,0]
[null,null,"Expected years of life for gravel base or pallets","years",null,5,5,5,null,null,null,null,null,null,null,null,null,null,null,null,null,null,null,null,null,null,null,null,null,null,null,{"$f":"1.1*$AF25","v":0},0,0,0,0,0,0,0,0]
[null,null,"Cost of canvas or plastic tarps, per square foot","$",null,null,0.75,0.75,null,null,null,null,null,null,null,null,null,null,null,null,null,null,null,null,null,null,null,null,null,null,null,{"$f":"1.2*$AF25","v":0},0,0,0,0,0,0,0,0]
[null,null,"Expected years of life for covering","years",null,null,5,5,null,null,null,null,null,null,null,null,null,null,null,null,null,null,null,null,null,null,null,null,null,null,null,{"$f":"1.3*$AF25","v":0},0,0,0,0,0,0,0,0]
[null,null,"Cost for plastic bale wraps, each","$/wrap",null,null,null,null,5]
[]
[null,null,"Inside Storage"]
[null,null,"Construction cost of new building, per square foot","$/sq. foot",null,null,null,null,null,1.5,4]
[null,null,"Expected years of life of new building","years",null,null,null,null,null,30,30]
[null,null,"Approximate value of existing building, per square foot","$/sq. foot",null,null,null,null,null,null,null,1]
[null,null,"Repair and maintenance rate, annual","% of value",null,null,null,null,null,0.01,0.01,0.03]
[null,null,"Property tax and insurance rate, annual","% of value",null,null,null,null,null,1.4999999999999999E-2,1.4999999999999999E-2,1.4999999999999999E-2]
[]
[null,null,"Other Information"]
[null,null,"Number of layers of stacked bales","layers"]
[null,null,"Total labor needed for storing, covering, and uncovering","hours/year"]
[]
[null,null,"Cost Comparison"]
[null,null,"Type of storage","Unit",{"$f":"E21","v":"Bare ground, no cover"},{"$f":"F21","v":"Outside, on gravel, no cover"},"Outside, on gravel, under tarp","Outside, bare ground, under tarp","Outside, on bare ground, plastic wraps","Under roof, no sides","Inside, new building","Inside, existing building"]
[null,null,"Tons of hay harvested per year","tons/year",{"$f":"($E9*$E10)","v":0},{"$f":"($E9*$E10)","v":0},0,0,0,0,0,0]
[]
[null,null,"Number of bales stored per year","bales/year",{"$f":"IF($E13,($E44*2000)/$E13,0)","v":0},{"$f":"IF($E13,($E44*2000)/$E13,0)","v":0},0,0,0,0,0,0]
[null,null,"Storage area needed--square feet","square feet",{"$f":"IF(E39,1.05*(E46*$E11*$E12)/E39,0)","v":0},{"$f":"IF(F39,1.05*(F46*$E11*$E12)/F39,0)","v":0},0,0,0,0,0,0]
[null,null,"Initial investment for building","$",null,null,null,null,null,{"$f":"J32*J47","v":0},{"$f":"K32*K47","v":0}]
[null,null,"Initial investment for gravel or pallets for storage site","$",null,{"$f":"F25*F47","v":0},{"$f":"G25*G47","v":0},{"$f":"H25*H47","v":0}]
[]
[null,null,"Ownership cost per year for building","$/year",null,null,null,null,null,{"$f":"IF(J33,(J47*J32*((1/J33)+($E18+J36)/2+J35)),0)","v":0},{"$f":"IF(K33,(K47*K32*((1/K33)+($E18+K36)/2+K35)),0)","v":0},{"$f":"IF(L33,(L47*L32*((1/L33)+($E18+L36)/2+L35)),0)+L47*L34*($E18+L36+L35)","v":0}]
[null,null,"Ownership cost per year for storage site","$/year",null,{"$f":"IF(F26,F47*F25*(1/F26+$E18/2),0)","v":0},{"$f":"IF(G26,G47*G25*(1/G26+$E18/2),0)","v":0},{"$f":"IF(H26,H47*H25*(1/H26+$E18/2),0)","v":0}]
[null,null,"Labor cost for storage per year ","$/year",{"$f":"($E19*E40)","v":0},{"$f":"($E19*F40)","v":0},0,0,0,0,0,0]
[null,null,"Cost of coverings per year","$/year",null,null,{"$f":"IF(G28,(G27*(G47+$E11*$E12*G39*2)/G28),0)+G29*G46","v":0},{"$f":"IF(H28,(H27*(H47+$E11*$E12*H39*2)/H28),0)+H29*H46","v":0},{"$f":"IF(I28,(I27*(I47+$E11*$E12*I39*2)/I28),0)+I29*I46","v":0}]
[null,null,"Total cost per year for storage","$/year",{"$f":"SUM(E51:E54)","v":0},0,0,0,0,0,0,0]
[null,null,"Value of spoilage and dry matter loss","$/year",{"$f":"E44*E22*$E16","v":0},{"$f":"F44*F22*$E16","v":0},0,0,0,0,0,0]
[null,null,"Total cost for storage including storage loss","$/year",{"$f":"E55+E56","v":0},{"$f":"F55+F56","v":0},0,0,0,0,0,0]
[]
[null,null,"Tons of hay available for feeding or selling","tons/year",{"$f":"E44*(1-E22)","v":0},{"$f":"F44*(1-F22)","v":0},0,0,0,0,0,0]
[null,null,"Total cost for storage, incl. storage loss, per ton avail. for feeding","$/ton",{"$f":"IF(E59,E57/E59,0)","v":0},{"$f":"IF(F59,F57/F59,0)","v":0},0,{"$f":"IF(H59,H57/H59,0)","v":0},0,0,0,0]
[null,null,"Value of hay available to feed minus cost of storage ","$/year",{"$f":"$E16*E44-E57","v":0},{"$f":"$E16*F44-F57","v":0},0,{"$f":"$E16*H44-H57","v":0},0,0,0,0]
[]
[null,null,"Total cost to meet annual hay needs","$/year",{"$f":"(E55/E44+$E17)*($E14/(1-E22))","v":{"$error":"#DIV/0!"}},{"$f":"(F55/F44+$E17)*($E14/(1-F22))","v":{"$error":"#DIV/0!"}},{"$error":"#DIV/0!"},{"$error":"#DIV/0!"},{"$error":"#DIV/0!"},{"$error":"#DIV/0!"},{"$error":"#DIV/0!"},{"$error":"#DIV/0!"}]
[]
[null,null,"Version 1.0"]
[null,null,"Author: William Edwards"]
[null,null,"Ann Johanns"]
[null,null,"Date Printed:"]
[null,null,{"$f":"TODAY()","v":"2018-03-09"}]
[null,null," "]
[null,null," "]
[]
[null,null,". . . and justice for all"]
[null,null,"The U.S. Department of Agriculture (USDA) prohibits discrimination in all its programs and activities on the basis of race, color, national origin, gender, religion, age, disability, political beliefs, sexual orientation, and marital or family status. (Not all prohibited bases apply to all programs.) Many materials can be made available in alternative formats for ADA clients. To file a complaint of discrimination, write USDA, Office of Civil Rights, Room 326-W, Whitten Building, 14th and Independence Avenue, SW, Washington, DC 20250-9410 or call 202-720-5964."]
[]
[]
[]
[null,null,"Issued in furtherance of Cooperative Extension work, Acts of May 8 and June 30, 1914, in cooperation with the U.S. Department of Agriculture. Gerald A. Miller, interim director, Cooperative Extension Service, Iowa State University of Science and Technology, Ames, Iowa."]

{"sheet":"PastureGrazingEfficiency","index":12,"n_rows":108,"n_cols":3,"rows_kept":108,"cut":false,"hidden":true,"merged":[[2,1,2,13],[3,1,3,13]]}
[]
[null,"Calculate Pasture Grazing Efficiency:"]
[null,"Selecting the \"Calculate Pasture Grazing Efficiency\" button will calculate the pasture grazing efficiency for each field/paddock by dividing the Total Usable Acres Grazed by the Acres of each field/paddock to generate a Paddock Equivalency Value.  The Paddock Equivalency Value is used to return the associated Pasture Grazing Efficiency value based on the table below."]
[null,"You can override the calculated Pasture Grazing Efficiency at any time by manually entering a value in the associated cells.  Alternatively, you can allow the model to calculate the Pasture Grazing Efficiency at any time by re-selecting the \"Calculate Pasture Grazing Efficiency\" button."]
[]
[]
[]
[null,"Paddock Equivalency Value","Grazing Efficiency (%)"]
[null,1,25]
[null,2,28]
[null,3,32]
[null,4,35]
[null,5,38]
[null,6,41]
[null,7,43]
[null,8,50]
[null,9,51]
[null,10,55]
[null,11,60]
[null,12,63]
[null,13,65]
[null,14,65]
[null,15,66]
[null,16,66]
[null,17,66]
[null,18,67]
[null,19,67]
[null,20,67]
[null,21,68]
[null,22,68]
[null,23,68]
[null,24,68]
[null,25,68]
[null,26,69]
[null,27,69]
[null,28,69]
[null,29,69]
[null,30,69]
[null,31,69]
[null,32,69]
[null,33,69]
[null,34,69]
[null,35,69]
[null,36,69]
[null,37,69]
[null,38,69]
[null,39,69]
[null,40,69]
[null,41,69]
[null,42,69]
[null,43,69]
[null,44,69]
[null,45,69]
[null,46,69]
[null,47,69]
[null,48,69]
[null,49,69]
[null,50,69]
[null,51,69]
[null,52,69]
[null,53,69]
[null,54,69]
[null,55,69]
[null,56,69]
[null,57,69]
[null,58,69]
[null,59,69]
[null,60,69]
[null,61,69]
[null,62,69]
[null,63,69]
[null,64,69]
[null,65,69]
[null,66,69]
[null,67,69]
[null,68,69]
[null,69,69]
[null,70,69]
[null,71,69]
[null,72,69]
[null,73,69]
[null,74,69]
[null,75,69]
[null,76,69]
[null,77,69]
[null,78,69]
[null,79,69]
[null,80,69]
[null,81,69]
[null,82,69]
[null,83,69]
[null,84,69]
[null,85,69]
[null,86,69]
[null,87,69]
[null,88,69]
[null,89,69]
[null,90,69]
[null,91,69]
[null,92,69]
[null,93,69]
[null,94,69]
[null,95,69]
[null,96,69]
[null,97,69]
[null,98,69]
[null,99,69]
[null,100,69]

{"sheet":"HayList","index":13,"n_rows":53,"n_cols":2,"rows_kept":53,"cut":false,"hidden":true,"merged":[]}
["-","-"]
["Mechanically Harvested Forage","Minimum"]
["Mixes","Cut Height"]
["-","-"]
["Alfalfa Hay",3]
["Bermudagrass Hay","2-3"]
["Big Bluestem Hay","4-6"]
["Bluegrass Hay","3"]
["Brome Hay","3-4"]
["Brome/Alfalfa Hay","3-4"]
["Brome/Birdsfoot Hay","3-4"]
["Caucasian Bluestem Hay","3"]
["Corn silage","3"]
["Crabgrass and Ryegrass DC","2-3"]
["Crabgrass and Wheat/Rye DC Hay","2-3"]
["Crabgrass Hay","2-3"]
["Eastern Gamagrass Hay","6-8"]
["Fescue Hay","3"]
["Fescue- Hay before Winter stockpiled","3"]
["Fescue/Alfalfa Hay","3"]
["Fescue/Birdsfoot Hay","3"]
["Fescue/Ladino Hay","3"]
["Fescue/Lespedeza Hay","3"]
["Fescue/Lespedeza/Ladino Hay","3"]
["Fescue/Red Clover Hay","3"]
["Fescue/Red Clover/Ladino Hay","3"]
["Indian/Big Blue Hay","4-6"]
["Indiangrass Hay","4-6"]
["Johnsongrass Hay","4"]
["Lespedeza Hay","3"]
["Little Bluestem Hay","5"]
["Mixed Pasture (annual/perennial) Hay","3-4"]
["Native grass (prairie) Hay","4-6"]
["Orchardgrass Hay","3"]
["Orchardgrass/Alfalfa Hay","3"]
["Orchardgrass/Alfalfa/Ladino Hay","3"]
["Orchardgrass/Birdsfoot/Bluegrass Hay","3"]
["Orchardgrass/Ladino Hay","3"]
["Orchardgrass/Lespedeza Hay","3"]
["Orchardgrass/Lespedeza/Ladino Hay","3"]
["Orchardgrass/Red Clover Hay","3"]
["Red Clover Hay","3"]
["Reed Canary Hay","3-4"]
["Reed Canary/Alfalfa Hay","3-4"]
["Reed Canary/Ladino/Alsike Hay","3-4"]
["Reed Canary/Red Clover Hay","3-4"]
["Sorghum/Sudan and Ryegrass DC","6-10 & 2"]
["Sorghum/Sudan and Wheat/Rye DC Hay","6-10 & 2"]
["Sorghum/Sudan Hay","6-10"]
["Switchgrass Hay","6"]
["Timothy/Alfalfa/Ladino Hay","3"]
["Timothy/Red Clover Hay","3"]
["Wheat/Rye Hay","2"]

{"sheet":"FSGTables","index":14,"n_rows":35,"n_cols":20,"rows_kept":35,"cut":false,"hidden":true,"merged":[[5,2,5,19],[7,2,7,3],[15,2,15,3],[24,2,24,3]]}
[]
[]
[]
[]
[]
[null,null,"TABLE 1: RELATIVE ADAPTABILITY OF SELECTED FORAGE SPECIES TO FORAGE SUITABILITY GROUPS; EXPRESSED AS ESTIMATED YIELDS, THOUSANDS OF POUNDS PER ACRE, WHEN OUTSIDE INPUTS ARE MODERATE*. "]
["Wet Tolerance","Drought Tolerance","SPECIES","SOIL       Sa<-L-> Cy","CyU","GNS","GrO","GrP","GrU","LyO","LyP","LyU","MDU","ShU","SyO","WCB","WCU","WLB","WLO","WtP"]
[null,null,"LEGUMES"]
["N","M","ALFALFA","L",8.5,"---",3,2.5,7,10,5,9,6.5,1.5,4,"---","---","---","---","---"]
["H","L","ALSIKE CLOVER","LC",5.5,"---","---","---","---",5.5,3,5,3.5,1,1.5,6.5,6,6,6,4.5]
["M","H","BIRDSFOOT TREFOIL","LC",6.5,1.5,2,2,5.5,7,3.5,6.5,5.5,1.5,2.5,4,4.5,5,6,4]
["N","H","CROWNVETCH","L",7.5,2,3,2.5,6.5,7,5,8,6,2,4,"---","---","---",6,5.5]
["H","L","LADINO CLOVER","L",5,"---",1.5,0.5,4,6,3.5,5,4,1,2,6,5.5,6.5,6.5,5]
["L","H","ANN. LESPEDEZA","SLC",5,1,1.5,2,4,5.5,3.5,5,4,1.5,3,"---",1,"---",4.5,"---"]
["L","M","RED CLOVER","L",6.5,"---",1.5,2,5,7.5,3.5,7,5,1,2,"---",1.5,"---",6.5,"---"]
[null,null,"COOL SEASON GRASSES"]
["L","L","BLUEGRASS","LC",5,1.5,"---","---",3,5.5,3,5,3,1.5,2.5,6.5,5,6.5,6,3.5]
["M","L","ORCHARDGRASS","LC",7,"---",1,1,5.5,7,4.5,7,5.5,"---",3,8,7,8,8,6]
["L","N","RED FESCUE","LC",4,"---","---","---",3,4.5,2.5,4,3,"---",2.5,5.5,5,5.5,5,3]
["L","H","REDTOP","SLC",4,1.5,2,2,3,4.5,2.5,4,3,1.5,2.5,5.5,5,5.5,5,3]
["H","M","REED CANARYGRASS","LC",10,"---",2,2.5,8,10,6,10,8,1.5,4,11,10,11,10.5,8.5]
["M","M","SMOOTH BROME","LC",8,"---",2,2.5,6.5,8.5,5,8,6.5,1.5,3.5,8,9,8.5,8,7.5]
["M","H","TALL FESCUE","LC",8,2,3,2.5,6,7.5,5.5,7.5,6,1.5,3.5,8,9,8,7.5,7.5]
["M","N","TIMOTHY","LC",6,"---","---","---",4,6,4,6,4,"---",2.5,7,7,7,6,5.5]
[null,null,"WARM SEASON GRASSES"]
["M","L","BERMUDAGRASS","SL",7.5,"---",3.5,1,5.5,9,5,8,5,"---",3,9,9,9.5,9.5,6]
["H","M","BIG BLUESTEM","L",9,"---",4.5,3.5,8,11,7,10,8,2.5,4,9.5,10.5,10.5,11.5,9]
["N","M","CAUCASIAN BLUESTEM","LC",9,"---",4.5,3,8,10,6.5,9,7.5,2.5,3.5,"---",2,"---","---","---"]
["M","M","INDIANGRASS","SLC",9,"---",4,3,8,10,6.5,9,8,2.5,3.5,8.5,8.5,9,10.5,9]
["N","H","LITTLE BLUESTEM","SL",5.5,1.5,2.5,1.5,5,7,3.5,6.5,5,1.5,3,"---","---","---",7,"---"]
["N","H","SIDEOATS GRAMA","SLC",5,1.5,2.5,1.5,4,6,3,5,4,1.5,2.5,"---","---","---",6,"---"]
["H","M","SWITCHGRASS","LC",9.5,"---",4.5,3,8,11,7,10,8,2.5,4,12,11,11.5,11.5,9]
["H","M","EASTERN GAMAGRASS","LC",11.5,"---",5,4,9,13,8,12.5,9,3,4.5,14,13,14,13.5,10]
[]
[null,null,"* For High inputs add 30%"]

{"sheet":"PrintableLivestockInventory","index":15,"n_rows":53,"n_cols":13,"rows_kept":53,"cut":false,"hidden":true,"merged":[[1,0,1,2],[26,1,26,12],[7,8,7,11],[8,8,8,11],[7,0,8,0],[7,4,8,4],[7,5,8,5],[7,6,8,7],[1,4,5,9]]}
["Livestock Inventory and Demand Summary for:",null,null,null,"Notes:"]
[{"$f":"Name","v":0},null,null,null,{"$f":"Notes","v":0}]
[{"$f":"ID","v":""}]
[{"$f":"Date","v":""}]
[]
[]
[]
["Livestock Class","Planned","Avg.","  Intake","Lbs/Day","Lbs/Year","Management Details",null,"Time Frame for"]
[null,"Number","Weight","Rate (%)",null,null,null,null,"Alt Pasture or Dry Lot"]
[{"$f":"LivestockForageBalance!H15","v":"Cow/Calf Pairs Herd 1"},{"$f":"LivestockForageBalance!I15","v":0},{"$f":"LivestockForageBalance!J15","v":0},{"$f":"LivestockForageBalance!K15","v":0},{"$f":"LivestockForageBalance!L15","v":0},{"$f":"LivestockForageBalance!M15","v":0},{"$f":"IF(CC1Past=TRUE,\"Grazing System Year Round\",IF(CC1AltPast=TRUE,\"Alternative Pasture Utilized\",IF(CC1DryLot=TRUE,\"Dry Lot Utilized\")))","v":"Grazing System Year Round"},null,{"$f":"LivestockForageBalance!J16","v":""},{"$f":"LivestockForageBalance!K16","v":""}]
[{"$f":"LivestockForageBalance!H17","v":"Cow/Calf Pairs Herd 2"},{"$f":"LivestockForageBalance!I17","v":0},{"$f":"LivestockForageBalance!J17","v":0},{"$f":"LivestockForageBalance!K17","v":0},{"$f":"LivestockForageBalance!L17","v":0},{"$f":"LivestockForageBalance!M17","v":0},{"$f":"IF(CC2Past=TRUE,\"Grazing System Year Round\",IF(CC2AltPast=TRUE,\"Alternative Pasture Utilized\",IF(CC2DryLot=TRUE,\"Dry Lot Utilized\")))","v":"Grazing System Year Round"},null,{"$f":"LivestockForageBalance!J18","v":""},{"$f":"LivestockForageBalance!K18","v":""}]
[{"$f":"LivestockForageBalance!H19","v":"Cow/Calf Pairs Herd 3"},{"$f":"LivestockForageBalance!I19","v":0},{"$f":"LivestockForageBalance!J19","v":0},{"$f":"LivestockForageBalance!K19","v":0},{"$f":"LivestockForageBalance!L19","v":0},{"$f":"LivestockForageBalance!M19","v":0},{"$f":"IF(CC3Past=TRUE,\"Grazing System Year Round\",IF(CC3AltPast=TRUE,\"Alternative Pasture Utilized\",IF(CC3DryLot=TRUE,\"Dry Lot Utilized\")))","v":"Grazing System Year Round"},null,{"$f":"LivestockForageBalance!J20","v":""},{"$f":"LivestockForageBalance!K20","v":""}]
[{"$f":"LivestockForageBalance!H21","v":"Stockers Herd 1"},{"$f":"LivestockForageBalance!I21","v":0},{"$f":"LivestockForageBalance!J21","v":false},{"$f":"LivestockForageBalance!K21","v":0},{"$f":"LivestockForageBalance!L21","v":0},{"$f":"LivestockForageBalance!M21","v":0}]
[{"$f":"LivestockForageBalance!H23","v":"Stockers Herd 2"},{"$f":"LivestockForageBalance!I23","v":0},{"$f":"LivestockForageBalance!J23","v":false},{"$f":"LivestockForageBalance!K23","v":0},{"$f":"LivestockForageBalance!L23","v":0},{"$f":"LivestockForageBalance!M23","v":0}]
[{"$f":"LivestockForageBalance!H25","v":"Dairy, Seasonal"},{"$f":"LivestockForageBalance!I25","v":0},{"$f":"LivestockForageBalance!J25","v":0},null,null,{"$f":"LivestockForageBalance!M25","v":0},{"$f":"IF(SeasonalDairyPast=TRUE,\"Grazing System Year Round\",IF(SeasonalDairyAltPast=TRUE,\"Alternative Pasture Utilized\",IF(SeasonalDairyDryLot=TRUE,\"Dry Lot Utilized\")))","v":"Grazing System Year Round"},null,{"$f":"LivestockForageBalance!J28","v":""},{"$f":"LivestockForageBalance!K28","v":""}]
[{"$f":"LivestockForageBalance!H26","v":"Intake Rate Lactating Months"},null,null,{"$f":"LivestockForageBalance!K26","v":0},{"$f":"LivestockForageBalance!L26","v":0}]
[{"$f":"LivestockForageBalance!H27","v":"Intake Rate Dry Months"},null,null,{"$f":"LivestockForageBalance!K27","v":0},{"$f":"LivestockForageBalance!L27","v":0}]
[{"$f":"LivestockForageBalance!H29","v":"Lactating Dairy Herd"},{"$f":"LivestockForageBalance!I29","v":0},{"$f":"LivestockForageBalance!J29","v":0},{"$f":"LivestockForageBalance!K29","v":0},{"$f":"LivestockForageBalance!L29","v":0},{"$f":"LivestockForageBalance!M29","v":0},{"$f":"IF(LactatingDairyPast=TRUE,\"Grazing System Year Round\",IF(LactatingDairyAltPast=TRUE,\"Alternative Pasture Utilized\",IF(LactatingDairyDryLot=TRUE,\"Dry Lot Utilized\")))","v":"Grazing System Year Round"},null,{"$f":"LivestockForageBalance!J30","v":""},{"$f":"LivestockForageBalance!K30","v":""}]
[{"$f":"LivestockForageBalance!H31","v":"Dry Dairy Herd "},{"$f":"LivestockForageBalance!I31","v":0},{"$f":"LivestockForageBalance!J31","v":0},{"$f":"LivestockForageBalance!K31","v":0},{"$f":"LivestockForageBalance!L31","v":0},{"$f":"LivestockForageBalance!M31","v":0},{"$f":"IF(DryDairyPast=TRUE,\"Alternative Pasture Utilized\",IF(DryDairyDryLot=TRUE,\"Dry Lot Utilized\"))","v":false}]
[{"$f":"LivestockForageBalance!H33","v":"Bulls"},{"$f":"LivestockForageBalance!I33","v":0},{"$f":"LivestockForageBalance!J33","v":0},{"$f":"LivestockForageBalance!K33","v":0},{"$f":"LivestockForageBalance!L33","v":0},{"$f":"LivestockForageBalance!M33","v":0},{"$f":"IF(BullsPast=TRUE,\"Grazing System Year Round\",IF(OR(BullsAltPast1=TRUE,BullsAltPast2=TRUE),\"Alternative Pasture Utilized\",IF(OR(BullsDryLot1=TRUE,BullsDryLot2=TRUE),\"Dry Lot Utilized\")))","v":"Grazing System Year Round"},null,{"$f":"LivestockForageBalance!J34","v":""},{"$f":"LivestockForageBalance!K34","v":false},{"$f":"LivestockForageBalance!M34","v":""},{"$f":"LivestockForageBalance!N34","v":""}]
[{"$f":"LivestockForageBalance!H35","v":"Horses"},{"$f":"LivestockForageBalance!I35","v":0},{"$f":"LivestockForageBalance!J35","v":0},{"$f":"LivestockForageBalance!K35","v":0},{"$f":"LivestockForageBalance!L35","v":0},{"$f":"LivestockForageBalance!M35","v":0},{"$f":"IF(HorsesPast=TRUE,\"Grazing System Year Round\",IF(HorsesAltPast=TRUE,\"Alternative Pasture Utilized\",IF(HorsesDryLot=TRUE,\"Dry Lot Utilized\")))","v":"Grazing System Year Round"},null,{"$f":"LivestockForageBalance!J36","v":""},{"$f":"LivestockForageBalance!K36","v":""}]
[{"$f":"LivestockForageBalance!H37","v":"Sheep"},{"$f":"LivestockForageBalance!I37","v":0},{"$f":"LivestockForageBalance!J37","v":0},{"$f":"LivestockForageBalance!K37","v":0},{"$f":"LivestockForageBalance!L37","v":0},{"$f":"LivestockForageBalance!M37","v":0}]
[{"$f":"LivestockForageBalance!H39","v":"Goats"},{"$f":"LivestockForageBalance!I39","v":0},{"$f":"LivestockForageBalance!J39","v":0},{"$f":"LivestockForageBalance!K39","v":0},{"$f":"LivestockForageBalance!L39","v":0},{"$f":"LivestockForageBalance!M39","v":0}]
[]
["Totals",{"$f":"LivestockForageBalance!I41","v":0},null,null,{"$f":"LivestockForageBalance!L41","v":0},{"$f":"LivestockForageBalance!M41","v":0}]
[]
[null,"Forage Demand by Month (Lbs/month)"]
["Livestock Class","Apr","May","June","July","Aug","Sept","Oct","Nov","Dec","Jan","Feb","Mar"]
[{"$f":"A10","v":"Cow/Calf Pairs Herd 1"},{"$f":"LivestockForageBalance!N15","v":0},{"$f":"LivestockForageBalance!O15","v":0},{"$f":"LivestockForageBalance!P15","v":0},{"$f":"LivestockForageBalance!Q15","v":0},{"$f":"LivestockForageBalance!R15","v":0},{"$f":"LivestockForageBalance!S15","v":0},{"$f":"LivestockForageBalance!T15","v":0},{"$f":"LivestockForageBalance!U15","v":0},{"$f":"LivestockForageBalance!V15","v":0},{"$f":"LivestockForageBalance!W15","v":0},{"$f":"LivestockForageBalance!X15","v":0},{"$f":"LivestockForageBalance!Y15","v":0}]
["Cow/Calf Pairs Herd 2",{"$f":"LivestockForageBalance!N17","v":0},{"$f":"LivestockForageBalance!O17","v":0},{"$f":"LivestockForageBalance!P17","v":0},{"$f":"LivestockForageBalance!Q17","v":0},{"$f":"LivestockForageBalance!R17","v":0},{"$f":"LivestockForageBalance!S17","v":0},{"$f":"LivestockForageBalance!T17","v":0},{"$f":"LivestockForageBalance!U17","v":0},{"$f":"LivestockForageBalance!V17","v":0},{"$f":"LivestockForageBalance!W17","v":0},{"$f":"LivestockForageBalance!X17","v":0},{"$f":"LivestockForageBalance!Y17","v":0}]
["Cow/Calf Pairs Herd 3",{"$f":"LivestockForageBalance!N19","v":0},{"$f":"LivestockForageBalance!O19","v":0},{"$f":"LivestockForageBalance!P19","v":0},{"$f":"LivestockForageBalance!Q19","v":0},{"$f":"LivestockForageBalance!R19","v":0},{"$f":"LivestockForageBalance!S19","v":0},{"$f":"LivestockForageBalance!T19","v":0},{"$f":"LivestockForageBalance!U19","v":0},{"$f":"LivestockForageBalance!V19","v":0},{"$f":"LivestockForageBalance!W19","v":0},{"$f":"LivestockForageBalance!X19","v":0},{"$f":"LivestockForageBalance!Y19","v":0}]
["Stockers Herd 1",{"$f":"LivestockForageBalance!N21","v":0},{"$f":"LivestockForageBalance!O21","v":0},{"$f":"LivestockForageBalance!P21","v":0},{"$f":"LivestockForageBalance!Q21","v":0},{"$f":"LivestockForageBalance!R21","v":0},{"$f":"LivestockForageBalance!S21","v":0},{"$f":"LivestockForageBalance!T21","v":0},{"$f":"LivestockForageBalance!U21","v":0},{"$f":"LivestockForageBalance!V21","v":0},{"$f":"LivestockForageBalance!W21","v":0},{"$f":"LivestockForageBalance!X21","v":0},{"$f":"LivestockForageBalance!Y21","v":0}]
["Stockers Herd 2",{"$f":"LivestockForageBalance!N23","v":0},{"$f":"LivestockForageBalance!O23","v":0},{"$f":"LivestockForageBalance!P23","v":0},{"$f":"LivestockForageBalance!Q23","v":0},{"$f":"LivestockForageBalance!R23","v":0},{"$f":"LivestockForageBalance!S23","v":0},{"$f":"LivestockForageBalance!T23","v":0},{"$f":"LivestockForageBalance!U23","v":0},{"$f":"LivestockForageBalance!V23","v":0},{"$f":"LivestockForageBalance!W23","v":0},{"$f":"LivestockForageBalance!X23","v":0},{"$f":"LivestockForageBalance!Y23","v":0}]
["Dairy, Seasonal",{"$f":"LivestockForageBalance!N25","v":0},{"$f":"LivestockForageBalance!O25","v":0},{"$f":"LivestockForageBalance!P25","v":0},{"$f":"LivestockForageBalance!Q25","v":0},{"$f":"LivestockForageBalance!R25","v":0},{"$f":"LivestockForageBalance!S25","v":0},{"$f":"LivestockForageBalance!T25","v":0},{"$f":"LivestockForageBalance!U25","v":0},{"$f":"LivestockForageBalance!V25","v":0},{"$f":"LivestockForageBalance!W25","v":0},{"$f":"LivestockForageBalance!X25","v":0},{"$f":"LivestockForageBalance!Y25","v":0}]
[{"$f":"A18","v":"Lactating Dairy Herd"},{"$f":"LivestockForageBalance!N29","v":0},{"$f":"LivestockForageBalance!O29","v":0},{"$f":"LivestockForageBalance!P29","v":0},{"$f":"LivestockForageBalance!Q29","v":0},{"$f":"LivestockForageBalance!R29","v":0},{"$f":"LivestockForageBalance!S29","v":0},{"$f":"LivestockForageBalance!T29","v":0},{"$f":"LivestockForageBalance!U29","v":0},{"$f":"LivestockForageBalance!V29","v":0},{"$f":"LivestockForageBalance!W29","v":0},{"$f":"LivestockForageBalance!X29","v":0},{"$f":"LivestockForageBalance!Y29","v":0}]
["Dry Dairy Herd ",{"$f":"LivestockForageBalance!N31","v":0},{"$f":"LivestockForageBalance!O31","v":0},{"$f":"LivestockForageBalance!P31","v":0},{"$f":"LivestockForageBalance!Q31","v":0},{"$f":"LivestockForageBalance!R31","v":0},{"$f":"LivestockForageBalance!S31","v":0},{"$f":"LivestockForageBalance!T31","v":0},{"$f":"LivestockForageBalance!U31","v":0},{"$f":"LivestockForageBalance!V31","v":0},{"$f":"LivestockForageBalance!W31","v":0},{"$f":"LivestockForageBalance!X31","v":0},{"$f":"LivestockForageBalance!Y31","v":0}]
["Bulls",{"$f":"LivestockForageBalance!N33","v":0},{"$f":"LivestockForageBalance!O33","v":0},{"$f":"LivestockForageBalance!P33","v":0},{"$f":"LivestockForageBalance!Q33","v":0},{"$f":"LivestockForageBalance!R33","v":0},{"$f":"LivestockForageBalance!S33","v":0},{"$f":"LivestockForageBalance!T33","v":0},{"$f":"LivestockForageBalance!U33","v":0},{"$f":"LivestockForageBalance!V33","v":0},{"$f":"LivestockForageBalance!W33","v":0},{"$f":"LivestockForageBalance!X33","v":0},{"$f":"LivestockForageBalance!Y33","v":0}]
["Horses",{"$f":"LivestockForageBalance!N35","v":0},{"$f":"LivestockForageBalance!O35","v":0},{"$f":"LivestockForageBalance!P35","v":0},{"$f":"LivestockForageBalance!Q35","v":0},{"$f":"LivestockForageBalance!R35","v":0},{"$f":"LivestockForageBalance!S35","v":0},{"$f":"LivestockForageBalance!T35","v":0},{"$f":"LivestockForageBalance!U35","v":0},{"$f":"LivestockForageBalance!V35","v":0},{"$f":"LivestockForageBalance!W35","v":0},{"$f":"LivestockForageBalance!X35","v":0},{"$f":"LivestockForageBalance!Y35","v":0}]
["Sheep",{"$f":"LivestockForageBalance!N37","v":0},{"$f":"LivestockForageBalance!O37","v":0},{"$f":"LivestockForageBalance!P37","v":0},{"$f":"LivestockForageBalance!Q37","v":0},{"$f":"LivestockForageBalance!R37","v":0},{"$f":"LivestockForageBalance!S37","v":0},{"$f":"LivestockForageBalance!T37","v":0},{"$f":"LivestockForageBalance!U37","v":0},{"$f":"LivestockForageBalance!V37","v":0},{"$f":"LivestockForageBalance!W37","v":0},{"$f":"LivestockForageBalance!X37","v":0},{"$f":"LivestockForageBalance!Y37","v":0}]
["Goats",{"$f":"LivestockForageBalance!N39","v":0},{"$f":"LivestockForageBalance!O39","v":0},{"$f":"LivestockForageBalance!P39","v":0},{"$f":"LivestockForageBalance!Q39","v":0},{"$f":"LivestockForageBalance!R39","v":0},{"$f":"LivestockForageBalance!S39","v":0},{"$f":"LivestockForageBalance!T39","v":0},{"$f":"LivestockForageBalance!U39","v":0},{"$f":"LivestockForageBalance!V39","v":0},{"$f":"LivestockForageBalance!W39","v":0},{"$f":"LivestockForageBalance!X39","v":0},{"$f":"LivestockForageBalance!Y39","v":0}]
[]
["Total Forage Demand",{"$f":"LivestockForageBalance!N41","v":0},{"$f":"LivestockForageBalance!O41","v":0},{"$f":"LivestockForageBalance!P41","v":0},{"$f":"LivestockForageBalance!Q41","v":0},{"$f":"LivestockForageBalance!R41","v":0},{"$f":"LivestockForageBalance!S41","v":0},{"$f":"LivestockForageBalance!T41","v":0},{"$f":"LivestockForageBalance!U41","v":0},{"$f":"LivestockForageBalance!V41","v":0},{"$f":"LivestockForageBalance!W41","v":0},{"$f":"LivestockForageBalance!X41","v":0},{"$f":"LivestockForageBalance!Y41","v":0}]
[]
["Grazing System Total Demand",{"$f":"LivestockForageBalance!N91","v":0},{"$f":"LivestockForageBalance!O91","v":0},{"$f":"LivestockForageBalance!P91","v":0},{"$f":"LivestockForageBalance!Q91","v":0},{"$f":"LivestockForageBalance!R91","v":0},{"$f":"LivestockForageBalance!S91","v":0},{"$f":"LivestockForageBalance!T91","v":0},{"$f":"LivestockForageBalance!U91","v":0},{"$f":"LivestockForageBalance!V91","v":0},{"$f":"LivestockForageBalance!W91","v":0},{"$f":"LivestockForageBalance!X91","v":0},{"$f":"LivestockForageBalance!Y91","v":0}]
["Alternative Pasture Total Demand",{"$f":"LivestockForageBalance!N92","v":0},{"$f":"LivestockForageBalance!O92","v":0},{"$f":"LivestockForageBalance!P92","v":0},{"$f":"LivestockForageBalance!Q92","v":0},{"$f":"LivestockForageBalance!R92","v":0},{"$f":"LivestockForageBalance!S92","v":0},{"$f":"LivestockForageBalance!T92","v":0},{"$f":"LivestockForageBalance!U92","v":0},{"$f":"LivestockForageBalance!V92","v":0},{"$f":"LivestockForageBalance!W92","v":0},{"$f":"LivestockForageBalance!X92","v":0},{"$f":"LivestockForageBalance!Y92","v":0}]
["Dry Lot Total Demand",{"$f":"LivestockForageBalance!N93","v":0},{"$f":"LivestockForageBalance!O93","v":0},{"$f":"LivestockForageBalance!P93","v":0},{"$f":"LivestockForageBalance!Q93","v":0},{"$f":"LivestockForageBalance!R93","v":0},{"$f":"LivestockForageBalance!S93","v":0},{"$f":"LivestockForageBalance!T93","v":0},{"$f":"LivestockForageBalance!U93","v":0},{"$f":"LivestockForageBalance!V93","v":0},{"$f":"LivestockForageBalance!W93","v":0},{"$f":"LivestockForageBalance!X93","v":0},{"$f":"LivestockForageBalance!Y93","v":0}]
[]
["Annual Totals","Lbs/Year"]
["Grazing System ",{"$f":"SUM(B44:M44)","v":0}]
["Alternative Pasture ",{"$f":"SUM(B45:M45)","v":0}]
["Dry Lot ",{"$f":"SUM(B46:M46)","v":0}]
[]
["Total Forage Demand",{"$f":"F25","v":0}]

{"sheet":"PrintableGrazingInventory","index":16,"n_rows":89,"n_cols":13,"rows_kept":89,"cut":false,"hidden":true,"merged":[[5,0,5,10],[68,1,70,3],[76,1,76,3],[75,1,75,3],[74,1,74,3],[73,1,73,3],[72,1,72,3],[71,1,71,3],[33,0,33,3],[13,1,13,3],[12,1,12,3],[11,1,11,3],[10,1,10,3],[32,1,32,3],[31,1,31,3],[30,1,30,3],[29,1,29,3],[28,1,28,3],[27,1,27,3],[26,1,26,3],[25,1,25,3],[79,1,80,12],[77,0,77,3],[68,5,69,5],[67,0,67,7],[35,0,36,9],[6,5,7,5],[1,0,1,2],[38,1,39,12],[6,1,8,3],[9,1,9,3],[20,1,20,3],[19,1,19,3],[18,1,18,3],[17,1,17,3],[16,1,16,3],[15,1,15,3],[14,1,14,3],[24,1,24,3],[23,1,23,3],[22,1,22,3],[21,1,21,3]]}
["Pasture Forage Production Summary for:"]
[{"$f":"Name","v":0}]
[{"$f":"ID","v":""}]
[{"$f":"Date","v":""}]
[]
["Grazing System Pasture Forage Production"]
["Field/","Kind of Forage",null,null,null,"TFP *","Total","Pasture",null,"Hay ","If Yes,"]
["Paddock",null,null,null,"Acres",null,"Production","Grazing ","Usable ","Then ","Month"]
["Number",null,null,null,"(Usable)","lbs/ac","Pounds","Eff. (%)","Pounds","Graze?","Hay Cut"]
[{"$f":"Field1","v":0},{"$f":"Kind1","v":0},null,null,{"$f":"Acres1","v":0},{"$f":"Yield1","v":0},{"$f":"LivestockForageBalance!K103","v":0},{"$f":"Efficiency1","v":0},{"$f":"LivestockForageBalance!M103","v":0},{"$f":"IF(HayMonth1>0,\"Yes\",\"No\")","v":"No"},{"$f":"IF(J10=\"Yes\", LivestockForageBalance!J104,\"\")","v":""}]
[{"$f":"Field2","v":0},{"$f":"Kind2","v":0},null,null,{"$f":"Acres2","v":0},{"$f":"Yield2","v":0},{"$f":"LivestockForageBalance!K105","v":0},{"$f":"Efficiency2","v":0},{"$f":"LivestockForageBalance!M105","v":0},{"$f":"IF(HayMonth2>0,\"Yes\",\"No\")","v":"No"},{"$f":"IF(J11=\"Yes\", LivestockForageBalance!J106,\"\")","v":""}]
[{"$f":"Field3","v":0},{"$f":"Kind3","v":0},null,null,{"$f":"Acres3","v":0},{"$f":"Yield3","v":0},{"$f":"LivestockForageBalance!K107","v":0},{"$f":"Efficiency3","v":""},{"$f":"LivestockForageBalance!M107","v":0},{"$f":"IF(HayMonth3>0,\"Yes\",\"No\")","v":"No"},{"$f":"IF(J12=\"Yes\", LivestockForageBalance!J108,\"\")","v":""}]
[{"$f":"Field4","v":0},{"$f":"Kind4","v":0},null,null,{"$f":"Acres4","v":0},{"$f":"Yield4","v":0},{"$f":"LivestockForageBalance!K109","v":0},{"$f":"Efficiency4","v":""},{"$f":"LivestockForageBalance!M109","v":0},{"$f":"IF(HayMonth4>0,\"Yes\",\"No\")","v":"No"},{"$f":"IF(J13=\"Yes\", LivestockForageBalance!J110,\"\")","v":""}]
[{"$f":"Field5","v":0},{"$f":"Kind5","v":0},null,null,{"$f":"Acres5","v":0},{"$f":"Yield5","v":0},{"$f":"LivestockForageBalance!K111","v":0},{"$f":"Efficiency5","v":""},{"$f":"LivestockForageBalance!M111","v":0},{"$f":"IF(HayMonth5>0,\"Yes\",\"No\")","v":"No"},{"$f":"IF(J14=\"Yes\", LivestockForageBalance!J112,\"\")","v":""}]
[{"$f":"Field6","v":0},{"$f":"Kind6","v":0},null,null,{"$f":"Acres6","v":0},{"$f":"Yield6","v":0},{"$f":"LivestockForageBalance!K113","v":0},{"$f":"Efficiency6","v":""},{"$f":"LivestockForageBalance!M113","v":0},{"$f":"IF(HayMonth6>0,\"Yes\",\"No\")","v":"No"},{"$f":"IF(J15=\"Yes\", LivestockForageBalance!J114,\"\")","v":""}]
[{"$f":"Field7","v":0},{"$f":"Kind7","v":0},null,null,{"$f":"Acres7","v":0},{"$f":"Yield7","v":0},{"$f":"LivestockForageBalance!K115","v":0},{"$f":"Efficiency7","v":""},{"$f":"LivestockForageBalance!M115","v":0},{"$f":"IF(HayMonth7>0,\"Yes\",\"No\")","v":"No"},{"$f":"IF(J16=\"Yes\", LivestockForageBalance!J116,\"\")","v":""}]
[{"$f":"Field8","v":0},{"$f":"Kind8","v":0},null,null,{"$f":"Acres8","v":0},{"$f":"Yield8","v":0},{"$f":"LivestockForageBalance!K117","v":0},{"$f":"Efficiency8","v":""},{"$f":"LivestockForageBalance!M117","v":0},{"$f":"IF(HayMonth8>0,\"Yes\",\"No\")","v":"No"},{"$f":"IF(J17=\"Yes\", LivestockForageBalance!J118,\"\")","v":""}]
[{"$f":"Field9","v":0},{"$f":"Kind9","v":0},null,null,{"$f":"Acres9","v":0},{"$f":"Yield9","v":0},{"$f":"LivestockForageBalance!K119","v":0},{"$f":"Efficiency9","v":""},{"$f":"LivestockForageBalance!M119","v":0},{"$f":"IF(HayMonth9>0,\"Yes\",\"No\")","v":"No"},{"$f":"IF(J18=\"Yes\", LivestockForageBalance!J120,\"\")","v":""}]
[{"$f":"Field10","v":0},{"$f":"Kind10","v":0},null,null,{"$f":"Acres10","v":0},{"$f":"Yield10","v":0},{"$f":"LivestockForageBalance!K121","v":0},{"$f":"Efficiency10","v":""},{"$f":"LivestockForageBalance!M121","v":0},{"$f":"IF(HayMonth10>0,\"Yes\",\"No\")","v":"No"},{"$f":"IF(J19=\"Yes\", LivestockForageBalance!J122,\"\")","v":""}]
[{"$f":"Field11","v":0},{"$f":"Kind11","v":0},null,null,{"$f":"Acres11","v":0},{"$f":"Yield11","v":0},{"$f":"LivestockForageBalance!K123","v":0},{"$f":"Efficiency11","v":""},{"$f":"LivestockForageBalance!M123","v":0},{"$f":"IF(HayMonth11>0,\"Yes\",\"No\")","v":"No"},{"$f":"IF(J20=\"Yes\", LivestockForageBalance!J124,\"\")","v":""}]
[{"$f":"Field12","v":0},{"$f":"Kind12","v":0},null,null,{"$f":"Acres12","v":0},{"$f":"Yield12","v":0},{"$f":"LivestockForageBalance!K125","v":0},{"$f":"Efficiency12","v":""},{"$f":"LivestockForageBalance!M125","v":0},{"$f":"IF(HayMonth12>0,\"Yes\",\"No\")","v":"No"},{"$f":"IF(J21=\"Yes\", LivestockForageBalance!J126,\"\")","v":""}]
[{"$f":"Field13","v":0},{"$f":"Kind13","v":0},null,null,{"$f":"Acres13","v":0},{"$f":"Yield13","v":0},{"$f":"LivestockForageBalance!K127","v":0},{"$f":"Efficiency13","v":""},{"$f":"LivestockForageBalance!M127","v":0},{"$f":"IF(HayMonth13>0,\"Yes\",\"No\")","v":"No"},{"$f":"IF(J22=\"Yes\", LivestockForageBalance!J128,\"\")","v":""}]
[{"$f":"Field14","v":0},{"$f":"Kind14","v":0},null,null,{"$f":"Acres14","v":0},{"$f":"Yield14","v":0},{"$f":"LivestockForageBalance!K129","v":0},{"$f":"Efficiency14","v":""},{"$f":"LivestockForageBalance!M129","v":0},{"$f":"IF(HayMonth14>0,\"Yes\",\"No\")","v":"No"},{"$f":"IF(J23=\"Yes\", LivestockForageBalance!J130,\"\")","v":""}]
[{"$f":"Field15","v":0},{"$f":"Kind15","v":0},null,null,{"$f":"Acres15","v":0},{"$f":"Yield15","v":0},{"$f":"LivestockForageBalance!K131","v":0},{"$f":"Efficiency15","v":""},{"$f":"LivestockForageBalance!M131","v":0},{"$f":"IF(HayMonth15>0,\"Yes\",\"No\")","v":"No"},{"$f":"IF(J24=\"Yes\", LivestockForageBalance!J132,\"\")","v":""}]
[{"$f":"Field16","v":0},{"$f":"Kind16","v":0},null,null,{"$f":"Acres16","v":0},{"$f":"Yield16","v":0},{"$f":"LivestockForageBalance!K133","v":0},{"$f":"Efficiency16","v":""},{"$f":"LivestockForageBalance!M133","v":0},{"$f":"IF(HayMonth16>0,\"Yes\",\"No\")","v":"No"},{"$f":"IF(J25=\"Yes\", LivestockForageBalance!J134,\"\")","v":""}]
[{"$f":"Field17","v":0},{"$f":"Kind17","v":0},null,null,{"$f":"Acres17","v":0},{"$f":"Yield17","v":0},{"$f":"LivestockForageBalance!K135","v":0},{"$f":"Efficiency17","v":""},{"$f":"LivestockForageBalance!M135","v":0},{"$f":"IF(HayMonth17>0,\"Yes\",\"No\")","v":"No"},{"$f":"IF(J26=\"Yes\", LivestockForageBalance!J136,\"\")","v":""}]
[{"$f":"Field18","v":0},{"$f":"Kind18","v":0},null,null,{"$f":"Acres18","v":0},{"$f":"Yield18","v":0},{"$f":"LivestockForageBalance!K137","v":0},{"$f":"Efficiency18","v":""},{"$f":"LivestockForageBalance!M137","v":0},{"$f":"IF(HayMonth18>0,\"Yes\",\"No\")","v":"No"},{"$f":"IF(J27=\"Yes\", LivestockForageBalance!J138,\"\")","v":""}]
[{"$f":"Field19","v":0},{"$f":"Kind19","v":0},null,null,{"$f":"Acres19","v":0},{"$f":"Yield19","v":0},{"$f":"LivestockForageBalance!K139","v":0},{"$f":"Efficiency19","v":""},{"$f":"LivestockForageBalance!M139","v":0},{"$f":"IF(HayMonth19>0,\"Yes\",\"No\")","v":"No"},{"$f":"IF(J28=\"Yes\", LivestockForageBalance!J140,\"\")","v":""}]
[{"$f":"Field20","v":0},{"$f":"Kind20","v":0},null,null,{"$f":"Acres20","v":0},{"$f":"Yield20","v":0},{"$f":"LivestockForageBalance!K141","v":0},{"$f":"Efficiency20","v":""},{"$f":"LivestockForageBalance!M141","v":0},{"$f":"IF(HayMonth20>0,\"Yes\",\"No\")","v":"No"},{"$f":"IF(J29=\"Yes\", LivestockForageBalance!J142,\"\")","v":""}]
[{"$f":"Field21","v":0},{"$f":"Kind21","v":0},null,null,{"$f":"Acres21","v":0},{"$f":"Yield21","v":0},{"$f":"LivestockForageBalance!K143","v":0},{"$f":"Efficiency21","v":""},{"$f":"LivestockForageBalance!M143","v":0},{"$f":"IF(HayMonth21>0,\"Yes\",\"No\")","v":"No"},{"$f":"IF(J30=\"Yes\", LivestockForageBalance!J144,\"\")","v":""}]
[{"$f":"Field22","v":0},{"$f":"Kind22","v":0},null,null,{"$f":"Acres22","v":0},{"$f":"Yield22","v":0},{"$f":"LivestockForageBalance!K145","v":0},{"$f":"Efficiency22","v":""},{"$f":"LivestockForageBalance!M145","v":0},{"$f":"IF(HayMonth22>0,\"Yes\",\"No\")","v":"No"},{"$f":"IF(J31=\"Yes\", LivestockForageBalance!J146,\"\")","v":""}]
[{"$f":"Field23","v":0},{"$f":"Kind23","v":0},null,null,{"$f":"Acres23","v":0},{"$f":"Yield23","v":0},{"$f":"LivestockForageBalance!K147","v":0},{"$f":"Efficiency23","v":""},{"$f":"LivestockForageBalance!M147","v":0},{"$f":"IF(HayMonth23>0,\"Yes\",\"No\")","v":"No"},{"$f":"IF(J32=\"Yes\", LivestockForageBalance!J148,\"\")","v":""}]
[{"$f":"Field24","v":0},{"$f":"Kind24","v":0},null,null,{"$f":"Acres24","v":0},{"$f":"Yield24","v":0},{"$f":"LivestockForageBalance!K149","v":0},{"$f":"Efficiency24","v":""},{"$f":"LivestockForageBalance!M149","v":0},{"$f":"IF(HayMonth24>0,\"Yes\",\"No\")","v":"No"},{"$f":"IF(J33=\"Yes\", LivestockForageBalance!J150,\"\")","v":""}]
["Totals",null,null,null,{"$f":"SUM(E10:E33)","v":0},null,{"$f":"SUM(G10:G33)","v":0},null,{"$f":"SUM(I10:I33)","v":0}]
["Averages",null,null,null,{"$f":"SUBTOTAL(101,E10:E33)","v":0},{"$f":"SUBTOTAL(101,F10:F33)","v":0},0,0,0]
["* TFP = Total Forage Production - Total forage production is the total amount of forage produced (factors in both the amount of forage that is available to grazing or haying plus the remaining growth that is left behind after grazing or haying)"]
[]
[]
["Field/","Grazing System Pasture Forage Available by Month (Lbs/month)"]
["Paddock"]
["Number","Apr","May","June","July","Aug","Sept","Oct","Nov","Dec","Jan","Feb","Mar"]
[{"$f":"Field1","v":0},{"$f":"LivestockForageBalance!N103","v":""},{"$f":"LivestockForageBalance!O103","v":""},{"$f":"LivestockForageBalance!P103","v":""},{"$f":"LivestockForageBalance!Q103","v":""},{"$f":"LivestockForageBalance!R103","v":""},{"$f":"LivestockForageBalance!S103","v":""},{"$f":"LivestockForageBalance!T103","v":""},{"$f":"LivestockForageBalance!U103","v":""},{"$f":"LivestockForageBalance!V103","v":""},{"$f":"LivestockForageBalance!W103","v":""},{"$f":"LivestockForageBalance!X103","v":""},{"$f":"LivestockForageBalance!Y103","v":""}]
[{"$f":"Field2","v":0},{"$f":"LivestockForageBalance!N105","v":""},{"$f":"LivestockForageBalance!O105","v":""},{"$f":"LivestockForageBalance!P105","v":""},{"$f":"LivestockForageBalance!Q105","v":""},{"$f":"LivestockForageBalance!R105","v":""},{"$f":"LivestockForageBalance!S105","v":""},{"$f":"LivestockForageBalance!T105","v":""},{"$f":"LivestockForageBalance!U105","v":""},{"$f":"LivestockForageBalance!V105","v":""},{"$f":"LivestockForageBalance!W105","v":""},{"$f":"LivestockForageBalance!X105","v":""},{"$f":"LivestockForageBalance!Y105","v":""}]
[{"$f":"Field3","v":0},{"$f":"LivestockForageBalance!N107","v":""},{"$f":"LivestockForageBalance!O107","v":""},{"$f":"LivestockForageBalance!P107","v":""},{"$f":"LivestockForageBalance!Q107","v":""},{"$f":"LivestockForageBalance!R107","v":""},{"$f":"LivestockForageBalance!S107","v":""},{"$f":"LivestockForageBalance!T107","v":""},{"$f":"LivestockForageBalance!U107","v":""},{"$f":"LivestockForageBalance!V107","v":""},{"$f":"LivestockForageBalance!W107","v":""},{"$f":"LivestockForageBalance!X107","v":""},{"$f":"LivestockForageBalance!Y107","v":""}]
[{"$f":"Field4","v":0},{"$f":"LivestockForageBalance!N109","v":""},{"$f":"LivestockForageBalance!O109","v":""},{"$f":"LivestockForageBalance!P109","v":""},{"$f":"LivestockForageBalance!Q109","v":""},{"$f":"LivestockForageBalance!R109","v":""},{"$f":"LivestockForageBalance!S109","v":""},{"$f":"LivestockForageBalance!T109","v":""},{"$f":"LivestockForageBalance!U109","v":""},{"$f":"LivestockForageBalance!V109","v":""},{"$f":"LivestockForageBalance!W109","v":""},{"$f":"LivestockForageBalance!X109","v":""},{"$f":"LivestockForageBalance!Y109","v":""}]
[{"$f":"Field5","v":0},{"$f":"LivestockForageBalance!N111","v":""},{"$f":"LivestockForageBalance!O111","v":""},{"$f":"LivestockForageBalance!P111","v":""},{"$f":"LivestockForageBalance!Q111","v":""},{"$f":"LivestockForageBalance!R111","v":""},{"$f":"LivestockForageBalance!S111","v":""},{"$f":"LivestockForageBalance!T111","v":""},{"$f":"LivestockForageBalance!U111","v":""},{"$f":"LivestockForageBalance!V111","v":""},{"$f":"LivestockForageBalance!W111","v":""},{"$f":"LivestockForageBalance!X111","v":""},{"$f":"LivestockForageBalance!Y111","v":""}]
[{"$f":"Field6","v":0},{"$f":"LivestockForageBalance!N113","v":""},{"$f":"LivestockForageBalance!O113","v":""},{"$f":"LivestockForageBalance!P113","v":""},{"$f":"LivestockForageBalance!Q113","v":""},{"$f":"LivestockForageBalance!R113","v":""},{"$f":"LivestockForageBalance!S113","v":""},{"$f":"LivestockForageBalance!T113","v":""},{"$f":"LivestockForageBalance!U113","v":""},{"$f":"LivestockForageBalance!V113","v":""},{"$f":"LivestockForageBalance!W113","v":""},{"$f":"LivestockForageBalance!X113","v":""},{"$f":"LivestockForageBalance!Y113","v":""}]
[{"$f":"Field7","v":0},{"$f":"LivestockForageBalance!N115","v":""},{"$f":"LivestockForageBalance!O115","v":""},{"$f":"LivestockForageBalance!P115","v":""},{"$f":"LivestockForageBalance!Q115","v":""},{"$f":"LivestockForageBalance!R115","v":""},{"$f":"LivestockForageBalance!S115","v":""},{"$f":"LivestockForageBalance!T115","v":""},{"$f":"LivestockForageBalance!U115","v":""},{"$f":"LivestockForageBalance!V115","v":""},{"$f":"LivestockForageBalance!W115","v":""},{"$f":"LivestockForageBalance!X115","v":""},{"$f":"LivestockForageBalance!Y115","v":""}]
[{"$f":"Field8","v":0},{"$f":"LivestockForageBalance!N117","v":""},{"$f":"LivestockForageBalance!O117","v":""},{"$f":"LivestockForageBalance!P117","v":""},{"$f":"LivestockForageBalance!Q117","v":""},{"$f":"LivestockForageBalance!R117","v":""},{"$f":"LivestockForageBalance!S117","v":""},{"$f":"LivestockForageBalance!T117","v":""},{"$f":"LivestockForageBalance!U117","v":""},{"$f":"LivestockForageBalance!V117","v":""},{"$f":"LivestockForageBalance!W117","v":""},{"$f":"LivestockForageBalance!X117","v":""},{"$f":"LivestockForageBalance!Y117","v":""}]
[{"$f":"Field9","v":0},{"$f":"LivestockForageBalance!N119","v":""},{"$f":"LivestockForageBalance!O119","v":""},{"$f":"LivestockForageBalance!P119","v":""},{"$f":"LivestockForageBalance!Q119","v":""},{"$f":"LivestockForageBalance!R119","v":""},{"$f":"LivestockForageBalance!S119","v":""},{"$f":"LivestockForageBalance!T119","v":""},{"$f":"LivestockForageBalance!U119","v":""},{"$f":"LivestockForageBalance!V119","v":""},{"$f":"LivestockForageBalance!W119","v":""},{"$f":"LivestockForageBalance!X119","v":""},{"$f":"LivestockForageBalance!Y119","v":""}]
[{"$f":"Field10","v":0},{"$f":"LivestockForageBalance!N121","v":""},{"$f":"LivestockForageBalance!O121","v":""},{"$f":"LivestockForageBalance!P121","v":""},{"$f":"LivestockForageBalance!Q121","v":""},{"$f":"LivestockForageBalance!R121","v":""},{"$f":"LivestockForageBalance!S121","v":""},{"$f":"LivestockForageBalance!T121","v":""},{"$f":"LivestockForageBalance!U121","v":""},{"$f":"LivestockForageBalance!V121","v":""},{"$f":"LivestockForageBalance!W121","v":""},{"$f":"LivestockForageBalance!X121","v":""},{"$f":"LivestockForageBalance!Y121","v":""}]
[{"$f":"Field11","v":0},{"$f":"LivestockForageBalance!N123","v":""},{"$f":"LivestockForageBalance!O123","v":""},{"$f":"LivestockForageBalance!P123","v":""},{"$f":"LivestockForageBalance!Q123","v":""},{"$f":"LivestockForageBalance!R123","v":""},{"$f":"LivestockForageBalance!S123","v":""},{"$f":"LivestockForageBalance!T123","v":""},{"$f":"LivestockForageBalance!U123","v":""},{"$f":"LivestockForageBalance!V123","v":""},{"$f":"LivestockForageBalance!W123","v":""},{"$f":"LivestockForageBalance!X123","v":""},{"$f":"LivestockForageBalance!Y123","v":""}]
[{"$f":"Field12","v":0},{"$f":"LivestockForageBalance!N125","v":""},{"$f":"LivestockForageBalance!O125","v":""},{"$f":"LivestockForageBalance!P125","v":""},{"$f":"LivestockForageBalance!Q125","v":""},{"$f":"LivestockForageBalance!R125","v":""},{"$f":"LivestockForageBalance!S125","v":""},{"$f":"LivestockForageBalance!T125","v":""},{"$f":"LivestockForageBalance!U125","v":""},{"$f":"LivestockForageBalance!V125","v":""},{"$f":"LivestockForageBalance!W125","v":""},{"$f":"LivestockForageBalance!X125","v":""},{"$f":"LivestockForageBalance!Y125","v":""}]
[{"$f":"Field13","v":0},{"$f":"LivestockForageBalance!N127","v":""},{"$f":"LivestockForageBalance!O127","v":""},{"$f":"LivestockForageBalance!P127","v":""},{"$f":"LivestockForageBalance!Q127","v":""},{"$f":"LivestockForageBalance!R127","v":""},{"$f":"LivestockForageBalance!S127","v":""},{"$f":"LivestockForageBalance!T127","v":""},{"$f":"LivestockForageBalance!U127","v":""},{"$f":"LivestockForageBalance!V127","v":""},{"$f":"LivestockForageBalance!W127","v":""},{"$f":"LivestockForageBalance!X127","v":""},{"$f":"LivestockForageBalance!Y127","v":""}]
[{"$f":"Field14","v":0},{"$f":"LivestockForageBalance!N129","v":""},{"$f":"LivestockForageBalance!O129","v":""},{"$f":"LivestockForageBalance!P129","v":""},{"$f":"LivestockForageBalance!Q129","v":""},{"$f":"LivestockForageBalance!R129","v":""},{"$f":"LivestockForageBalance!S129","v":""},{"$f":"LivestockForageBalance!T129","v":""},{"$f":"LivestockForageBalance!U129","v":""},{"$f":"LivestockForageBalance!V129","v":""},{"$f":"LivestockForageBalance!W129","v":""},{"$f":"LivestockForageBalance!X129","v":""},{"$f":"LivestockForageBalance!Y129","v":""}]
[{"$f":"Field15","v":0},{"$f":"LivestockForageBalance!N131","v":""},{"$f":"LivestockForageBalance!O131","v":""},{"$f":"LivestockForageBalance!P131","v":""},{"$f":"LivestockForageBalance!Q131","v":""},{"$f":"LivestockForageBalance!R131","v":""},{"$f":"LivestockForageBalance!S131","v":""},{"$f":"LivestockForageBalance!T131","v":""},{"$f":"LivestockForageBalance!U131","v":""},{"$f":"LivestockForageBalance!V131","v":""},{"$f":"LivestockForageBalance!W131","v":""},{"$f":"LivestockForageBalance!X131","v":""},{"$f":"LivestockForageBalance!Y131","v":""}]
[{"$f":"Field16","v":0},{"$f":"LivestockForageBalance!N133","v":""},{"$f":"LivestockForageBalance!O133","v":""},{"$f":"LivestockForageBalance!P133","v":""},{"$f":"LivestockForageBalance!Q133","v":""},{"$f":"LivestockForageBalance!R133","v":""},{"$f":"LivestockForageBalance!S133","v":""},{"$f":"LivestockForageBalance!T133","v":""},{"$f":"LivestockForageBalance!U133","v":""},{"$f":"LivestockForageBalance!V133","v":""},{"$f":"LivestockForageBalance!W133","v":""},{"$f":"LivestockForageBalance!X133","v":""},{"$f":"LivestockForageBalance!Y133","v":""}]
[{"$f":"Field17","v":0},{"$f":"LivestockForageBalance!N135","v":""},{"$f":"LivestockForageBalance!O135","v":""},{"$f":"LivestockForageBalance!P135","v":""},{"$f":"LivestockForageBalance!Q135","v":""},{"$f":"LivestockForageBalance!R135","v":""},{"$f":"LivestockForageBalance!S135","v":""},{"$f":"LivestockForageBalance!T135","v":""},{"$f":"LivestockForageBalance!U135","v":""},{"$f":"LivestockForageBalance!V135","v":""},{"$f":"LivestockForageBalance!W135","v":""},{"$f":"LivestockForageBalance!X135","v":""},{"$f":"LivestockForageBalance!Y135","v":""}]
[{"$f":"Field18","v":0},{"$f":"LivestockForageBalance!N137","v":""},{"$f":"LivestockForageBalance!O137","v":""},{"$f":"LivestockForageBalance!P137","v":""},{"$f":"LivestockForageBalance!Q137","v":""},{"$f":"LivestockForageBalance!R137","v":""},{"$f":"LivestockForageBalance!S137","v":""},{"$f":"LivestockForageBalance!T137","v":""},{"$f":"LivestockForageBalance!U137","v":""},{"$f":"LivestockForageBalance!V137","v":""},{"$f":"LivestockForageBalance!W137","v":""},{"$f":"LivestockForageBalance!X137","v":""},{"$f":"LivestockForageBalance!Y137","v":""}]
[{"$f":"Field19","v":0},{"$f":"LivestockForageBalance!N139","v":""},{"$f":"LivestockForageBalance!O139","v":""},{"$f":"LivestockForageBalance!P139","v":""},{"$f":"LivestockForageBalance!Q139","v":""},{"$f":"LivestockForageBalance!R139","v":""},{"$f":"LivestockForageBalance!S139","v":""},{"$f":"LivestockForageBalance!T139","v":""},{"$f":"LivestockForageBalance!U139","v":""},{"$f":"LivestockForageBalance!V139","v":""},{"$f":"LivestockForageBalance!W139","v":""},{"$f":"LivestockForageBalance!X139","v":""},{"$f":"LivestockForageBalance!Y139","v":""}]
[{"$f":"Field20","v":0},{"$f":"LivestockForageBalance!N141","v":""},{"$f":"LivestockForageBalance!O141","v":""},{"$f":"LivestockForageBalance!P141","v":""},{"$f":"LivestockForageBalance!Q141","v":""},{"$f":"LivestockForageBalance!R141","v":""},{"$f":"LivestockForageBalance!S141","v":""},{"$f":"LivestockForageBalance!T141","v":""},{"$f":"LivestockForageBalance!U141","v":""},{"$f":"LivestockForageBalance!V141","v":""},{"$f":"LivestockForageBalance!W141","v":""},{"$f":"LivestockForageBalance!X141","v":""},{"$f":"LivestockForageBalance!Y141","v":""}]
[{"$f":"Field21","v":0},{"$f":"LivestockForageBalance!N143","v":""},{"$f":"LivestockForageBalance!O143","v":""},{"$f":"LivestockForageBalance!P143","v":""},{"$f":"LivestockForageBalance!Q143","v":""},{"$f":"LivestockForageBalance!R143","v":""},{"$f":"LivestockForageBalance!S143","v":""},{"$f":"LivestockForageBalance!T143","v":""},{"$f":"LivestockForageBalance!U143","v":""},{"$f":"LivestockForageBalance!V143","v":""},{"$f":"LivestockForageBalance!W143","v":""},{"$f":"LivestockForageBalance!X143","v":""},{"$f":"LivestockForageBalance!Y143","v":""}]
[{"$f":"Field22","v":0},{"$f":"LivestockForageBalance!N145","v":""},{"$f":"LivestockForageBalance!O145","v":""},{"$f":"LivestockForageBalance!P145","v":""},{"$f":"LivestockForageBalance!Q145","v":""},{"$f":"LivestockForageBalance!R145","v":""},{"$f":"LivestockForageBalance!S145","v":""},{"$f":"LivestockForageBalance!T145","v":""},{"$f":"LivestockForageBalance!U145","v":""},{"$f":"LivestockForageBalance!V145","v":""},{"$f":"LivestockForageBalance!W145","v":""},{"$f":"LivestockForageBalance!X145","v":""},{"$f":"LivestockForageBalance!Y145","v":""}]
[{"$f":"Field23","v":0},{"$f":"LivestockForageBalance!N147","v":""},{"$f":"LivestockForageBalance!O147","v":""},{"$f":"LivestockForageBalance!P147","v":""},{"$f":"LivestockForageBalance!Q147","v":""},{"$f":"LivestockForageBalance!R147","v":""},{"$f":"LivestockForageBalance!S147","v":""},{"$f":"LivestockForageBalance!T147","v":""},{"$f":"LivestockForageBalance!U147","v":""},{"$f":"LivestockForageBalance!V147","v":""},{"$f":"LivestockForageBalance!W147","v":""},{"$f":"LivestockForageBalance!X147","v":""},{"$f":"LivestockForageBalance!Y147","v":""}]
[{"$f":"Field24","v":0},{"$f":"LivestockForageBalance!N149","v":""},{"$f":"LivestockForageBalance!O149","v":""},{"$f":"LivestockForageBalance!P149","v":""},{"$f":"LivestockForageBalance!Q149","v":""},{"$f":"LivestockForageBalance!R149","v":""},{"$f":"LivestockForageBalance!S149","v":""},{"$f":"LivestockForageBalance!T149","v":""},{"$f":"LivestockForageBalance!U149","v":""},{"$f":"LivestockForageBalance!V149","v":""},{"$f":"LivestockForageBalance!W149","v":""},{"$f":"LivestockForageBalance!X149","v":""},{"$f":"LivestockForageBalance!Y149","v":""}]
["Totals",{"$f":"SUM(B42:B65)","v":0},{"$f":"SUM(C42:C65)","v":0},{"$f":"SUM(D42:D65)","v":0},0,0,0,0,0,0,0,0,0]
[]
["Alternative Pasture Forage Production"]
["Field/","Kind of Forage",null,null,null,"TFP *","Total","Pasture"]
["Paddock",null,null,null,"Acres",null,"Production","Grazing ","Usable "]
["Number",null,null,null,"(Usable)","lbs/ac","Pounds","Eff. (%)","Pounds"]
[{"$f":"AltField1","v":0},{"$f":"LivestockForageBalance!H199","v":0},null,null,{"$f":"AltAcres1","v":0},{"$f":"AltYield1","v":0},{"$f":"LivestockForageBalance!K199","v":0},{"$f":"AltEff1","v":0},{"$f":"LivestockForageBalance!M199","v":0}]
[{"$f":"AltField2","v":0},{"$f":"LivestockForageBalance!H200","v":0},null,null,{"$f":"AltAcres2","v":0},{"$f":"AltYield2","v":0},{"$f":"LivestockForageBalance!K200","v":0},{"$f":"AltEff2","v":0},{"$f":"LivestockForageBalance!M200","v":0}]
[{"$f":"AltField3","v":0},{"$f":"LivestockForageBalance!H201","v":0},null,null,{"$f":"AltAcres3","v":0},{"$f":"AltYield3","v":0},{"$f":"LivestockForageBalance!K201","v":0},{"$f":"AltEff3","v":0},{"$f":"LivestockForageBalance!M201","v":0}]
[{"$f":"AltField4","v":0},{"$f":"LivestockForageBalance!H202","v":0},null,null,{"$f":"AltAcres4","v":0},{"$f":"AltYield4","v":0},{"$f":"LivestockForageBalance!K202","v":0},{"$f":"AltEff4","v":0},{"$f":"LivestockForageBalance!M202","v":0}]
[{"$f":"AltField5","v":0},{"$f":"LivestockForageBalance!H203","v":0},null,null,{"$f":"AltAcres5","v":0},{"$f":"AltYield5","v":0},{"$f":"LivestockForageBalance!K203","v":0},{"$f":"AltEff5","v":0},{"$f":"LivestockForageBalance!M203","v":0}]
[{"$f":"AltField6","v":0},{"$f":"LivestockForageBalance!H204","v":0},null,null,{"$f":"AltAcres6","v":0},{"$f":"AltYield6","v":0},{"$f":"LivestockForageBalance!K204","v":0},{"$f":"AltEff6","v":0},{"$f":"LivestockForageBalance!M204","v":0}]
["Totals",null,null,null,{"$f":"SUM(E72:E77)","v":0},{"$f":"SUM(F72:F77)","v":0},{"$f":"SUM(G72:G77)","v":0},null,{"$f":"SUM(I72:I77)","v":0}]
[]
["Field/","Alternative Pasture Forage Available by Month (Lbs/month)"]
["Paddock"]
["Number","Apr","May","June","July","Aug","Sept","Oct","Nov","Dec","Jan","Feb","Mar"]
[{"$f":"AltField1","v":0},{"$f":"LivestockForageBalance!N199","v":""},{"$f":"LivestockForageBalance!O199","v":""},{"$f":"LivestockForageBalance!P199","v":""},{"$f":"LivestockForageBalance!Q199","v":""},{"$f":"LivestockForageBalance!R199","v":""},{"$f":"LivestockForageBalance!S199","v":""},{"$f":"LivestockForageBalance!T199","v":""},{"$f":"LivestockForageBalance!U199","v":""},{"$f":"LivestockForageBalance!V199","v":""},{"$f":"LivestockForageBalance!W199","v":""},{"$f":"LivestockForageBalance!X199","v":""},{"$f":"LivestockForageBalance!Y199","v":""}]
[{"$f":"AltField2","v":0},{"$f":"LivestockForageBalance!N200","v":""},{"$f":"LivestockForageBalance!O200","v":""},{"$f":"LivestockForageBalance!P200","v":""},{"$f":"LivestockForageBalance!Q200","v":""},{"$f":"LivestockForageBalance!R200","v":""},{"$f":"LivestockForageBalance!S200","v":""},{"$f":"LivestockForageBalance!T200","v":""},{"$f":"LivestockForageBalance!U200","v":""},{"$f":"LivestockForageBalance!V200","v":""},{"$f":"LivestockForageBalance!W200","v":""},{"$f":"LivestockForageBalance!X200","v":""},{"$f":"LivestockForageBalance!Y200","v":""}]
[{"$f":"AltField3","v":0},{"$f":"LivestockForageBalance!N201","v":""},{"$f":"LivestockForageBalance!O201","v":""},{"$f":"LivestockForageBalance!P201","v":""},{"$f":"LivestockForageBalance!Q201","v":""},{"$f":"LivestockForageBalance!R201","v":""},{"$f":"LivestockForageBalance!S201","v":""},{"$f":"LivestockForageBalance!T201","v":""},{"$f":"LivestockForageBalance!U201","v":""},{"$f":"LivestockForageBalance!V201","v":""},{"$f":"LivestockForageBalance!W201","v":""},{"$f":"LivestockForageBalance!X201","v":""},{"$f":"LivestockForageBalance!Y201","v":""}]
[{"$f":"AltField4","v":0},{"$f":"LivestockForageBalance!N202","v":""},{"$f":"LivestockForageBalance!O202","v":""},{"$f":"LivestockForageBalance!P202","v":""},{"$f":"LivestockForageBalance!Q202","v":""},{"$f":"LivestockForageBalance!R202","v":""},{"$f":"LivestockForageBalance!S202","v":""},{"$f":"LivestockForageBalance!T202","v":""},{"$f":"LivestockForageBalance!U202","v":""},{"$f":"LivestockForageBalance!V202","v":""},{"$f":"LivestockForageBalance!W202","v":""},{"$f":"LivestockForageBalance!X202","v":""},{"$f":"LivestockForageBalance!Y202","v":""}]
[{"$f":"AltField5","v":0},{"$f":"LivestockForageBalance!N203","v":""},{"$f":"LivestockForageBalance!O203","v":""},{"$f":"LivestockForageBalance!P203","v":""},{"$f":"LivestockForageBalance!Q203","v":""},{"$f":"LivestockForageBalance!R203","v":""},{"$f":"LivestockForageBalance!S203","v":""},{"$f":"LivestockForageBalance!T203","v":""},{"$f":"LivestockForageBalance!U203","v":""},{"$f":"LivestockForageBalance!V203","v":""},{"$f":"LivestockForageBalance!W203","v":""},{"$f":"LivestockForageBalance!X203","v":""},{"$f":"LivestockForageBalance!Y203","v":""}]
[{"$f":"AltField6","v":0},{"$f":"LivestockForageBalance!N204","v":""},{"$f":"LivestockForageBalance!O204","v":""},{"$f":"LivestockForageBalance!P204","v":""},{"$f":"LivestockForageBalance!Q204","v":""},{"$f":"LivestockForageBalance!R204","v":""},{"$f":"LivestockForageBalance!S204","v":""},{"$f":"LivestockForageBalance!T204","v":""},{"$f":"LivestockForageBalance!U204","v":""},{"$f":"LivestockForageBalance!V204","v":""},{"$f":"LivestockForageBalance!W204","v":""},{"$f":"LivestockForageBalance!X204","v":""},{"$f":"LivestockForageBalance!Y204","v":""}]
["Totals",{"$f":"SUM(B83:B88)","v":0},{"$f":"SUM(C83:C88)","v":0},0,0,0,0,0,0,0,0,0,0]

{"sheet":"PrintableSummaryBalance","index":17,"n_rows":42,"n_cols":14,"rows_kept":42,"cut":false,"hidden":true,"merged":[[41,0,41,5],[29,1,29,5],[30,2,30,5],[31,1,31,5],[33,1,33,5],[34,2,34,5],[35,3,35,5],[10,0,10,1],[25,0,25,5],[37,0,37,5],[38,2,38,5],[39,3,39,5],[27,0,27,5],[24,0,24,5],[22,0,22,6],[26,0,26,5],[16,0,16,1]]}
["Summary of Livestock Needs and Pasture Forage Production"]
[{"$f":"Name","v":0}]
[{"$f":"ID","v":""}]
[{"$f":"Date","v":""}]
[]
[null,"Totals","Apr.","May","June","July","Aug.","Sept.","Oct.","Nov.","Dec.","Jan.","Feb.","Mar."]
["Grazing System"]
["Total Forage Available (Lbs)",{"$f":"LivestockForageBalance!M229","v":0},{"$f":"LivestockForageBalance!N229","v":0},{"$f":"LivestockForageBalance!O229","v":0},{"$f":"LivestockForageBalance!P229","v":0},{"$f":"LivestockForageBalance!Q229","v":0},{"$f":"LivestockForageBalance!R229","v":0},{"$f":"LivestockForageBalance!S229","v":0},{"$f":"LivestockForageBalance!T229","v":0},{"$f":"LivestockForageBalance!U229","v":0},{"$f":"LivestockForageBalance!V229","v":0},{"$f":"LivestockForageBalance!W229","v":0},{"$f":"LivestockForageBalance!X229","v":0},{"$f":"LivestockForageBalance!Y229","v":0}]
["Total Forage Needs (Lbs)",{"$f":"LivestockForageBalance!M230","v":0},{"$f":"LivestockForageBalance!N230","v":0},{"$f":"LivestockForageBalance!O230","v":0},{"$f":"LivestockForageBalance!P230","v":0},{"$f":"LivestockForageBalance!Q230","v":0},{"$f":"LivestockForageBalance!R230","v":0},{"$f":"LivestockForageBalance!S230","v":0},{"$f":"LivestockForageBalance!T230","v":0},{"$f":"LivestockForageBalance!U230","v":0},{"$f":"LivestockForageBalance!V230","v":0},{"$f":"LivestockForageBalance!W230","v":0},{"$f":"LivestockForageBalance!X230","v":0},{"$f":"LivestockForageBalance!Y230","v":0}]
["Total Difference (Lbs)",{"$f":"LivestockForageBalance!M231","v":0},{"$f":"LivestockForageBalance!N231","v":0},{"$f":"LivestockForageBalance!O231","v":0},{"$f":"LivestockForageBalance!P231","v":0},{"$f":"LivestockForageBalance!Q231","v":0},{"$f":"LivestockForageBalance!R231","v":0},{"$f":"LivestockForageBalance!S231","v":0},{"$f":"LivestockForageBalance!T231","v":0},{"$f":"LivestockForageBalance!U231","v":0},{"$f":"LivestockForageBalance!V231","v":0},{"$f":"LivestockForageBalance!W231","v":0},{"$f":"LivestockForageBalance!X231","v":0},{"$f":"LivestockForageBalance!Y231","v":0}]
["Accumulated Balance (Lbs) by Month",null,{"$f":"LivestockForageBalance!N232","v":0},{"$f":"LivestockForageBalance!O232","v":0},{"$f":"LivestockForageBalance!P232","v":0},{"$f":"LivestockForageBalance!Q232","v":0},{"$f":"LivestockForageBalance!R232","v":0},{"$f":"LivestockForageBalance!S232","v":0},{"$f":"LivestockForageBalance!T232","v":0},{"$f":"LivestockForageBalance!U232","v":0},{"$f":"LivestockForageBalance!V232","v":0},{"$f":"LivestockForageBalance!W232","v":0},{"$f":"LivestockForageBalance!X232","v":0},{"$f":"LivestockForageBalance!Y232","v":0}]
["                                 Balance by Percentage",null,{"$f":"LivestockForageBalance!N233","v":{"$error":"#DIV/0!"}},{"$f":"LivestockForageBalance!O233","v":{"$error":"#DIV/0!"}},{"$f":"LivestockForageBalance!P233","v":{"$error":"#DIV/0!"}},{"$f":"LivestockForageBalance!Q233","v":{"$error":"#DIV/0!"}},{"$f":"LivestockForageBalance!R233","v":{"$error":"#DIV/0!"}},{"$f":"LivestockForageBalance!S233","v":{"$error":"#DIV/0!"}},{"$f":"LivestockForageBalance!T233","v":{"$error":"#DIV/0!"}},{"$f":"LivestockForageBalance!U233","v":{"$error":"#DIV/0!"}},{"$f":"LivestockForageBalance!V233","v":{"$error":"#DIV/0!"}},{"$f":"LivestockForageBalance!W233","v":{"$error":"#DIV/0!"}},{"$f":"LivestockForageBalance!X233","v":{"$error":"#DIV/0!"}},{"$f":"LivestockForageBalance!Y233","v":{"$error":"#DIV/0!"}}]
["Alternative Pasture"]
["Total Forage Available (Lbs)",{"$f":"LivestockForageBalance!M235","v":0},{"$f":"LivestockForageBalance!N235","v":0},{"$f":"LivestockForageBalance!O235","v":0},{"$f":"LivestockForageBalance!P235","v":0},{"$f":"LivestockForageBalance!Q235","v":0},{"$f":"LivestockForageBalance!R235","v":0},{"$f":"LivestockForageBalance!S235","v":0},{"$f":"LivestockForageBalance!T235","v":0},{"$f":"LivestockForageBalance!U235","v":0},{"$f":"LivestockForageBalance!V235","v":0},{"$f":"LivestockForageBalance!W235","v":0},{"$f":"LivestockForageBalance!X235","v":0},{"$f":"LivestockForageBalance!Y235","v":0}]
["Total Forage Needs (Lbs)",{"$f":"LivestockForageBalance!M236","v":0},{"$f":"LivestockForageBalance!N236","v":0},{"$f":"LivestockForageBalance!O236","v":0},{"$f":"LivestockForageBalance!P236","v":0},{"$f":"LivestockForageBalance!Q236","v":0},{"$f":"LivestockForageBalance!R236","v":0},{"$f":"LivestockForageBalance!S236","v":0},{"$f":"LivestockForageBalance!T236","v":0},{"$f":"LivestockForageBalance!U236","v":0},{"$f":"LivestockForageBalance!V236","v":0},{"$f":"LivestockForageBalance!W236","v":0},{"$f":"LivestockForageBalance!X236","v":0},{"$f":"LivestockForageBalance!Y236","v":0}]
["Total Difference (Lbs)",{"$f":"LivestockForageBalance!M237","v":0},{"$f":"LivestockForageBalance!N237","v":0},{"$f":"LivestockForageBalance!O237","v":0},{"$f":"LivestockForageBalance!P237","v":0},{"$f":"LivestockForageBalance!Q237","v":0},{"$f":"LivestockForageBalance!R237","v":0},{"$f":"LivestockForageBalance!S237","v":0},{"$f":"LivestockForageBalance!T237","v":0},{"$f":"LivestockForageBalance!U237","v":0},{"$f":"LivestockForageBalance!V237","v":0},{"$f":"LivestockForageBalance!W237","v":0},{"$f":"LivestockForageBalance!X237","v":0},{"$f":"LivestockForageBalance!Y237","v":0}]
["Accumulated Balance (Lbs) by Month",null,{"$f":"LivestockForageBalance!N238","v":0},{"$f":"LivestockForageBalance!O238","v":0},{"$f":"LivestockForageBalance!P238","v":0},{"$f":"LivestockForageBalance!Q238","v":0},{"$f":"LivestockForageBalance!R238","v":0},{"$f":"LivestockForageBalance!S238","v":0},{"$f":"LivestockForageBalance!T238","v":0},{"$f":"LivestockForageBalance!U238","v":0},{"$f":"LivestockForageBalance!V238","v":0},{"$f":"LivestockForageBalance!W238","v":0},{"$f":"LivestockForageBalance!X238","v":0},{"$f":"LivestockForageBalance!Y238","v":0}]
[{"$f":"LivestockForageBalance!K239","v":"Grand Total Percentage/Feed Balance"},null,{"$f":"LivestockForageBalance!N239","v":{"$error":"#DIV/0!"}},{"$f":"LivestockForageBalance!O239","v":{"$error":"#DIV/0!"}},{"$f":"LivestockForageBalance!P239","v":{"$error":"#DIV/0!"}},{"$f":"LivestockForageBalance!Q239","v":{"$error":"#DIV/0!"}},{"$f":"LivestockForageBalance!R239","v":{"$error":"#DIV/0!"}},{"$f":"LivestockForageBalance!S239","v":{"$error":"#DIV/0!"}},{"$f":"LivestockForageBalance!T239","v":{"$error":"#DIV/0!"}},{"$f":"LivestockForageBalance!U239","v":{"$error":"#DIV/0!"}},{"$f":"LivestockForageBalance!V239","v":{"$error":"#DIV/0!"}},{"$f":"LivestockForageBalance!W239","v":{"$error":"#DIV/0!"}},{"$f":"LivestockForageBalance!X239","v":{"$error":"#DIV/0!"}},{"$f":"LivestockForageBalance!Y239","v":{"$error":"#DIV/0!"}}]
["Dry Lot"]
["Total Forage Available (Lbs)",{"$f":"LivestockForageBalance!M240","v":"0"},{"$f":"LivestockForageBalance!N240","v":"0"},{"$f":"LivestockForageBalance!O240","v":"0"},{"$f":"LivestockForageBalance!P240","v":"0"},{"$f":"LivestockForageBalance!Q240","v":"0"},{"$f":"LivestockForageBalance!R240","v":"0"},{"$f":"LivestockForageBalance!S240","v":"0"},{"$f":"LivestockForageBalance!T240","v":"0"},{"$f":"LivestockForageBalance!U240","v":"0"},{"$f":"LivestockForageBalance!V240","v":"0"},{"$f":"LivestockForageBalance!W240","v":"0"},{"$f":"LivestockForageBalance!X240","v":"0"},{"$f":"LivestockForageBalance!Y240","v":"0"}]
["Total Forage Needs (Lbs)",{"$f":"LivestockForageBalance!M241","v":0},{"$f":"LivestockForageBalance!N241","v":0},{"$f":"LivestockForageBalance!O241","v":0},{"$f":"LivestockForageBalance!P241","v":0},{"$f":"LivestockForageBalance!Q241","v":0},{"$f":"LivestockForageBalance!R241","v":0},{"$f":"LivestockForageBalance!S241","v":0},{"$f":"LivestockForageBalance!T241","v":0},{"$f":"LivestockForageBalance!U241","v":0},{"$f":"LivestockForageBalance!V241","v":0},{"$f":"LivestockForageBalance!W241","v":0},{"$f":"LivestockForageBalance!X241","v":0},{"$f":"LivestockForageBalance!Y241","v":0}]
[]
["Feed and Forage Balance Summary"]
[]
["The estimated annual total livestock forage needs are:",null,null,null,null,null,{"$f":"LivestockForageBalance!N246","v":0},"Lbs"]
["The estimated total pounds of forage provided through grazing are:",null,null,null,null,null,{"$f":"LivestockForageBalance!N248","v":0},"Lbs"]
["(This includes the grazing system and any alternative pasture)"]
["For a difference of:",null,null,null,null,null,{"$f":"LivestockForageBalance!N250","v":0},"Lbs"]
[]
[null,"The estimated harvested pounds of hay is:",null,null,null,null,{"$f":"LivestockForageBalance!N254","v":0},"Lbs"]
[null,null,"The estimated storage/feeding loss is:",null,null,null,{"$f":"SumLoss1","v":0},"%"]
[null,"The available harvested hay is:",null,null,null,null,{"$f":"LivestockForageBalance!N256","v":0},"Lbs"]
[]
[null,"Estimated carry over hay that is stored on the property:",null,null,null,null,{"$f":"SumCarryoverHay","v":0},"Lbs"]
[null,null,"The estimated storage/feeding loss is:",null,null,null,{"$f":"SumLoss2","v":0},"%"]
[null,null,null,"The available carryover hay is:",null,null,{"$f":"LivestockForageBalance!N260","v":0},"Lbs"]
[]
["Additional Hay or forage purchased or brought in from off-farm sources is:",null,null,null,null,null,{"$f":"SumBuyHay","v":0},"Lbs"]
[null,null,"The estimated storage/feeding loss is:",null,null,null,{"$f":"SumLoss3","v":0},"%"]
[null,null,null,"The available purchased hay is:",null,null,{"$f":"LivestockForageBalance!N264","v":0},"Lbs"]
[]
["        The balance between ALL sources of feed and the needs of the livestock is (+/-):  ",null,null,null,null,null,{"$f":"LivestockForageBalance!N267","v":0},"Lbs"]

{"sheet":"PrintableHayInventory","index":18,"n_rows":50,"n_cols":9,"rows_kept":50,"cut":false,"hidden":true,"merged":[[6,3,7,3],[5,0,5,8],[33,0,33,1],[35,0,35,8],[49,0,49,1]]}
["Hay Production Summary for:"]
[{"$f":"Name","v":0}]
[{"$f":"ID","v":""}]
[{"$f":"Date","v":""}]
[]
["Fields Hayed in Conjunction with Grazing"]
[null,null,null,"TFP*",null,"Total","Hay",null,"Minimum"]
["Field",null,"Acres",null,"Haying ","Production","Harvest","Harvested","Cutting"]
["Number","Kind of Forage","(Usable)","lbs/ac","Month","Pounds","Eff. (%)","Pounds"," Ht. (in)"]
[{"$f":"IF(HayMonth1>0,Field1,\"\")","v":""},{"$f":"IF(HayMonth1>0,Kind1,\"\")","v":""},{"$f":"IF(HayMonth1>0,Acres1,\"\")","v":""},{"$f":"IF(HayMonth1>0,HayYield1,\"\")","v":""},{"$f":"IF(HayMonth1>0,LivestockForageBalance!J104,\"\")","v":""},{"$f":"IF(HayMonth1>0,LivestockForageBalance!K160,\"\")","v":""},{"$f":"IF(HayMonth1>0,HarvestEff1,\"\")","v":""},{"$f":"IF(HayMonth1>0,LivestockForageBalance!M160,\"\")","v":""},{"$f":"IF(HayMonth1>0,LivestockForageBalance!N160,\"\")","v":""}]
[{"$f":"IF(HayMonth2>0,Field2,\"\")","v":""},{"$f":"IF(HayMonth2>0,Kind2,\"\")","v":""},{"$f":"IF(HayMonth2>0,Acres2,\"\")","v":""},{"$f":"IF(HayMonth2>0,HayYield2,\"\")","v":""},{"$f":"IF(HayMonth2>0,LivestockForageBalance!J106,\"\")","v":""},{"$f":"IF(HayMonth2>0,LivestockForageBalance!K161,\"\")","v":""},{"$f":"IF(HayMonth2>0,HarvestEff2,\"\")","v":""},{"$f":"IF(HayMonth2>0,LivestockForageBalance!M161,\"\")","v":""},{"$f":"IF(HayMonth2>0,LivestockForageBalance!N161,\"\")","v":""}]
[{"$f":"IF(HayMonth3>0,Field3,\"\")","v":""},{"$f":"IF(HayMonth3>0,Kind3,\"\")","v":""},{"$f":"IF(HayMonth3>0,Acres3,\"\")","v":""},{"$f":"IF(HayMonth3>0,HayYield3,\"\")","v":""},{"$f":"IF(HayMonth3>0,LivestockForageBalance!J108,\"\")","v":""},{"$f":"IF(HayMonth3>0,LivestockForageBalance!K162,\"\")","v":""},{"$f":"IF(HayMonth3>0,HarvestEff3,\"\")","v":""},{"$f":"IF(HayMonth3>0,LivestockForageBalance!M162,\"\")","v":""},{"$f":"IF(HayMonth3>0,LivestockForageBalance!N162,\"\")","v":""}]
[{"$f":"IF(HayMonth4>0,Field4,\"\")","v":""},{"$f":"IF(HayMonth4>0,Kind4,\"\")","v":""},{"$f":"IF(HayMonth4>0,Acres4,\"\")","v":""},{"$f":"IF(HayMonth4>0,HayYield4,\"\")","v":""},{"$f":"IF(HayMonth4>0,LivestockForageBalance!J110,\"\")","v":""},{"$f":"IF(HayMonth4>0,LivestockForageBalance!K163,\"\")","v":""},{"$f":"IF(HayMonth4>0,HarvestEff4,\"\")","v":""},{"$f":"IF(HayMonth4>0,LivestockForageBalance!M163,\"\")","v":""},{"$f":"IF(HayMonth4>0,LivestockForageBalance!N163,\"\")","v":""}]
[{"$f":"IF(HayMonth5>0,Field5,\"\")","v":""},{"$f":"IF(HayMonth5>0,Kind5,\"\")","v":""},{"$f":"IF(HayMonth5>0,Acres5,\"\")","v":""},{"$f":"IF(HayMonth5>0,HayYield5,\"\")","v":""},{"$f":"IF(HayMonth5>0,LivestockForageBalance!J112,\"\")","v":""},{"$f":"IF(HayMonth5>0,LivestockForageBalance!K164,\"\")","v":""},{"$f":"IF(HayMonth5>0,HarvestEff5,\"\")","v":""},{"$f":"IF(HayMonth5>0,LivestockForageBalance!M164,\"\")","v":""},{"$f":"IF(HayMonth5>0,LivestockForageBalance!N164,\"\")","v":""}]
[{"$f":"IF(HayMonth6>0,Field6,\"\")","v":""},{"$f":"IF(HayMonth6>0,Kind6,\"\")","v":""},{"$f":"IF(HayMonth6>0,Acres6,\"\")","v":""},{"$f":"IF(HayMonth6>0,HayYield6,\"\")","v":""},{"$f":"IF(HayMonth6>0,LivestockForageBalance!J114,\"\")","v":""},{"$f":"IF(HayMonth6>0,LivestockForageBalance!K165,\"\")","v":""},{"$f":"IF(HayMonth6>0,HarvestEff6,\"\")","v":""},{"$f":"IF(HayMonth6>0,LivestockForageBalance!M165,\"\")","v":""},{"$f":"IF(HayMonth6>0,LivestockForageBalance!N165,\"\")","v":""}]
[{"$f":"IF(HayMonth7>0,Field7,\"\")","v":""},{"$f":"IF(HayMonth7>0,Kind7,\"\")","v":""},{"$f":"IF(HayMonth7>0,Acres7,\"\")","v":""},{"$f":"IF(HayMonth7>0,HayYield7,\"\")","v":""},{"$f":"IF(HayMonth7>0,LivestockForageBalance!J116,\"\")","v":""},{"$f":"IF(HayMonth7>0,LivestockForageBalance!K166,\"\")","v":""},{"$f":"IF(HayMonth7>0,HarvestEff7,\"\")","v":""},{"$f":"IF(HayMonth7>0,LivestockForageBalance!M166,\"\")","v":""},{"$f":"IF(HayMonth7>0,LivestockForageBalance!N166,\"\")","v":""}]
[{"$f":"IF(HayMonth8>0,Field8,\"\")","v":""},{"$f":"IF(HayMonth8>0,Kind8,\"\")","v":""},{"$f":"IF(HayMonth8>0,Acres8,\"\")","v":""},{"$f":"IF(HayMonth8>0,HayYield8,\"\")","v":""},{"$f":"IF(HayMonth8>0,LivestockForageBalance!J118,\"\")","v":""},{"$f":"IF(HayMonth8>0,LivestockForageBalance!K167,\"\")","v":""},{"$f":"IF(HayMonth8>0,HarvestEff8,\"\")","v":""},{"$f":"IF(HayMonth8>0,LivestockForageBalance!M167,\"\")","v":""},{"$f":"IF(HayMonth8>0,LivestockForageBalance!N167,\"\")","v":""}]
[{"$f":"IF(HayMonth9>0,Field9,\"\")","v":""},{"$f":"IF(HayMonth9>0,Kind9,\"\")","v":""},{"$f":"IF(HayMonth9>0,Acres9,\"\")","v":""},{"$f":"IF(HayMonth9>0,HayYield9,\"\")","v":""},{"$f":"IF(HayMonth9>0,LivestockForageBalance!J120,\"\")","v":""},{"$f":"IF(HayMonth9>0,LivestockForageBalance!K168,\"\")","v":""},{"$f":"IF(HayMonth9>0,HarvestEff9,\"\")","v":""},{"$f":"IF(HayMonth9>0,LivestockForageBalance!M168,\"\")","v":""},{"$f":"IF(HayMonth9>0,LivestockForageBalance!N168,\"\")","v":""}]
[{"$f":"IF(HayMonth10>0,Field10,\"\")","v":""},{"$f":"IF(HayMonth10>0,Kind10,\"\")","v":""},{"$f":"IF(HayMonth10>0,Acres10,\"\")","v":""},{"$f":"IF(HayMonth10>0,HayYield10,\"\")","v":""},{"$f":"IF(HayMonth10>0,LivestockForageBalance!J122,\"\")","v":""},{"$f":"IF(HayMonth10>0,LivestockForageBalance!K169,\"\")","v":""},{"$f":"IF(HayMonth10>0,HarvestEff10,\"\")","v":""},{"$f":"IF(HayMonth10>0,LivestockForageBalance!M169,\"\")","v":""},{"$f":"IF(HayMonth10>0,LivestockForageBalance!N169,\"\")","v":""}]
[{"$f":"IF(HayMonth11>0,Field11,\"\")","v":""},{"$f":"IF(HayMonth11>0,Kind11,\"\")","v":""},{"$f":"IF(HayMonth11>0,Acres11,\"\")","v":""},{"$f":"IF(HayMonth11>0,HayYield11,\"\")","v":""},{"$f":"IF(HayMonth11>0,LivestockForageBalance!J124,\"\")","v":""},{"$f":"IF(HayMonth11>0,LivestockForageBalance!K170,\"\")","v":""},{"$f":"IF(HayMonth11>0,HarvestEff11,\"\")","v":""},{"$f":"IF(HayMonth11>0,LivestockForageBalance!M170,\"\")","v":""},{"$f":"IF(HayMonth11>0,LivestockForageBalance!N170,\"\")","v":""}]
[{"$f":"IF(HayMonth12>0,Field12,\"\")","v":""},{"$f":"IF(HayMonth12>0,Kind12,\"\")","v":""},{"$f":"IF(HayMonth12>0,Acres12,\"\")","v":""},{"$f":"IF(HayMonth12>0,HayYield12,\"\")","v":""},{"$f":"IF(HayMonth12>0,LivestockForageBalance!J126,\"\")","v":""},{"$f":"IF(HayMonth12>0,LivestockForageBalance!K171,\"\")","v":""},{"$f":"IF(HayMonth12>0,HarvestEff12,\"\")","v":""},{"$f":"IF(HayMonth12>0,LivestockForageBalance!M171,\"\")","v":""},{"$f":"IF(HayMonth12>0,LivestockForageBalance!N171,\"\")","v":""}]
[{"$f":"IF(HayMonth13>0,Field13,\"\")","v":""},{"$f":"IF(HayMonth13>0,Kind13,\"\")","v":""},{"$f":"IF(HayMonth13>0,Acres13,\"\")","v":""},{"$f":"IF(HayMonth13>0,HayYield13,\"\")","v":""},{"$f":"IF(HayMonth13>0,LivestockForageBalance!J128,\"\")","v":""},{"$f":"IF(HayMonth13>0,LivestockForageBalance!K172,\"\")","v":""},{"$f":"IF(HayMonth13>0,HarvestEff13,\"\")","v":""},{"$f":"IF(HayMonth13>0,LivestockForageBalance!M172,\"\")","v":""},{"$f":"IF(HayMonth13>0,LivestockForageBalance!N172,\"\")","v":""}]
[{"$f":"IF(HayMonth14>0,Field14,\"\")","v":""},{"$f":"IF(HayMonth14>0,Kind14,\"\")","v":""},{"$f":"IF(HayMonth14>0,Acres14,\"\")","v":""},{"$f":"IF(HayMonth14>0,HayYield14,\"\")","v":""},{"$f":"IF(HayMonth14>0,LivestockForageBalance!J130,\"\")","v":""},{"$f":"IF(HayMonth14>0,LivestockForageBalance!K173,\"\")","v":""},{"$f":"IF(HayMonth14>0,HarvestEff14,\"\")","v":""},{"$f":"IF(HayMonth14>0,LivestockForageBalance!M173,\"\")","v":""},{"$f":"IF(HayMonth14>0,LivestockForageBalance!N173,\"\")","v":""}]
[{"$f":"IF(HayMonth15>0,Field15,\"\")","v":""},{"$f":"IF(HayMonth15>0,Kind15,\"\")","v":""},{"$f":"IF(HayMonth15>0,Acres15,\"\")","v":""},{"$f":"IF(HayMonth15>0,HayYield15,\"\")","v":""},{"$f":"IF(HayMonth15>0,LivestockForageBalance!J132,\"\")","v":""},{"$f":"IF(HayMonth15>0,LivestockForageBalance!K174,\"\")","v":""},{"$f":"IF(HayMonth15>0,HarvestEff15,\"\")","v":""},{"$f":"IF(HayMonth15>0,LivestockForageBalance!M174,\"\")","v":""},{"$f":"IF(HayMonth15>0,LivestockForageBalance!N174,\"\")","v":""}]
[{"$f":"IF(HayMonth16>0,Field16,\"\")","v":""},{"$f":"IF(HayMonth16>0,Kind16,\"\")","v":""},{"$f":"IF(HayMonth16>0,Acres16,\"\")","v":""},{"$f":"IF(HayMonth16>0,HayYield16,\"\")","v":""},{"$f":"IF(HayMonth16>0,LivestockForageBalance!J134,\"\")","v":""},{"$f":"IF(HayMonth16>0,LivestockForageBalance!K175,\"\")","v":""},{"$f":"IF(HayMonth16>0,HarvestEff16,\"\")","v":""},{"$f":"IF(HayMonth16>0,LivestockForageBalance!M175,\"\")","v":""},{"$f":"IF(HayMonth16>0,LivestockForageBalance!N175,\"\")","v":""}]
[{"$f":"IF(HayMonth17>0,Field17,\"\")","v":""},{"$f":"IF(HayMonth17>0,Kind17,\"\")","v":""},{"$f":"IF(HayMonth17>0,Acres17,\"\")","v":""},{"$f":"IF(HayMonth17>0,HayYield17,\"\")","v":""},{"$f":"IF(HayMonth17>0,LivestockForageBalance!J136,\"\")","v":""},{"$f":"IF(HayMonth17>0,LivestockForageBalance!K176,\"\")","v":""},{"$f":"IF(HayMonth17>0,HarvestEff17,\"\")","v":""},{"$f":"IF(HayMonth17>0,LivestockForageBalance!M176,\"\")","v":""},{"$f":"IF(HayMonth17>0,LivestockForageBalance!N176,\"\")","v":""}]
[{"$f":"IF(HayMonth18>0,Field18,\"\")","v":""},{"$f":"IF(HayMonth18>0,Kind18,\"\")","v":""},{"$f":"IF(HayMonth18>0,Acres18,\"\")","v":""},{"$f":"IF(HayMonth18>0,HayYield18,\"\")","v":""},{"$f":"IF(HayMonth18>0,LivestockForageBalance!J138,\"\")","v":""},{"$f":"IF(HayMonth18>0,LivestockForageBalance!K177,\"\")","v":""},{"$f":"IF(HayMonth18>0,HarvestEff18,\"\")","v":""},{"$f":"IF(HayMonth18>0,LivestockForageBalance!M177,\"\")","v":""},{"$f":"IF(HayMonth18>0,LivestockForageBalance!N177,\"\")","v":""}]
[{"$f":"IF(HayMonth19>0,Field19,\"\")","v":""},{"$f":"IF(HayMonth19>0,Kind19,\"\")","v":""},{"$f":"IF(HayMonth19>0,Acres19,\"\")","v":""},{"$f":"IF(HayMonth19>0,HayYield19,\"\")","v":""},{"$f":"IF(HayMonth19>0,LivestockForageBalance!J140,\"\")","v":""},{"$f":"IF(HayMonth19>0,LivestockForageBalance!K178,\"\")","v":""},{"$f":"IF(HayMonth19>0,HarvestEff19,\"\")","v":""},{"$f":"IF(HayMonth19>0,LivestockForageBalance!M178,\"\")","v":""},{"$f":"IF(HayMonth19>0,LivestockForageBalance!N178,\"\")","v":""}]
[{"$f":"IF(HayMonth20>0,Field20,\"\")","v":""},{"$f":"IF(HayMonth20>0,Kind20,\"\")","v":""},{"$f":"IF(HayMonth20>0,Acres20,\"\")","v":""},{"$f":"IF(HayMonth20>0,HayYield20,\"\")","v":""},{"$f":"IF(HayMonth20>0,LivestockForageBalance!J142,\"\")","v":""},{"$f":"IF(HayMonth20>0,LivestockForageBalance!K179,\"\")","v":""},{"$f":"IF(HayMonth20>0,HarvestEff20,\"\")","v":""},{"$f":"IF(HayMonth20>0,LivestockForageBalance!M179,\"\")","v":""},{"$f":"IF(HayMonth20>0,LivestockForageBalance!N179,\"\")","v":""}]
[{"$f":"IF(HayMonth21>0,Field21,\"\")","v":""},{"$f":"IF(HayMonth21>0,Kind21,\"\")","v":""},{"$f":"IF(HayMonth21>0,Acres21,\"\")","v":""},{"$f":"IF(HayMonth21>0,HayYield21,\"\")","v":""},{"$f":"IF(HayMonth21>0,LivestockForageBalance!J144,\"\")","v":""},{"$f":"IF(HayMonth21>0,LivestockForageBalance!K180,\"\")","v":""},{"$f":"IF(HayMonth21>0,HarvestEff21,\"\")","v":""},{"$f":"IF(HayMonth21>0,LivestockForageBalance!M180,\"\")","v":""},{"$f":"IF(HayMonth21>0,LivestockForageBalance!N180,\"\")","v":""}]
[{"$f":"IF(HayMonth22>0,Field22,\"\")","v":""},{"$f":"IF(HayMonth22>0,Kind22,\"\")","v":""},{"$f":"IF(HayMonth22>0,Acres22,\"\")","v":""},{"$f":"IF(HayMonth22>0,HayYield22,\"\")","v":""},{"$f":"IF(HayMonth22>0,LivestockForageBalance!J146,\"\")","v":""},{"$f":"IF(HayMonth22>0,LivestockForageBalance!K181,\"\")","v":""},{"$f":"IF(HayMonth22>0,HarvestEff22,\"\")","v":""},{"$f":"IF(HayMonth22>0,LivestockForageBalance!M181,\"\")","v":""},{"$f":"IF(HayMonth22>0,LivestockForageBalance!N181,\"\")","v":""}]
[{"$f":"IF(HayMonth23>0,Field23,\"\")","v":""},{"$f":"IF(HayMonth23>0,Kind23,\"\")","v":""},{"$f":"IF(HayMonth23>0,Acres23,\"\")","v":""},{"$f":"IF(HayMonth23>0,HayYield23,\"\")","v":""},{"$f":"IF(HayMonth23>0,LivestockForageBalance!J148,\"\")","v":""},{"$f":"IF(HayMonth23>0,LivestockForageBalance!K182,\"\")","v":""},{"$f":"IF(HayMonth23>0,HarvestEff23,\"\")","v":""},{"$f":"IF(HayMonth23>0,LivestockForageBalance!M182,\"\")","v":""},{"$f":"IF(HayMonth23>0,LivestockForageBalance!N182,\"\")","v":""}]
[{"$f":"IF(HayMonth24>0,Field24,\"\")","v":""},{"$f":"IF(HayMonth24>0,Kind24,\"\")","v":""},{"$f":"IF(HayMonth24>0,Acres24,\"\")","v":""},{"$f":"IF(HayMonth24>0,HayYield24,\"\")","v":""},{"$f":"IF(HayMonth24>0,LivestockForageBalance!J150,\"\")","v":""},{"$f":"IF(HayMonth24>0,LivestockForageBalance!K183,\"\")","v":""},{"$f":"IF(HayMonth24>0,HarvestEff24,\"\")","v":""},{"$f":"IF(HayMonth24>0,LivestockForageBalance!M183,\"\")","v":""},{"$f":"IF(HayMonth24>0,LivestockForageBalance!N183,\"\")","v":""}]
["Totals",null,{"$f":"SUM(C10:C33)","v":0},null,null,{"$f":"SUM(F10:F33)","v":0},null,{"$f":"SUM(H10:H33)","v":0}]
[]
["Hay Production and Inventory for Fields Hayed, Silage, Haylage Only"]
[null,null,"Hay",null,null,"Total","Hay",null,"Minimum"]
["Field","Kind of Forage","Acres","TFP","Haying ","Production","Harvest","Harvested","Cutting"]
["Number",null,"(Usable)","lbs/ac","Month","Pounds","Eff. (%)","Pounds"," Ht. (in)"]
[{"$f":"HayOnlyField1","v":0},{"$f":"HayOnlyKind1","v":0},{"$f":"HayOnlyAcres1","v":0},{"$f":"HayOnlyYield1","v":0},{"$f":"HayOnlyMonth1","v":0},{"$f":"LivestockForageBalance!L213","v":0},{"$f":"HayOnlyEff1","v":0},{"$f":"LivestockForageBalance!N213","v":0},{"$f":"LivestockForageBalance!O213","v":""}]
[{"$f":"HayOnlyField2","v":0},{"$f":"HayOnlyKind2","v":0},{"$f":"HayOnlyAcres2","v":0},{"$f":"HayOnlyYield2","v":0},{"$f":"HayOnlyMonth2","v":0},{"$f":"LivestockForageBalance!L214","v":0},{"$f":"HayOnlyEff2","v":0},{"$f":"LivestockForageBalance!N214","v":0},{"$f":"LivestockForageBalance!O214","v":""}]
[{"$f":"HayOnlyField3","v":0},{"$f":"HayOnlyKind3","v":0},{"$f":"HayOnlyAcres3","v":0},{"$f":"HayOnlyYield3","v":0},{"$f":"HayOnlyMonth3","v":0},{"$f":"LivestockForageBalance!L215","v":0},{"$f":"HayOnlyEff3","v":0},{"$f":"LivestockForageBalance!N215","v":0},{"$f":"LivestockForageBalance!O215","v":""}]
[{"$f":"HayOnlyField4","v":0},{"$f":"HayOnlyKind4","v":0},{"$f":"HayOnlyAcres4","v":0},{"$f":"HayOnlyYield4","v":0},{"$f":"HayOnlyMonth4","v":0},{"$f":"LivestockForageBalance!L216","v":0},{"$f":"HayOnlyEff4","v":0},{"$f":"LivestockForageBalance!N216","v":0},{"$f":"LivestockForageBalance!O216","v":""}]
[{"$f":"HayOnlyField5","v":0},{"$f":"HayOnlyKind5","v":0},{"$f":"HayOnlyAcres5","v":0},{"$f":"HayOnlyYield5","v":0},{"$f":"HayOnlyMonth5","v":0},{"$f":"LivestockForageBalance!L217","v":0},{"$f":"HayOnlyEff5","v":0},{"$f":"LivestockForageBalance!N217","v":0},{"$f":"LivestockForageBalance!O217","v":""}]
[{"$f":"HayOnlyField6","v":0},{"$f":"HayOnlyKind6","v":0},{"$f":"HayOnlyAcres6","v":0},{"$f":"HayOnlyYield6","v":0},{"$f":"HayOnlyMonth6","v":0},{"$f":"LivestockForageBalance!L218","v":0},{"$f":"HayOnlyEff6","v":0},{"$f":"LivestockForageBalance!N218","v":0},{"$f":"LivestockForageBalance!O218","v":""}]
[{"$f":"HayOnlyField7","v":0},{"$f":"HayOnlyKind7","v":0},{"$f":"HayOnlyAcres7","v":0},{"$f":"HayOnlyYield7","v":0},{"$f":"HayOnlyMonth7","v":0},{"$f":"LivestockForageBalance!L219","v":0},{"$f":"HayOnlyEff7","v":0},{"$f":"LivestockForageBalance!N219","v":0},{"$f":"LivestockForageBalance!O219","v":""}]
[{"$f":"HayOnlyField8","v":0},{"$f":"HayOnlyKind8","v":0},{"$f":"HayOnlyAcres8","v":0},{"$f":"HayOnlyYield8","v":0},{"$f":"HayOnlyMonth8","v":0},{"$f":"LivestockForageBalance!L220","v":0},{"$f":"HayOnlyEff8","v":0},{"$f":"LivestockForageBalance!N220","v":0},{"$f":"LivestockForageBalance!O220","v":""}]
[{"$f":"HayOnlyField9","v":0},{"$f":"HayOnlyKind9","v":0},{"$f":"HayOnlyAcres9","v":0},{"$f":"HayOnlyYield9","v":0},{"$f":"HayOnlyMonth9","v":0},{"$f":"LivestockForageBalance!L221","v":0},{"$f":"HayOnlyEff9","v":0},{"$f":"LivestockForageBalance!N221","v":0},{"$f":"LivestockForageBalance!O221","v":""}]
[{"$f":"HayOnlyField10","v":0},{"$f":"HayOnlyKind10","v":0},{"$f":"HayOnlyAcres10","v":0},{"$f":"HayOnlyYield10","v":0},{"$f":"HayOnlyMonth10","v":0},{"$f":"LivestockForageBalance!L222","v":0},{"$f":"HayOnlyEff10","v":0},{"$f":"LivestockForageBalance!N222","v":0},{"$f":"LivestockForageBalance!O222","v":""}]
["Totals",null,{"$f":"SUM(C40:C49)","v":0},null,null,{"$f":"SUM(F40:F49)","v":0},null,{"$f":"SUM(H40:H49)","v":0}]